Workbook

Sheet ESY_IPAT(D)
G13: Population scenario (P) | Q13: Built up land footprint
G23: Diet Scenario (D) | Q23: Food production footprint | V23: Total ecological footprint | AA23: Required earths
G33: Tech. Development scenario (T) | L33: Environmental Impact (I) | Q33: Carbon footprint
B35: Made by:
B36: Juan Gea Bermúdez, jgeab@dtu.dk
B37: Kenneth Karlsson, keka@dtu.dk
G42: Affluence scenario (A) | Q42: Temperature variation | Z42: Assumptions
Z43: Process
Z44: Results

Sheet Input and Results
B2: Select Scenarios
B3: Factor | C3: Scenario | E3: Description | G3: Total accumulated cost of the Energy System from 2010 to 2100
B4: Population | C4: Manual | E4: =+VLOOKUP(C4,'Scenarios definitions'!$A$3:$B$27,2,FALSE) -> Make you own scenario in the sheet "Assumptions" by modifying the specific cells in blue | G4: =+IF(C6="Manual","Unknown",'Energy System Cost'!P3/1000000) -> Unknown | H4: Trillion $2010
B5: Affluence | C5: Manual | E5: =+VLOOKUP(C5,'Scenarios definitions'!$A$3:$B$27,2,FALSE) -> Make you own scenario in the sheet "Assumptions" by modifying the specific cells in blue
B6: Technology | C6: Manual | E6: =+VLOOKUP(C6,'Scenarios definitions'!$A$3:$B$27,2,FALSE) -> Make you own scenario in the sheet "Assumptions" by modifying the specific cells in blue
B7: Diet | C7: Manual | E7: =+VLOOKUP(C7,'Scenarios definitions'!$A$3:$B$27,2,FALSE) -> Make you own scenario in the sheet "Assumptions" by modifying the specific cells in blue

Sheet Assumptions
B4: 1992 | C4: 1993 | D4: 1994 | E4: 1995 | F4: 1996 | G4: 1997 | H4: 1998 | I4: 1999 | J4: 2000 | K4: 2001 | L4: 2002 | M4: 2003 | N4: 2004 | O4: 2005 | P4: 2006 | Q4: 2007 | R4: 2008 | S4: 2009 | T4: 2010 | U4: 2011 | V4: 2012 | W4: 2013 | X4: 2014 | Y4: 2015 | Z4: 2016 | AA4: 2017 | AB4: 2018 | AC4: 2019 | AD4: 2020 | AE4: 2021 | AF4: 2022 | AG4: 2023 | AH4: 2024 | AI4: 2025 | AJ4: 2026 | AK4: 2027 | AL4: 2028 | AM4: 2029 | AN4: 2030 | AO4: 2031 | AP4: 2032 | AQ4: 2033 | AR4: 2034 | AS4: 2035 | AT4: 2036 | AU4: 2037 | AV4: 2038 | AW4: 2039 | AX4: 2040 | AY4: 2041 | AZ4: 2042 | BA4: 2043 | BB4: 2044 | BC4: 2045 | BD4: 2046 | BE4: 2047 | BF4: 2048 | BG4: 2049 | BH4: 2050 | BI4: 2051 | BJ4: 2052 | BK4: 2053 | BL4: 2054 | BM4: 2055 | BN4: 2056 | BO4: 2057 | BP4: 2058 | BQ4: 2059 | BR4: 2060 | BS4: 2061 | BT4: 2062 | BU4: 2063 | BV4: 2064 | BW4: 2065 | BX4: 2066 | BY4: 2067 | BZ4: 2068 | CA4: 2069 | CB4: 2070 | CC4: 2071 | CD4: 2072 | CE4: 2073 | CF4: 2074 | CG4: 2075 | CH4: 2076 | CI4: 2077 | CJ4: 2078 | CK4: 2079 | CL4: 2080 | CM4: 2081 | CN4: 2082 | CO4: 2083 | CP4: 2084 | CQ4: 2085 | CR4: 2086 | CS4: 2087 | CT4: 2088 | CU4: 2089 | CV4: 2090 | CW4: 2091 | CX4: 2092 | CY4: 2093 | CZ4: 2094 | DA4: 2095 | DB4: 2096 | DC4: 2097 | DD4: 2098 | DE4: 2099 | DF4: 2100
A5: CO2 emissions | B5: =+Impact!AL23/Impact!$AL$23 -> 1 | C5: =+Impact!AM23/Impact!$AL$23 -> 1.007833817 | D5: =+Impact!AN23/Impact!$AL$23 -> 1.008466632 | E5: =+Impact!AO23/Impact!$AL$23 -> 1.022363409 | F5: =+Impact!AP23/Impact!$AL$23 -> 1.049964349 | G5: =+Impact!AQ23/Impact!$AL$23 -> 1.052177968 | H5: =+Impact!AR23/Impact!$AL$23 -> 1.050415269 | I5: =+Impact!AS23/Impact!$AL$23 -> 1.066642279 | J5: =+Impact!AT23/Impact!$AL$23 -> 1.098097434 | K5: =+Impact!AU23/Impact!$AL$23 -> 1.106380023 | L5: =+Impact!AV23/Impact!$AL$23 -> 1.122133797 | M5: =+Impact!AW23/Impact!$AL$23 -> 1.185761148 | N5: =+Impact!AX23/Impact!$AL$23 -> 1.244870282 | O5: =+Impact!AY23/Impact!$AL$23 -> 1.278650471 | P5: =+Impact!AZ23/Impact!$AL$23 -> 1.322621621 | Q5: =+Impact!BA23/Impact!$AL$23 -> 1.357376 | R5: =+Impact!BB23/Impact!$AL$23 -> 1.389408347 | S5: =+Impact!BC23/Impact!$AL$23 -> 1.374529049 | T5: =+Impact!BD23/Impact!$AL$23 -> 1.465570237 | U5: =+Impact!BE23/Impact!$AL$23 -> 1.522824951 | V5: =+Impact!BF23/Impact!$AL$23 -> 1.553070779 | W5: =+Impact!BG23/Impact!$AL$23 -> 1.556729944 | X5: =+Impact!BH23/Impact!$AL$23 -> 1.475300296 | Y5: =+Impact!BI23/Impact!$AL$23 -> 1.424551889 | Z5: =+Impact!BJ23/Impact!$AL$23 -> 1.349726628 | AA5: =+Impact!BK23/Impact!$AL$23 -> 1.294909533 | AB5: =+Impact!BL23/Impact!$AL$23 -> 1.252570311 | AC5: =+Impact!BM23/Impact!$AL$23 -> 1.219194609 | AD5: =+Impact!BN23/Impact!$AL$23 -> 1.192662254 | AE5: =+Impact!BO23/Impact!$AL$23 -> 1.171567827 | AF5: =+Impact!BP23/Impact!$AL$23 -> 1.154944657 | AG5: =+Impact!BQ23/Impact!$AL$23 -> 1.142128729 | AH5: =+Impact!BR23/Impact!$AL$23 -> 1.132661396 | AI5: =+Impact!BS23/Impact!$AL$23 -> 1.126226646 | AJ5: =+Impact!BT23/Impact!$AL$23 -> 1.122607472 | AK5: =+Impact!BU23/Impact!$AL$23 -> 1.121655569 | AL5: =+Impact!BV23/Impact!$AL$23 -> 1.123270389 | AM5: =+Impact!BW23/Impact!$AL$23 -> 1.12738476 | AN5: =+Impact!BX23/Impact!$AL$23 -> 1.133955046 | AO5: =+Impact!BY23/Impact!$AL$23 -> 1.142138219 | AP5: =+Impact!BZ23/Impact!$AL$23 -> 1.152704686 | AQ5: =+Impact!CA23/Impact!$AL$23 -> 1.165643542 | AR5: =+Impact!CB23/Impact!$AL$23 -> 1.18095108 | AS5: =+Impact!CC23/Impact!$AL$23 -> 1.198629526 | AT5: =+Impact!CD23/Impact!$AL$23 -> 1.218686238 | AU5: =+Impact!CE23/Impact!$AL$23 -> 1.241133242 | AV5: =+Impact!CF23/Impact!$AL$23 -> 1.265986965 | AW5: =+Impact!CG23/Impact!$AL$23 -> 1.29326812 | AX5: =+Impact!CH23/Impact!$AL$23 -> 1.323001671 | AY5: =+Impact!CI23/Impact!$AL$23 -> 1.355216867 | AZ5: =+Impact!CJ23/Impact!$AL$23 -> 1.3899473 | BA5: =+Impact!CK23/Impact!$AL$23 -> 1.427230993 | BB5: =+Impact!CL23/Impact!$AL$23 -> 1.467110494 | BC5: =+Impact!CM23/Impact!$AL$23 -> 1.509632975 | BD5: =+Impact!CN23/Impact!$AL$23 -> 1.554850345 | BE5: =+Impact!CO23/Impact!$AL$23 -> 1.602819354 | BF5: =+Impact!CP23/Impact!$AL$23 -> 1.653601704 | BG5: =+Impact!CQ23/Impact!$AL$23 -> 1.707264164 | BH5: =+Impact!CR23/Impact!$AL$23 -> 1.76385943 | BI5: =+Impact!CS23/Impact!$AL$23 -> 1.769145561 | BJ5: =+Impact!CT23/Impact!$AL$23 -> 1.77234375 | BK5: =+Impact!CU23/Impact!$AL$23 -> 1.774156105 | BL5: =+Impact!CV23/Impact!$AL$23 -> 1.775471842 | BM5: =+Impact!CW23/Impact!$AL$23 -> 1.776713119 | BN5: =+Impact!CX23/Impact!$AL$23 -> 1.778083953 | BO5: =+Impact!CY23/Impact!$AL$23 -> 1.77971263 | BP5: =+Impact!CZ23/Impact!$AL$23 -> 1.781688032 | BQ5: =+Impact!DA23/Impact!$AL$23 -> 1.784069374 | BR5: =+Impact!DB23/Impact!$AL$23 -> 1.786891762 | BS5: =+Impact!DC23/Impact!$AL$23 -> 1.790171318 | BT5: =+Impact!DD23/Impact!$AL$23 -> 1.793909906 | BU5: =+Impact!DE23/Impact!$AL$23 -> 1.798099153 | BV5: =+Impact!DF23/Impact!$AL$23 -> 1.802723672 | BW5: =+Impact!DG23/Impact!$AL$23 -> 1.807763543 | BX5: =+Impact!DH23/Impact!$AL$23 -> 1.813196178 | BY5: =+Impact!DI23/Impact!$AL$23 -> 1.818997689 | BZ5: =+Impact!DJ23/Impact!$AL$23 -> 1.825143877 | CA5: =+Impact!DK23/Impact!$AL$23 -> 1.831610921 | CB5: =+Impact!DL23/Impact!$AL$23 -> 1.838375852 | CC5: =+Impact!DM23/Impact!$AL$23 -> 1.84541686 | CD5: =+Impact!DN23/Impact!$AL$23 -> 1.852713474 | CE5: =+Impact!DO23/Impact!$AL$23 -> 1.860246661 | CF5: =+Impact!DP23/Impact!$AL$23 -> 1.867998852 | CG5: =+Impact!DQ23/Impact!$AL$23 -> 1.875953926 | CH5: =+Impact!DR23/Impact!$AL$23 -> 1.884097165 | CI5: =+Impact!DS23/Impact!$AL$23 -> 1.892415189 | CJ5: =+Impact!DT23/Impact!$AL$23 -> 1.900895872 | CK5: =+Impact!DU23/Impact!$AL$23 -> 1.909528256 | CL5: =+Impact!DV23/Impact!$AL$23 -> 1.918302467 | CM5: =+Impact!DW23/Impact!$AL$23 -> 1.927209623 | CN5: =+Impact!DX23/Impact!$AL$23 -> 1.936241752 | CO5: =+Impact!DY23/Impact!$AL$23 -> 1.945391707 | CP5: =+Impact!DZ23/Impact!$AL$23 -> 1.954653092 | CQ5: =+Impact!EA23/Impact!$AL$23 -> 1.96402019 | CR5: =+Impact!EB23/Impact!$AL$23 -> 1.973487897 | CS5: =+Impact!EC23/Impact!$AL$23 -> 1.983051664 | CT5: =+Impact!ED23/Impact!$AL$23 -> 1.992707436 | CU5: =+Impact!EE23/Impact!$AL$23 -> 2.002451608 | CV5: =+Impact!EF23/Impact!$AL$23 -> 2.012280977 | CW5: =+Impact!EG23/Impact!$AL$23 -> 2.022192698 | CX5: =+Impact!EH23/Impact!$AL$23 -> 2.032184255 | CY5: =+Impact!EI23/Impact!$AL$23 -> 2.042253417 | CZ5: =+Impact!EJ23/Impact!$AL$23 -> 2.052398218 | DA5: =+Impact!EK23/Impact!$AL$23 -> 2.062616923 | DB5: =+Impact!EL23/Impact!$AL$23 -> 2.07290801 | DC5: =+Impact!EM23/Impact!$AL$23 -> 2.083270141 | DD5: =+Impact!EN23/Impact!$AL$23 -> 2.093702151 | DE5: =+Impact!EO23/Impact!$AL$23 -> 2.104203026 | DF5: =+Impact!EP23/Impact!$AL$23 -> 2.114771887
A6: Population | B6: =Population!AL22/Population!$AL$22 -> 1 | C6: =Population!AM22/Population!$AL$22 -> 1.015496085 | D6: =Population!AN22/Population!$AL$22 -> 1.030825719 | E6: =Population!AO22/Population!$AL$22 -> 1.046063932 | F6: =Population!AP22/Population!$AL$22 -> 1.061260499 | G6: =Population!AQ22/Population!$AL$22 -> 1.076477624 | H6: =Population!AR22/Population!$AL$22 -> 1.091561084 | I6: =Population!AS22/Population!$AL$22 -> 1.1065033 | J6: =Population!AT22/Population!$AL$22 -> 1.121287587 | K6: =Population!AU22/Population!$AL$22 -> 1.135991458 | L6: =Population!AV22/Population!$AL$22 -> 1.150517052 | M6: =Population!AW22/Population!$AL$22 -> 1.165063645 | N6: =Population!AX22/Population!$AL$22 -> 1.179707438 | O6: =Population!AY22/Population!$AL$22 -> 1.194426051 | P6: =Population!AZ22/Population!$AL$22 -> 1.209236275 | Q6: =Population!BA22/Population!$AL$22 -> 1.224105964 | R6: =Population!BB22/Population!$AL$22 -> 1.239222801 | S6: =Population!BC22/Population!$AL$22 -> 1.254369118 | T6: =Population!BD22/Population!$AL$22 -> 1.269529044 | U6: =Population!BE22/Population!$AL$22 -> 1.284777802 | V6: =Population!BF22/Population!$AL$22 -> 1.299889907 | W6: =Population!BG22/Population!$AL$22 -> 1.315757761 | X6: =Population!BH22/Population!$AL$22 -> 1.331268852 | Y6: =Population!BI22/Population!$AL$22 -> 1.346996489 | Z6: =Population!BJ22/Population!$AL$22 -> 1.373936419 | AA6: =Population!BK22/Population!$AL$22 -> 1.401415147 | AB6: =Population!BL22/Population!$AL$22 -> 1.42944345 | AC6: =Population!BM22/Population!$AL$22 -> 1.458032319 | AD6: =Population!BN22/Population!$AL$22 -> 1.487192965 | AE6: =Population!BO22/Population!$AL$22 -> 1.516936825 | AF6: =Population!BP22/Population!$AL$22 -> 1.547275561 | AG6: =Population!BQ22/Population!$AL$22 -> 1.578221072 | AH6: =Population!BR22/Population!$AL$22 -> 1.609785494 | AI6: =Population!BS22/Population!$AL$22 -> 1.641981204 | AJ6: =Population!BT22/Population!$AL$22 -> 1.674820828 | AK6: =Population!BU22/Population!$AL$22 -> 1.708317244 | AL6: =Population!BV22/Population!$AL$22 -> 1.742483589 | AM6: =Population!BW22/Population!$AL$22 -> 1.777333261 | AN6: =Population!BX22/Population!$AL$22 -> 1.812879926 | AO6: =Population!BY22/Population!$AL$22 -> 1.849137525 | AP6: =Population!BZ22/Population!$AL$22 -> 1.886120275 | AQ6: =Population!CA22/Population!$AL$22 -> 1.923842681 | AR6: =Population!CB22/Population!$AL$22 -> 1.962319534 | AS6: =Population!CC22/Population!$AL$22 -> 2.001565925 | AT6: =Population!CD22/Population!$AL$22 -> 2.041597244 | AU6: =Population!CE22/Population!$AL$22 -> 2.082429189 | AV6: =Population!CF22/Population!$AL$22 -> 2.124077772 | AW6: =Population!CG22/Population!$AL$22 -> 2.166559328 | AX6: =Population!CH22/Population!$AL$22 -> 2.209890514 | AY6: =Population!CI22/Population!$AL$22 -> 2.254088325 | AZ6: =Population!CJ22/Population!$AL$22 -> 2.299170091 | BA6: =Population!CK22/Population!$AL$22 -> 2.345153493 | BB6: =Population!CL22/Population!$AL$22 -> 2.392056563 | BC6: =Population!CM22/Population!$AL$22 -> 2.439897694 | BD6: =Population!CN22/Population!$AL$22 -> 2.488695648 | BE6: =Population!CO22/Population!$AL$22 -> 2.538469561 | BF6: =Population!CP22/Population!$AL$22 -> 2.589238952 | BG6: =Population!CQ22/Population!$AL$22 -> 2.641023731 | BH6: =Population!CR22/Population!$AL$22 -> 2.693844206 | BI6: =Population!CS22/Population!$AL$22 -> 2.680374985 | BJ6: =Population!CT22/Population!$AL$22 -> 2.66697311 | BK6: =Population!CU22/Population!$AL$22 -> 2.653638244 | BL6: =Population!CV22/Population!$AL$22 -> 2.640370053 | BM6: =Population!CW22/Population!$AL$22 -> 2.627168203 | BN6: =Population!CX22/Population!$AL$22 -> 2.614032362 | BO6: =Population!CY22/Population!$AL$22 -> 2.6009622 | BP6: =Population!CZ22/Population!$AL$22 -> 2.587957389 | BQ6: =Population!DA22/Population!$AL$22 -> 2.575017602 | BR6: =Population!DB22/Population!$AL$22 -> 2.562142514 | BS6: =Population!DC22/Population!$AL$22 -> 2.549331801 | BT6: =Population!DD22/Population!$AL$22 -> 2.536585142 | BU6: =Population!DE22/Population!$AL$22 -> 2.523902217 | BV6: =Population!DF22/Population!$AL$22 -> 2.511282706 | BW6: =Population!DG22/Population!$AL$22 -> 2.498726292 | BX6: =Population!DH22/Population!$AL$22 -> 2.486232661 | BY6: =Population!DI22/Population!$AL$22 -> 2.473801497 | BZ6: =Population!DJ22/Population!$AL$22 -> 2.46143249 | CA6: =Population!DK22/Population!$AL$22 -> 2.449125327 | CB6: =Population!DL22/Population!$AL$22 -> 2.436879701 | CC6: =Population!DM22/Population!$AL$22 -> 2.424695302 | CD6: =Population!DN22/Population!$AL$22 -> 2.412571826 | CE6: =Population!DO22/Population!$AL$22 -> 2.400508967 | CF6: =Population!DP22/Population!$AL$22 -> 2.388506422 | CG6: =Population!DQ22/Population!$AL$22 -> 2.37656389 | CH6: =Population!DR22/Population!$AL$22 -> 2.36468107 | CI6: =Population!DS22/Population!$AL$22 -> 2.352857665 | CJ6: =Population!DT22/Population!$AL$22 -> 2.341093377 | CK6: =Population!DU22/Population!$AL$22 -> 2.32938791 | CL6: =Population!DV22/Population!$AL$22 -> 2.31774097 | CM6: =Population!DW22/Population!$AL$22 -> 2.306152265 | CN6: =Population!DX22/Population!$AL$22 -> 2.294621504 | CO6: =Population!DY22/Population!$AL$22 -> 2.283148396 | CP6: =Population!DZ22/Population!$AL$22 -> 2.271732654 | CQ6: =Population!EA22/Population!$AL$22 -> 2.260373991 | CR6: =Population!EB22/Population!$AL$22 -> 2.249072121 | CS6: =Population!EC22/Population!$AL$22 -> 2.237826761 | CT6: =Population!ED22/Population!$AL$22 -> 2.226637627 | CU6: =Population!EE22/Population!$AL$22 -> 2.215504439 | CV6: =Population!EF22/Population!$AL$22 -> 2.204426916 | CW6: =Population!EG22/Population!$AL$22 -> 2.193404782 | CX6: =Population!EH22/Population!$AL$22 -> 2.182437758 | CY6: =Population!EI22/Population!$AL$22 -> 2.171525569 | CZ6: =Population!EJ22/Population!$AL$22 -> 2.160667941 | DA6: =Population!EK22/Population!$AL$22 -> 2.149864602 | DB6: =Population!EL22/Population!$AL$22 -> 2.139115279 | DC6: =Population!EM22/Population!$AL$22 -> 2.128419702 | DD6: =Population!EN22/Population!$AL$22 -> 2.117777604 | DE6: =Population!EO22/Population!$AL$22 -> 2.107188716 | DF6: =Population!EP22/Population!$AL$22 -> 2.096652772
A7: Affluence | B7: =Affluence!AL18/Affluence!$AL$18 -> 1 | C7: =Affluence!AM18/Affluence!$AL$18 -> 1.000220618 | D7: =Affluence!AN18/Affluence!$AL$18 -> 1.014368897 | E7: =Affluence!AO18/Affluence!$AL$18 -> 1.023073029 | F7: =Affluence!AP18/Affluence!$AL$18 -> 1.041374418 | G7: =Affluence!AQ18/Affluence!$AL$18 -> 1.064351146 | H7: =Affluence!AR18/Affluence!$AL$18 -> 1.075830154 | I7: =Affluence!AS18/Affluence!$AL$18 -> 1.096797374 | J7: =Affluence!AT18/Affluence!$AL$18 -> 1.130591165 | K7: =Affluence!AU18/Affluence!$AL$18 -> 1.138116603 | L7: =Affluence!AV18/Affluence!$AL$18 -> 1.147245846 | M7: =Affluence!AW18/Affluence!$AL$18 -> 1.165511475 | N7: =Affluence!AX18/Affluence!$AL$18 -> 1.202288838 | O7: =Affluence!AY18/Affluence!$AL$18 -> 1.233137068 | P7: =Affluence!AZ18/Affluence!$AL$18 -> 1.270929598 | Q7: =Affluence!BA18/Affluence!$AL$18 -> 1.308930757 | R7: =Affluence!BB18/Affluence!$AL$18 -> 1.316837821 | S7: =Affluence!BC18/Affluence!$AL$18 -> 1.278752301 | T7: =Affluence!BD18/Affluence!$AL$18 -> 1.317855851 | U7: =Affluence!BE18/Affluence!$AL$18 -> 1.342518679 | V7: =Affluence!BF18/Affluence!$AL$18 -> 1.358642207 | W7: =Affluence!BG18/Affluence!$AL$18 -> 1.376097259 | X7: =Affluence!BH18/Affluence!$AL$18 -> 1.395528436 | Y7: =Affluence!BI18/Affluence!$AL$18 -> 1.425699833 | Z7: =Affluence!BJ18/Affluence!$AL$18 -> 1.45421383 | AA7: =Affluence!BK18/Affluence!$AL$18 -> 1.483298106 | AB7: =Affluence!BL18/Affluence!$AL$18 -> 1.512964069 | AC7: =Affluence!BM18/Affluence!$AL$18 -> 1.54322335 | AD7: =Affluence!BN18/Affluence!$AL$18 -> 1.574087817 | AE7: =Affluence!BO18/Affluence!$AL$18 -> 1.605569573 | AF7: =Affluence!BP18/Affluence!$AL$18 -> 1.637680965 | AG7: =Affluence!BQ18/Affluence!$AL$18 -> 1.670434584 | AH7: =Affluence!BR18/Affluence!$AL$18 -> 1.703843276 | AI7: =Affluence!BS18/Affluence!$AL$18 -> 1.737920141 | AJ7: =Affluence!BT18/Affluence!$AL$18 -> 1.772678544 | AK7: =Affluence!BU18/Affluence!$AL$18 -> 1.808132115 | AL7: =Affluence!BV18/Affluence!$AL$18 -> 1.844294757 | AM7: =Affluence!BW18/Affluence!$AL$18 -> 1.881180652 | AN7: =Affluence!BX18/Affluence!$AL$18 -> 1.918804265 | AO7: =Affluence!BY18/Affluence!$AL$18 -> 1.957180351 | AP7: =Affluence!BZ18/Affluence!$AL$18 -> 1.996323958 | AQ7: =Affluence!CA18/Affluence!$AL$18 -> 2.036250437 | AR7: =Affluence!CB18/Affluence!$AL$18 -> 2.076975446 | AS7: =Affluence!CC18/Affluence!$AL$18 -> 2.118514955 | AT7: =Affluence!CD18/Affluence!$AL$18 -> 2.160885254 | AU7: =Affluence!CE18/Affluence!$AL$18 -> 2.204102959 | AV7: =Affluence!CF18/Affluence!$AL$18 -> 2.248185018 | AW7: =Affluence!CG18/Affluence!$AL$18 -> 2.293148718 | AX7: =Affluence!CH18/Affluence!$AL$18 -> 2.339011693 | AY7: =Affluence!CI18/Affluence!$AL$18 -> 2.385791926 | AZ7: =Affluence!CJ18/Affluence!$AL$18 -> 2.433507765 | BA7: =Affluence!CK18/Affluence!$AL$18 -> 2.48217792 | BB7: =Affluence!CL18/Affluence!$AL$18 -> 2.531821479 | BC7: =Affluence!CM18/Affluence!$AL$18 -> 2.582457908 | BD7: =Affluence!CN18/Affluence!$AL$18 -> 2.634107066 | BE7: =Affluence!CO18/Affluence!$AL$18 -> 2.686789208 | BF7: =Affluence!CP18/Affluence!$AL$18 -> 2.740524992 | BG7: =Affluence!CQ18/Affluence!$AL$18 -> 2.795335492 | BH7: =Affluence!CR18/Affluence!$AL$18 -> 2.851242202 | BI7: =Affluence!CS18/Affluence!$AL$18 -> 2.879754624 | BJ7: =Affluence!CT18/Affluence!$AL$18 -> 2.90855217 | BK7: =Affluence!CU18/Affluence!$AL$18 -> 2.937637692 | BL7: =Affluence!CV18/Affluence!$AL$18 -> 2.967014068 | BM7: =Affluence!CW18/Affluence!$AL$18 -> 2.996684209 | BN7: =Affluence!CX18/Affluence!$AL$18 -> 3.026651051 | BO7: =Affluence!CY18/Affluence!$AL$18 -> 3.056917562 | BP7: =Affluence!CZ18/Affluence!$AL$18 -> 3.087486737 | BQ7: =Affluence!DA18/Affluence!$AL$18 -> 3.118361605 | BR7: =Affluence!DB18/Affluence!$AL$18 -> 3.149545221 | BS7: =Affluence!DC18/Affluence!$AL$18 -> 3.181040673 | BT7: =Affluence!DD18/Affluence!$AL$18 -> 3.21285108 | BU7: =Affluence!DE18/Affluence!$AL$18 -> 3.244979591 | BV7: =Affluence!DF18/Affluence!$AL$18 -> 3.277429386 | BW7: =Affluence!DG18/Affluence!$AL$18 -> 3.31020368 | BX7: =Affluence!DH18/Affluence!$AL$18 -> 3.343305717 | BY7: =Affluence!DI18/Affluence!$AL$18 -> 3.376738774 | BZ7: =Affluence!DJ18/Affluence!$AL$18 -> 3.410506162 | CA7: =Affluence!DK18/Affluence!$AL$18 -> 3.444611224 | CB7: =Affluence!DL18/Affluence!$AL$18 -> 3.479057336 | CC7: =Affluence!DM18/Affluence!$AL$18 -> 3.513847909 | CD7: =Affluence!DN18/Affluence!$AL$18 -> 3.548986388 | CE7: =Affluence!DO18/Affluence!$AL$18 -> 3.584476252 | CF7: =Affluence!DP18/Affluence!$AL$18 -> 3.620321015 | CG7: =Affluence!DQ18/Affluence!$AL$18 -> 3.656524225 | CH7: =Affluence!DR18/Affluence!$AL$18 -> 3.693089467 | CI7: =Affluence!DS18/Affluence!$AL$18 -> 3.730020362 | CJ7: =Affluence!DT18/Affluence!$AL$18 -> 3.767320565 | CK7: =Affluence!DU18/Affluence!$AL$18 -> 3.804993771 | CL7: =Affluence!DV18/Affluence!$AL$18 -> 3.843043709 | CM7: =Affluence!DW18/Affluence!$AL$18 -> 3.881474146 | CN7: =Affluence!DX18/Affluence!$AL$18 -> 3.920288887 | CO7: =Affluence!DY18/Affluence!$AL$18 -> 3.959491776 | CP7: =Affluence!DZ18/Affluence!$AL$18 -> 3.999086694 | CQ7: =Affluence!EA18/Affluence!$AL$18 -> 4.039077561 | CR7: =Affluence!EB18/Affluence!$AL$18 -> 4.079468337 | CS7: =Affluence!EC18/Affluence!$AL$18 -> 4.12026302 | CT7: =Affluence!ED18/Affluence!$AL$18 -> 4.16146565 | CU7: =Affluence!EE18/Affluence!$AL$18 -> 4.203080307 | CV7: =Affluence!EF18/Affluence!$AL$18 -> 4.24511111 | CW7: =Affluence!EG18/Affluence!$AL$18 -> 4.287562221 | CX7: =Affluence!EH18/Affluence!$AL$18 -> 4.330437843 | CY7: =Affluence!EI18/Affluence!$AL$18 -> 4.373742221 | CZ7: =Affluence!EJ18/Affluence!$AL$18 -> 4.417479644 | DA7: =Affluence!EK18/Affluence!$AL$18 -> 4.46165444 | DB7: =Affluence!EL18/Affluence!$AL$18 -> 4.506270984 | DC7: =Affluence!EM18/Affluence!$AL$18 -> 4.551333694 | DD7: =Affluence!EN18/Affluence!$AL$18 -> 4.596847031 | DE7: =Affluence!EO18/Affluence!$AL$18 -> 4.642815502 | DF7: =Affluence!EP18/Affluence!$AL$18 -> 4.689243657
A8: Technology | B8: =Technology!AL18/Technology!$AL$18 -> 1 | C8: =Technology!AM18/Technology!$AL$18 -> 0.9922357504 | D8: =Technology!AN18/Technology!$AL$18 -> 0.9644514333 | E8: =Technology!AO18/Technology!$AL$18 -> 0.955301443 | F8: =Technology!AP18/Technology!$AL$18 -> 0.9500482204 | G8: =Technology!AQ18/Technology!$AL$18 -> 0.918331042 | H8: =Technology!AR18/Technology!$AL$18 -> 0.8944771886 | I8: =Technology!AS18/Technology!$AL$18 -> 0.8789004334 | J8: =Technology!AT18/Technology!$AL$18 -> 0.8662001904 | K8: =Technology!AU18/Technology!$AL$18 -> 0.8557413163 | L8: =Technology!AV18/Technology!$AL$18 -> 0.8501490797 | M8: =Technology!AW18/Technology!$AL$18 -> 0.8732347543 | N8: =Technology!AX18/Technology!$AL$18 -> 0.8776896286 | O8: =Technology!AY18/Technology!$AL$18 -> 0.8681229206 | P8: =Technology!AZ18/Technology!$AL$18 -> 0.8606032014 | Q8: =Technology!BA18/Technology!$AL$18 -> 0.8471581226 | R8: =Technology!BB18/Technology!$AL$18 -> 0.8514285655 | S8: =Technology!BC18/Technology!$AL$18 -> 0.8569236736 | T8: =Technology!BD18/Technology!$AL$18 -> 0.8759838235 | U8: =Technology!BE18/Technology!$AL$18 -> 0.8828798851 | V8: =Technology!BF18/Technology!$AL$18 -> 0.8793860552 | W8: =Technology!BG18/Technology!$AL$18 -> 0.8597817237 | X8: =Technology!BH18/Technology!$AL$18 -> 0.7941014123 | Y8: =Technology!BI18/Technology!$AL$18 -> 0.7417946735 | Z8: =Technology!BJ18/Technology!$AL$18 -> 0.6874750737 | AA8: =Technology!BK18/Technology!$AL$18 -> 0.6401600646 | AB8: =Technology!BL18/Technology!$AL$18 -> 0.59837525 | AC8: =Technology!BM18/Technology!$AL$18 -> 0.5611605529 | AD8: =Technology!BN18/Technology!$AL$18 -> 0.5278218059 | AE8: =Technology!BO18/Technology!$AL$18 -> 0.497843846 | AF8: =Technology!BP18/Technology!$AL$18 -> 0.4708241849 | AG8: =Technology!BQ18/Technology!$AL$18 -> 0.4464370805 | AH8: =Technology!BR18/Technology!$AL$18 -> 0.4244078827 | AI8: =Technology!BS18/Technology!$AL$18 -> 0.4044992491 | AJ8: =Technology!BT18/Technology!$AL$18 -> 0.3865026335 | AK8: =Technology!BU18/Technology!$AL$18 -> 0.3702327846 | AL8: =Technology!BV18/Technology!$AL$18 -> 0.3555239908 | AM8: =Technology!BW18/Technology!$AL$18 -> 0.3422273619 | AN8: =Technology!BX18/Technology!$AL$18 -> 0.3302087504 | AO8: =Technology!BY18/Technology!$AL$18 -> 0.319119013 | AP8: =Technology!BZ18/Technology!$AL$18 -> 0.3090867739 | AQ8: =Technology!CA18/Technology!$AL$18 -> 0.3000113897 | AR8: =Technology!CB18/Technology!$AL$18 -> 0.2918018472 | AS8: =Technology!CC18/Technology!$AL$18 -> 0.284375823 | AT8: =Technology!CD18/Technology!$AL$18 -> 0.2776588436 | AU8: =Technology!CE18/Technology!$AL$18 -> 0.2715835303 | AV8: =Technology!CF18/Technology!$AL$18 -> 0.2660889201 | AW8: =Technology!CG18/Technology!$AL$18 -> 0.2611198525 | AX8: =Technology!CH18/Technology!$AL$18 -> 0.2566264164 | AY8: =Technology!CI18/Technology!$AL$18 -> 0.2525634496 | AZ8: =Technology!CJ18/Technology!$AL$18 -> 0.2488900871 | BA8: =Technology!CK18/Technology!$AL$18 -> 0.2455693517 | BB8: =Technology!CL18/Technology!$AL$18 -> 0.2425677841 | BC8: =Technology!CM18/Technology!$AL$18 -> 0.2398551085 | BD8: =Technology!CN18/Technology!$AL$18 -> 0.2374039296 | BE8: =Technology!CO18/Technology!$AL$18 -> 0.2351894585 | BF8: =Technology!CP18/Technology!$AL$18 -> 0.2331892653 | BG8: =Technology!CQ18/Technology!$AL$18 -> 0.2313830541 | BH8: =Technology!CR18/Technology!$AL$18 -> 0.2297499536 | BI8: =Technology!CS18/Technology!$AL$18 -> 0.2282758375 | BJ8: =Technology!CT18/Technology!$AL$18 -> 0.2269276455 | BK8: =Technology!CU18/Technology!$AL$18 -> 0.2257094487 | BL8: =Technology!CV18/Technology!$AL$18 -> 0.2246089019 | BM8: =Technology!CW18/Technology!$AL$18 -> 0.2236148343 | BN8: =Technology!CX18/Technology!$AL$18 -> 0.2227171377 | BO8: =Technology!CY18/Technology!$AL$18 -> 0.2219066653 | BP8: =Technology!CZ18/Technology!$AL$18 -> 0.2211751407 | BQ8: =Technology!DA18/Technology!$AL$18 -> 0.2205150746 | BR8: =Technology!DB18/Technology!$AL$18 -> 0.2199196903 | BS8: =Technology!DC18/Technology!$AL$18 -> 0.2193828557 | BT8: =Technology!DD18/Technology!$AL$18 -> 0.2188990221 | BU8: =Technology!DE18/Technology!$AL$18 -> 0.2184631687 | BV8: =Technology!DF18/Technology!$AL$18 -> 0.2180707526 | BW8: =Technology!DG18/Technology!$AL$18 -> 0.2177176628 | BX8: =Technology!DH18/Technology!$AL$18 -> 0.2174001797 | BY8: =Technology!DI18/Technology!$AL$18 -> 0.2171149376 | BZ8: =Technology!DJ18/Technology!$AL$18 -> 0.216858891 | CA8: =Technology!DK18/Technology!$AL$18 -> 0.2166292844 | CB8: =Technology!DL18/Technology!$AL$18 -> 0.2164236243 | CC8: =Technology!DM18/Technology!$AL$18 -> 0.2162396549 | CD8: =Technology!DN18/Technology!$AL$18 -> 0.2160753348 | CE8: =Technology!DO18/Technology!$AL$18 -> 0.2159288172 | CF8: =Technology!DP18/Technology!$AL$18 -> 0.2157984309 | CG8: =Technology!DQ18/Technology!$AL$18 -> 0.2156826641 | CH8: =Technology!DR18/Technology!$AL$18 -> 0.2155801487 | CI8: =Technology!DS18/Technology!$AL$18 -> 0.2154896473 | CJ8: =Technology!DT18/Technology!$AL$18 -> 0.21541004 | CK8: =Technology!DU18/Technology!$AL$18 -> 0.215340314 | CL8: =Technology!DV18/Technology!$AL$18 -> 0.2152795526 | CM8: =Technology!DW18/Technology!$AL$18 -> 0.215226927 | CN8: =Technology!DX18/Technology!$AL$18 -> 0.215181687 | CO8: =Technology!DY18/Technology!$AL$18 -> 0.2151431543 | CP8: =Technology!DZ18/Technology!$AL$18 -> 0.2151107151 | CQ8: =Technology!EA18/Technology!$AL$18 -> 0.2150838144 | CR8: =Technology!EB18/Technology!$AL$18 -> 0.2150619501 | CS8: =Technology!EC18/Technology!$AL$18 -> 0.2150446682 | CT8: =Technology!ED18/Technology!$AL$18 -> 0.2150315579 | CU8: =Technology!EE18/Technology!$AL$18 -> 0.215022248 | CV8: =Technology!EF18/Technology!$AL$18 -> 0.2150164026 | CW8: =Technology!EG18/Technology!$AL$18 -> 0.2150137182 | CX8: =Technology!EH18/Technology!$AL$18 -> 0.2150139202 | CY8: =Technology!EI18/Technology!$AL$18 -> 0.2150167606 | CZ8: =Technology!EJ18/Technology!$AL$18 -> 0.2150220151 | DA8: =Technology!EK18/Technology!$AL$18 -> 0.2150294809 | DB8: =Technology!EL18/Technology!$AL$18 -> 0.215038975 | DC8: =Technology!EM18/Technology!$AL$18 -> 0.215050332 | DD8: =Technology!EN18/Technology!$AL$18 -> 0.2150634023 | DE8: =Technology!EO18/Technology!$AL$18 -> 0.2150780511 | DF8: =Technology!EP18/Technology!$AL$18 -> 0.2150941564
A35: Population Annual Growth rate | B35: Manual Scenario
B36: 2015-2050 | C36: 2051-2100
B37: P(y+1) = P(y) * (1+a) | K37: Resulting average yearly growth
B38: a (% increase) | C38: a (% increase) | J38: GDP | K38: 2015-2050 | L38: 2051-2100 | N38: GDP | O38: 1990 | P38: 1991 | Q38: 1992 | R38: 1993 | S38: 1994 | T38: 1995 | U38: 1996 | V38: 1997 | W38: 1998 | X38: 1999 | Y38: 2000 | Z38: 2001 | AA38: 2002 | AB38: 2003 | AC38: 2004 | AD38: 2005 | AE38: 2006 | AF38: 2007 | AG38: 2008 | AH38: 2009 | AI38: 2010 | AJ38: 2011 | AK38: 2012 | AL38: 2013 | AM38: 2014 | AN38: 2015 | AO38: 2016 | AP38: 2017 | AQ38: 2018 | AR38: 2019 | AS38: 2020 | AT38: 2021 | AU38: 2022 | AV38: 2023 | AW38: 2024 | AX38: 2025 | AY38: 2026 | AZ38: 2027 | BA38: 2028 | BB38: 2029 | BC38: 2030 | BD38: 2031 | BE38: 2032 | BF38: 2033 | BG38: 2034 | BH38: 2035 | BI38: 2036 | BJ38: 2037 | BK38: 2038 | BL38: 2039 | BM38: 2040 | BN38: 2041 | BO38: 2042 | BP38: 2043 | BQ38: 2044 | BR38: 2045 | BS38: 2046 | BT38: 2047 | BU38: 2048 | BV38: 2049 | BW38: 2050 | BX38: 2051 | BY38: 2052 | BZ38: 2053 | CA38: 2054 | CB38: 2055 | CC38: 2056 | CD38: 2057 | CE38: 2058 | CF38: 2059 | CG38: 2060 | CH38: 2061 | CI38: 2062 | CJ38: 2063 | CK38: 2064 | CL38: 2065 | CM38: 2066 | CN38: 2067 | CO38: 2068 | CP38: 2069 | CQ38: 2070 | CR38: 2071 | CS38: 2072 | CT38: 2073 | CU38: 2074 | CV38: 2075 | CW38: 2076 | CX38: 2077 | CY38: 2078 | CZ38: 2079 | DA38: 2080 | DB38: 2081 | DC38: 2082 | DD38: 2083 | DE38: 2084 | DF38: 2085 | DG38: 2086 | DH38: 2087 | DI38: 2088 | DJ38: 2089 | DK38: 2090 | DL38: 2091 | DM38: 2092 | DN38: 2093 | DO38: 2094 | DP38: 2095 | DQ38: 2096 | DR38: 2097 | DS38: 2098 | DT38: 2099 | DU38: 2100
A39: AFR | B39: 0.02 | C39: -0.005 | J39: AFR | K39: =+((Population!CR6*Affluence!CR2)/(Population!BI6*Affluence!BI2))^(1/(2050-2015))-1 -> 0.0404 | L39: =+((Population!EP6*Affluence!EP2)/(Population!CS6*Affluence!CS2))^(1/(2100-2051))-1 -> 0.00495 | N39: AFR | O39: =+Population!AJ6*Affluence!AJ2 -> 8.942205058e+11 | P39: =+Population!AK6*Affluence!AK2 -> 8.980104547e+11 | Q39: =+Population!AL6*Affluence!AL2 -> 8.915804874e+11 | R39: =+Population!AM6*Affluence!AM2 -> 8.919067811e+11 | S39: =+Population!AN6*Affluence!AN2 -> 9.123675141e+11 | T39: =+Population!AO6*Affluence!AO2 -> 9.39022757e+11 | U39: =+Population!AP6*Affluence!AP2 -> 9.906986429e+11 | V39: =+Population!AQ6*Affluence!AQ2 -> 1.023892249e+12 | W39: =+Population!AR6*Affluence!AR2 -> 1.056996463e+12 | X39: =+Population!AS6*Affluence!AS2 -> 1.126061291e+12 | Y39: =+Population!AT6*Affluence!AT2 -> 1.168683114e+12 | Z39: =+Population!AU6*Affluence!AU2 -> 1.213128082e+12 | AA39: =+Population!AV6*Affluence!AV2 -> 1.249157713e+12 | AB39: =+Population!AW6*Affluence!AW2 -> 1.314986253e+12 | AC39: =+Population!AX6*Affluence!AX2 -> 1.436690553e+12 | AD39: =+Population!AY6*Affluence!AY2 -> 1.516220531e+12 | AE39: =+Population!AZ6*Affluence!AZ2 -> 1.614628062e+12 | AF39: =+Population!BA6*Affluence!BA2 -> 1.720016112e+12 | AG39: =+Population!BB6*Affluence!BB2 -> 1.809667403e+12 | AH39: =+Population!BC6*Affluence!BC2 -> 1.861177472e+12 | AI39: =+Population!BD6*Affluence!BD2 -> 1.955689642e+12 | AJ39: =+Population!BE6*Affluence!BE2 -> 1.981828463e+12 | AK39: =+Population!BF6*Affluence!BF2 -> 2.047571965e+12 | AL39: =+Population!BG6*Affluence!BG2 -> 2.133213162e+12 | AM39: =+Population!BH6*Affluence!BH2 -> 2.220820692e+12 | AN39: =+Population!BI6*Affluence!BI2 -> 2.295850921e+12 | AO39: =+Population!BJ6*Affluence!BJ2 -> 2.388603298e+12 | AP39: =+Population!BK6*Affluence!BK2 -> 2.485102871e+12 | AQ39: =+Population!BL6*Affluence!BL2 -> 2.585501027e+12 | AR39: =+Population!BM6*Affluence!BM2 -> 2.689955269e+12 | AS39: =+Population!BN6*Affluence!BN2 -> 2.798629462e+12 | AT39: =+Population!BO6*Affluence!BO2 -> 2.911694092e+12 | AU39: =+Population!BP6*Affluence!BP2 -> 3.029326533e+12 | AV39: =+Population!BQ6*Affluence!BQ2 -> 3.151711325e+12 | AW39: =+Population!BR6*Affluence!BR2 -> 3.279040463e+12 | AX39: =+Population!BS6*Affluence!BS2 -> 3.411513697e+12 | AY39: =+Population!BT6*Affluence!BT2 -> 3.549338851e+12 | AZ39: =+Population!BU6*Affluence!BU2 -> 3.69273214e+12 | BA39: =+Population!BV6*Affluence!BV2 -> 3.841918519e+12 | BB39: =+Population!BW6*Affluence!BW2 -> 3.997132027e+12 | BC39: =+Population!BX6*Affluence!BX2 -> 4.158616161e+12 | BD39: =+Population!BY6*Affluence!BY2 -> 4.326624254e+12 | BE39: =+Population!BZ6*Affluence!BZ2 -> 4.501419874e+12 | BF39: =+Population!CA6*Affluence!CA2 -> 4.683277237e+12 | BG39: =+Population!CB6*Affluence!CB2 -> 4.872481637e+12 | BH39: =+Population!CC6*Affluence!CC2 -> 5.069329895e+12 | BI39: =+Population!CD6*Affluence!CD2 -> 5.274130823e+12 | BJ39: =+Population!CE6*Affluence!CE2 -> 5.487205708e+12 | BK39: =+Population!CF6*Affluence!CF2 -> 5.708888819e+12 | BL39: =+Population!CG6*Affluence!CG2 -> 5.939527927e+12 | BM39: =+Population!CH6*Affluence!CH2 -> 6.179484855e+12 | BN39: =+Population!CI6*Affluence!CI2 -> 6.429136043e+12 | BO39: =+Population!CJ6*Affluence!CJ2 -> 6.68887314e+12 | BP39: =+Population!CK6*Affluence!CK2 -> 6.959103614e+12 | BQ39: =+Population!CL6*Affluence!CL2 -> 7.2402514e+12 | BR39: =+Population!CM6*Affluence!CM2 -> 7.532757557e+12 | BS39: =+Population!CN6*Affluence!CN2 -> 7.837080962e+12 | BT39: =+Population!CO6*Affluence!CO2 -> 8.153699033e+12 | BU39: =+Population!CP6*Affluence!CP2 -> 8.483108474e+12 | BV39: =+Population!CQ6*Affluence!CQ2 -> 8.825826057e+12 | BW39: =+Population!CR6*Affluence!CR2 -> 9.182389429e+12 | BX39: =+Population!CS6*Affluence!CS2 -> 9.227842257e+12 | BY39: =+Population!CT6*Affluence!CT2 -> 9.273520076e+12 | BZ39: =+Population!CU6*Affluence!CU2 -> 9.319424e+12 | CA39: =+Population!CV6*Affluence!CV2 -> 9.365555149e+12 | CB39: =+Population!CW6*Affluence!CW2 -> 9.411914647e+12 | CC39: =+Population!CX6*Affluence!CX2 -> 9.458503625e+12 | CD39: =+Population!CY6*Affluence!CY2 -> 9.505323218e+12 | CE39: =+Population!CZ6*Affluence!CZ2 -> 9.552374568e+12 | CF39: =+Population!DA6*Affluence!DA2 -> 9.599658822e+12 | CG39: =+Population!DB6*Affluence!DB2 -> 9.647177133e+12 | CH39: =+Population!DC6*Affluence!DC2 -> 9.69493066e+12 | CI39: =+Population!DD6*Affluence!DD2 -> 9.742920566e+12 | CJ39: =+Population!DE6*Affluence!DE2 -> 9.791148023e+12 | CK39: =+Population!DF6*Affluence!DF2 -> 9.839614206e+12 | CL39: =+Population!DG6*Affluence!DG2 -> 9.888320296e+12 | CM39: =+Population!DH6*Affluence!DH2 -> 9.937267482e+12 | CN39: =+Population!DI6*Affluence!DI2 -> 9.986456956e+12 | CO39: =+Population!DJ6*Affluence!DJ2 -> 1.003588992e+13 | CP39: =+Population!DK6*Affluence!DK2 -> 1.008556757e+13 | CQ39: =+Population!DL6*Affluence!DL2 -> 1.013549113e+13 | CR39: =+Population!DM6*Affluence!DM2 -> 1.018566181e+13 | CS39: =+Population!DN6*Affluence!DN2 -> 1.023608084e+13 | CT39: =+Population!DO6*Affluence!DO2 -> 1.028674944e+13 | CU39: =+Population!DP6*Affluence!DP2 -> 1.033766885e+13 | CV39: =+Population!DQ6*Affluence!DQ2 -> 1.038884031e+13 | CW39: =+Population!DR6*Affluence!DR2 -> 1.044026507e+13 | CX39: =+Population!DS6*Affluence!DS2 -> 1.049194438e+13 | CY39: =+Population!DT6*Affluence!DT2 -> 1.054387951e+13 | CZ39: =+Population!DU6*Affluence!DU2 -> 1.059607171e+13 | DA39: =+Population!DV6*Affluence!DV2 -> 1.064852226e+13 | DB39: =+Population!DW6*Affluence!DW2 -> 1.070123245e+13 | DC39: =+Population!DX6*Affluence!DX2 -> 1.075420355e+13 | DD39: =+Population!DY6*Affluence!DY2 -> 1.080743686e+13 | DE39: =+Population!DZ6*Affluence!DZ2 -> 1.086093367e+13 | DF39: =+Population!EA6*Affluence!EA2 -> 1.091469529e+13 | DG39: =+Population!EB6*Affluence!EB2 -> 1.096872303e+13 | DH39: =+Population!EC6*Affluence!EC2 -> 1.102301821e+13 | DI39: =+Population!ED6*Affluence!ED2 -> 1.107758215e+13 | DJ39: =+Population!EE6*Affluence!EE2 -> 1.113241618e+13 | DK39: =+Population!EF6*Affluence!EF2 -> 1.118752165e+13 | DL39: =+Population!EG6*Affluence!EG2 -> 1.124289988e+13 | DM39: =+Population!EH6*Affluence!EH2 -> 1.129855223e+13 | DN39: =+Population!EI6*Affluence!EI2 -> 1.135448007e+13 | DO39: =+Population!EJ6*Affluence!EJ2 -> 1.141068474e+13 | DP39: =+Population!EK6*Affluence!EK2 -> 1.146716763e+13 | DQ39: =+Population!EL6*Affluence!EL2 -> 1.152393011e+13 | DR39: =+Population!EM6*Affluence!EM2 -> 1.158097356e+13 | DS39: =+Population!EN6*Affluence!EN2 -> 1.163829938e+13 | DT39: =+Population!EO6*Affluence!EO2 -> 1.169590897e+13 | DU39: =+Population!EP6*Affluence!EP2 -> 1.175380372e+13
A40: AUS | B40: 0.02 | C40: -0.005 | J40: AUS | K40: =+((Population!CR7*Affluence!CR3)/(Population!BI7*Affluence!BI3))^(1/(2050-2015))-1 -> 0.0404 | L40: =+((Population!EP7*Affluence!EP3)/(Population!CS7*Affluence!CS3))^(1/(2100-2051))-1 -> 0.00495 | N40: AUS | O40: =+Population!AJ7*Affluence!AJ3 -> 6.958065848e+11 | P40: =+Population!AK7*Affluence!AK3 -> 6.925640843e+11 | Q40: =+Population!AL7*Affluence!AL3 -> 6.959283394e+11 | R40: =+Population!AM7*Affluence!AM3 -> 7.261789957e+11 | S40: =+Population!AN7*Affluence!AN3 -> 7.564661395e+11 | T40: =+Population!AO7*Affluence!AO3 -> 7.864849834e+11 | U40: =+Population!AP7*Affluence!AP3 -> 8.172348218e+11 | V40: =+Population!AQ7*Affluence!AQ3 -> 8.474694708e+11 | W40: =+Population!AR7*Affluence!AR3 -> 8.810733255e+11 | X40: =+Population!AS7*Affluence!AS3 -> 9.257209222e+11 | Y40: =+Population!AT7*Affluence!AT3 -> 9.603099831e+11 | Z40: =+Population!AU7*Affluence!AU3 -> 9.805584954e+11 | AA40: =+Population!AV7*Affluence!AV3 -> 1.019577145e+12 | AB40: =+Population!AW7*Affluence!AW3 -> 1.052826023e+12 | AC40: =+Population!AX7*Affluence!AX3 -> 1.096070734e+12 | AD40: =+Population!AY7*Affluence!AY3 -> 1.131478728e+12 | AE40: =+Population!AZ7*Affluence!AZ3 -> 1.165150108e+12 | AF40: =+Population!BA7*Affluence!BA3 -> 1.207653547e+12 | AG40: =+Population!BB7*Affluence!BB3 -> 1.245028401e+12 | AH40: =+Population!BC7*Affluence!BC3 -> 1.264256748e+12 | AI40: =+Population!BD7*Affluence!BD3 -> 1.288835029e+12 | AJ40: =+Population!BE7*Affluence!BE3 -> 1.319643847e+12 | AK40: =+Population!BF7*Affluence!BF3 -> 1.36562549e+12 | AL40: =+Population!BG7*Affluence!BG3 -> 1.399414609e+12 | AM40: =+Population!BH7*Affluence!BH3 -> 1.436097733e+12 | AN40: =+Population!BI7*Affluence!BI3 -> 1.47015274e+12 | AO40: =+Population!BJ7*Affluence!BJ3 -> 1.529546911e+12 | AP40: =+Population!BK7*Affluence!BK3 -> 1.591340606e+12 | AQ40: =+Population!BL7*Affluence!BL3 -> 1.655630766e+12 | AR40: =+Population!BM7*Affluence!BM3 -> 1.722518249e+12 | AS40: =+Population!BN7*Affluence!BN3 -> 1.792107987e+12 | AT40: =+Population!BO7*Affluence!BO3 -> 1.864509149e+12 | AU40: =+Population!BP7*Affluence!BP3 -> 1.939835319e+12 | AV40: =+Population!BQ7*Affluence!BQ3 -> 2.018204666e+12 | AW40: =+Population!BR7*Affluence!BR3 -> 2.099740134e+12 | AX40: =+Population!BS7*Affluence!BS3 -> 2.184569636e+12 | AY40: =+Population!BT7*Affluence!BT3 -> 2.272826249e+12 | AZ40: =+Population!BU7*Affluence!BU3 -> 2.36464843e+12 | BA40: =+Population!BV7*Affluence!BV3 -> 2.460180226e+12 | BB40: =+Population!BW7*Affluence!BW3 -> 2.559571507e+12 | BC40: =+Population!BX7*Affluence!BX3 -> 2.662978196e+12 | BD40: =+Population!BY7*Affluence!BY3 -> 2.770562515e+12 | BE40: =+Population!BZ7*Affluence!BZ3 -> 2.882493241e+12 | BF40: =+Population!CA7*Affluence!CA3 -> 2.998945968e+12 | BG40: =+Population!CB7*Affluence!CB3 -> 3.120103385e+12 | BH40: =+Population!CC7*Affluence!CC3 -> 3.246155562e+12 | BI40: =+Population!CD7*Affluence!CD3 -> 3.377300246e+12 | BJ40: =+Population!CE7*Affluence!CE3 -> 3.513743176e+12 | BK40: =+Population!CF7*Affluence!CF3 -> 3.655698401e+12 | BL40: =+Population!CG7*Affluence!CG3 -> 3.803388616e+12 | BM40: =+Population!CH7*Affluence!CH3 -> 3.957045516e+12 | BN40: =+Population!CI7*Affluence!CI3 -> 4.116910155e+12 | BO40: =+Population!CJ7*Affluence!CJ3 -> 4.283233325e+12 | BP40: =+Population!CK7*Affluence!CK3 -> 4.456275952e+12 | BQ40: =+Population!CL7*Affluence!CL3 -> 4.6363095e+12 | BR40: =+Population!CM7*Affluence!CM3 -> 4.823616404e+12 | BS40: =+Population!CN7*Affluence!CN3 -> 5.018490507e+12 | BT40: =+Population!CO7*Affluence!CO3 -> 5.221237523e+12 | BU40: =+Population!CP7*Affluence!CP3 -> 5.432175519e+12 | BV40: =+Population!CQ7*Affluence!CQ3 -> 5.65163541e+12 | BW40: =+Population!CR7*Affluence!CR3 -> 5.87996148e+12 | BX40: =+Population!CS7*Affluence!CS3 -> 5.90906729e+12 | BY40: =+Population!CT7*Affluence!CT3 -> 5.938317173e+12 | BZ40: =+Population!CU7*Affluence!CU3 -> 5.967711843e+12 | CA40: =+Population!CV7*Affluence!CV3 -> 5.997252017e+12 | CB40: =+Population!CW7*Affluence!CW3 -> 6.026938414e+12 | CC40: =+Population!CX7*Affluence!CX3 -> 6.056771759e+12 | CD40: =+Population!CY7*Affluence!CY3 -> 6.086752779e+12 | CE40: =+Population!CZ7*Affluence!CZ3 -> 6.116882206e+12 | CF40: =+Population!DA7*Affluence!DA3 -> 6.147160773e+12 | CG40: =+Population!DB7*Affluence!DB3 -> 6.177589218e+12 | CH40: =+Population!DC7*Affluence!DC3 -> 6.208168285e+12 | CI40: =+Population!DD7*Affluence!DD3 -> 6.238898718e+12 | CJ40: =+Population!DE7*Affluence!DE3 -> 6.269781267e+12 | CK40: =+Population!DF7*Affluence!DF3 -> 6.300816684e+12 | CL40: =+Population!DG7*Affluence!DG3 -> 6.332005727e+12 | CM40: =+Population!DH7*Affluence!DH3 -> 6.363349155e+12 | CN40: =+Population!DI7*Affluence!DI3 -> 6.394847733e+12 | CO40: =+Population!DJ7*Affluence!DJ3 -> 6.426502229e+12 | CP40: =+Population!DK7*Affluence!DK3 -> 6.458313415e+12 | CQ40: =+Population!DL7*Affluence!DL3 -> 6.490282067e+12 | CR40: =+Population!DM7*Affluence!DM3 -> 6.522408963e+12 | CS40: =+Population!DN7*Affluence!DN3 -> 6.554694887e+12 | CT40: =+Population!DO7*Affluence!DO3 -> 6.587140627e+12 | CU40: =+Population!DP7*Affluence!DP3 -> 6.619746973e+12 | CV40: =+Population!DQ7*Affluence!DQ3 -> 6.652514721e+12 | CW40: =+Population!DR7*Affluence!DR3 -> 6.685444669e+12 | CX40: =+Population!DS7*Affluence!DS3 -> 6.71853762e+12 | CY40: =+Population!DT7*Affluence!DT3 -> 6.751794381e+12 | CZ40: =+Population!DU7*Affluence!DU3 -> 6.785215763e+12 | DA40: =+Population!DV7*Affluence!DV3 -> 6.818802581e+12 | DB40: =+Population!DW7*Affluence!DW3 -> 6.852555654e+12 | DC40: =+Population!DX7*Affluence!DX3 -> 6.886475804e+12 | DD40: =+Population!DY7*Affluence!DY3 -> 6.92056386e+12 | DE40: =+Population!DZ7*Affluence!DZ3 -> 6.954820651e+12 | DF40: =+Population!EA7*Affluence!EA3 -> 6.989247013e+12 | DG40: =+Population!EB7*Affluence!EB3 -> 7.023843786e+12 | DH40: =+Population!EC7*Affluence!EC3 -> 7.058611812e+12 | DI40: =+Population!ED7*Affluence!ED3 -> 7.093551941e+12 | DJ40: =+Population!EE7*Affluence!EE3 -> 7.128665023e+12 | DK40: =+Population!EF7*Affluence!EF3 -> 7.163951915e+12 | DL40: =+Population!EG7*Affluence!EG3 -> 7.199413477e+12 | DM40: =+Population!EH7*Affluence!EH3 -> 7.235050574e+12 | DN40: =+Population!EI7*Affluence!EI3 -> 7.270864074e+12 | DO40: =+Population!EJ7*Affluence!EJ3 -> 7.306854851e+12 | DP40: =+Population!EK7*Affluence!EK3 -> 7.343023783e+12 | DQ40: =+Population!EL7*Affluence!EL3 -> 7.37937175e+12 | DR40: =+Population!EM7*Affluence!EM3 -> 7.415899641e+12 | DS40: =+Population!EN7*Affluence!EN3 -> 7.452608344e+12 | DT40: =+Population!EO7*Affluence!EO3 -> 7.489498755e+12 | DU40: =+Population!EP7*Affluence!EP3 -> 7.526571774e+12
A41: CAC | B41: 0.02 | C41: -0.005 | J41: CAC | K41: =+((Population!CR8*Affluence!CR4)/(Population!BI8*Affluence!BI4))^(1/(2050-2015))-1 -> 0.0404 | L41: =+((Population!EP8*Affluence!EP4)/(Population!CS8*Affluence!CS4))^(1/(2100-2051))-1 -> 0.00495 | N41: CAC | O41: =+Population!AJ8*Affluence!AJ4 -> 1.808760915e+11 | P41: =+Population!AK8*Affluence!AK4 -> 1.646991711e+11 | Q41: =+Population!AL8*Affluence!AL4 -> 1.419471649e+11 | R41: =+Population!AM8*Affluence!AM4 -> 1.272307614e+11 | S41: =+Population!AN8*Affluence!AN4 -> 1.114497571e+11 | T41: =+Population!AO8*Affluence!AO4 -> 1.042947844e+11 | U41: =+Population!AP8*Affluence!AP4 -> 1.06479254e+11 | V41: =+Population!AQ8*Affluence!AQ4 -> 1.088018068e+11 | W41: =+Population!AR8*Affluence!AR4 -> 1.105105127e+11 | X41: =+Population!AS8*Affluence!AS4 -> 1.155781036e+11 | Y41: =+Population!AT8*Affluence!AT4 -> 1.24669623e+11 | Z41: =+Population!AU8*Affluence!AU4 -> 1.371930699e+11 | AA41: =+Population!AV8*Affluence!AV4 -> 1.480116145e+11 | AB41: =+Population!AW8*Affluence!AW4 -> 1.605942814e+11 | AC41: =+Population!AX8*Affluence!AX4 -> 1.748213994e+11 | AD41: =+Population!AY8*Affluence!AY4 -> 1.946888932e+11 | AE41: =+Population!AZ8*Affluence!AZ4 -> 2.203404726e+11 | AF41: =+Population!BA8*Affluence!BA4 -> 2.466908308e+11 | AG41: =+Population!BB8*Affluence!BB4 -> 2.620993603e+11 | AH41: =+Population!BC8*Affluence!BC4 -> 2.701922517e+11 | AI41: =+Population!BD8*Affluence!BD4 -> 2.885591601e+11 | AJ41: =+Population!BE8*Affluence!BE4 -> 3.076951611e+11 | AK41: =+Population!BF8*Affluence!BF4 -> 3.243462078e+11 | AL41: =+Population!BG8*Affluence!BG4 -> 3.454495432e+11 | AM41: =+Population!BH8*Affluence!BH4 -> 3.625587891e+11 | AN41: =+Population!BI8*Affluence!BI4 -> 3.729232928e+11 | AO41: =+Population!BJ8*Affluence!BJ4 -> 3.879893938e+11 | AP41: =+Population!BK8*Affluence!BK4 -> 4.036641653e+11 | AQ41: =+Population!BL8*Affluence!BL4 -> 4.199721976e+11 | AR41: =+Population!BM8*Affluence!BM4 -> 4.369390744e+11 | AS41: =+Population!BN8*Affluence!BN4 -> 4.54591413e+11 | AT41: =+Population!BO8*Affluence!BO4 -> 4.72956906e+11 | AU41: =+Population!BP8*Affluence!BP4 -> 4.920643651e+11 | AV41: =+Population!BQ8*Affluence!BQ4 -> 5.119437654e+11 | AW41: =+Population!BR8*Affluence!BR4 -> 5.326262935e+11 | AX41: =+Population!BS8*Affluence!BS4 -> 5.541443958e+11 | AY41: =+Population!BT8*Affluence!BT4 -> 5.765318294e+11 | AZ41: =+Population!BU8*Affluence!BU4 -> 5.998237153e+11 | BA41: =+Population!BV8*Affluence!BV4 -> 6.240565934e+11 | BB41: =+Population!BW8*Affluence!BW4 -> 6.492684797e+11 | BC41: =+Population!BX8*Affluence!BX4 -> 6.754989263e+11 | BD41: =+Population!BY8*Affluence!BY4 -> 7.02789083e+11 | BE41: =+Population!BZ8*Affluence!BZ4 -> 7.311817619e+11 | BF41: =+Population!CA8*Affluence!CA4 -> 7.607215051e+11 | BG41: =+Population!CB8*Affluence!CB4 -> 7.914546539e+11 | BH41: =+Population!CC8*Affluence!CC4 -> 8.234294219e+11 | BI41: =+Population!CD8*Affluence!CD4 -> 8.566959706e+11 | BJ41: =+Population!CE8*Affluence!CE4 -> 8.913064878e+11 | BK41: =+Population!CF8*Affluence!CF4 -> 9.273152699e+11 | BL41: =+Population!CG8*Affluence!CG4 -> 9.647788068e+11 | BM41: =+Population!CH8*Affluence!CH4 -> 1.003755871e+12 | BN41: =+Population!CI8*Affluence!CI4 -> 1.044307608e+12 | BO41: =+Population!CJ8*Affluence!CJ4 -> 1.086497635e+12 | BP41: =+Population!CK8*Affluence!CK4 -> 1.13039214e+12 | BQ41: =+Population!CL8*Affluence!CL4 -> 1.176059982e+12 | BR41: =+Population!CM8*Affluence!CM4 -> 1.223572805e+12 | BS41: =+Population!CN8*Affluence!CN4 -> 1.273005147e+12 | BT41: =+Population!CO8*Affluence!CO4 -> 1.324434555e+12 | BU41: =+Population!CP8*Affluence!CP4 -> 1.377941711e+12 | BV41: =+Population!CQ8*Affluence!CQ4 -> 1.433610556e+12 | BW41: =+Population!CR8*Affluence!CR4 -> 1.491528422e+12 | BX41: =+Population!CS8*Affluence!CS4 -> 1.498911488e+12 | BY41: =+Population!CT8*Affluence!CT4 -> 1.5063311e+12 | BZ41: =+Population!CU8*Affluence!CU4 -> 1.513787439e+12 | CA41: =+Population!CV8*Affluence!CV4 -> 1.521280686e+12 | CB41: =+Population!CW8*Affluence!CW4 -> 1.528811026e+12 | CC41: =+Population!CX8*Affluence!CX4 -> 1.53637864e+12 | CD41: =+Population!CY8*Affluence!CY4 -> 1.543983715e+12 | CE41: =+Population!CZ8*Affluence!CZ4 -> 1.551626434e+12 | CF41: =+Population!DA8*Affluence!DA4 -> 1.559306985e+12 | CG41: =+Population!DB8*Affluence!DB4 -> 1.567025554e+12 | CH41: =+Population!DC8*Affluence!DC4 -> 1.574782331e+12 | CI41: =+Population!DD8*Affluence!DD4 -> 1.582577503e+12 | CJ41: =+Population!DE8*Affluence!DE4 -> 1.590411262e+12 | CK41: =+Population!DF8*Affluence!DF4 -> 1.598283798e+12 | CL41: =+Population!DG8*Affluence!DG4 -> 1.606195303e+12 | CM41: =+Population!DH8*Affluence!DH4 -> 1.614145969e+12 | CN41: =+Population!DI8*Affluence!DI4 -> 1.622135992e+12 | CO41: =+Population!DJ8*Affluence!DJ4 -> 1.630165565e+12 | CP41: =+Population!DK8*Affluence!DK4 -> 1.638234885e+12 | CQ41: =+Population!DL8*Affluence!DL4 -> 1.646344147e+12 | CR41: =+Population!DM8*Affluence!DM4 -> 1.654493551e+12 | CS41: =+Population!DN8*Affluence!DN4 -> 1.662683294e+12 | CT41: =+Population!DO8*Affluence!DO4 -> 1.670913576e+12 | CU41: =+Population!DP8*Affluence!DP4 -> 1.679184598e+12 | CV41: =+Population!DQ8*Affluence!DQ4 -> 1.687496562e+12 | CW41: =+Population!DR8*Affluence!DR4 -> 1.69584967e+12 | CX41: =+Population!DS8*Affluence!DS4 -> 1.704244126e+12 | CY41: =+Population!DT8*Affluence!DT4 -> 1.712680134e+12 | CZ41: =+Population!DU8*Affluence!DU4 -> 1.721157901e+12 | DA41: =+Population!DV8*Affluence!DV4 -> 1.729677633e+12 | DB41: =+Population!DW8*Affluence!DW4 -> 1.738239537e+12 | DC41: =+Population!DX8*Affluence!DX4 -> 1.746843823e+12 | DD41: =+Population!DY8*Affluence!DY4 -> 1.7554907e+12 | DE41: =+Population!DZ8*Affluence!DZ4 -> 1.764180379e+12 | DF41: =+Population!EA8*Affluence!EA4 -> 1.772913072e+12 | DG41: =+Population!EB8*Affluence!EB4 -> 1.781688991e+12 | DH41: =+Population!EC8*Affluence!EC4 -> 1.790508352e+12 | DI41: =+Population!ED8*Affluence!ED4 -> 1.799371368e+12 | DJ41: =+Population!EE8*Affluence!EE4 -> 1.808278256e+12 | DK41: =+Population!EF8*Affluence!EF4 -> 1.817229234e+12 | DL41: =+Population!EG8*Affluence!EG4 -> 1.826224518e+12 | DM41: =+Population!EH8*Affluence!EH4 -> 1.83526433e+12 | DN41: =+Population!EI8*Affluence!EI4 -> 1.844348888e+12 | DO41: =+Population!EJ8*Affluence!EJ4 -> 1.853478415e+12 | DP41: =+Population!EK8*Affluence!EK4 -> 1.862653133e+12 | DQ41: =+Population!EL8*Affluence!EL4 -> 1.871873266e+12 | DR41: =+Population!EM8*Affluence!EM4 -> 1.881139039e+12 | DS41: =+Population!EN8*Affluence!EN4 -> 1.890450677e+12 | DT41: =+Population!EO8*Affluence!EO4 -> 1.899808408e+12 | DU41: =+Population!EP8*Affluence!EP4 -> 1.90921246e+12
A42: CAN | B42: 0.02 | C42: -0.005 | J42: CAN | K42: =+((Population!CR9*Affluence!CR5)/(Population!BI9*Affluence!BI5))^(1/(2050-2015))-1 -> 0.0404 | L42: =+((Population!EP9*Affluence!EP5)/(Population!CS9*Affluence!CS5))^(1/(2100-2051))-1 -> 0.00495 | N42: CAN | O42: =+Population!AJ9*Affluence!AJ5 -> 1.014036567e+12 | P42: =+Population!AK9*Affluence!AK5 -> 9.924812702e+11 | Q42: =+Population!AL9*Affluence!AL5 -> 1.001244642e+12 | R42: =+Population!AM9*Affluence!AM5 -> 1.027830049e+12 | S42: =+Population!AN9*Affluence!AN5 -> 1.074015331e+12 | T42: =+Population!AO9*Affluence!AO5 -> 1.10277433e+12 | U42: =+Population!AP9*Affluence!AP5 -> 1.120540555e+12 | V42: =+Population!AQ9*Affluence!AQ5 -> 1.168497589e+12 | W42: =+Population!AR9*Affluence!AR5 -> 1.213855851e+12 | X42: =+Population!AS9*Affluence!AS5 -> 1.276529788e+12 | Y42: =+Population!AT9*Affluence!AT5 -> 1.342688373e+12 | Z42: =+Population!AU9*Affluence!AU5 -> 1.366464955e+12 | AA42: =+Population!AV9*Affluence!AV5 -> 1.407595773e+12 | AB42: =+Population!AW9*Affluence!AW5 -> 1.432964496e+12 | AC42: =+Population!AX9*Affluence!AX5 -> 1.477185225e+12 | AD42: =+Population!AY9*Affluence!AY5 -> 1.524475569e+12 | AE42: =+Population!AZ9*Affluence!AZ5 -> 1.564468853e+12 | AF42: =+Population!BA9*Affluence!BA5 -> 1.596739898e+12 | AG42: =+Population!BB9*Affluence!BB5 -> 1.612713061e+12 | AH42: =+Population!BC9*Affluence!BC5 -> 1.565144676e+12 | AI42: =+Population!BD9*Affluence!BD5 -> 1.613406135e+12 | AJ42: =+Population!BE9*Affluence!BE5 -> 1.664086755e+12 | AK42: =+Population!BF9*Affluence!BF5 -> 1.693132928e+12 | AL42: =+Population!BG9*Affluence!BG5 -> 1.735037999e+12 | AM42: =+Population!BH9*Affluence!BH5 -> 1.779546917e+12 | AN42: =+Population!BI9*Affluence!BI5 -> 1.79630448e+12 | AO42: =+Population!BJ9*Affluence!BJ5 -> 1.868875181e+12 | AP42: =+Population!BK9*Affluence!BK5 -> 1.944377739e+12 | AQ42: =+Population!BL9*Affluence!BL5 -> 2.022930599e+12 | AR42: =+Population!BM9*Affluence!BM5 -> 2.104656995e+12 | AS42: =+Population!BN9*Affluence!BN5 -> 2.189685138e+12 | AT42: =+Population!BO9*Affluence!BO5 -> 2.278148418e+12 | AU42: =+Population!BP9*Affluence!BP5 -> 2.370185614e+12 | AV42: =+Population!BQ9*Affluence!BQ5 -> 2.465941112e+12 | AW42: =+Population!BR9*Affluence!BR5 -> 2.565565133e+12 | AX42: =+Population!BS9*Affluence!BS5 -> 2.669213965e+12 | AY42: =+Population!BT9*Affluence!BT5 -> 2.777050209e+12 | AZ42: =+Population!BU9*Affluence!BU5 -> 2.889243037e+12 | BA42: =+Population!BV9*Affluence!BV5 -> 3.005968456e+12 | BB42: =+Population!BW9*Affluence!BW5 -> 3.127409582e+12 | BC42: =+Population!BX9*Affluence!BX5 -> 3.253756929e+12 | BD42: =+Population!BY9*Affluence!BY5 -> 3.385208709e+12 | BE42: =+Population!BZ9*Affluence!BZ5 -> 3.521971141e+12 | BF42: =+Population!CA9*Affluence!CA5 -> 3.664258775e+12 | BG42: =+Population!CB9*Affluence!CB5 -> 3.812294829e+12 | BH42: =+Population!CC9*Affluence!CC5 -> 3.96631154e+12 | BI42: =+Population!CD9*Affluence!CD5 -> 4.126550526e+12 | BJ42: =+Population!CE9*Affluence!CE5 -> 4.293263168e+12 | BK42: =+Population!CF9*Affluence!CF5 -> 4.466711e+12 | BL42: =+Population!CG9*Affluence!CG5 -> 4.647166124e+12 | BM42: =+Population!CH9*Affluence!CH5 -> 4.834911635e+12 | BN42: =+Population!CI9*Affluence!CI5 -> 5.030242066e+12 | BO42: =+Population!CJ9*Affluence!CJ5 -> 5.233463845e+12 | BP42: =+Population!CK9*Affluence!CK5 -> 5.444895784e+12 | BQ42: =+Population!CL9*Affluence!CL5 -> 5.664869574e+12 | BR42: =+Population!CM9*Affluence!CM5 -> 5.893730305e+12 | BS42: =+Population!CN9*Affluence!CN5 -> 6.131837009e+12 | BT42: =+Population!CO9*Affluence!CO5 -> 6.379563224e+12 | BU42: =+Population!CP9*Affluence!CP5 -> 6.637297579e+12 | BV42: =+Population!CQ9*Affluence!CQ5 -> 6.905444401e+12 | BW42: =+Population!CR9*Affluence!CR5 -> 7.184424355e+12 | BX42: =+Population!CS9*Affluence!CS5 -> 7.219987255e+12 | BY42: =+Population!CT9*Affluence!CT5 -> 7.255726192e+12 | BZ42: =+Population!CU9*Affluence!CU5 -> 7.291642037e+12 | CA42: =+Population!CV9*Affluence!CV5 -> 7.327735665e+12 | CB42: =+Population!CW9*Affluence!CW5 -> 7.364007956e+12 | CC42: =+Population!CX9*Affluence!CX5 -> 7.400459796e+12 | CD42: =+Population!CY9*Affluence!CY5 -> 7.437092072e+12 | CE42: =+Population!CZ9*Affluence!CZ5 -> 7.473905677e+12 | CF42: =+Population!DA9*Affluence!DA5 -> 7.51090151e+12 | CG42: =+Population!DB9*Affluence!DB5 -> 7.548080473e+12 | CH42: =+Population!DC9*Affluence!DC5 -> 7.585443471e+12 | CI42: =+Population!DD9*Affluence!DD5 -> 7.622991416e+12 | CJ42: =+Population!DE9*Affluence!DE5 -> 7.660725224e+12 | CK42: =+Population!DF9*Affluence!DF5 -> 7.698645814e+12 | CL42: =+Population!DG9*Affluence!DG5 -> 7.736754111e+12 | CM42: =+Population!DH9*Affluence!DH5 -> 7.775051043e+12 | CN42: =+Population!DI9*Affluence!DI5 -> 7.813537546e+12 | CO42: =+Population!DJ9*Affluence!DJ5 -> 7.852214557e+12 | CP42: =+Population!DK9*Affluence!DK5 -> 7.891083019e+12 | CQ42: =+Population!DL9*Affluence!DL5 -> 7.93014388e+12 | CR42: =+Population!DM9*Affluence!DM5 -> 7.969398092e+12 | CS42: =+Population!DN9*Affluence!DN5 -> 8.008846613e+12 | CT42: =+Population!DO9*Affluence!DO5 -> 8.048490403e+12 | CU42: =+Population!DP9*Affluence!DP5 -> 8.088330431e+12 | CV42: =+Population!DQ9*Affluence!DQ5 -> 8.128367667e+12 | CW42: =+Population!DR9*Affluence!DR5 -> 8.168603087e+12 | CX42: =+Population!DS9*Affluence!DS5 -> 8.209037672e+12 | CY42: =+Population!DT9*Affluence!DT5 -> 8.249672408e+12 | CZ42: =+Population!DU9*Affluence!DU5 -> 8.290508287e+12 | DA42: =+Population!DV9*Affluence!DV5 -> 8.331546303e+12 | DB42: =+Population!DW9*Affluence!DW5 -> 8.372787457e+12 | DC42: =+Population!DX9*Affluence!DX5 -> 8.414232755e+12 | DD42: =+Population!DY9*Affluence!DY5 -> 8.455883207e+12 | DE42: =+Population!DZ9*Affluence!DZ5 -> 8.497739829e+12 | DF42: =+Population!EA9*Affluence!EA5 -> 8.539803641e+12 | DG42: =+Population!EB9*Affluence!EB5 -> 8.582075669e+12 | DH42: =+Population!EC9*Affluence!EC5 -> 8.624556944e+12 | DI42: =+Population!ED9*Affluence!ED5 -> 8.667248501e+12 | DJ42: =+Population!EE9*Affluence!EE5 -> 8.710151381e+12 | DK42: =+Population!EF9*Affluence!EF5 -> 8.75326663e+12 | DL42: =+Population!EG9*Affluence!EG5 -> 8.7965953e+12 | DM42: =+Population!EH9*Affluence!EH5 -> 8.840138446e+12 | DN42: =+Population!EI9*Affluence!EI5 -> 8.883897132e+12 | DO42: =+Population!EJ9*Affluence!EJ5 -> 8.927872423e+12 | DP42: =+Population!EK9*Affluence!EK5 -> 8.972065391e+12 | DQ42: =+Population!EL9*Affluence!EL5 -> 9.016477115e+12 | DR42: =+Population!EM9*Affluence!EM5 -> 9.061108676e+12 | DS42: =+Population!EN9*Affluence!EN5 -> 9.105961164e+12 | DT42: =+Population!EO9*Affluence!EO5 -> 9.151035672e+12 | DU42: =+Population!EP9*Affluence!EP5 -> 9.196333299e+12
A43: CHI | B43: 0.02 | C43: -0.005 | J43: CHI | K43: =+((Population!CR10*Affluence!CR6)/(Population!BI10*Affluence!BI6))^(1/(2050-2015))-1 -> 0.0404 | L43: =+((Population!EP10*Affluence!EP6)/(Population!CS10*Affluence!CS6))^(1/(2100-2051))-1 -> 0.00495 | N43: CHI | O43: =+Population!AJ10*Affluence!AJ6 -> 9.402746617e+11 | P43: =+Population!AK10*Affluence!AK6 -> 1.023555367e+12 | Q43: =+Population!AL10*Affluence!AL6 -> 1.160219703e+12 | R43: =+Population!AM10*Affluence!AM6 -> 1.311478978e+12 | S43: =+Population!AN10*Affluence!AN6 -> 1.473230146e+12 | T43: =+Population!AO10*Affluence!AO6 -> 1.622596553e+12 | U43: =+Population!AP10*Affluence!AP6 -> 1.77514431e+12 | V43: =+Population!AQ10*Affluence!AQ6 -> 1.932364539e+12 | W43: =+Population!AR10*Affluence!AR6 -> 2.06246745e+12 | X43: =+Population!AS10*Affluence!AS6 -> 2.212595386e+12 | Y43: =+Population!AT10*Affluence!AT6 -> 2.399071341e+12 | Z43: =+Population!AU10*Affluence!AU6 -> 2.587831166e+12 | AA43: =+Population!AV10*Affluence!AV6 -> 2.812569196e+12 | AB43: =+Population!AW10*Affluence!AW6 -> 3.084057587e+12 | AC43: =+Population!AX10*Affluence!AX6 -> 3.395621071e+12 | AD43: =+Population!AY10*Affluence!AY6 -> 3.775028046e+12 | AE43: =+Population!AZ10*Affluence!AZ6 -> 4.244561936e+12 | AF43: =+Population!BA10*Affluence!BA6 -> 4.832980419e+12 | AG43: =+Population!BB10*Affluence!BB6 -> 5.282049236e+12 | AH43: =+Population!BC10*Affluence!BC6 -> 5.750726257e+12 | AI43: =+Population!BD10*Affluence!BD6 -> 6.357381695e+12 | AJ43: =+Population!BE10*Affluence!BE6 -> 6.956267098e+12 | AK43: =+Population!BF10*Affluence!BF6 -> 7.488487035e+12 | AL43: =+Population!BG10*Affluence!BG6 -> 8.059322689e+12 | AM43: =+Population!BH10*Affluence!BH6 -> 8.63248094e+12 | AN43: =+Population!BI10*Affluence!BI6 -> 9.206906723e+12 | AO43: =+Population!BJ10*Affluence!BJ6 -> 9.578865755e+12 | AP43: =+Population!BK10*Affluence!BK6 -> 9.965851932e+12 | AQ43: =+Population!BL10*Affluence!BL6 -> 1.036847235e+13 | AR43: =+Population!BM10*Affluence!BM6 -> 1.078735863e+13 | AS43: =+Population!BN10*Affluence!BN6 -> 1.122316792e+13 | AT43: =+Population!BO10*Affluence!BO6 -> 1.167658391e+13 | AU43: =+Population!BP10*Affluence!BP6 -> 1.21483179e+13 | AV43: =+Population!BQ10*Affluence!BQ6 -> 1.263910994e+13 | AW43: =+Population!BR10*Affluence!BR6 -> 1.314972998e+13 | AX43: =+Population!BS10*Affluence!BS6 -> 1.368097907e+13 | AY43: =+Population!BT10*Affluence!BT6 -> 1.423369063e+13 | AZ43: =+Population!BU10*Affluence!BU6 -> 1.480873173e+13 | BA43: =+Population!BV10*Affluence!BV6 -> 1.540700449e+13 | BB43: =+Population!BW10*Affluence!BW6 -> 1.602944747e+13 | BC43: =+Population!BX10*Affluence!BX6 -> 1.667703715e+13 | BD43: =+Population!BY10*Affluence!BY6 -> 1.735078945e+13 | BE43: =+Population!BZ10*Affluence!BZ6 -> 1.805176134e+13 | BF43: =+Population!CA10*Affluence!CA6 -> 1.87810525e+13 | BG43: =+Population!CB10*Affluence!CB6 -> 1.953980702e+13 | BH43: =+Population!CC10*Affluence!CC6 -> 2.032921522e+13 | BI43: =+Population!CD10*Affluence!CD6 -> 2.115051552e+13 | BJ43: =+Population!CE10*Affluence!CE6 -> 2.200499635e+13 | BK43: =+Population!CF10*Affluence!CF6 -> 2.28939982e+13 | BL43: =+Population!CG10*Affluence!CG6 -> 2.381891573e+13 | BM43: =+Population!CH10*Affluence!CH6 -> 2.478119992e+13 | BN43: =+Population!CI10*Affluence!CI6 -> 2.57823604e+13 | BO43: =+Population!CJ10*Affluence!CJ6 -> 2.682396776e+13 | BP43: =+Population!CK10*Affluence!CK6 -> 2.790765606e+13 | BQ43: =+Population!CL10*Affluence!CL6 -> 2.903512536e+13 | BR43: =+Population!CM10*Affluence!CM6 -> 3.020814443e+13 | BS43: =+Population!CN10*Affluence!CN6 -> 3.142855346e+13 | BT43: =+Population!CO10*Affluence!CO6 -> 3.269826702e+13 | BU43: =+Population!CP10*Affluence!CP6 -> 3.401927701e+13 | BV43: =+Population!CQ10*Affluence!CQ6 -> 3.53936558e+13 | BW43: =+Population!CR10*Affluence!CR6 -> 3.682355949e+13 | BX43: =+Population!CS10*Affluence!CS6 -> 3.700583611e+13 | BY43: =+Population!CT10*Affluence!CT6 -> 3.7189015e+13 | BZ43: =+Population!CU10*Affluence!CU6 -> 3.737310063e+13 | CA43: =+Population!CV10*Affluence!CV6 -> 3.755809747e+13 | CB43: =+Population!CW10*Affluence!CW6 -> 3.774401006e+13 | CC43: =+Population!CX10*Affluence!CX6 -> 3.793084291e+13 | CD43: =+Population!CY10*Affluence!CY6 -> 3.811860058e+13 | CE43: =+Population!CZ10*Affluence!CZ6 -> 3.830728765e+13 | CF43: =+Population!DA10*Affluence!DA6 -> 3.849690872e+13 | CG43: =+Population!DB10*Affluence!DB6 -> 3.868746842e+13 | CH43: =+Population!DC10*Affluence!DC6 -> 3.887897139e+13 | CI43: =+Population!DD10*Affluence!DD6 -> 3.90714223e+13 | CJ43: =+Population!DE10*Affluence!DE6 -> 3.926482584e+13 | CK43: =+Population!DF10*Affluence!DF6 -> 3.945918673e+13 | CL43: =+Population!DG10*Affluence!DG6 -> 3.96545097e+13 | CM43: =+Population!DH10*Affluence!DH6 -> 3.985079953e+13 | CN43: =+Population!DI10*Affluence!DI6 -> 4.004806098e+13 | CO43: =+Population!DJ10*Affluence!DJ6 -> 4.024629889e+13 | CP43: =+Population!DK10*Affluence!DK6 -> 4.044551806e+13 | CQ43: =+Population!DL10*Affluence!DL6 -> 4.064572338e+13 | CR43: =+Population!DM10*Affluence!DM6 -> 4.084691971e+13 | CS43: =+Population!DN10*Affluence!DN6 -> 4.104911196e+13 | CT43: =+Population!DO10*Affluence!DO6 -> 4.125230507e+13 | CU43: =+Population!DP10*Affluence!DP6 -> 4.145650398e+13 | CV43: =+Population!DQ10*Affluence!DQ6 -> 4.166171367e+13 | CW43: =+Population!DR10*Affluence!DR6 -> 4.186793915e+13 | CX43: =+Population!DS10*Affluence!DS6 -> 4.207518545e+13 | CY43: =+Population!DT10*Affluence!DT6 -> 4.228345762e+13 | CZ43: =+Population!DU10*Affluence!DU6 -> 4.249276074e+13 | DA43: =+Population!DV10*Affluence!DV6 -> 4.27030999e+13 | DB43: =+Population!DW10*Affluence!DW6 -> 4.291448025e+13 | DC43: =+Population!DX10*Affluence!DX6 -> 4.312690692e+13 | DD43: =+Population!DY10*Affluence!DY6 -> 4.334038511e+13 | DE43: =+Population!DZ10*Affluence!DZ6 -> 4.355492002e+13 | DF43: =+Population!EA10*Affluence!EA6 -> 4.377051687e+13 | DG43: =+Population!EB10*Affluence!EB6 -> 4.398718093e+13 | DH43: =+Population!EC10*Affluence!EC6 -> 4.420491748e+13 | DI43: =+Population!ED10*Affluence!ED6 -> 4.442373182e+13 | DJ43: =+Population!EE10*Affluence!EE6 -> 4.464362929e+13 | DK43: =+Population!EF10*Affluence!EF6 -> 4.486461526e+13 | DL43: =+Population!EG10*Affluence!EG6 -> 4.50866951e+13 | DM43: =+Population!EH10*Affluence!EH6 -> 4.530987424e+13 | DN43: =+Population!EI10*Affluence!EI6 -> 4.553415812e+13 | DO43: =+Population!EJ10*Affluence!EJ6 -> 4.57595522e+13 | DP43: =+Population!EK10*Affluence!EK6 -> 4.598606199e+13 | DQ43: =+Population!EL10*Affluence!EL6 -> 4.621369299e+13 | DR43: =+Population!EM10*Affluence!EM6 -> 4.644245077e+13 | DS43: =+Population!EN10*Affluence!EN6 -> 4.66723409e+13 | DT43: =+Population!EO10*Affluence!EO6 -> 4.690336899e+13 | DU43: =+Population!EP10*Affluence!EP6 -> 4.713554067e+13
A44: CSA | B44: 0.02 | C44: -0.005 | J44: CSA | K44: =+((Population!CR11*Affluence!CR7)/(Population!BI11*Affluence!BI7))^(1/(2050-2015))-1 -> 0.0404 | L44: =+((Population!EP11*Affluence!EP7)/(Population!CS11*Affluence!CS7))^(1/(2100-2051))-1 -> 0.00495 | N44: CSA | O44: =+Population!AJ11*Affluence!AJ7 -> 2.273318431e+12 | P44: =+Population!AK11*Affluence!AK7 -> 2.354075371e+12 | Q44: =+Population!AL11*Affluence!AL7 -> 2.417230051e+12 | R44: =+Population!AM11*Affluence!AM7 -> 2.511079186e+12 | S44: =+Population!AN11*Affluence!AN7 -> 2.624996499e+12 | T44: =+Population!AO11*Affluence!AO7 -> 2.726638489e+12 | U44: =+Population!AP11*Affluence!AP7 -> 2.751125609e+12 | V44: =+Population!AQ11*Affluence!AQ7 -> 2.876991508e+12 | W44: =+Population!AR11*Affluence!AR7 -> 2.917538806e+12 | X44: =+Population!AS11*Affluence!AS7 -> 2.89641428e+12 | Y44: =+Population!AT11*Affluence!AT7 -> 2.992888402e+12 | Z44: =+Population!AU11*Affluence!AU7 -> 3.035170604e+12 | AA44: =+Population!AV11*Affluence!AV7 -> 3.047094978e+12 | AB44: =+Population!AW11*Affluence!AW7 -> 3.097181336e+12 | AC44: =+Population!AX11*Affluence!AX7 -> 3.306620322e+12 | AD44: =+Population!AY11*Affluence!AY7 -> 3.4683048e+12 | AE44: =+Population!AZ11*Affluence!AZ7 -> 3.655918916e+12 | AF44: =+Population!BA11*Affluence!BA7 -> 3.889765801e+12 | AG44: =+Population!BB11*Affluence!BB7 -> 4.07110966e+12 | AH44: =+Population!BC11*Affluence!BC7 -> 4.032320314e+12 | AI44: =+Population!BD11*Affluence!BD7 -> 4.27316965e+12 | AJ44: =+Population!BE11*Affluence!BE7 -> 4.462528591e+12 | AK44: =+Population!BF11*Affluence!BF7 -> 4.575592393e+12 | AL44: =+Population!BG11*Affluence!BG7 -> 4.717940656e+12 | AM44: =+Population!BH11*Affluence!BH7 -> 4.680021502e+12 | AN44: =+Population!BI11*Affluence!BI7 -> 4.493261378e+12 | AO44: =+Population!BJ11*Affluence!BJ7 -> 4.674789138e+12 | AP44: =+Population!BK11*Affluence!BK7 -> 4.863650619e+12 | AQ44: =+Population!BL11*Affluence!BL7 -> 5.060142104e+12 | AR44: =+Population!BM11*Affluence!BM7 -> 5.264571845e+12 | AS44: =+Population!BN11*Affluence!BN7 -> 5.477260547e+12 | AT44: =+Population!BO11*Affluence!BO7 -> 5.698541873e+12 | AU44: =+Population!BP11*Affluence!BP7 -> 5928762964956 | AV44: =+Population!BQ11*Affluence!BQ7 -> 6.168284989e+12 | AW44: =+Population!BR11*Affluence!BR7 -> 6.417483702e+12 | AX44: =+Population!BS11*Affluence!BS7 -> 6.676750044e+12 | AY44: =+Population!BT11*Affluence!BT7 -> 6.946490746e+12 | AZ44: =+Population!BU11*Affluence!BU7 -> 7.227128972e+12 | BA44: =+Population!BV11*Affluence!BV7 -> 7.519104982e+12 | BB44: =+Population!BW11*Affluence!BW7 -> 7.822876823e+12 | BC44: =+Population!BX11*Affluence!BX7 -> 8.138921047e+12 | BD44: =+Population!BY11*Affluence!BY7 -> 8.467733457e+12 | BE44: =+Population!BZ11*Affluence!BZ7 -> 8.809829889e+12 | BF44: =+Population!CA11*Affluence!CA7 -> 9.165747017e+12 | BG44: =+Population!CB11*Affluence!CB7 -> 9.536043196e+12 | BH44: =+Population!CC11*Affluence!CC7 -> 9.921299341e+12 | BI44: =+Population!CD11*Affluence!CD7 -> 1.032211983e+13 | BJ44: =+Population!CE11*Affluence!CE7 -> 1.073913348e+13 | BK44: =+Population!CF11*Affluence!CF7 -> 1.117299447e+13 | BL44: =+Population!CG11*Affluence!CG7 -> 1.162438344e+13 | BM44: =+Population!CH11*Affluence!CH7 -> 1.209400854e+13 | BN44: =+Population!CI11*Affluence!CI7 -> 1.258260648e+13 | BO44: =+Population!CJ11*Affluence!CJ7 -> 1.309094378e+13 | BP44: =+Population!CK11*Affluence!CK7 -> 1.361981791e+13 | BQ44: =+Population!CL11*Affluence!CL7 -> 1.417005856e+13 | BR44: =+Population!CM11*Affluence!CM7 -> 1.474252892e+13 | BS44: =+Population!CN11*Affluence!CN7 -> 1.533812709e+13 | BT44: =+Population!CO11*Affluence!CO7 -> 1.595778742e+13 | BU44: =+Population!CP11*Affluence!CP7 -> 1.660248204e+13 | BV44: =+Population!CQ11*Affluence!CQ7 -> 1.727322231e+13 | BW44: =+Population!CR11*Affluence!CR7 -> 1.797106049e+13 | BX44: =+Population!CS11*Affluence!CS7 -> 1.806001724e+13 | BY44: =+Population!CT11*Affluence!CT7 -> 1.814941433e+13 | BZ44: =+Population!CU11*Affluence!CU7 -> 1.823925393e+13 | CA44: =+Population!CV11*Affluence!CV7 -> 1.832953823e+13 | CB44: =+Population!CW11*Affluence!CW7 -> 1.842026945e+13 | CC44: =+Population!CX11*Affluence!CX7 -> 1.851144978e+13 | CD44: =+Population!CY11*Affluence!CY7 -> 1.860308146e+13 | CE44: =+Population!CZ11*Affluence!CZ7 -> 1.869516671e+13 | CF44: =+Population!DA11*Affluence!DA7 -> 1.878770779e+13 | CG44: =+Population!DB11*Affluence!DB7 -> 1.888070694e+13 | CH44: =+Population!DC11*Affluence!DC7 -> 1.897416644e+13 | CI44: =+Population!DD11*Affluence!DD7 -> 1.906808856e+13 | CJ44: =+Population!DE11*Affluence!DE7 -> 1.91624756e+13 | CK44: =+Population!DF11*Affluence!DF7 -> 1.925732986e+13 | CL44: =+Population!DG11*Affluence!DG7 -> 1.935265364e+13 | CM44: =+Population!DH11*Affluence!DH7 -> 1.944844927e+13 | CN44: =+Population!DI11*Affluence!DI7 -> 1.95447191e+13 | CO44: =+Population!DJ11*Affluence!DJ7 -> 1.964146546e+13 | CP44: =+Population!DK11*Affluence!DK7 -> 1.973869071e+13 | CQ44: =+Population!DL11*Affluence!DL7 -> 1.983639723e+13 | CR44: =+Population!DM11*Affluence!DM7 -> 1.99345874e+13 | CS44: =+Population!DN11*Affluence!DN7 -> 2.00332636e+13 | CT44: =+Population!DO11*Affluence!DO7 -> 2.013242826e+13 | CU44: =+Population!DP11*Affluence!DP7 -> 2.023208378e+13 | CV44: =+Population!DQ11*Affluence!DQ7 -> 2.033223259e+13 | CW44: =+Population!DR11*Affluence!DR7 -> 2.043287715e+13 | CX44: =+Population!DS11*Affluence!DS7 -> 2.053401989e+13 | CY44: =+Population!DT11*Affluence!DT7 -> 2.063566329e+13 | CZ44: =+Population!DU11*Affluence!DU7 -> 2.073780982e+13 | DA44: =+Population!DV11*Affluence!DV7 -> 2.084046198e+13 | DB44: =+Population!DW11*Affluence!DW7 -> 2.094362226e+13 | DC44: =+Population!DX11*Affluence!DX7 -> 2.104729319e+13 | DD44: =+Population!DY11*Affluence!DY7 -> 2.11514773e+13 | DE44: =+Population!DZ11*Affluence!DZ7 -> 2.125617711e+13 | DF44: =+Population!EA11*Affluence!EA7 -> 2.136139519e+13 | DG44: =+Population!EB11*Affluence!EB7 -> 2.146713409e+13 | DH44: =+Population!EC11*Affluence!EC7 -> 2.157339641e+13 | DI44: =+Population!ED11*Affluence!ED7 -> 2.168018472e+13 | DJ44: =+Population!EE11*Affluence!EE7 -> 2.178750163e+13 | DK44: =+Population!EF11*Affluence!EF7 -> 2.189534976e+13 | DL44: =+Population!EG11*Affluence!EG7 -> 2.200373175e+13 | DM44: =+Population!EH11*Affluence!EH7 -> 2.211265022e+13 | DN44: =+Population!EI11*Affluence!EI7 -> 2.222210784e+13 | DO44: =+Population!EJ11*Affluence!EJ7 -> 2.233210727e+13 | DP44: =+Population!EK11*Affluence!EK7 -> 2.24426512e+13 | DQ44: =+Population!EL11*Affluence!EL7 -> 2.255374233e+13 | DR44: =+Population!EM11*Affluence!EM7 -> 2.266538335e+13 | DS44: =+Population!EN11*Affluence!EN7 -> 2.2777577e+13 | DT44: =+Population!EO11*Affluence!EO7 -> 2.2890326e+13 | DU44: =+Population!EP11*Affluence!EP7 -> 2.300363312e+13
A45: EUR | B45: 0.02 | C45: -0.005 | J45: EUR | K45: =+((Population!CR12*Affluence!CR8)/(Population!BI12*Affluence!BI8))^(1/(2050-2015))-1 -> 0.0404 | L45: =+((Population!EP12*Affluence!EP8)/(Population!CS12*Affluence!CS8))^(1/(2100-2051))-1 -> 0.00495 | N45: EUR | O45: =+Population!AJ12*Affluence!AJ8 -> 1.311228194e+13 | P45: =+Population!AK12*Affluence!AK8 -> 1.308536821e+13 | Q45: =+Population!AL12*Affluence!AL8 -> 1.311589006e+13 | R45: =+Population!AM12*Affluence!AM8 -> 1.310496088e+13 | S45: =+Population!AN12*Affluence!AN8 -> 1.347291149e+13 | T45: =+Population!AO12*Affluence!AO8 -> 1.354251549e+13 | U45: =+Population!AP12*Affluence!AP8 -> 1.381678741e+13 | V45: =+Population!AQ12*Affluence!AQ8 -> 1.420637948e+13 | W45: =+Population!AR12*Affluence!AR8 -> 1.462863258e+13 | X45: =+Population!AS12*Affluence!AS8 -> 1.506260669e+13 | Y45: =+Population!AT12*Affluence!AT8 -> 1.564564983e+13 | Z45: =+Population!AU12*Affluence!AU8 -> 1.59923478e+13 | AA45: =+Population!AV12*Affluence!AV8 -> 1.620071232e+13 | AB45: =+Population!AW12*Affluence!AW8 -> 1.640942104e+13 | AC45: =+Population!AX12*Affluence!AX8 -> 1.684278868e+13 | AD45: =+Population!AY12*Affluence!AY8 -> 1.72017116e+13 | AE45: =+Population!AZ12*Affluence!AZ8 -> 1.77791267e+13 | AF45: =+Population!BA12*Affluence!BA8 -> 1.833372703e+13 | AG45: =+Population!BB12*Affluence!BB8 -> 1.842783194e+13 | AH45: =+Population!BC12*Affluence!BC8 -> 1.764424134e+13 | AI45: =+Population!BD12*Affluence!BD8 -> 1.803045501e+13 | AJ45: =+Population!BE12*Affluence!BE8 -> 1.831936011e+13 | AK45: =+Population!BF12*Affluence!BF8 -> 1.825648892e+13 | AL45: =+Population!BG12*Affluence!BG8 -> 1.831061559e+13 | AM45: =+Population!BH12*Affluence!BH8 -> 1.860926685e+13 | AN45: =+Population!BI12*Affluence!BI8 -> 1.901281239e+13 | AO45: =+Population!BJ12*Affluence!BJ8 -> 1.978093001e+13 | AP45: =+Population!BK12*Affluence!BK8 -> 2.058007958e+13 | AQ45: =+Population!BL12*Affluence!BL8 -> 2.14115148e+13 | AR45: =+Population!BM12*Affluence!BM8 -> 2.227654e+13 | AS45: =+Population!BN12*Affluence!BN8 -> 2.317651221e+13 | AT45: =+Population!BO12*Affluence!BO8 -> 2.411284331e+13 | AU45: =+Population!BP12*Affluence!BP8 -> 2.508700218e+13 | AV45: =+Population!BQ12*Affluence!BQ8 -> 2.610051706e+13 | AW45: =+Population!BR12*Affluence!BR8 -> 2.715497795e+13 | AX45: =+Population!BS12*Affluence!BS8 -> 2.825203906e+13 | AY45: =+Population!BT12*Affluence!BT8 -> 2.939342144e+13 | AZ45: =+Population!BU12*Affluence!BU8 -> 3.058091567e+13 | BA45: =+Population!BV12*Affluence!BV8 -> 31816384658737 | BB45: =+Population!BW12*Affluence!BW8 -> 3.31017666e+13 | BC45: =+Population!BX12*Affluence!BX8 -> 3.443907797e+13 | BD45: =+Population!BY12*Affluence!BY8 -> 3.583041672e+13 | BE45: =+Population!BZ12*Affluence!BZ8 -> 3.727796555e+13 | BF45: =+Population!CA12*Affluence!CA8 -> 3.878399536e+13 | BG45: =+Population!CB12*Affluence!CB8 -> 4.035086878e+13 | BH45: =+Population!CC12*Affluence!CC8 -> 4.198104387e+13 | BI45: =+Population!CD12*Affluence!CD8 -> 4.367707805e+13 | BJ45: =+Population!CE12*Affluence!CE8 -> 4.5441632e+13 | BK45: =+Population!CF12*Affluence!CF8 -> 4.727747393e+13 | BL45: =+Population!CG12*Affluence!CG8 -> 49187483879993 | BM45: =+Population!CH12*Affluence!CH8 -> 5.117465823e+13 | BN45: =+Population!CI12*Affluence!CI8 -> 5.324211442e+13 | BO45: =+Population!CJ12*Affluence!CJ8 -> 5.539309584e+13 | BP45: =+Population!CK12*Affluence!CK8 -> 5.763097692e+13 | BQ45: =+Population!CL12*Affluence!CL8 -> 5.995926838e+13 | BR45: =+Population!CM12*Affluence!CM8 -> 6.238162283e+13 | BS45: =+Population!CN12*Affluence!CN8 -> 6.490184039e+13 | BT45: =+Population!CO12*Affluence!CO8 -> 6.752387474e+13 | BU45: =+Population!CP12*Affluence!CP8 -> 7.025183928e+13 | BV45: =+Population!CQ12*Affluence!CQ8 -> 7.309001359e+13 | BW45: =+Population!CR12*Affluence!CR8 -> 7.604285014e+13 | BX45: =+Population!CS12*Affluence!CS8 -> 7.641926224e+13 | BY45: =+Population!CT12*Affluence!CT8 -> 7.679753759e+13 | BZ45: =+Population!CU12*Affluence!CU8 -> 7.71776854e+13 | CA45: =+Population!CV12*Affluence!CV8 -> 7.755971495e+13 | CB45: =+Population!CW12*Affluence!CW8 -> 7.794363553e+13 | CC45: =+Population!CX12*Affluence!CX8 -> 7.832945653e+13 | CD45: =+Population!CY12*Affluence!CY8 -> 7.871718734e+13 | CE45: =+Population!CZ12*Affluence!CZ8 -> 7.910683742e+13 | CF45: =+Population!DA12*Affluence!DA8 -> 7.949841626e+13 | CG45: =+Population!DB12*Affluence!DB8 -> 7.989193342e+13 | CH45: =+Population!DC12*Affluence!DC8 -> 8.028739849e+13 | CI45: =+Population!DD12*Affluence!DD8 -> 8.068482112e+13 | CJ45: =+Population!DE12*Affluence!DE8 -> 8.108421098e+13 | CK45: =+Population!DF12*Affluence!DF8 -> 8.148557782e+13 | CL45: =+Population!DG12*Affluence!DG8 -> 8.188893144e+13 | CM45: =+Population!DH12*Affluence!DH8 -> 8.229428165e+13 | CN45: =+Population!DI12*Affluence!DI8 -> 8.270163834e+13 | CO45: =+Population!DJ12*Affluence!DJ8 -> 8.311101145e+13 | CP45: =+Population!DK12*Affluence!DK8 -> 8.352241096e+13 | CQ45: =+Population!DL12*Affluence!DL8 -> 8.393584689e+13 | CR45: =+Population!DM12*Affluence!DM8 -> 8.435132933e+13 | CS45: =+Population!DN12*Affluence!DN8 -> 8.476886841e+13 | CT45: =+Population!DO12*Affluence!DO8 -> 8.518847431e+13 | CU45: =+Population!DP12*Affluence!DP8 -> 8.561015726e+13 | CV45: =+Population!DQ12*Affluence!DQ8 -> 8.603392754e+13 | CW45: =+Population!DR12*Affluence!DR8 -> 8.645979548e+13 | CX45: =+Population!DS12*Affluence!DS8 -> 8.688777147e+13 | CY45: =+Population!DT12*Affluence!DT8 -> 8.731786594e+13 | CZ45: =+Population!DU12*Affluence!DU8 -> 8.775008937e+13 | DA45: =+Population!DV12*Affluence!DV8 -> 8.818445231e+13 | DB45: =+Population!DW12*Affluence!DW8 -> 8.862096535e+13 | DC45: =+Population!DX12*Affluence!DX8 -> 8.905963913e+13 | DD45: =+Population!DY12*Affluence!DY8 -> 8.950048435e+13 | DE45: =+Population!DZ12*Affluence!DZ8 -> 8.994351174e+13 | DF45: =+Population!EA12*Affluence!EA8 -> 9.038873213e+13 | DG45: =+Population!EB12*Affluence!EB8 -> 9.083615635e+13 | DH45: =+Population!EC12*Affluence!EC8 -> 9.128579532e+13 | DI45: =+Population!ED12*Affluence!ED8 -> 9.173766001e+13 | DJ45: =+Population!EE12*Affluence!EE8 -> 9.219176143e+13 | DK45: =+Population!EF12*Affluence!EF8 -> 9.264811065e+13 | DL45: =+Population!EG12*Affluence!EG8 -> 9.310671879e+13 | DM45: =+Population!EH12*Affluence!EH8 -> 9.356759705e+13 | DN45: =+Population!EI12*Affluence!EI8 -> 9.403075666e+13 | DO45: =+Population!EJ12*Affluence!EJ8 -> 9.44962089e+13 | DP45: =+Population!EK12*Affluence!EK8 -> 9.496396514e+13 | DQ45: =+Population!EL12*Affluence!EL8 -> 9.543403676e+13 | DR45: =+Population!EM12*Affluence!EM8 -> 9.590643525e+13 | DS45: =+Population!EN12*Affluence!EN8 -> 9.63811721e+13 | DT45: =+Population!EO12*Affluence!EO8 -> 9.68582589e+13 | DU45: =+Population!EP12*Affluence!EP8 -> 9.733770728e+13
A46: IND | B46: 0.02 | C46: -0.005 | J46: IND | K46: =+((Population!CR13*Affluence!CR9)/(Population!BI13*Affluence!BI9))^(1/(2050-2015))-1 -> 0.0404 | L46: =+((Population!EP13*Affluence!EP9)/(Population!CS13*Affluence!CS9))^(1/(2100-2051))-1 -> 0.00495 | N46: IND | O46: =+Population!AJ13*Affluence!AJ9 -> 4.716428576e+11 | P46: =+Population!AK13*Affluence!AK9 -> 4.766273276e+11 | Q46: =+Population!AL13*Affluence!AL9 -> 5.027579253e+11 | R46: =+Population!AM13*Affluence!AM9 -> 5.266428292e+11 | S46: =+Population!AN13*Affluence!AN9 -> 5.617115753e+11 | T46: =+Population!AO13*Affluence!AO9 -> 6.042583728e+11 | U46: =+Population!AP13*Affluence!AP9 -> 6.49876993e+11 | V46: =+Population!AQ13*Affluence!AQ9 -> 6.76195847e+11 | W46: =+Population!AR13*Affluence!AR9 -> 7.180146099e+11 | X46: =+Population!AS13*Affluence!AS9 -> 7.815284272e+11 | Y46: =+Population!AT13*Affluence!AT9 -> 8.11546865e+11 | Z46: =+Population!AU13*Affluence!AU9 -> 8.50695612e+11 | AA46: =+Population!AV13*Affluence!AV9 -> 8.830558631e+11 | AB46: =+Population!AW13*Affluence!AW9 -> 9.524674226e+11 | AC46: =+Population!AX13*Affluence!AX9 -> 1.027930813e+12 | AD46: =+Population!AY13*Affluence!AY9 -> 1.123372457e+12 | AE46: =+Population!AZ13*Affluence!AZ9 -> 1.227441219e+12 | AF46: =+Population!BA13*Affluence!BA9 -> 1.333101871e+12 | AG46: =+Population!BB13*Affluence!BB9 -> 1.384972292e+12 | AH46: =+Population!BC13*Affluence!BC9 -> 1.50241495e+12 | AI46: =+Population!BD13*Affluence!BD9 -> 1.656562169e+12 | AJ46: =+Population!BE13*Affluence!BE9 -> 1.766530792e+12 | AK46: =+Population!BF13*Affluence!BF9 -> 1.863407633e+12 | AL46: =+Population!BG13*Affluence!BG9 -> 1.985280118e+12 | AM46: =+Population!BH13*Affluence!BH9 -> 2.127811984e+12 | AN46: =+Population!BI13*Affluence!BI9 -> 2.296627146e+12 | AO46: =+Population!BJ13*Affluence!BJ9 -> 2.389410883e+12 | AP46: =+Population!BK13*Affluence!BK9 -> 2.485943082e+12 | AQ46: =+Population!BL13*Affluence!BL9 -> 2.586375183e+12 | AR46: =+Population!BM13*Affluence!BM9 -> 2.69086474e+12 | AS46: =+Population!BN13*Affluence!BN9 -> 2.799575676e+12 | AT46: =+Population!BO13*Affluence!BO9 -> 2.912678533e+12 | AU46: =+Population!BP13*Affluence!BP9 -> 3.030350746e+12 | AV46: =+Population!BQ13*Affluence!BQ9 -> 3.152776916e+12 | AW46: =+Population!BR13*Affluence!BR9 -> 3.280149103e+12 | AX46: =+Population!BS13*Affluence!BS9 -> 3.412667127e+12 | AY46: =+Population!BT13*Affluence!BT9 -> 3.550538879e+12 | AZ46: =+Population!BU13*Affluence!BU9 -> 3.69398065e+12 | BA46: =+Population!BV13*Affluence!BV9 -> 3.843217468e+12 | BB46: =+Population!BW13*Affluence!BW9 -> 3.998483454e+12 | BC46: =+Population!BX13*Affluence!BX9 -> 4.160022185e+12 | BD46: =+Population!BY13*Affluence!BY9 -> 4.328087081e+12 | BE46: =+Population!BZ13*Affluence!BZ9 -> 4.502941799e+12 | BF46: =+Population!CA13*Affluence!CA9 -> 4.684860648e+12 | BG46: =+Population!CB13*Affluence!CB9 -> 4.874129018e+12 | BH46: =+Population!CC13*Affluence!CC9 -> 5.071043831e+12 | BI46: =+Population!CD13*Affluence!CD9 -> 5.275914001e+12 | BJ46: =+Population!CE13*Affluence!CE9 -> 5.489060927e+12 | BK46: =+Population!CF13*Affluence!CF9 -> 5.710818989e+12 | BL46: =+Population!CG13*Affluence!CG9 -> 5.941536076e+12 | BM46: =+Population!CH13*Affluence!CH9 -> 6.181574133e+12 | BN46: =+Population!CI13*Affluence!CI9 -> 6.431309728e+12 | BO46: =+Population!CJ13*Affluence!CJ9 -> 6.691134641e+12 | BP46: =+Population!CK13*Affluence!CK9 -> 6.961456481e+12 | BQ46: =+Population!CL13*Affluence!CL9 -> 7.242699322e+12 | BR46: =+Population!CM13*Affluence!CM9 -> 7.535304375e+12 | BS46: =+Population!CN13*Affluence!CN9 -> 7.839730672e+12 | BT46: =+Population!CO13*Affluence!CO9 -> 8.156455791e+12 | BU46: =+Population!CP13*Affluence!CP9 -> 8.485976605e+12 | BV46: =+Population!CQ13*Affluence!CQ9 -> 8.82881006e+12 | BW46: =+Population!CR13*Affluence!CR9 -> 9.185493986e+12 | BX46: =+Population!CS13*Affluence!CS9 -> 9.230962181e+12 | BY46: =+Population!CT13*Affluence!CT9 -> 9.276655444e+12 | BZ46: =+Population!CU13*Affluence!CU9 -> 9.322574889e+12 | CA46: =+Population!CV13*Affluence!CV9 -> 9.368721634e+12 | CB46: =+Population!CW13*Affluence!CW9 -> 9.415096806e+12 | CC46: =+Population!CX13*Affluence!CX9 -> 9.461701536e+12 | CD46: =+Population!CY13*Affluence!CY9 -> 9.508536958e+12 | CE46: =+Population!CZ13*Affluence!CZ9 -> 9.555604216e+12 | CF46: =+Population!DA13*Affluence!DA9 -> 9.602904457e+12 | CG46: =+Population!DB13*Affluence!DB9 -> 9.650438834e+12 | CH46: =+Population!DC13*Affluence!DC9 -> 9.698208506e+12 | CI46: =+Population!DD13*Affluence!DD9 -> 9.746214638e+12 | CJ46: =+Population!DE13*Affluence!DE9 -> 9.794458401e+12 | CK46: =+Population!DF13*Affluence!DF9 -> 9.84294097e+12 | CL46: =+Population!DG13*Affluence!DG9 -> 9.891663528e+12 | CM46: =+Population!DH13*Affluence!DH9 -> 9.940627262e+12 | CN46: =+Population!DI13*Affluence!DI9 -> 9.989833367e+12 | CO46: =+Population!DJ13*Affluence!DJ9 -> 1.003928304e+13 | CP46: =+Population!DK13*Affluence!DK9 -> 1.008897749e+13 | CQ46: =+Population!DL13*Affluence!DL9 -> 1.013891793e+13 | CR46: =+Population!DM13*Affluence!DM9 -> 1.018910558e+13 | CS46: =+Population!DN13*Affluence!DN9 -> 1.023954165e+13 | CT46: =+Population!DO13*Affluence!DO9 -> 1.029022738e+13 | CU46: =+Population!DP13*Affluence!DP9 -> 1.034116401e+13 | CV46: =+Population!DQ13*Affluence!DQ9 -> 1.039235277e+13 | CW46: =+Population!DR13*Affluence!DR9 -> 1.044379491e+13 | CX46: =+Population!DS13*Affluence!DS9 -> 1.04954917e+13 | CY46: =+Population!DT13*Affluence!DT9 -> 1.054744438e+13 | CZ46: =+Population!DU13*Affluence!DU9 -> 1.059965423e+13 | DA46: =+Population!DV13*Affluence!DV9 -> 1.065212252e+13 | DB46: =+Population!DW13*Affluence!DW9 -> 1.070485053e+13 | DC46: =+Population!DX13*Affluence!DX9 -> 1.075783954e+13 | DD46: =+Population!DY13*Affluence!DY9 -> 1.081109084e+13 | DE46: =+Population!DZ13*Affluence!DZ9 -> 1.086460574e+13 | DF46: =+Population!EA13*Affluence!EA9 -> 1.091838554e+13 | DG46: =+Population!EB13*Affluence!EB9 -> 1.097243155e+13 | DH46: =+Population!EC13*Affluence!EC9 -> 1.102674508e+13 | DI46: =+Population!ED13*Affluence!ED9 -> 1.108132747e+13 | DJ46: =+Population!EE13*Affluence!EE9 -> 1.113618004e+13 | DK46: =+Population!EF13*Affluence!EF9 -> 1.119130414e+13 | DL46: =+Population!EG13*Affluence!EG9 -> 1.124670109e+13 | DM46: =+Population!EH13*Affluence!EH9 -> 1.130237226e+13 | DN46: =+Population!EI13*Affluence!EI9 -> 1.1358319e+13 | DO46: =+Population!EJ13*Affluence!EJ9 -> 1.141454268e+13 | DP46: =+Population!EK13*Affluence!EK9 -> 1.147104467e+13 | DQ46: =+Population!EL13*Affluence!EL9 -> 1.152782634e+13 | DR46: =+Population!EM13*Affluence!EM9 -> 1.158488908e+13 | DS46: =+Population!EN13*Affluence!EN9 -> 1.164223428e+13 | DT46: =+Population!EO13*Affluence!EO9 -> 1.169986334e+13 | DU46: =+Population!EP13*Affluence!EP9 -> 1.175777766e+13
A47: JPN | B47: 0.02 | C47: -0.005 | J47: JPN | K47: =+((Population!CR14*Affluence!CR10)/(Population!BI14*Affluence!BI10))^(1/(2050-2015))-1 -> 0.0404 | L47: =+((Population!EP14*Affluence!EP10)/(Population!CS14*Affluence!CS10))^(1/(2100-2051))-1 -> 0.00495 | N47: JPN | O47: =+Population!AJ14*Affluence!AJ10 -> 4.682812412e+12 | P47: =+Population!AK14*Affluence!AK10 -> 4.838485054e+12 | Q47: =+Population!AL14*Affluence!AL10 -> 4.878113691e+12 | R47: =+Population!AM14*Affluence!AM10 -> 4.886458325e+12 | S47: =+Population!AN14*Affluence!AN10 -> 4.928656716e+12 | T47: =+Population!AO14*Affluence!AO10 -> 5.063808558e+12 | U47: =+Population!AP14*Affluence!AP10 -> 5.220783076e+12 | V47: =+Population!AQ14*Affluence!AQ10 -> 5.276985417e+12 | W47: =+Population!AR14*Affluence!AR10 -> 5.217421107e+12 | X47: =+Population!AS14*Affluence!AS10 -> 5.204274442e+12 | Y47: =+Population!AT14*Affluence!AT10 -> 5.348929464e+12 | Z47: =+Population!AU14*Affluence!AU10 -> 5.370659461e+12 | AA47: =+Population!AV14*Affluence!AV10 -> 5.377002251e+12 | AB47: =+Population!AW14*Affluence!AW10 -> 5.459175859e+12 | AC47: =+Population!AX14*Affluence!AX10 -> 5.579535965e+12 | AD47: =+Population!AY14*Affluence!AY10 -> 5.672309854e+12 | AE47: =+Population!AZ14*Affluence!AZ10 -> 5.752855768e+12 | AF47: =+Population!BA14*Affluence!BA10 -> 5.848024278e+12 | AG47: =+Population!BB14*Affluence!BB10 -> 5.78407736e+12 | AH47: =+Population!BC14*Affluence!BC10 -> 5.470746964e+12 | AI47: =+Population!BD14*Affluence!BD10 -> 5.700096491e+12 | AJ47: =+Population!BE14*Affluence!BE10 -> 5.693515049e+12 | AK47: =+Population!BF14*Affluence!BF10 -> 5.778634724e+12 | AL47: =+Population!BG14*Affluence!BG10 -> 5.894235709e+12 | AM47: =+Population!BH14*Affluence!BH10 -> 5.914020583e+12 | AN47: =+Population!BI14*Affluence!BI10 -> 5.986138406e+12 | AO47: =+Population!BJ14*Affluence!BJ10 -> 6.227978397e+12 | AP47: =+Population!BK14*Affluence!BK10 -> 6.479588725e+12 | AQ47: =+Population!BL14*Affluence!BL10 -> 6.741364109e+12 | AR47: =+Population!BM14*Affluence!BM10 -> 7.013715219e+12 | AS47: =+Population!BN14*Affluence!BN10 -> 7.297069314e+12 | AT47: =+Population!BO14*Affluence!BO10 -> 7.591870914e+12 | AU47: =+Population!BP14*Affluence!BP10 -> 7.898582499e+12 | AV47: =+Population!BQ14*Affluence!BQ10 -> 8.217685232e+12 | AW47: =+Population!BR14*Affluence!BR10 -> 8.549679715e+12 | AX47: =+Population!BS14*Affluence!BS10 -> 8.895086776e+12 | AY47: =+Population!BT14*Affluence!BT10 -> 9.254448282e+12 | AZ47: =+Population!BU14*Affluence!BU10 -> 9.628327992e+12 | BA47: =+Population!BV14*Affluence!BV10 -> 1.001731244e+13 | BB47: =+Population!BW14*Affluence!BW10 -> 1.042201187e+13 | BC47: =+Population!BX14*Affluence!BX10 -> 1.084306115e+13 | BD47: =+Population!BY14*Affluence!BY10 -> 1.128112082e+13 | BE47: =+Population!BZ14*Affluence!BZ10 -> 1.17368781e+13 | BF47: =+Population!CA14*Affluence!CA10 -> 1.221104797e+13 | BG47: =+Population!CB14*Affluence!CB10 -> 1.270437431e+13 | BH47: =+Population!CC14*Affluence!CC10 -> 1.321763103e+13 | BI47: =+Population!CD14*Affluence!CD10 -> 1.375162333e+13 | BJ47: =+Population!CE14*Affluence!CE10 -> 1.430718891e+13 | BK47: =+Population!CF14*Affluence!CF10 -> 1.488519934e+13 | BL47: =+Population!CG14*Affluence!CG10 -> 1.548656139e+13 | BM47: =+Population!CH14*Affluence!CH10 -> 1.611221847e+13 | BN47: =+Population!CI14*Affluence!CI10 -> 1.67631521e+13 | BO47: =+Population!CJ14*Affluence!CJ10 -> 1.744038344e+13 | BP47: =+Population!CK14*Affluence!CK10 -> 1.814497494e+13 | BQ47: =+Population!CL14*Affluence!CL10 -> 1.887803192e+13 | BR47: =+Population!CM14*Affluence!CM10 -> 1.964070441e+13 | BS47: =+Population!CN14*Affluence!CN10 -> 2.043418887e+13 | BT47: =+Population!CO14*Affluence!CO10 -> 2.12597301e+13 | BU47: =+Population!CP14*Affluence!CP10 -> 2.21186232e+13 | BV47: =+Population!CQ14*Affluence!CQ10 -> 2.301221557e+13 | BW47: =+Population!CR14*Affluence!CR10 -> 2.394190908e+13 | BX47: =+Population!CS14*Affluence!CS10 -> 2.406042153e+13 | BY47: =+Population!CT14*Affluence!CT10 -> 2.417952062e+13 | BZ47: =+Population!CU14*Affluence!CU10 -> 2.429920925e+13 | CA47: =+Population!CV14*Affluence!CV10 -> 2.441949033e+13 | CB47: =+Population!CW14*Affluence!CW10 -> 2.454036681e+13 | CC47: =+Population!CX14*Affluence!CX10 -> 2.466184163e+13 | CD47: =+Population!CY14*Affluence!CY10 -> 2.478391774e+13 | CE47: =+Population!CZ14*Affluence!CZ10 -> 2.490659813e+13 | CF47: =+Population!DA14*Affluence!DA10 -> 2.50298858e+13 | CG47: =+Population!DB14*Affluence!DB10 -> 2.515378373e+13 | CH47: =+Population!DC14*Affluence!DC10 -> 2.527829496e+13 | CI47: =+Population!DD14*Affluence!DD10 -> 2.540342252e+13 | CJ47: =+Population!DE14*Affluence!DE10 -> 2.552916946e+13 | CK47: =+Population!DF14*Affluence!DF10 -> 2.565553885e+13 | CL47: =+Population!DG14*Affluence!DG10 -> 2.578253377e+13 | CM47: =+Population!DH14*Affluence!DH10 -> 2.591015731e+13 | CN47: =+Population!DI14*Affluence!DI10 -> 2.603841259e+13 | CO47: =+Population!DJ14*Affluence!DJ10 -> 2.616730273e+13 | CP47: =+Population!DK14*Affluence!DK10 -> 2.629683088e+13 | CQ47: =+Population!DL14*Affluence!DL10 -> 2.642700019e+13 | CR47: =+Population!DM14*Affluence!DM10 -> 2.655781384e+13 | CS47: =+Population!DN14*Affluence!DN10 -> 2.668927502e+13 | CT47: =+Population!DO14*Affluence!DO10 -> 2.682138693e+13 | CU47: =+Population!DP14*Affluence!DP10 -> 2.69541528e+13 | CV47: =+Population!DQ14*Affluence!DQ10 -> 2.708757585e+13 | CW47: =+Population!DR14*Affluence!DR10 -> 2.722165935e+13 | CX47: =+Population!DS14*Affluence!DS10 -> 2.735640657e+13 | CY47: =+Population!DT14*Affluence!DT10 -> 2.749182078e+13 | CZ47: =+Population!DU14*Affluence!DU10 -> 2.762790529e+13 | DA47: =+Population!DV14*Affluence!DV10 -> 2.776466343e+13 | DB47: =+Population!DW14*Affluence!DW10 -> 2.790209851e+13 | DC47: =+Population!DX14*Affluence!DX10 -> 2.80402139e+13 | DD47: =+Population!DY14*Affluence!DY10 -> 2.817901296e+13 | DE47: =+Population!DZ14*Affluence!DZ10 -> 2.831849907e+13 | DF47: =+Population!EA14*Affluence!EA10 -> 2.845867564e+13 | DG47: =+Population!EB14*Affluence!EB10 -> 2.859954608e+13 | DH47: =+Population!EC14*Affluence!EC10 -> 2.874111384e+13 | DI47: =+Population!ED14*Affluence!ED10 -> 2.888338235e+13 | DJ47: =+Population!EE14*Affluence!EE10 -> 2.902635509e+13 | DK47: =+Population!EF14*Affluence!EF10 -> 2.917003555e+13 | DL47: =+Population!EG14*Affluence!EG10 -> 2.931442723e+13 | DM47: =+Population!EH14*Affluence!EH10 -> 2.945953364e+13 | DN47: =+Population!EI14*Affluence!EI10 -> 2.960535833e+13 | DO47: =+Population!EJ14*Affluence!EJ10 -> 2.975190486e+13 | DP47: =+Population!EK14*Affluence!EK10 -> 2.989917679e+13 | DQ47: =+Population!EL14*Affluence!EL10 -> 3.004717771e+13 | DR47: =+Population!EM14*Affluence!EM10 -> 3.019591124e+13 | DS47: =+Population!EN14*Affluence!EN10 -> 3.0345381e+13 | DT47: =+Population!EO14*Affluence!EO10 -> 3.049559064e+13 | DU47: =+Population!EP14*Affluence!EP10 -> 3.064654381e+13
A48: MEA | B48: 0.02 | C48: -0.005 | J48: MEA | K48: =+((Population!CR15*Affluence!CR11)/(Population!BI15*Affluence!BI11))^(1/(2050-2015))-1 -> 0.0404 | L48: =+((Population!EP15*Affluence!EP11)/(Population!CS15*Affluence!CS11))^(1/(2100-2051))-1 -> 0.00495 | N48: MEA | O48: =+Population!AJ15*Affluence!AJ11 -> 1.261031839e+12 | P48: =+Population!AK15*Affluence!AK11 -> 1.284171348e+12 | Q48: =+Population!AL15*Affluence!AL11 -> 1.384528589e+12 | R48: =+Population!AM15*Affluence!AM11 -> 1.453078674e+12 | S48: =+Population!AN15*Affluence!AN11 -> 1.46129618e+12 | T48: =+Population!AO15*Affluence!AO11 -> 1.529388006e+12 | U48: =+Population!AP15*Affluence!AP11 -> 1.617184779e+12 | V48: =+Population!AQ15*Affluence!AQ11 -> 1.703261834e+12 | W48: =+Population!AR15*Affluence!AR11 -> 1.768538646e+12 | X48: =+Population!AS15*Affluence!AS11 -> 1.782710005e+12 | Y48: =+Population!AT15*Affluence!AT11 -> 1.930006863e+12 | Z48: =+Population!AU15*Affluence!AU11 -> 1.921542947e+12 | AA48: =+Population!AV15*Affluence!AV11 -> 1.983485914e+12 | AB48: =+Population!AW15*Affluence!AW11 -> 2.072089523e+12 | AC48: =+Population!AX15*Affluence!AX11 -> 2.270546826e+12 | AD48: =+Population!AY15*Affluence!AY11 -> 2.416075938e+12 | AE48: =+Population!AZ15*Affluence!AZ11 -> 2.592409618e+12 | AF48: =+Population!BA15*Affluence!BA11 -> 2.749654439e+12 | AG48: =+Population!BB15*Affluence!BB11 -> 2.860002176e+12 | AH48: =+Population!BC15*Affluence!BC11 -> 2.847367603e+12 | AI48: =+Population!BD15*Affluence!BD11 -> 3.023615481e+12 | AJ48: =+Population!BE15*Affluence!BE11 -> 3.227770442e+12 | AK48: =+Population!BF15*Affluence!BF11 -> 3.309915185e+12 | AL48: =+Population!BG15*Affluence!BG11 -> 3.398070898e+12 | AM48: =+Population!BH15*Affluence!BH11 -> 3.491595045e+12 | AN48: =+Population!BI15*Affluence!BI11 -> 4.213589288e+12 | AO48: =+Population!BJ15*Affluence!BJ11 -> 4.383818295e+12 | AP48: =+Population!BK15*Affluence!BK11 -> 4.560924554e+12 | AQ48: =+Population!BL15*Affluence!BL11 -> 4.745185906e+12 | AR48: =+Population!BM15*Affluence!BM11 -> 4.936891417e+12 | AS48: =+Population!BN15*Affluence!BN11 -> 5.13634183e+12 | AT48: =+Population!BO15*Affluence!BO11 -> 5.34385004e+12 | AU48: =+Population!BP15*Affluence!BP11 -> 5.559741581e+12 | AV48: =+Population!BQ15*Affluence!BQ11 -> 5.784355141e+12 | AW48: =+Population!BR15*Affluence!BR11 -> 6.018043089e+12 | AX48: =+Population!BS15*Affluence!BS11 -> 6.26117203e+12 | AY48: =+Population!BT15*Affluence!BT11 -> 6.51412338e+12 | AZ48: =+Population!BU15*Affluence!BU11 -> 6.777293964e+12 | BA48: =+Population!BV15*Affluence!BV11 -> 7.05109664e+12 | BB48: =+Population!BW15*Affluence!BW11 -> 7.335960945e+12 | BC48: =+Population!BX15*Affluence!BX11 -> 7.632333767e+12 | BD48: =+Population!BY15*Affluence!BY11 -> 7.940680051e+12 | BE48: =+Population!BZ15*Affluence!BZ11 -> 8.261483525e+12 | BF48: =+Population!CA15*Affluence!CA11 -> 8.595247459e+12 | BG48: =+Population!CB15*Affluence!CB11 -> 8.942495457e+12 | BH48: =+Population!CC15*Affluence!CC11 -> 9.303772273e+12 | BI48: =+Population!CD15*Affluence!CD11 -> 9.679644673e+12 | BJ48: =+Population!CE15*Affluence!CE11 -> 1.007070232e+13 | BK48: =+Population!CF15*Affluence!CF11 -> 1.047755869e+13 | BL48: =+Population!CG15*Affluence!CG11 -> 1.090085206e+13 | BM48: =+Population!CH15*Affluence!CH11 -> 1.134124649e+13 | BN48: =+Population!CI15*Affluence!CI11 -> 1.179943284e+13 | BO48: =+Population!CJ15*Affluence!CJ11 -> 1.227612993e+13 | BP48: =+Population!CK15*Affluence!CK11 -> 1.277208558e+13 | BQ48: =+Population!CL15*Affluence!CL11 -> 1.328807784e+13 | BR48: =+Population!CM15*Affluence!CM11 -> 1.382491618e+13 | BS48: =+Population!CN15*Affluence!CN11 -> 1.43834428e+13 | BT48: =+Population!CO15*Affluence!CO11 -> 1.496453388e+13 | BU48: =+Population!CP15*Affluence!CP11 -> 1.556910105e+13 | BV48: =+Population!CQ15*Affluence!CQ11 -> 1.619809274e+13 | BW48: =+Population!CR15*Affluence!CR11 -> 1.685249568e+13 | BX48: =+Population!CS15*Affluence!CS11 -> 1.693591554e+13 | BY48: =+Population!CT15*Affluence!CT11 -> 1.701974832e+13 | BZ48: =+Population!CU15*Affluence!CU11 -> 1.710399607e+13 | CA48: =+Population!CV15*Affluence!CV11 -> 1.718866085e+13 | CB48: =+Population!CW15*Affluence!CW11 -> 1.727374472e+13 | CC48: =+Population!CX15*Affluence!CX11 -> 1.735924976e+13 | CD48: =+Population!CY15*Affluence!CY11 -> 1.744517805e+13 | CE48: =+Population!CZ15*Affluence!CZ11 -> 1.753153168e+13 | CF48: =+Population!DA15*Affluence!DA11 -> 1.761831276e+13 | CG48: =+Population!DB15*Affluence!DB11 -> 1.770552341e+13 | CH48: =+Population!DC15*Affluence!DC11 -> 1.779316575e+13 | CI48: =+Population!DD15*Affluence!DD11 -> 1.788124192e+13 | CJ48: =+Population!DE15*Affluence!DE11 -> 1.796975407e+13 | CK48: =+Population!DF15*Affluence!DF11 -> 1.805870435e+13 | CL48: =+Population!DG15*Affluence!DG11 -> 1.814809494e+13 | CM48: =+Population!DH15*Affluence!DH11 -> 1.823792801e+13 | CN48: =+Population!DI15*Affluence!DI11 -> 1.832820575e+13 | CO48: =+Population!DJ15*Affluence!DJ11 -> 1.841893037e+13 | CP48: =+Population!DK15*Affluence!DK11 -> 1.851010407e+13 | CQ48: =+Population!DL15*Affluence!DL11 -> 1.860172909e+13 | CR48: =+Population!DM15*Affluence!DM11 -> 1.869380765e+13 | CS48: =+Population!DN15*Affluence!DN11 -> 1.8786342e+13 | CT48: =+Population!DO15*Affluence!DO11 -> 1.887933439e+13 | CU48: =+Population!DP15*Affluence!DP11 -> 1.897278709e+13 | CV48: =+Population!DQ15*Affluence!DQ11 -> 1.906670239e+13 | CW48: =+Population!DR15*Affluence!DR11 -> 1.916108257e+13 | CX48: =+Population!DS15*Affluence!DS11 -> 1.925592993e+13 | CY48: =+Population!DT15*Affluence!DT11 -> 1.935124678e+13 | CZ48: =+Population!DU15*Affluence!DU11 -> 1.944703545e+13 | DA48: =+Population!DV15*Affluence!DV11 -> 1.954329828e+13 | DB48: =+Population!DW15*Affluence!DW11 -> 1.96400376e+13 | DC48: =+Population!DX15*Affluence!DX11 -> 1.973725579e+13 | DD48: =+Population!DY15*Affluence!DY11 -> 1.98349552e+13 | DE48: =+Population!DZ15*Affluence!DZ11 -> 1.993313823e+13 | DF48: =+Population!EA15*Affluence!EA11 -> 2.003180727e+13 | DG48: =+Population!EB15*Affluence!EB11 -> 2.013096471e+13 | DH48: =+Population!EC15*Affluence!EC11 -> 2.023061299e+13 | DI48: =+Population!ED15*Affluence!ED11 -> 2.033075452e+13 | DJ48: =+Population!EE15*Affluence!EE11 -> 2.043139176e+13 | DK48: =+Population!EF15*Affluence!EF11 -> 2.053252715e+13 | DL48: =+Population!EG15*Affluence!EG11 -> 2.063416316e+13 | DM48: =+Population!EH15*Affluence!EH11 -> 2.073630226e+13 | DN48: =+Population!EI15*Affluence!EI11 -> 2.083894696e+13 | DO48: =+Population!EJ15*Affluence!EJ11 -> 2.094209975e+13 | DP48: =+Population!EK15*Affluence!EK11 -> 2.104576314e+13 | DQ48: =+Population!EL15*Affluence!EL11 -> 2.114993967e+13 | DR48: =+Population!EM15*Affluence!EM11 -> 2.125463187e+13 | DS48: =+Population!EN15*Affluence!EN11 -> 2.13598423e+13 | DT48: =+Population!EO15*Affluence!EO11 -> 2.146557352e+13 | DU48: =+Population!EP15*Affluence!EP11 -> 2.157182811e+13
A49: MEX | B49: 0.02 | C49: -0.005 | J49: MEX | K49: =+((Population!CR16*Affluence!CR12)/(Population!BI16*Affluence!BI12))^(1/(2050-2015))-1 -> 0.0404 | L49: =+((Population!EP16*Affluence!EP12)/(Population!CS16*Affluence!CS12))^(1/(2100-2051))-1 -> 0.00495 | N49: MEX | O49: =+Population!AJ16*Affluence!AJ12 -> 6.195215668e+11 | P49: =+Population!AK16*Affluence!AK12 -> 6.456793206e+11 | Q49: =+Population!AL16*Affluence!AL12 -> 6.691088195e+11 | R49: =+Population!AM16*Affluence!AM12 -> 6.962841781e+11 | S49: =+Population!AN16*Affluence!AN12 -> 7.292000018e+11 | T49: =+Population!AO16*Affluence!AO12 -> 6.872076898e+11 | U49: =+Population!AP16*Affluence!AP12 -> 7.275795382e+11 | V49: =+Population!AQ16*Affluence!AQ12 -> 7.782400924e+11 | W49: =+Population!AR16*Affluence!AR12 -> 8.148317151e+11 | X49: =+Population!AS16*Affluence!AS12 -> 8.365633841e+11 | Y49: =+Population!AT16*Affluence!AT12 -> 8.808717449e+11 | Z49: =+Population!AU16*Affluence!AU12 -> 8.755381335e+11 | AA49: =+Population!AV16*Affluence!AV12 -> 8.766931186e+11 | AB49: =+Population!AW16*Affluence!AW12 -> 8.891655795e+11 | AC49: =+Population!AX16*Affluence!AX12 -> 9.27361592e+11 | AD49: =+Population!AY16*Affluence!AY12 -> 9.554845154e+11 | AE49: =+Population!AZ16*Affluence!AZ12 -> 1.002728584e+12 | AF49: =+Population!BA16*Affluence!BA12 -> 1.034857242e+12 | AG49: =+Population!BB16*Affluence!BB12 -> 1.049348248e+12 | AH49: =+Population!BC16*Affluence!BC12 -> 1.000025324e+12 | AI49: =+Population!BD16*Affluence!BD12 -> 1.051128604e+12 | AJ49: =+Population!BE16*Affluence!BE12 -> 1.093642697e+12 | AK49: =+Population!BF16*Affluence!BF12 -> 1.137587162e+12 | AL49: =+Population!BG16*Affluence!BG12 -> 1.153059225e+12 | AM49: =+Population!BH16*Affluence!BH12 -> 1.178948963e+12 | AN49: =+Population!BI16*Affluence!BI12 -> 1.208009535e+12 | AO49: =+Population!BJ16*Affluence!BJ12 -> 1.25681312e+12 | AP49: =+Population!BK16*Affluence!BK12 -> 1.30758837e+12 | AQ49: =+Population!BL16*Affluence!BL12 -> 1.36041494e+12 | AR49: =+Population!BM16*Affluence!BM12 -> 1.415375704e+12 | AS49: =+Population!BN16*Affluence!BN12 -> 1.472556882e+12 | AT49: =+Population!BO16*Affluence!BO12 -> 1.53204818e+12 | AU49: =+Population!BP16*Affluence!BP12 -> 1.593942927e+12 | AV49: =+Population!BQ16*Affluence!BQ12 -> 1.658338221e+12 | AW49: =+Population!BR16*Affluence!BR12 -> 1.725335085e+12 | AX49: =+Population!BS16*Affluence!BS12 -> 1.795038623e+12 | AY49: =+Population!BT16*Affluence!BT12 -> 1.867558183e+12 | AZ49: =+Population!BU16*Affluence!BU12 -> 1.943007534e+12 | BA49: =+Population!BV16*Affluence!BV12 -> 2.021505038e+12 | BB49: =+Population!BW16*Affluence!BW12 -> 2.103173841e+12 | BC49: =+Population!BX16*Affluence!BX12 -> 2.188142065e+12 | BD49: =+Population!BY16*Affluence!BY12 -> 2.276543004e+12 | BE49: =+Population!BZ16*Affluence!BZ12 -> 2.368515341e+12 | BF49: =+Population!CA16*Affluence!CA12 -> 2.464203361e+12 | BG49: =+Population!CB16*Affluence!CB12 -> 2.563757177e+12 | BH49: =+Population!CC16*Affluence!CC12 -> 2.667332967e+12 | BI49: =+Population!CD16*Affluence!CD12 -> 2.775093219e+12 | BJ49: =+Population!CE16*Affluence!CE12 -> 2.887206985e+12 | BK49: =+Population!CF16*Affluence!CF12 -> 3.003850147e+12 | BL49: =+Population!CG16*Affluence!CG12 -> 3.125205693e+12 | BM49: =+Population!CH16*Affluence!CH12 -> 3.251464003e+12 | BN49: =+Population!CI16*Affluence!CI12 -> 3.382823149e+12 | BO49: =+Population!CJ16*Affluence!CJ12 -> 3.519489204e+12 | BP49: =+Population!CK16*Affluence!CK12 -> 3.661676568e+12 | BQ49: =+Population!CL16*Affluence!CL12 -> 3.809608301e+12 | BR49: =+Population!CM16*Affluence!CM12 -> 3.963516476e+12 | BS49: =+Population!CN16*Affluence!CN12 -> 4.123642542e+12 | BT49: =+Population!CO16*Affluence!CO12 -> 4.290237701e+12 | BU49: =+Population!CP16*Affluence!CP12 -> 4.463563304e+12 | BV49: =+Population!CQ16*Affluence!CQ12 -> 4.643891261e+12 | BW49: =+Population!CR16*Affluence!CR12 -> 4.831504468e+12 | BX49: =+Population!CS16*Affluence!CS12 -> 4.855420415e+12 | BY49: =+Population!CT16*Affluence!CT12 -> 4.879454746e+12 | BZ49: =+Population!CU16*Affluence!CU12 -> 4.903608047e+12 | CA49: =+Population!CV16*Affluence!CV12 -> 4.927880907e+12 | CB49: =+Population!CW16*Affluence!CW12 -> 4.952273918e+12 | CC49: =+Population!CX16*Affluence!CX12 -> 4.976787674e+12 | CD49: =+Population!CY16*Affluence!CY12 -> 5.001422773e+12 | CE49: =+Population!CZ16*Affluence!CZ12 -> 5.026179815e+12 | CF49: =+Population!DA16*Affluence!DA12 -> 5.051059405e+12 | CG49: =+Population!DB16*Affluence!DB12 -> 5.076062149e+12 | CH49: =+Population!DC16*Affluence!DC12 -> 5.101188657e+12 | CI49: =+Population!DD16*Affluence!DD12 -> 5.126439541e+12 | CJ49: =+Population!DE16*Affluence!DE12 -> 5.151815417e+12 | CK49: =+Population!DF16*Affluence!DF12 -> 5.177316903e+12 | CL49: =+Population!DG16*Affluence!DG12 -> 5.202944622e+12 | CM49: =+Population!DH16*Affluence!DH12 -> 5.228699198e+12 | CN49: =+Population!DI16*Affluence!DI12 -> 5.254581259e+12 | CO49: =+Population!DJ16*Affluence!DJ12 -> 5.280591436e+12 | CP49: =+Population!DK16*Affluence!DK12 -> 5.306730363e+12 | CQ49: =+Population!DL16*Affluence!DL12 -> 5.332998679e+12 | CR49: =+Population!DM16*Affluence!DM12 -> 5.359397022e+12 | CS49: =+Population!DN16*Affluence!DN12 -> 5.385926037e+12 | CT49: =+Population!DO16*Affluence!DO12 -> 5.412586371e+12 | CU49: =+Population!DP16*Affluence!DP12 -> 5.439378674e+12 | CV49: =+Population!DQ16*Affluence!DQ12 -> 5.466303598e+12 | CW49: =+Population!DR16*Affluence!DR12 -> 5.493361801e+12 | CX49: =+Population!DS16*Affluence!DS12 -> 5.520553942e+12 | CY49: =+Population!DT16*Affluence!DT12 -> 5.547880684e+12 | CZ49: =+Population!DU16*Affluence!DU12 -> 5.575342693e+12 | DA49: =+Population!DV16*Affluence!DV12 -> 5.60294064e+12 | DB49: =+Population!DW16*Affluence!DW12 -> 5.630675196e+12 | DC49: =+Population!DX16*Affluence!DX12 -> 5.658547038e+12 | DD49: =+Population!DY16*Affluence!DY12 -> 5.686556846e+12 | DE49: =+Population!DZ16*Affluence!DZ12 -> 5.714705302e+12 | DF49: =+Population!EA16*Affluence!EA12 -> 5.742993094e+12 | DG49: =+Population!EB16*Affluence!EB12 -> 5.771420909e+12 | DH49: =+Population!EC16*Affluence!EC12 -> 5.799989443e+12 | DI49: =+Population!ED16*Affluence!ED12 -> 5.828699391e+12 | DJ49: =+Population!EE16*Affluence!EE12 -> 5.857551453e+12 | DK49: =+Population!EF16*Affluence!EF12 -> 5.886546332e+12 | DL49: =+Population!EG16*Affluence!EG12 -> 5.915684737e+12 | DM49: =+Population!EH16*Affluence!EH12 -> 5.944967376e+12 | DN49: =+Population!EI16*Affluence!EI12 -> 5.974394965e+12 | DO49: =+Population!EJ16*Affluence!EJ12 -> 6.00396822e+12 | DP49: =+Population!EK16*Affluence!EK12 -> 6.033687862e+12 | DQ49: =+Population!EL16*Affluence!EL12 -> 6.063554617e+12 | DR49: =+Population!EM16*Affluence!EM12 -> 6.093569213e+12 | DS49: =+Population!EN16*Affluence!EN12 -> 6.12373238e+12 | DT49: =+Population!EO16*Affluence!EO12 -> 6.154044856e+12 | DU49: =+Population!EP16*Affluence!EP12 -> 6.184507378e+12
A50: ODA | B50: 0.02 | C50: -0.005 | J50: ODA | K50: =+((Population!CR17*Affluence!CR13)/(Population!BI17*Affluence!BI13))^(1/(2050-2015))-1 -> 0.0404 | L50: =+((Population!EP17*Affluence!EP13)/(Population!CS17*Affluence!CS13))^(1/(2100-2051))-1 -> 0.00495 | N50: ODA | O50: =+Population!AJ17*Affluence!AJ13 -> 9.476533375e+11 | P50: =+Population!AK17*Affluence!AK13 -> 1.004545983e+12 | Q50: =+Population!AL17*Affluence!AL13 -> 1.068641443e+12 | R50: =+Population!AM17*Affluence!AM13 -> 1.126787974e+12 | S50: =+Population!AN17*Affluence!AN13 -> 1.208482368e+12 | T50: =+Population!AO17*Affluence!AO13 -> 1.29827413e+12 | U50: =+Population!AP17*Affluence!AP13 -> 1.389445966e+12 | V50: =+Population!AQ17*Affluence!AQ13 -> 1.442054709e+12 | W50: =+Population!AR17*Affluence!AR13 -> 1.351677032e+12 | X50: =+Population!AS17*Affluence!AS13 -> 1.397789147e+12 | Y50: =+Population!AT17*Affluence!AT13 -> 1.477684798e+12 | Z50: =+Population!AU17*Affluence!AU13 -> 1.520868576e+12 | AA50: =+Population!AV17*Affluence!AV13 -> 1.563777987e+12 | AB50: =+Population!AW17*Affluence!AW13 -> 1.649285601e+12 | AC50: =+Population!AX17*Affluence!AX13 -> 1.754415205e+12 | AD50: =+Population!AY17*Affluence!AY13 -> 1.857716564e+12 | AE50: =+Population!AZ17*Affluence!AZ13 -> 1.969163436e+12 | AF50: =+Population!BA17*Affluence!BA13 -> 2.104519496e+12 | AG50: =+Population!BB17*Affluence!BB13 -> 2.190904177e+12 | AH50: =+Population!BC17*Affluence!BC13 -> 2.23953326e+12 | AI50: =+Population!BD17*Affluence!BD13 -> 2.39870072e+12 | AJ50: =+Population!BE17*Affluence!BE13 -> 2.514778564e+12 | AK50: =+Population!BF17*Affluence!BF13 -> 2.660848269e+12 | AL50: =+Population!BG17*Affluence!BG13 -> 2.794631581e+12 | AM50: =+Population!BH17*Affluence!BH13 -> 2.922758286e+12 | AN50: =+Population!BI17*Affluence!BI13 -> 3.062941825e+12 | AO50: =+Population!BJ17*Affluence!BJ13 -> 3.186684675e+12 | AP50: =+Population!BK17*Affluence!BK13 -> 3.315426736e+12 | AQ50: =+Population!BL17*Affluence!BL13 -> 3.449369976e+12 | AR50: =+Population!BM17*Affluence!BM13 -> 3.588724523e+12 | AS50: =+Population!BN17*Affluence!BN13 -> 3.733708994e+12 | AT50: =+Population!BO17*Affluence!BO13 -> 3.884550837e+12 | AU50: =+Population!BP17*Affluence!BP13 -> 4.041486691e+12 | AV50: =+Population!BQ17*Affluence!BQ13 -> 4.204762753e+12 | AW50: =+Population!BR17*Affluence!BR13 -> 4.374635169e+12 | AX50: =+Population!BS17*Affluence!BS13 -> 4.55137043e+12 | AY50: =+Population!BT17*Affluence!BT13 -> 4.735245795e+12 | AZ50: =+Population!BU17*Affluence!BU13 -> 4.926549725e+12 | BA50: =+Population!BV17*Affluence!BV13 -> 5.125582334e+12 | BB50: =+Population!BW17*Affluence!BW13 -> 5.33265586e+12 | BC50: =+Population!BX17*Affluence!BX13 -> 5.548095157e+12 | BD50: =+Population!BY17*Affluence!BY13 -> 5.772238201e+12 | BE50: =+Population!BZ17*Affluence!BZ13 -> 6.005436625e+12 | BF50: =+Population!CA17*Affluence!CA13 -> 6.248056264e+12 | BG50: =+Population!CB17*Affluence!CB13 -> 6.500477737e+12 | BH50: =+Population!CC17*Affluence!CC13 -> 6.763097038e+12 | BI50: =+Population!CD17*Affluence!CD13 -> 7.036326158e+12 | BJ50: =+Population!CE17*Affluence!CE13 -> 7.320593735e+12 | BK50: =+Population!CF17*Affluence!CF13 -> 7.616345722e+12 | BL50: =+Population!CG17*Affluence!CG13 -> 7.924046089e+12 | BM50: =+Population!CH17*Affluence!CH13 -> 8.244177551e+12 | BN50: =+Population!CI17*Affluence!CI13 -> 8.577242324e+12 | BO50: =+Population!CJ17*Affluence!CJ13 -> 8.923762914e+12 | BP50: =+Population!CK17*Affluence!CK13 -> 9.284282936e+12 | BQ50: =+Population!CL17*Affluence!CL13 -> 9.659367966e+12 | BR50: =+Population!CM17*Affluence!CM13 -> 1.004960643e+13 | BS50: =+Population!CN17*Affluence!CN13 -> 1.045561053e+13 | BT50: =+Population!CO17*Affluence!CO13 -> 1.08780172e+13 | BU50: =+Population!CP17*Affluence!CP13 -> 1.131748909e+13 | BV50: =+Population!CQ17*Affluence!CQ13 -> 1.177471565e+13 | BW50: =+Population!CR17*Affluence!CR13 -> 1.225041416e+13 | BX50: =+Population!CS17*Affluence!CS13 -> 1.231105371e+13 | BY50: =+Population!CT17*Affluence!CT13 -> 1.237199343e+13 | BZ50: =+Population!CU17*Affluence!CU13 -> 1.24332348e+13 | CA50: =+Population!CV17*Affluence!CV13 -> 1.249477931e+13 | CB50: =+Population!CW17*Affluence!CW13 -> 1.255662847e+13 | CC50: =+Population!CX17*Affluence!CX13 -> 1.261878378e+13 | CD50: =+Population!CY17*Affluence!CY13 -> 1.268124676e+13 | CE50: =+Population!CZ17*Affluence!CZ13 -> 1.274401893e+13 | CF50: =+Population!DA17*Affluence!DA13 -> 1.280710182e+13 | CG50: =+Population!DB17*Affluence!DB13 -> 1.287049698e+13 | CH50: =+Population!DC17*Affluence!DC13 -> 1.293420594e+13 | CI50: =+Population!DD17*Affluence!DD13 -> 1.299823026e+13 | CJ50: =+Population!DE17*Affluence!DE13 -> 1.30625715e+13 | CK50: =+Population!DF17*Affluence!DF13 -> 1.312723123e+13 | CL50: =+Population!DG17*Affluence!DG13 -> 1.319221102e+13 | CM50: =+Population!DH17*Affluence!DH13 -> 1.325751246e+13 | CN50: =+Population!DI17*Affluence!DI13 -> 1.332313715e+13 | CO50: =+Population!DJ17*Affluence!DJ13 -> 1.338908668e+13 | CP50: =+Population!DK17*Affluence!DK13 -> 1.345536266e+13 | CQ50: =+Population!DL17*Affluence!DL13 -> 1.35219667e+13 | CR50: =+Population!DM17*Affluence!DM13 -> 1.358890044e+13 | CS50: =+Population!DN17*Affluence!DN13 -> 1.36561655e+13 | CT50: =+Population!DO17*Affluence!DO13 -> 1.372376352e+13 | CU50: =+Population!DP17*Affluence!DP13 -> 1.379169615e+13 | CV50: =+Population!DQ17*Affluence!DQ13 -> 1.385996504e+13 | CW50: =+Population!DR17*Affluence!DR13 -> 1.392857187e+13 | CX50: =+Population!DS17*Affluence!DS13 -> 1.39975183e+13 | CY50: =+Population!DT17*Affluence!DT13 -> 1.406680601e+13 | CZ50: =+Population!DU17*Affluence!DU13 -> 1.41364367e+13 | DA50: =+Population!DV17*Affluence!DV13 -> 1.420641207e+13 | DB50: =+Population!DW17*Affluence!DW13 -> 1.427673381e+13 | DC50: =+Population!DX17*Affluence!DX13 -> 1.434740364e+13 | DD50: =+Population!DY17*Affluence!DY13 -> 1.441842329e+13 | DE50: =+Population!DZ17*Affluence!DZ13 -> 1.448979448e+13 | DF50: =+Population!EA17*Affluence!EA13 -> 1.456151896e+13 | DG50: =+Population!EB17*Affluence!EB13 -> 1.463359848e+13 | DH50: =+Population!EC17*Affluence!EC13 -> 1.47060348e+13 | DI50: =+Population!ED17*Affluence!ED13 -> 1.477882967e+13 | DJ50: =+Population!EE17*Affluence!EE13 -> 1.485198487e+13 | DK50: =+Population!EF17*Affluence!EF13 -> 1.49255022e+13 | DL50: =+Population!EG17*Affluence!EG13 -> 1.499938344e+13 | DM50: =+Population!EH17*Affluence!EH13 -> 1.507363038e+13 | DN50: =+Population!EI17*Affluence!EI13 -> 1.514824485e+13 | DO50: =+Population!EJ17*Affluence!EJ13 -> 1.522322867e+13 | DP50: =+Population!EK17*Affluence!EK13 -> 1.529858365e+13 | DQ50: =+Population!EL17*Affluence!EL13 -> 1.537431164e+13 | DR50: =+Population!EM17*Affluence!EM13 -> 1.545041448e+13 | DS50: =+Population!EN17*Affluence!EN13 -> 1.552689403e+13 | DT50: =+Population!EO17*Affluence!EO13 -> 1.560375216e+13 | DU50: =+Population!EP17*Affluence!EP13 -> 1.568099073e+13
A51: OEE | B51: 0.02 | C51: -0.005 | J51: OEE | K51: =+((Population!CR18*Affluence!CR14)/(Population!BI18*Affluence!BI14))^(1/(2050-2015))-1 -> 0.0404 | L51: =+((Population!EP18*Affluence!EP14)/(Population!CS18*Affluence!CS14))^(1/(2100-2051))-1 -> 0.00495 | N51: OEE | O51: =+Population!AJ18*Affluence!AJ14 -> 3.11123059e+11 | P51: =+Population!AK18*Affluence!AK14 -> 2.859669271e+11 | Q51: =+Population!AL18*Affluence!AL14 -> 2.583249289e+11 | R51: =+Population!AM18*Affluence!AM14 -> 2.252645851e+11 | S51: =+Population!AN18*Affluence!AN14 -> 1.734731262e+11 | T51: =+Population!AO18*Affluence!AO14 -> 1.627683093e+11 | U51: =+Population!AP18*Affluence!AP14 -> 1.572940847e+11 | V51: =+Population!AQ18*Affluence!AQ14 -> 1.621959706e+11 | W51: =+Population!AR18*Affluence!AR14 -> 1.650172347e+11 | X51: =+Population!AS18*Affluence!AS14 -> 1.63987664e+11 | Y51: =+Population!AT18*Affluence!AT14 -> 1.737858593e+11 | Z51: =+Population!AU18*Affluence!AU14 -> 1.856503187e+11 | AA51: =+Population!AV18*Affluence!AV14 -> 1.954624382e+11 | AB51: =+Population!AW18*Affluence!AW14 -> 2.099287638e+11 | AC51: =+Population!AX18*Affluence!AX14 -> 2.319372267e+11 | AD51: =+Population!AY18*Affluence!AY14 -> 2.43025001e+11 | AE51: =+Population!AZ18*Affluence!AZ14 -> 2.602770231e+11 | AF51: =+Population!BA18*Affluence!BA14 -> 2.796003389e+11 | AG51: =+Population!BB18*Affluence!BB14 -> 2.927010436e+11 | AH51: =+Population!BC18*Affluence!BC14 -> 2.681154169e+11 | AI51: =+Population!BD18*Affluence!BD14 -> 2.791422626e+11 | AJ51: =+Population!BE18*Affluence!BE14 -> 2.9139937e+11 | AK51: =+Population!BF18*Affluence!BF14 -> 2.921529218e+11 | AL51: =+Population!BG18*Affluence!BG14 -> 2.953253016e+11 | AM51: =+Population!BH18*Affluence!BH14 -> 2.8735998e+11 | AN51: =+Population!BI18*Affluence!BI14 -> 2.734074634e+11 | AO51: =+Population!BJ18*Affluence!BJ14 -> 2.844531249e+11 | AP51: =+Population!BK18*Affluence!BK14 -> 2.959450312e+11 | AQ51: =+Population!BL18*Affluence!BL14 -> 3.079012104e+11 | AR51: =+Population!BM18*Affluence!BM14 -> 3.203404193e+11 | AS51: =+Population!BN18*Affluence!BN14 -> 3.332821723e+11 | AT51: =+Population!BO18*Affluence!BO14 -> 3.46746772e+11 | AU51: =+Population!BP18*Affluence!BP14 -> 3.607553416e+11 | AV51: =+Population!BQ18*Affluence!BQ14 -> 3.753298574e+11 | AW51: =+Population!BR18*Affluence!BR14 -> 3.904931836e+11 | AX51: =+Population!BS18*Affluence!BS14 -> 4.062691083e+11 | AY51: =+Population!BT18*Affluence!BT14 -> 4.226823802e+11 | AZ51: =+Population!BU18*Affluence!BU14 -> 4.397587484e+11 | BA51: =+Population!BV18*Affluence!BV14 -> 4.575250018e+11 | BB51: =+Population!BW18*Affluence!BW14 -> 4.760090119e+11 | BC51: =+Population!BX18*Affluence!BX14 -> 4.95239776e+11 | BD51: =+Population!BY18*Affluence!BY14 -> 5.152474629e+11 | BE51: =+Population!BZ18*Affluence!BZ14 -> 5.360634604e+11 | BF51: =+Population!CA18*Affluence!CA14 -> 5.577204242e+11 | BG51: =+Population!CB18*Affluence!CB14 -> 5.802523294e+11 | BH51: =+Population!CC18*Affluence!CC14 -> 6.036945235e+11 | BI51: =+Population!CD18*Affluence!CD14 -> 6.280837822e+11 | BJ51: =+Population!CE18*Affluence!CE14 -> 6.53458367e+11 | BK51: =+Population!CF18*Affluence!CF14 -> 6.798580851e+11 | BL51: =+Population!CG18*Affluence!CG14 -> 7.073243517e+11 | BM51: =+Population!CH18*Affluence!CH14 -> 7.359002555e+11 | BN51: =+Population!CI18*Affluence!CI14 -> 7.656306258e+11 | BO51: =+Population!CJ18*Affluence!CJ14 -> 7.965621031e+11 | BP51: =+Population!CK18*Affluence!CK14 -> 8.287432121e+11 | BQ51: =+Population!CL18*Affluence!CL14 -> 8.622244379e+11 | BR51: =+Population!CM18*Affluence!CM14 -> 8.970583051e+11 | BS51: =+Population!CN18*Affluence!CN14 -> 9.332994607e+11 | BT51: =+Population!CO18*Affluence!CO14 -> 9.710047589e+11 | BU51: =+Population!CP18*Affluence!CP14 -> 1.010233351e+12 | BV51: =+Population!CQ18*Affluence!CQ14 -> 1.051046779e+12 | BW51: =+Population!CR18*Affluence!CR14 -> 1.093509068e+12 | BX51: =+Population!CS18*Affluence!CS14 -> 1.098921938e+12 | BY51: =+Population!CT18*Affluence!CT14 -> 1.104361602e+12 | BZ51: =+Population!CU18*Affluence!CU14 -> 1.109828192e+12 | CA51: =+Population!CV18*Affluence!CV14 -> 1.115321841e+12 | CB51: =+Population!CW18*Affluence!CW14 -> 1.120842684e+12 | CC51: =+Population!CX18*Affluence!CX14 -> 1.126390856e+12 | CD51: =+Population!CY18*Affluence!CY14 -> 1.13196649e+12 | CE51: =+Population!CZ18*Affluence!CZ14 -> 1.137569725e+12 | CF51: =+Population!DA18*Affluence!DA14 -> 1.143200695e+12 | CG51: =+Population!DB18*Affluence!DB14 -> 1.148859538e+12 | CH51: =+Population!DC18*Affluence!DC14 -> 1.154546393e+12 | CI51: =+Population!DD18*Affluence!DD14 -> 1.160261398e+12 | CJ51: =+Population!DE18*Affluence!DE14 -> 1.166004691e+12 | CK51: =+Population!DF18*Affluence!DF14 -> 1.171776415e+12 | CL51: =+Population!DG18*Affluence!DG14 -> 1.177576708e+12 | CM51: =+Population!DH18*Affluence!DH14 -> 1.183405713e+12 | CN51: =+Population!DI18*Affluence!DI14 -> 1.189263571e+12 | CO51: =+Population!DJ18*Affluence!DJ14 -> 1.195150426e+12 | CP51: =+Population!DK18*Affluence!DK14 -> 1.20106642e+12 | CQ51: =+Population!DL18*Affluence!DL14 -> 1.207011699e+12 | CR51: =+Population!DM18*Affluence!DM14 -> 1.212986407e+12 | CS51: =+Population!DN18*Affluence!DN14 -> 1.21899069e+12 | CT51: =+Population!DO18*Affluence!DO14 -> 1.225024694e+12 | CU51: =+Population!DP18*Affluence!DP14 -> 1.231088566e+12 | CV51: =+Population!DQ18*Affluence!DQ14 -> 1.237182454e+12 | CW51: =+Population!DR18*Affluence!DR14 -> 1.243306507e+12 | CX51: =+Population!DS18*Affluence!DS14 -> 1.249460875e+12 | CY51: =+Population!DT18*Affluence!DT14 -> 1.255645706e+12 | CZ51: =+Population!DU18*Affluence!DU14 -> 1.261861152e+12 | DA51: =+Population!DV18*Affluence!DV14 -> 1.268107365e+12 | DB51: =+Population!DW18*Affluence!DW14 -> 1.274384496e+12 | DC51: =+Population!DX18*Affluence!DX14 -> 1.280692699e+12 | DD51: =+Population!DY18*Affluence!DY14 -> 1.287032128e+12 | DE51: =+Population!DZ18*Affluence!DZ14 -> 1.293402937e+12 | DF51: =+Population!EA18*Affluence!EA14 -> 1.299805282e+12 | DG51: =+Population!EB18*Affluence!EB14 -> 1.306239318e+12 | DH51: =+Population!EC18*Affluence!EC14 -> 1.312705203e+12 | DI51: =+Population!ED18*Affluence!ED14 -> 1.319203093e+12 | DJ51: =+Population!EE18*Affluence!EE14 -> 1.325733149e+12 | DK51: =+Population!EF18*Affluence!EF14 -> 1.332295528e+12 | DL51: =+Population!EG18*Affluence!EG14 -> 1.338890391e+12 | DM51: =+Population!EH18*Affluence!EH14 -> 1.345517898e+12 | DN51: =+Population!EI18*Affluence!EI14 -> 1.352178212e+12 | DO51: =+Population!EJ18*Affluence!EJ14 -> 1.358871494e+12 | DP51: =+Population!EK18*Affluence!EK14 -> 1.365597908e+12 | DQ51: =+Population!EL18*Affluence!EL14 -> 1.372357617e+12 | DR51: =+Population!EM18*Affluence!EM14 -> 1.379150788e+12 | DS51: =+Population!EN18*Affluence!EN14 -> 1.385977584e+12 | DT51: =+Population!EO18*Affluence!EO14 -> 1.392838173e+12 | DU51: =+Population!EP18*Affluence!EP14 -> 1.399732722e+12
A52: RUS | B52: 0.02 | C52: -0.005 | J52: RUS | K52: =+((Population!CR19*Affluence!CR15)/(Population!BI19*Affluence!BI15))^(1/(2050-2015))-1 -> 0.0404 | L52: =+((Population!EP19*Affluence!EP15)/(Population!CS19*Affluence!CS15))^(1/(2100-2051))-1 -> 0.00495 | N52: RUS | O52: =+Population!AJ19*Affluence!AJ15 -> 1.413889425e+12 | P52: =+Population!AK19*Affluence!AK15 -> 1.342531282e+12 | Q52: =+Population!AL19*Affluence!AL15 -> 1.147447071e+12 | R52: =+Population!AM19*Affluence!AM15 -> 1.047980158e+12 | S52: =+Population!AN19*Affluence!AN15 -> 9.162516097e+11 | T52: =+Population!AO19*Affluence!AO15 -> 8.78286464e+11 | U52: =+Population!AP19*Affluence!AP15 -> 8.466681513e+11 | V52: =+Population!AQ19*Affluence!AQ15 -> 8.585215054e+11 | W52: =+Population!AR19*Affluence!AR15 -> 8.130198657e+11 | X52: =+Population!AS19*Affluence!AS15 -> 8.650531371e+11 | Y52: =+Population!AT19*Affluence!AT15 -> 9.515584508e+11 | Z52: =+Population!AU19*Affluence!AU15 -> 1.000011657e+12 | AA52: =+Population!AV19*Affluence!AV15 -> 1.047448909e+12 | AB52: =+Population!AW19*Affluence!AW15 -> 1.123869256e+12 | AC52: =+Population!AX19*Affluence!AX15 -> 1.204517542e+12 | AD52: =+Population!AY19*Affluence!AY15 -> 1.281319834e+12 | AE52: =+Population!AZ19*Affluence!AZ15 -> 1.385791375e+12 | AF52: =+Population!BA19*Affluence!BA15 -> 1.50406978e+12 | AG52: =+Population!BB19*Affluence!BB15 -> 1.583002663e+12 | AH52: =+Population!BC19*Affluence!BC15 -> 1.459197845e+12 | AI52: =+Population!BD19*Affluence!BD15 -> 1.524915342e+12 | AJ52: =+Population!BE19*Affluence!BE15 -> 1.589940425e+12 | AK52: =+Population!BF19*Affluence!BF15 -> 1.645873604e+12 | AL52: =+Population!BG19*Affluence!BG15 -> 1.666931799e+12 | AM52: =+Population!BH19*Affluence!BH15 -> 1.679124708e+12 | AN52: =+Population!BI19*Affluence!BI15 -> 1.631635018e+12 | AO52: =+Population!BJ19*Affluence!BJ15 -> 1.697553072e+12 | AP52: =+Population!BK19*Affluence!BK15 -> 1.766134217e+12 | AQ52: =+Population!BL19*Affluence!BL15 -> 1.837486039e+12 | AR52: =+Population!BM19*Affluence!BM15 -> 1.911720475e+12 | AS52: =+Population!BN19*Affluence!BN15 -> 1.988953982e+12 | AT52: =+Population!BO19*Affluence!BO15 -> 2.069307723e+12 | AU52: =+Population!BP19*Affluence!BP15 -> 2.152907755e+12 | AV52: =+Population!BQ19*Affluence!BQ15 -> 2.239885228e+12 | AW52: =+Population!BR19*Affluence!BR15 -> 2.330376592e+12 | AX52: =+Population!BS19*Affluence!BS15 -> 2.424523806e+12 | AY52: =+Population!BT19*Affluence!BT15 -> 2.522474568e+12 | AZ52: =+Population!BU19*Affluence!BU15 -> 2.62438254e+12 | BA52: =+Population!BV19*Affluence!BV15 -> 2.730407595e+12 | BB52: =+Population!BW19*Affluence!BW15 -> 2.840716062e+12 | BC52: =+Population!BX19*Affluence!BX15 -> 2.95548099e+12 | BD52: =+Population!BY19*Affluence!BY15 -> 3.074882422e+12 | BE52: =+Population!BZ19*Affluence!BZ15 -> 3.199107672e+12 | BF52: =+Population!CA19*Affluence!CA15 -> 3.328351622e+12 | BG52: =+Population!CB19*Affluence!CB15 -> 3.462817028e+12 | BH52: =+Population!CC19*Affluence!CC15 -> 3.602714836e+12 | BI52: =+Population!CD19*Affluence!CD15 -> 3.748264515e+12 | BJ52: =+Population!CE19*Affluence!CE15 -> 3.899694402e+12 | BK52: =+Population!CF19*Affluence!CF15 -> 4.057242055e+12 | BL52: =+Population!CG19*Affluence!CG15 -> 4.221154634e+12 | BM52: =+Population!CH19*Affluence!CH15 -> 4.391689282e+12 | BN52: =+Population!CI19*Affluence!CI15 -> 4.569113529e+12 | BO52: =+Population!CJ19*Affluence!CJ15 -> 4.753705715e+12 | BP52: =+Population!CK19*Affluence!CK15 -> 4.945755426e+12 | BQ52: =+Population!CL19*Affluence!CL15 -> 5.145563945e+12 | BR52: =+Population!CM19*Affluence!CM15 -> 5.353444729e+12 | BS52: =+Population!CN19*Affluence!CN15 -> 5.569723896e+12 | BT52: =+Population!CO19*Affluence!CO15 -> 5.794740741e+12 | BU52: =+Population!CP19*Affluence!CP15 -> 6.028848267e+12 | BV52: =+Population!CQ19*Affluence!CQ15 -> 6.272413737e+12 | BW52: =+Population!CR19*Affluence!CR15 -> 6.525819252e+12 | BX52: =+Population!CS19*Affluence!CS15 -> 6.558122057e+12 | BY52: =+Population!CT19*Affluence!CT15 -> 6.590584761e+12 | BZ52: =+Population!CU19*Affluence!CU15 -> 6.623208156e+12 | CA52: =+Population!CV19*Affluence!CV15 -> 6.655993036e+12 | CB52: =+Population!CW19*Affluence!CW15 -> 6.688940202e+12 | CC52: =+Population!CX19*Affluence!CX15 -> 6.722050456e+12 | CD52: =+Population!CY19*Affluence!CY15 -> 6.755324606e+12 | CE52: =+Population!CZ19*Affluence!CZ15 -> 6.788763463e+12 | CF52: =+Population!DA19*Affluence!DA15 -> 6.822367842e+12 | CG52: =+Population!DB19*Affluence!DB15 -> 6.856138562e+12 | CH52: =+Population!DC19*Affluence!DC15 -> 6.890076448e+12 | CI52: =+Population!DD19*Affluence!DD15 -> 6.924182327e+12 | CJ52: =+Population!DE19*Affluence!DE15 -> 6.958457029e+12 | CK52: =+Population!DF19*Affluence!DF15 -> 6.992901392e+12 | CL52: =+Population!DG19*Affluence!DG15 -> 7.027516253e+12 | CM52: =+Population!DH19*Affluence!DH15 -> 7.062302459e+12 | CN52: =+Population!DI19*Affluence!DI15 -> 7.097260856e+12 | CO52: =+Population!DJ19*Affluence!DJ15 -> 7.132392297e+12 | CP52: =+Population!DK19*Affluence!DK15 -> 7.167697639e+12 | CQ52: =+Population!DL19*Affluence!DL15 -> 7.203177743e+12 | CR52: =+Population!DM19*Affluence!DM15 -> 7.238833472e+12 | CS52: =+Population!DN19*Affluence!DN15 -> 7.274665698e+12 | CT52: =+Population!DO19*Affluence!DO15 -> 7.310675293e+12 | CU52: =+Population!DP19*Affluence!DP15 -> 7.346863136e+12 | CV52: =+Population!DQ19*Affluence!DQ15 -> 7.383230108e+12 | CW52: =+Population!DR19*Affluence!DR15 -> 7.419777097e+12 | CX52: =+Population!DS19*Affluence!DS15 -> 7.456504994e+12 | CY52: =+Population!DT19*Affluence!DT15 -> 7.493414694e+12 | CZ52: =+Population!DU19*Affluence!DU15 -> 7.530507097e+12 | DA52: =+Population!DV19*Affluence!DV15 -> 7.567783107e+12 | DB52: =+Population!DW19*Affluence!DW15 -> 7.605243633e+12 | DC52: =+Population!DX19*Affluence!DX15 -> 7.642889589e+12 | DD52: =+Population!DY19*Affluence!DY15 -> 7.680721893e+12 | DE52: =+Population!DZ19*Affluence!DZ15 -> 7.718741466e+12 | DF52: =+Population!EA19*Affluence!EA15 -> 7.756949236e+12 | DG52: =+Population!EB19*Affluence!EB15 -> 7.795346135e+12 | DH52: =+Population!EC19*Affluence!EC15 -> 7.833933098e+12 | DI52: =+Population!ED19*Affluence!ED15 -> 7.872711067e+12 | DJ52: =+Population!EE19*Affluence!EE15 -> 7.911680987e+12 | DK52: =+Population!EF19*Affluence!EF15 -> 7.950843808e+12 | DL52: =+Population!EG19*Affluence!EG15 -> 7.990200485e+12 | DM52: =+Population!EH19*Affluence!EH15 -> 8.029751977e+12 | DN52: =+Population!EI19*Affluence!EI15 -> 8.069499249e+12 | DO52: =+Population!EJ19*Affluence!EJ15 -> 8.109443271e+12 | DP52: =+Population!EK19*Affluence!EK15 -> 8.149585015e+12 | DQ52: =+Population!EL19*Affluence!EL15 -> 8.189925461e+12 | DR52: =+Population!EM19*Affluence!EM15 -> 8.230465592e+12 | DS52: =+Population!EN19*Affluence!EN15 -> 8.271206396e+12 | DT52: =+Population!EO19*Affluence!EO15 -> 8.312148868e+12 | DU52: =+Population!EP19*Affluence!EP15 -> 8.353294005e+12
A53: SKO | B53: 0.02 | C53: -0.005 | J53: SKO | K53: =+((Population!CR20*Affluence!CR16)/(Population!BI20*Affluence!BI16))^(1/(2050-2015))-1 -> 0.0404 | L53: =+((Population!EP20*Affluence!EP16)/(Population!CS20*Affluence!CS16))^(1/(2100-2051))-1 -> 0.00495 | N53: SKO | O53: =+Population!AJ20*Affluence!AJ16 -> 3.770537195e+11 | P53: =+Population!AK20*Affluence!AK16 -> 4.136765274e+11 | Q53: =+Population!AL20*Affluence!AL16 -> 4.37525961e+11 | R53: =+Population!AM20*Affluence!AM16 -> 4.652187039e+11 | S53: =+Population!AN20*Affluence!AN16 -> 5.060271906e+11 | T53: =+Population!AO20*Affluence!AO16 -> 5.512185776e+11 | U53: =+Population!AP20*Affluence!AP16 -> 5.908286846e+11 | V53: =+Population!AQ20*Affluence!AQ16 -> 6.249002432e+11 | W53: =+Population!AR20*Affluence!AR16 -> 5.891940823e+11 | X53: =+Population!AS20*Affluence!AS16 -> 6.524180817e+11 | Y53: =+Population!AT20*Affluence!AT16 -> 7.100349376e+11 | Z53: =+Population!AU20*Affluence!AU16 -> 7.421662871e+11 | AA53: =+Population!AV20*Affluence!AV16 -> 7.973273037e+11 | AB53: =+Population!AW20*Affluence!AW16 -> 8.207145644e+11 | AC53: =+Population!AX20*Affluence!AX16 -> 8.609283593e+11 | AD53: =+Population!AY20*Affluence!AY16 -> 8.947084972e+11 | AE53: =+Population!AZ20*Affluence!AZ16 -> 9.410198078e+11 | AF53: =+Population!BA20*Affluence!BA16 -> 9.924315412e+11 | AG53: =+Population!BB20*Affluence!BB16 -> 1.020509558e+12 | AH53: =+Population!BC20*Affluence!BC16 -> 1.027729852e+12 | AI53: =+Population!BD20*Affluence!BD16 -> 1.094499339e+12 | AJ53: =+Population!BE20*Affluence!BE16 -> 1.134795482e+12 | AK53: =+Population!BF20*Affluence!BF16 -> 1.160809334e+12 | AL53: =+Population!BG20*Affluence!BG16 -> 1.194428927e+12 | AM53: =+Population!BH20*Affluence!BH16 -> 1.234340143e+12 | AN53: =+Population!BI20*Affluence!BI16 -> 1.26658031e+12 | AO53: =+Population!BJ20*Affluence!BJ16 -> 1.317750155e+12 | AP53: =+Population!BK20*Affluence!BK16 -> 1.370987261e+12 | AQ53: =+Population!BL20*Affluence!BL16 -> 1.426375146e+12 | AR53: =+Population!BM20*Affluence!BM16 -> 1.484000702e+12 | AS53: =+Population!BN20*Affluence!BN16 -> 1.543954331e+12 | AT53: =+Population!BO20*Affluence!BO16 -> 1.606330086e+12 | AU53: =+Population!BP20*Affluence!BP16 -> 1.671225821e+12 | AV53: =+Population!BQ20*Affluence!BQ16 -> 1.738743344e+12 | AW53: =+Population!BR20*Affluence!BR16 -> 1.808988575e+12 | AX53: =+Population!BS20*Affluence!BS16 -> 1.882071714e+12 | AY53: =+Population!BT20*Affluence!BT16 -> 1.958107411e+12 | AZ53: =+Population!BU20*Affluence!BU16 -> 2.03721495e+12 | BA53: =+Population!BV20*Affluence!BV16 -> 2.119518434e+12 | BB53: =+Population!BW20*Affluence!BW16 -> 2.205146979e+12 | BC53: =+Population!BX20*Affluence!BX16 -> 2.294234917e+12 | BD53: =+Population!BY20*Affluence!BY16 -> 2.386922008e+12 | BE53: =+Population!BZ20*Affluence!BZ16 -> 2.483353657e+12 | BF53: =+Population!CA20*Affluence!CA16 -> 2.583681145e+12 | BG53: =+Population!CB20*Affluence!CB16 -> 2.688061863e+12 | BH53: =+Population!CC20*Affluence!CC16 -> 2.796659562e+12 | BI53: =+Population!CD20*Affluence!CD16 -> 2.909644608e+12 | BJ53: =+Population!CE20*Affluence!CE16 -> 3.027194251e+12 | BK53: =+Population!CF20*Affluence!CF16 -> 3.149492898e+12 | BL53: =+Population!CG20*Affluence!CG16 -> 3.276732411e+12 | BM53: =+Population!CH20*Affluence!CH16 -> 3.409112401e+12 | BN53: =+Population!CI20*Affluence!CI16 -> 3.546840542e+12 | BO53: =+Population!CJ20*Affluence!CJ16 -> 3.6901329e+12 | BP53: =+Population!CK20*Affluence!CK16 -> 3.839214269e+12 | BQ53: =+Population!CL20*Affluence!CL16 -> 3.994318525e+12 | BR53: =+Population!CM20*Affluence!CM16 -> 4.155688994e+12 | BS53: =+Population!CN20*Affluence!CN16 -> 4.323578829e+12 | BT53: =+Population!CO20*Affluence!CO16 -> 4.498251414e+12 | BU53: =+Population!CP20*Affluence!CP16 -> 4.679980771e+12 | BV53: =+Population!CQ20*Affluence!CQ16 -> 4.869051994e+12 | BW53: =+Population!CR20*Affluence!CR16 -> 5.065761695e+12 | BX53: =+Population!CS20*Affluence!CS16 -> 5.090837215e+12 | BY53: =+Population!CT20*Affluence!CT16 -> 5.116036859e+12 | BZ53: =+Population!CU20*Affluence!CU16 -> 5.141361242e+12 | CA53: =+Population!CV20*Affluence!CV16 -> 5.16681098e+12 | CB53: =+Population!CW20*Affluence!CW16 -> 5.192386694e+12 | CC53: =+Population!CX20*Affluence!CX16 -> 5.218089008e+12 | CD53: =+Population!CY20*Affluence!CY16 -> 5.243918549e+12 | CE53: =+Population!CZ20*Affluence!CZ16 -> 5.269875946e+12 | CF53: =+Population!DA20*Affluence!DA16 -> 5.295961832e+12 | CG53: =+Population!DB20*Affluence!DB16 -> 5.322176843e+12 | CH53: =+Population!DC20*Affluence!DC16 -> 5.348521618e+12 | CI53: =+Population!DD20*Affluence!DD16 -> 5.3749968e+12 | CJ53: =+Population!DE20*Affluence!DE16 -> 5.401603034e+12 | CK53: =+Population!DF20*Affluence!DF16 -> 5.428340969e+12 | CL53: =+Population!DG20*Affluence!DG16 -> 5.455211257e+12 | CM53: =+Population!DH20*Affluence!DH16 -> 5.482214553e+12 | CN53: =+Population!DI20*Affluence!DI16 -> 5.509351515e+12 | CO53: =+Population!DJ20*Affluence!DJ16 -> 5.536622805e+12 | CP53: =+Population!DK20*Affluence!DK16 -> 5.564029088e+12 | CQ53: =+Population!DL20*Affluence!DL16 -> 5.591571032e+12 | CR53: =+Population!DM20*Affluence!DM16 -> 5.619249308e+12 | CS53: =+Population!DN20*Affluence!DN16 -> 5.647064592e+12 | CT53: =+Population!DO20*Affluence!DO16 -> 5.675017562e+12 | CU53: =+Population!DP20*Affluence!DP16 -> 5.703108899e+12 | CV53: =+Population!DQ20*Affluence!DQ16 -> 5.731339288e+12 | CW53: =+Population!DR20*Affluence!DR16 -> 5.759709418e+12 | CX53: =+Population!DS20*Affluence!DS16 -> 5.788219979e+12 | CY53: =+Population!DT20*Affluence!DT16 -> 5.816871668e+12 | CZ53: =+Population!DU20*Affluence!DU16 -> 5.845665183e+12 | DA53: =+Population!DV20*Affluence!DV16 -> 5.874601225e+12 | DB53: =+Population!DW20*Affluence!DW16 -> 5.903680502e+12 | DC53: =+Population!DX20*Affluence!DX16 -> 5.93290372e+12 | DD53: =+Population!DY20*Affluence!DY16 -> 5.962271593e+12 | DE53: =+Population!DZ20*Affluence!DZ16 -> 5.991784838e+12 | DF53: =+Population!EA20*Affluence!EA16 -> 6.021444173e+12 | DG53: =+Population!EB20*Affluence!EB16 -> 6.051250321e+12 | DH53: =+Population!EC20*Affluence!EC16 -> 6.081204011e+12 | DI53: =+Population!ED20*Affluence!ED16 -> 6.11130597e+12 | DJ53: =+Population!EE20*Affluence!EE16 -> 6.141556935e+12 | DK53: =+Population!EF20*Affluence!EF16 -> 6.171957642e+12 | DL53: =+Population!EG20*Affluence!EG16 -> 6.202508832e+12 | DM53: =+Population!EH20*Affluence!EH16 -> 6.233211251e+12 | DN53: =+Population!EI20*Affluence!EI16 -> 6.264065646e+12 | DO53: =+Population!EJ20*Affluence!EJ16 -> 6.295072771e+12 | DP53: =+Population!EK20*Affluence!EK16 -> 6.326233382e+12 | DQ53: =+Population!EL20*Affluence!EL16 -> 6.357548237e+12 | DR53: =+Population!EM20*Affluence!EM16 -> 6.389018101e+12 | DS53: =+Population!EN20*Affluence!EN16 -> 6.42064374e+12 | DT53: =+Population!EO20*Affluence!EO16 -> 6.452425927e+12 | DU53: =+Population!EP20*Affluence!EP16 -> 6.484365435e+12
A54: USA | B54: 0.02 | C54: -0.005 | J54: USA | K54: =+((Population!CR21*Affluence!CR17)/(Population!BI21*Affluence!BI17))^(1/(2050-2015))-1 -> 0.0404 | L54: =+((Population!EP21*Affluence!EP17)/(Population!CS21*Affluence!CS17))^(1/(2100-2051))-1 -> 0.00495 | N54: USA | O54: =+Population!AJ21*Affluence!AJ17 -> 9.064413766e+12 | P54: =+Population!AK21*Affluence!AK17 -> 9.057698437e+12 | Q54: =+Population!AL21*Affluence!AL17 -> 9.379735498e+12 | R54: =+Population!AM21*Affluence!AM17 -> 9.637289596e+12 | S54: =+Population!AN21*Affluence!AN17 -> 1.002640899e+13 | T54: =+Population!AO21*Affluence!AO17 -> 1.029902462e+13 | U54: =+Population!AP21*Affluence!AP17 -> 1.068996336e+13 | V54: =+Population!AQ21*Affluence!AQ17 -> 1.116962485e+13 | W54: =+Population!AR21*Affluence!AR17 -> 1.166666321e+13 | X54: =+Population!AS21*Affluence!AS17 -> 1.221326967e+13 | Y54: =+Population!AT21*Affluence!AT17 -> 1.271305821e+13 | Z54: =+Population!AU21*Affluence!AU17 -> 1.283713535e+13 | AA54: =+Population!AV21*Affluence!AV17 -> 13066422980900 | AB54: =+Population!AW21*Affluence!AW17 -> 13433168199500 | AC54: =+Population!AX21*Affluence!AX17 -> 1.39417134e+13 | AD54: =+Population!AY21*Affluence!AY17 -> 14408093840400 | AE54: =+Population!AZ21*Affluence!AZ17 -> 14792303791800 | AF54: =+Population!BA21*Affluence!BA17 -> 15055395304800 | AG54: =+Population!BB21*Affluence!BB17 -> 15011490541400 | AH54: =+Population!BC21*Affluence!BC17 -> 14594842181900 | AI54: =+Population!BD21*Affluence!BD17 -> 14964372000000 | AJ54: =+Population!BE21*Affluence!BE17 -> 15204019634600 | AK54: =+Population!BF21*Affluence!BF17 -> 1.554216172e+13 | AL54: =+Population!BG21*Affluence!BG17 -> 1.58028553e+13 | AM54: =+Population!BH21*Affluence!BH17 -> 1.61774553e+13 | AN54: =+Population!BI21*Affluence!BI17 -> 1.659744599e+13 | AO54: =+Population!BJ21*Affluence!BJ17 -> 1.72679828e+13 | AP54: =+Population!BK21*Affluence!BK17 -> 1.796560931e+13 | AQ54: =+Population!BL21*Affluence!BL17 -> 1.869141992e+13 | AR54: =+Population!BM21*Affluence!BM17 -> 1.944655329e+13 | AS54: =+Population!BN21*Affluence!BN17 -> 2.023219404e+13 | AT54: =+Population!BO21*Affluence!BO17 -> 2.104957468e+13 | AU54: =+Population!BP21*Affluence!BP17 -> 2.18999775e+13 | AV54: =+Population!BQ21*Affluence!BQ17 -> 2.278473659e+13 | AW54: =+Population!BR21*Affluence!BR17 -> 2.370523995e+13 | AX54: =+Population!BS21*Affluence!BS17 -> 2.466293164e+13 | AY54: =+Population!BT21*Affluence!BT17 -> 2.565931408e+13 | AZ54: =+Population!BU21*Affluence!BU17 -> 2.669595037e+13 | BA54: =+Population!BV21*Affluence!BV17 -> 2.777446676e+13 | BB54: =+Population!BW21*Affluence!BW17 -> 2.889655522e+13 | BC54: =+Population!BX21*Affluence!BX17 -> 3.006397605e+13 | BD54: =+Population!BY21*Affluence!BY17 -> 3.127856069e+13 | BE54: =+Population!BZ21*Affluence!BZ17 -> 3.254221454e+13 | BF54: =+Population!CA21*Affluence!CA17 -> 3.385692e+13 | BG54: =+Population!CB21*Affluence!CB17 -> 3.522473957e+13 | BH54: =+Population!CC21*Affluence!CC17 -> 3.664781905e+13 | BI54: =+Population!CD21*Affluence!CD17 -> 3.812839094e+13 | BJ54: =+Population!CE21*Affluence!CE17 -> 3.966877794e+13 | BK54: =+Population!CF21*Affluence!CF17 -> 4.127139656e+13 | BL54: =+Population!CG21*Affluence!CG17 -> 4.293876098e+13 | BM54: =+Population!CH21*Affluence!CH17 -> 4.467348693e+13 | BN54: =+Population!CI21*Affluence!CI17 -> 4.64782958e+13 | BO54: =+Population!CJ21*Affluence!CJ17 -> 4.835601895e+13 | BP54: =+Population!CK21*Affluence!CK17 -> 5.030960212e+13 | BQ54: =+Population!CL21*Affluence!CL17 -> 5.234211004e+13 | BR54: =+Population!CM21*Affluence!CM17 -> 5.445673129e+13 | BS54: =+Population!CN21*Affluence!CN17 -> 5.665678323e+13 | BT54: =+Population!CO21*Affluence!CO17 -> 5.894571727e+13 | BU54: =+Population!CP21*Affluence!CP17 -> 6.132712425e+13 | BV54: =+Population!CQ21*Affluence!CQ17 -> 6.380474007e+13 | BW54: =+Population!CR21*Affluence!CR17 -> 6.638245157e+13 | BX54: =+Population!CS21*Affluence!CS17 -> 6.671104471e+13 | BY54: =+Population!CT21*Affluence!CT17 -> 6.704126438e+13 | BZ54: =+Population!CU21*Affluence!CU17 -> 6.737311864e+13 | CA54: =+Population!CV21*Affluence!CV17 -> 6.770661557e+13 | CB54: =+Population!CW21*Affluence!CW17 -> 6.804176332e+13 | CC54: =+Population!CX21*Affluence!CX17 -> 6.837857005e+13 | CD54: =+Population!CY21*Affluence!CY17 -> 6.871704397e+13 | CE54: =+Population!CZ21*Affluence!CZ17 -> 6.905719334e+13 | CF54: =+Population!DA21*Affluence!DA17 -> 6.939902645e+13 | CG54: =+Population!DB21*Affluence!DB17 -> 6.974255163e+13 | CH54: =+Population!DC21*Affluence!DC17 -> 7.008777726e+13 | CI54: =+Population!DD21*Affluence!DD17 -> 7.043471175e+13 | CJ54: =+Population!DE21*Affluence!DE17 -> 7.078336358e+13 | CK54: =+Population!DF21*Affluence!DF17 -> 7.113374123e+13 | CL54: =+Population!DG21*Affluence!DG17 -> 7.148585325e+13 | CM54: =+Population!DH21*Affluence!DH17 -> 7.183970822e+13 | CN54: =+Population!DI21*Affluence!DI17 -> 7.219531478e+13 | CO54: =+Population!DJ21*Affluence!DJ17 -> 7.255268158e+13 | CP54: =+Population!DK21*Affluence!DK17 -> 7.291181736e+13 | CQ54: =+Population!DL21*Affluence!DL17 -> 7.327273085e+13 | CR54: =+Population!DM21*Affluence!DM17 -> 7.363543087e+13 | CS54: =+Population!DN21*Affluence!DN17 -> 7.399992625e+13 | CT54: =+Population!DO21*Affluence!DO17 -> 7.436622589e+13 | CU54: =+Population!DP21*Affluence!DP17 -> 7.473433871e+13 | CV54: =+Population!DQ21*Affluence!DQ17 -> 7.510427368e+13 | CW54: =+Population!DR21*Affluence!DR17 -> 7.547603984e+13 | CX54: =+Population!DS21*Affluence!DS17 -> 7.584964624e+13 | CY54: =+Population!DT21*Affluence!DT17 -> 7.622510198e+13 | CZ54: =+Population!DU21*Affluence!DU17 -> 7.660241624e+13 | DA54: =+Population!DV21*Affluence!DV17 -> 7.69815982e+13 | DB54: =+Population!DW21*Affluence!DW17 -> 7.736265711e+13 | DC54: =+Population!DX21*Affluence!DX17 -> 7.774560226e+13 | DD54: =+Population!DY21*Affluence!DY17 -> 7.813044299e+13 | DE54: =+Population!DZ21*Affluence!DZ17 -> 7.851718869e+13 | DF54: =+Population!EA21*Affluence!EA17 -> 7.890584877e+13 | DG54: =+Population!EB21*Affluence!EB17 -> 7.929643272e+13 | DH54: =+Population!EC21*Affluence!EC17 -> 7.968895006e+13 | DI54: =+Population!ED21*Affluence!ED17 -> 8.008341037e+13 | DJ54: =+Population!EE21*Affluence!EE17 -> 8.047982325e+13 | DK54: =+Population!EF21*Affluence!EF17 -> 8.087819837e+13 | DL54: =+Population!EG21*Affluence!EG17 -> 8.127854546e+13 | DM54: =+Population!EH21*Affluence!EH17 -> 8.168087426e+13 | DN54: =+Population!EI21*Affluence!EI17 -> 82085194583398 | DO54: =+Population!EJ21*Affluence!EJ17 -> 8.24915163e+13 | DP54: =+Population!EK21*Affluence!EK17 -> 8.28998493e+13 | DQ54: =+Population!EL21*Affluence!EL17 -> 8.331020356e+13 | DR54: =+Population!EM21*Affluence!EM17 -> 8.372258906e+13 | DS54: =+Population!EN21*Affluence!EN17 -> 8.413701588e+13 | DT54: =+Population!EO21*Affluence!EO17 -> 8.455349411e+13 | DU54: =+Population!EP21*Affluence!EP17 -> 8.49720339e+13
J55: WORLD | K55: =+((Population!CR22*Affluence!CR18)/(Population!BI22*Affluence!BI18))^(1/(2050-2015))-1 -> 0.0404 | L55: =+((Population!EP22*Affluence!EP18)/(Population!CS22*Affluence!CS18))^(1/(2100-2051))-1 -> 0.00495 | N55: WORLD | O55: =+Population!AJ22*Affluence!AJ18 -> 3.825995676e+13 | P55: =+Population!AK22*Affluence!AK18 -> 3.856013614e+13 | Q55: =+Population!AL22*Affluence!AL18 -> 3.915022437e+13 | R55: =+Population!AM22*Affluence!AM18 -> 3.976567065e+13 | S55: =+Population!AN22*Affluence!AN18 -> 4.093694462e+13 | T55: =+Population!AO22*Affluence!AO18 -> 4.189856212e+13 | U55: =+Population!AP22*Affluence!AP18 -> 4.326763524e+13 | V55: =+Population!AQ22*Affluence!AQ18 -> 4.48563771e+13 | W55: =+Population!AR22*Affluence!AR18 -> 4.597545248e+13 | X55: =+Population!AS22*Affluence!AS18 -> 4.751310042e+13 | Y55: =+Population!AT22*Affluence!AT18 -> 4.963143786e+13 | Z55: =+Population!AU22*Affluence!AU18 -> 5.061696252e+13 | AA55: =+Population!AV22*Affluence!AV18 -> 5.16753955e+13 | AB55: =+Population!AW22*Affluence!AW18 -> 5.316189579e+13 | AC55: =+Population!AX22*Affluence!AX18 -> 5.552868492e+13 | AD55: =+Population!AY22*Affluence!AY18 -> 5.766401467e+13 | AE55: =+Population!AZ22*Affluence!AZ18 -> 6.016818567e+13 | AF55: =+Population!BA22*Affluence!BA18 -> 6.272922793e+13 | AG55: =+Population!BB22*Affluence!BB18 -> 6.388750712e+13 | AH55: =+Population!BC22*Affluence!BC18 -> 6.279803245e+13 | AI55: =+Population!BD22*Affluence!BD18 -> 6.550052873e+13 | AJ55: =+Population!BE22*Affluence!BE18 -> 6.752780248e+13 | AK55: =+Population!BF22*Affluence!BF18 -> 6.914263549e+13 | AL55: =+Population!BG22*Affluence!BG18 -> 7.088581311e+13 | AM55: =+Population!BH22*Affluence!BH18 -> 7.273420841e+13 | AN55: =+Population!BI22*Affluence!BI18 -> 7.51845869e+13 | AO55: =+Population!BJ22*Affluence!BJ18 -> 7.822204421e+13 | AP55: =+Population!BK22*Affluence!BK18 -> 8.13822148e+13 | AQ55: =+Population!BL22*Affluence!BL18 -> 8.467005628e+13 | AR55: =+Population!BM22*Affluence!BM18 -> 8.809072655e+13 | AS55: =+Population!BN22*Affluence!BN18 -> 9.16495919e+13 | AT55: =+Population!BO22*Affluence!BO18 -> 9.535223542e+13 | AU55: =+Population!BP22*Affluence!BP18 -> 9.920446573e+13 | AV55: =+Population!BQ22*Affluence!BQ18 -> 1.032123261e+14 | AW55: =+Population!BR22*Affluence!BR18 -> 1.073821041e+14 | AX55: =+Population!BS22*Affluence!BS18 -> 1.117203411e+14 | AY55: =+Population!BT22*Affluence!BT18 -> 1.162338429e+14 | AZ55: =+Population!BU22*Affluence!BU18 -> 1.209296902e+14 | BA55: =+Population!BV22*Affluence!BV18 -> 1.258152496e+14 | BB55: =+Population!BW22*Affluence!BW18 -> 1.308981857e+14 | BC55: =+Population!BX22*Affluence!BX18 -> 1.361864724e+14 | BD55: =+Population!BY22*Affluence!BY18 -> 1.416884059e+14 | BE55: =+Population!BZ22*Affluence!BZ18 -> 1.474126175e+14 | BF55: =+Population!CA22*Affluence!CA18 -> 1.533680873e+14 | BG55: =+Population!CB22*Affluence!CB18 -> 1.59564158e+14 | BH55: =+Population!CC22*Affluence!CC18 -> 1.6601055e+14 | BI55: =+Population!CD22*Affluence!CD18 -> 1.727173762e+14 | BJ55: =+Population!CE22*Affluence!CE18 -> 1.796951582e+14 | BK55: =+Population!CF22*Affluence!CF18 -> 1.869548426e+14 | BL55: =+Population!CG22*Affluence!CG18 -> 1.945078182e+14 | BM55: =+Population!CH22*Affluence!CH18 -> 2.023659341e+14 | BN55: =+Population!CI22*Affluence!CI18 -> 2.105415178e+14 | BO55: =+Population!CJ22*Affluence!CJ18 -> 2.190473951e+14 | BP55: =+Population!CK22*Affluence!CK18 -> 2.278969099e+14 | BQ55: =+Population!CL22*Affluence!CL18 -> 2.371039451e+14 | BR55: =+Population!CM22*Affluence!CM18 -> 2.466829444e+14 | BS55: =+Population!CN22*Affluence!CN18 -> 2.566489354e+14 | BT55: =+Population!CO22*Affluence!CO18 -> 2.670175524e+14 | BU55: =+Population!CP22*Affluence!CP18 -> 2.778050615e+14 | BV55: =+Population!CQ22*Affluence!CQ18 -> 2.89028386e+14 | BW55: =+Population!CR22*Affluence!CR18 -> 3.007051328e+14 | BX55: =+Population!CS22*Affluence!CS18 -> 302193623183084 | BY55: =+Population!CT22*Affluence!CT18 -> 3.036894816e+14 | BZ55: =+Population!CU22*Affluence!CU18 -> 3.051927446e+14 | CA55: =+Population!CV22*Affluence!CV18 -> 3.067034486e+14 | CB55: =+Population!CW22*Affluence!CW18 -> 3.082216307e+14 | CC55: =+Population!CX22*Affluence!CX18 -> 3.097473278e+14 | CD55: =+Population!CY22*Affluence!CY18 -> 3.112805771e+14 | CE55: =+Population!CZ22*Affluence!CZ18 -> 3.128214159e+14 | CF55: =+Population!DA22*Affluence!DA18 -> 3.143698819e+14 | CG55: =+Population!DB22*Affluence!DB18 -> 3.159260128e+14 | CH55: =+Population!DC22*Affluence!DC18 -> 3.174898466e+14 | CI55: =+Population!DD22*Affluence!DD18 -> 319061421337485 | CJ55: =+Population!DE22*Affluence!DE18 -> 3.206407754e+14 | CK55: =+Population!DF22*Affluence!DF18 -> 3.222279472e+14 | CL55: =+Population!DG22*Affluence!DG18 -> 3.238229755e+14 | CM55: =+Population!DH22*Affluence!DH18 -> 3.254258993e+14 | CN55: =+Population!DI22*Affluence!DI18 -> 3.270367575e+14 | CO55: =+Population!DJ22*Affluence!DJ18 -> 3.286555894e+14 | CP55: =+Population!DK22*Affluence!DK18 -> 3.302824346e+14 | CQ55: =+Population!DL22*Affluence!DL18 -> 3.319173326e+14 | CR55: =+Population!DM22*Affluence!DM18 -> 3.335603234e+14 | CS55: =+Population!DN22*Affluence!DN18 -> 3.35211447e+14 | CT55: =+Population!DO22*Affluence!DO18 -> 3.368707437e+14 | CU55: =+Population!DP22*Affluence!DP18 -> 338538253890670 | CV55: =+Population!DQ22*Affluence!DQ18 -> 3.402140182e+14 | CW55: =+Population!DR22*Affluence!DR18 -> 3.418980776e+14 | CX55: =+Population!DS22*Affluence!DS18 -> 3.435904731e+14 | CY55: =+Population!DT22*Affluence!DT18 -> 3.45291246e+14 | CZ55: =+Population!DU22*Affluence!DU18 -> 3.470004376e+14 | DA55: =+Population!DV22*Affluence!DV18 -> 3.487180898e+14 | DB55: =+Population!DW22*Affluence!DW18 -> 3.504442443e+14 | DC55: =+Population!DX22*Affluence!DX18 -> 3.521789434e+14 | DD55: =+Population!DY22*Affluence!DY18 -> 3.539222291e+14 | DE55: =+Population!DZ22*Affluence!DZ18 -> 3.556741442e+14 | DF55: =+Population!EA22*Affluence!EA18 -> 3.574347312e+14 | DG55: =+Population!EB22*Affluence!EB18 -> 3.592040331e+14 | DH55: =+Population!EC22*Affluence!EC18 -> 3.609820931e+14 | DI55: =+Population!ED22*Affluence!ED18 -> 3.627689544e+14 | DJ55: =+Population!EE22*Affluence!EE18 -> 364564660737145 | DK55: =+Population!EF22*Affluence!EF18 -> 3.663692558e+14 | DL55: =+Population!EG22*Affluence!EG18 -> 3.681827836e+14 | DM55: =+Population!EH22*Affluence!EH18 -> 3.700052884e+14 | DN55: =+Population!EI22*Affluence!EI18 -> 3.718368146e+14 | DO55: =+Population!EJ22*Affluence!EJ18 -> 3.736774068e+14 | DP55: =+Population!EK22*Affluence!EK18 -> 3.7552711e+14 | DQ55: =+Population!EL22*Affluence!EL18 -> 3.773859692e+14 | DR55: =+Population!EM22*Affluence!EM18 -> 3.792540297e+14 | DS55: =+Population!EN22*Affluence!EN18 -> 381131337165358 | DT55: =+Population!EO22*Affluence!EO18 -> 3.830179373e+14 | DU55: =+Population!EP22*Affluence!EP18 -> 3.849138761e+14
A60: Affluence Annual Growth rate | B60: Manual Scenario
B61: 2015-2050 | C61: 2051-2100
B62: A(y+1) = A(y) * (1+a)
B63: a (% increase) | C63: a (% increase)
A64: AFR | B64: 0.02 | C64: 0.01
A65: AUS | B65: 0.02 | C65: 0.01
A66: CAC | B66: 0.02 | C66: 0.01
A67: CAN | B67: 0.02 | C67: 0.01
A68: CHI | B68: 0.02 | C68: 0.01
A69: CSA | B69: 0.02 | C69: 0.01
A70: EUR | B70: 0.02 | C70: 0.01
A71: IND | B71: 0.02 | C71: 0.01
A72: JPN | B72: 0.02 | C72: 0.01
A73: MEA | B73: 0.02 | C73: 0.01
A74: MEX | B74: 0.02 | C74: 0.01
A75: ODA | B75: 0.02 | C75: 0.01
A76: OEE | B76: 0.02 | C76: 0.01
A77: RUS | B77: 0.02 | C77: 0.01
A78: SKO | B78: 0.02 | C78: 0.01
A79: USA | B79: 0.02 | C79: 0.01
A83: Technology increase factor | B83: Manual Scenario
B84: T(i)=T(2015)*(1+a*exp((year(i)-2013)/b)) | E84: T(i)=T(2015)*(1+a*exp((year(i)-2013)/b)) | H84: T(i)=T(2015)*(1+a*exp((year(i)-2013)/b)) | K84: T(i)=T(2015)*(1+a*exp((year(i)-2013)/b)) | N84: T(i)=T(2015)*(1+a*exp((year(i)-2013)/b)) | Q84: T(i)=T(2015)*(1+a*exp((year(i)-2013)/b)) | T84: T(i)=T(2015)*(1+a*exp((year(i)-2013)/b)) | W84: T(i)=T(2015)*(1+a*exp((year(i)-2013)/b))
B85: Energy (energy, manufacturing and construction industries and fugitive emissions) | E85: Transport | H85: Residential, commercial, institutional and AFF | K85: Industrial processes and product use | N85: Waste | Q85: Other sources | T85: Agriculture total | W85: Land use sources
B86: a (% increase) | C86: Transition time (years) | D86: b | E86: a (% increase) | F86: Transition time (years) | G86: b | H86: a (% increase) | I86: Transition time (years) | J86: b | K86: a (% increase) | L86: Transition time (years) | M86: b | N86: a (% increase) | O86: Transition time (years) | P86: b | Q86: a (% increase) | R86: Transition time (years) | S86: b | T86: a (% increase) | U86: Transition time (years) | V86: b | W86: a (% increase) | X86: Transition time (years) | Y86: b
A87: AFR | B87: -0.75 | C87: 50 | D87: =+C87/5 -> 10 | E87: -0.75 | F87: 50 | G87: =+F87/5 -> 10 | H87: -0.75 | I87: 50 | J87: =+I87/5 -> 10 | K87: -0.75 | L87: 50 | M87: =+L87/5 -> 10 | N87: -0.75 | O87: 50 | P87: =+O87/5 -> 10 | Q87: -0.75 | R87: 50 | S87: =+R87/5 -> 10 | T87: -0.75 | U87: 50 | V87: =+U87/5 -> 10 | W87: -0.75 | X87: 50 | Y87: =+X87/5 -> 10
A88: AUS | B88: -0.75 | C88: 50 | D88: =+C88/5 -> 10 | E88: -0.75 | F88: 50 | G88: =+F88/5 -> 10 | H88: -0.75 | I88: 50 | J88: =+I88/5 -> 10 | K88: -0.75 | L88: 50 | M88: =+L88/5 -> 10 | N88: -0.75 | O88: 50 | P88: =+O88/5 -> 10 | Q88: -0.75 | R88: 50 | S88: =+R88/5 -> 10 | T88: -0.75 | U88: 50 | V88: =+U88/5 -> 10 | W88: -0.75 | X88: 50 | Y88: =+X88/5 -> 10
A89: CAC | B89: -0.75 | C89: 50 | D89: 10 | E89: -0.75 | F89: 50 | G89: 10 | H89: -0.75 | I89: 50 | J89: 10 | K89: -0.75 | L89: 50 | M89: 10 | N89: -0.75 | O89: 50 | P89: 10 | Q89: -0.75 | R89: 50 | S89: 10 | T89: -0.75 | U89: 50 | V89: 10 | W89: -0.75 | X89: 50 | Y89: 10
A90: CAN | B90: -0.75 | C90: 50 | D90: 10 | E90: -0.75 | F90: 50 | G90: 10 | H90: -0.75 | I90: 50 | J90: 10 | K90: -0.75 | L90: 50 | M90: 10 | N90: -0.75 | O90: 50 | P90: 10 | Q90: -0.75 | R90: 50 | S90: 10 | T90: -0.75 | U90: 50 | V90: 10 | W90: -0.75 | X90: 50 | Y90: 10
A91: CHI | B91: -0.75 | C91: 50 | D91: 10 | E91: -0.75 | F91: 50 | G91: 10 | H91: -0.75 | I91: 50 | J91: 10 | K91: -0.75 | L91: 50 | M91: 10 | N91: -0.75 | O91: 50 | P91: 10 | Q91: -0.75 | R91: 50 | S91: 10 | T91: -0.75 | U91: 50 | V91: 10 | W91: -0.75 | X91: 50 | Y91: 10
A92: CSA | B92: -0.75 | C92: 50 | D92: 10 | E92: -0.75 | F92: 50 | G92: 10 | H92: -0.75 | I92: 50 | J92: 10 | K92: -0.75 | L92: 50 | M92: 10 | N92: -0.75 | O92: 50 | P92: 10 | Q92: -0.75 | R92: 50 | S92: 10 | T92: -0.75 | U92: 50 | V92: 10 | W92: -0.75 | X92: 50 | Y92: 10
A93: EUR | B93: -0.75 | C93: 50 | D93: 10 | E93: -0.75 | F93: 50 | G93: 10 | H93: -0.75 | I93: 50 | J93: 10 | K93: -0.75 | L93: 50 | M93: 10 | N93: -0.75 | O93: 50 | P93: 10 | Q93: -0.75 | R93: 50 | S93: 10 | T93: -0.75 | U93: 50 | V93: 10 | W93: -0.75 | X93: 50 | Y93: 10
A94: IND | B94: -0.75 | C94: 50 | D94: 10 | E94: -0.75 | F94: 50 | G94: 10 | H94: -0.75 | I94: 50 | J94: 10 | K94: -0.75 | L94: 50 | M94: 10 | N94: -0.75 | O94: 50 | P94: 10 | Q94: -0.75 | R94: 50 | S94: 10 | T94: -0.75 | U94: 50 | V94: 10 | W94: -0.75 | X94: 50 | Y94: 10
A95: JPN | B95: -0.75 | C95: 50 | D95: 10 | E95: -0.75 | F95: 50 | G95: 10 | H95: -0.75 | I95: 50 | J95: 10 | K95: -0.75 | L95: 50 | M95: 10 | N95: -0.75 | O95: 50 | P95: 10 | Q95: -0.75 | R95: 50 | S95: 10 | T95: -0.75 | U95: 50 | V95: 10 | W95: -0.75 | X95: 50 | Y95: 10
A96: MEA | B96: -0.75 | C96: 50 | D96: 10 | E96: -0.75 | F96: 50 | G96: 10 | H96: -0.75 | I96: 50 | J96: 10 | K96: -0.75 | L96: 50 | M96: 10 | N96: -0.75 | O96: 50 | P96: 10 | Q96: -0.75 | R96: 50 | S96: 10 | T96: -0.75 | U96: 50 | V96: 10 | W96: -0.75 | X96: 50 | Y96: 10
A97: MEX | B97: -0.75 | C97: 50 | D97: 10 | E97: -0.75 | F97: 50 | G97: 10 | H97: -0.75 | I97: 50 | J97: 10 | K97: -0.75 | L97: 50 | M97: 10 | N97: -0.75 | O97: 50 | P97: 10 | Q97: -0.75 | R97: 50 | S97: 10 | T97: -0.75 | U97: 50 | V97: 10 | W97: -0.75 | X97: 50 | Y97: 10
A98: ODA | B98: -0.75 | C98: 50 | D98: 10 | E98: -0.75 | F98: 50 | G98: 10 | H98: -0.75 | I98: 50 | J98: 10 | K98: -0.75 | L98: 50 | M98: 10 | N98: -0.75 | O98: 50 | P98: 10 | Q98: -0.75 | R98: 50 | S98: 10 | T98: -0.75 | U98: 50 | V98: 10 | W98: -0.75 | X98: 50 | Y98: 10
A99: OEE | B99: -0.75 | C99: 50 | D99: 10 | E99: -0.75 | F99: 50 | G99: 10 | H99: -0.75 | I99: 50 | J99: 10 | K99: -0.75 | L99: 50 | M99: 10 | N99: -0.75 | O99: 50 | P99: 10 | Q99: -0.75 | R99: 50 | S99: 10 | T99: -0.75 | U99: 50 | V99: 10 | W99: -0.75 | X99: 50 | Y99: 10
A100: RUS | B100: -0.75 | C100: 50 | D100: 10 | E100: -0.75 | F100: 50 | G100: 10 | H100: -0.75 | I100: 50 | J100: 10 | K100: -0.75 | L100: 50 | M100: 10 | N100: -0.75 | O100: 50 | P100: 10 | Q100: -0.75 | R100: 50 | S100: 10 | T100: -0.75 | U100: 50 | V100: 10 | W100: -0.75 | X100: 50 | Y100: 10
A101: SKO | B101: -0.75 | C101: 50 | D101: 10 | E101: -0.75 | F101: 50 | G101: 10 | H101: -0.75 | I101: 50 | J101: 10 | K101: -0.75 | L101: 50 | M101: 10 | N101: -0.75 | O101: 50 | P101: 10 | Q101: -0.75 | R101: 50 | S101: 10 | T101: -0.75 | U101: 50 | V101: 10 | W101: -0.75 | X101: 50 | Y101: 10
A102: USA | B102: -0.75 | C102: 50 | D102: 10 | E102: -0.75 | F102: 50 | G102: 10 | H102: -0.75 | I102: 50 | J102: 10 | K102: -0.75 | L102: 50 | M102: 10 | N102: -0.75 | O102: 50 | P102: 10 | Q102: -0.75 | R102: 50 | S102: 10 | T102: -0.75 | U102: 50 | V102: 10 | W102: -0.75 | X102: 50 | Y102: 10
A104: Diet change | B104: Chosen Scenario | H104: Manual Diet | K104: USA Diet | M104: IND diet | O104: No change
B105: x= 1+(CO2 diet ratio-1) * (1 - exp(-(y(x)-y(0))/b))) | H105: x= 1+(CO2 diet ratio-1) * (1 - exp(-(y(x)-y(0))/b))) | K105: x= 1+(CO2 diet ratio-1) * (1 - exp(-(y(x)-y(0))/b))) | M105: x= 1+(CO2 diet ratio-1) * (1 - exp(-(y(x)-y(0))/b))) | O105: x= 1+(CO2 diet ratio-1) * (1 - exp(-(y(x)-y(0))/b)))
B106: New diet | C106: Cropland consumption ratio | D106: Grizland consumption ratio | E106: Fish consumption ratio | F106: CO2 Diet new/CO2 diet old | G106: b | H106: New Diet | I106: Transition time (years) | J106: b | K106: New Diet | L106: b | M106: New Diet | N106: b | O106: New Diet | P106: b
A107: AFR | B107: =+IF('Input and Results'!$C$7=Diets!$B$7,H107,IF('Input and Results'!$C$7=Diets!$B$8,K107,IF('Input and Results'!$C$7=Diets!$B$9,M107,IF('Input and Results'!$C$7=Diets!$B$10,O107,"NO SCENARIO")))) -> AUS | C107: =+VLOOKUP(B107,Diets!$X$74:$AA$95,2,FALSE)/VLOOKUP(A107,Diets!$X$74:$AA$95,2,FALSE) -> 1.788329807 | D107: =+VLOOKUP(B107,Diets!$X$74:$AA$95,3,FALSE)/VLOOKUP(A107,Diets!$X$74:$AA$95,3,FALSE) -> 4.728986546 | E107: =+VLOOKUP(B107,Diets!$X$74:$AA$95,4,FALSE)/VLOOKUP(A107,Diets!$X$74:$AA$95,4,FALSE) -> 1.928495302 | F107: =+VLOOKUP(B107,Diets!$A$76:$K$96,11,FALSE)/VLOOKUP(A107,Diets!$A$76:$K$96,11,FALSE) -> 1.610357191 | G107: =+IF('Input and Results'!$C$7=Diets!$B$7,J107,IF('Input and Results'!$C$7=Diets!$B$8,L107,IF('Input and Results'!$C$7=Diets!$B$9,N107,IF('Input and Results'!$C$7=Diets!$B$10,P107,"NO SCENARIO")))) -> 2 | H107: AUS | I107: 10 | J107: =+I107/5 -> 2 | K107: USA | L107: 5 | M107: IND | N107: 5 | O107: AFR | P107: 5
A108: AUS | B108: =+IF('Input and Results'!$C$7=Diets!$B$7,H108,IF('Input and Results'!$C$7=Diets!$B$8,K108,IF('Input and Results'!$C$7=Diets!$B$9,M108,IF('Input and Results'!$C$7=Diets!$B$10,O108,"NO SCENARIO")))) -> AUS | C108: =+VLOOKUP(B108,Diets!$X$74:$AA$95,2,FALSE)/VLOOKUP(A108,Diets!$X$74:$AA$95,2,FALSE) -> 1 | D108: =+VLOOKUP(B108,Diets!$X$74:$AA$95,3,FALSE)/VLOOKUP(A108,Diets!$X$74:$AA$95,3,FALSE) -> 1 | E108: =+VLOOKUP(B108,Diets!$X$74:$AA$95,4,FALSE)/VLOOKUP(A108,Diets!$X$74:$AA$95,4,FALSE) -> 1 | F108: =+VLOOKUP(B108,Diets!$A$76:$K$96,11,FALSE)/VLOOKUP(A108,Diets!$A$76:$K$96,11,FALSE) -> 1 | G108: =+IF('Input and Results'!$C$7=Diets!$B$7,J108,IF('Input and Results'!$C$7=Diets!$B$8,L108,IF('Input and Results'!$C$7=Diets!$B$9,N108,IF('Input and Results'!$C$7=Diets!$B$10,P108,"NO SCENARIO")))) -> 2 | H108: AUS | I108: 10 | J108: =+I108/5 -> 2 | K108: USA | L108: 5 | M108: IND | N108: 5 | O108: AUS | P108: 5
A109: CAC | B109: =+IF('Input and Results'!$C$7=Diets!$B$7,H109,IF('Input and Results'!$C$7=Diets!$B$8,K109,IF('Input and Results'!$C$7=Diets!$B$9,M109,IF('Input and Results'!$C$7=Diets!$B$10,O109,"NO SCENARIO")))) -> CHI | C109: =+VLOOKUP(B109,Diets!$X$74:$AA$95,2,FALSE)/VLOOKUP(A109,Diets!$X$74:$AA$95,2,FALSE) -> 1.25053907 | D109: =+VLOOKUP(B109,Diets!$X$74:$AA$95,3,FALSE)/VLOOKUP(A109,Diets!$X$74:$AA$95,3,FALSE) -> 0.2606003247 | E109: =+VLOOKUP(B109,Diets!$X$74:$AA$95,4,FALSE)/VLOOKUP(A109,Diets!$X$74:$AA$95,4,FALSE) -> 8.007125655 | F109: =+VLOOKUP(B109,Diets!$A$76:$K$96,11,FALSE)/VLOOKUP(A109,Diets!$A$76:$K$96,11,FALSE) -> 0.9148074561 | G109: =+IF('Input and Results'!$C$7=Diets!$B$7,J109,IF('Input and Results'!$C$7=Diets!$B$8,L109,IF('Input and Results'!$C$7=Diets!$B$9,N109,IF('Input and Results'!$C$7=Diets!$B$10,P109,"NO SCENARIO")))) -> 2 | H109: CHI | I109: 10 | J109: 2 | K109: USA | L109: 5 | M109: IND | N109: 5 | O109: CAC | P109: 5
A110: CAN | B110: =+IF('Input and Results'!$C$7=Diets!$B$7,H110,IF('Input and Results'!$C$7=Diets!$B$8,K110,IF('Input and Results'!$C$7=Diets!$B$9,M110,IF('Input and Results'!$C$7=Diets!$B$10,O110,"NO SCENARIO")))) -> Vegan diet | C110: =+VLOOKUP(B110,Diets!$X$74:$AA$95,2,FALSE)/VLOOKUP(A110,Diets!$X$74:$AA$95,2,FALSE) -> 0.4427318835 | D110: =+VLOOKUP(B110,Diets!$X$74:$AA$95,3,FALSE)/VLOOKUP(A110,Diets!$X$74:$AA$95,3,FALSE) -> 0.1796714119 | E110: =+VLOOKUP(B110,Diets!$X$74:$AA$95,4,FALSE)/VLOOKUP(A110,Diets!$X$74:$AA$95,4,FALSE) -> 0 | F110: =+VLOOKUP(B110,Diets!$A$76:$K$96,11,FALSE)/VLOOKUP(A110,Diets!$A$76:$K$96,11,FALSE) -> 0.4583832334 | G110: =+IF('Input and Results'!$C$7=Diets!$B$7,J110,IF('Input and Results'!$C$7=Diets!$B$8,L110,IF('Input and Results'!$C$7=Diets!$B$9,N110,IF('Input and Results'!$C$7=Diets!$B$10,P110,"NO SCENARIO")))) -> 2 | H110: Vegan diet | I110: 10 | J110: 2 | K110: USA | L110: 5 | M110: IND | N110: 5 | O110: CAN | P110: 5
A111: CHI | B111: =+IF('Input and Results'!$C$7=Diets!$B$7,H111,IF('Input and Results'!$C$7=Diets!$B$8,K111,IF('Input and Results'!$C$7=Diets!$B$9,M111,IF('Input and Results'!$C$7=Diets!$B$10,O111,"NO SCENARIO")))) -> Vegan diet | C111: =+VLOOKUP(B111,Diets!$X$74:$AA$95,2,FALSE)/VLOOKUP(A111,Diets!$X$74:$AA$95,2,FALSE) -> 0.5624687647 | D111: =+VLOOKUP(B111,Diets!$X$74:$AA$95,3,FALSE)/VLOOKUP(A111,Diets!$X$74:$AA$95,3,FALSE) -> 0.4880235814 | E111: =+VLOOKUP(B111,Diets!$X$74:$AA$95,4,FALSE)/VLOOKUP(A111,Diets!$X$74:$AA$95,4,FALSE) -> 0 | F111: =+VLOOKUP(B111,Diets!$A$76:$K$96,11,FALSE)/VLOOKUP(A111,Diets!$A$76:$K$96,11,FALSE) -> 0.5541965425 | G111: =+IF('Input and Results'!$C$7=Diets!$B$7,J111,IF('Input and Results'!$C$7=Diets!$B$8,L111,IF('Input and Results'!$C$7=Diets!$B$9,N111,IF('Input and Results'!$C$7=Diets!$B$10,P111,"NO SCENARIO")))) -> 2 | H111: Vegan diet | I111: 10 | J111: 2 | K111: USA | L111: 5 | M111: IND | N111: 5 | O111: CHI | P111: 5
A112: CSA | B112: =+IF('Input and Results'!$C$7=Diets!$B$7,H112,IF('Input and Results'!$C$7=Diets!$B$8,K112,IF('Input and Results'!$C$7=Diets!$B$9,M112,IF('Input and Results'!$C$7=Diets!$B$10,O112,"NO SCENARIO")))) -> Vegan diet | C112: =+VLOOKUP(B112,Diets!$X$74:$AA$95,2,FALSE)/VLOOKUP(A112,Diets!$X$74:$AA$95,2,FALSE) -> 0.5182649294 | D112: =+VLOOKUP(B112,Diets!$X$74:$AA$95,3,FALSE)/VLOOKUP(A112,Diets!$X$74:$AA$95,3,FALSE) -> 0.1742102019 | E112: =+VLOOKUP(B112,Diets!$X$74:$AA$95,4,FALSE)/VLOOKUP(A112,Diets!$X$74:$AA$95,4,FALSE) -> 0 | F112: =+VLOOKUP(B112,Diets!$A$76:$K$96,11,FALSE)/VLOOKUP(A112,Diets!$A$76:$K$96,11,FALSE) -> 0.5319447445 | G112: =+IF('Input and Results'!$C$7=Diets!$B$7,J112,IF('Input and Results'!$C$7=Diets!$B$8,L112,IF('Input and Results'!$C$7=Diets!$B$9,N112,IF('Input and Results'!$C$7=Diets!$B$10,P112,"NO SCENARIO")))) -> 2 | H112: Vegan diet | I112: 10 | J112: 2 | K112: USA | L112: 5 | M112: IND | N112: 5 | O112: CSA | P112: 5
A113: EUR | B113: =+IF('Input and Results'!$C$7=Diets!$B$7,H113,IF('Input and Results'!$C$7=Diets!$B$8,K113,IF('Input and Results'!$C$7=Diets!$B$9,M113,IF('Input and Results'!$C$7=Diets!$B$10,O113,"NO SCENARIO")))) -> Vegan diet | C113: =+VLOOKUP(B113,Diets!$X$74:$AA$95,2,FALSE)/VLOOKUP(A113,Diets!$X$74:$AA$95,2,FALSE) -> 0.4576563978 | D113: =+VLOOKUP(B113,Diets!$X$74:$AA$95,3,FALSE)/VLOOKUP(A113,Diets!$X$74:$AA$95,3,FALSE) -> 0.2025012047 | E113: =+VLOOKUP(B113,Diets!$X$74:$AA$95,4,FALSE)/VLOOKUP(A113,Diets!$X$74:$AA$95,4,FALSE) -> 0 | F113: =+VLOOKUP(B113,Diets!$A$76:$K$96,11,FALSE)/VLOOKUP(A113,Diets!$A$76:$K$96,11,FALSE) -> 0.4683671197 | G113: =+IF('Input and Results'!$C$7=Diets!$B$7,J113,IF('Input and Results'!$C$7=Diets!$B$8,L113,IF('Input and Results'!$C$7=Diets!$B$9,N113,IF('Input and Results'!$C$7=Diets!$B$10,P113,"NO SCENARIO")))) -> 2 | H113: Vegan diet | I113: 10 | J113: 2 | K113: USA | L113: 5 | M113: IND | N113: 5 | O113: EUR | P113: 5
A114: IND | B114: =+IF('Input and Results'!$C$7=Diets!$B$7,H114,IF('Input and Results'!$C$7=Diets!$B$8,K114,IF('Input and Results'!$C$7=Diets!$B$9,M114,IF('Input and Results'!$C$7=Diets!$B$10,O114,"NO SCENARIO")))) -> CHI | C114: =+VLOOKUP(B114,Diets!$X$74:$AA$95,2,FALSE)/VLOOKUP(A114,Diets!$X$74:$AA$95,2,FALSE) -> 1.55490472 | D114: =+VLOOKUP(B114,Diets!$X$74:$AA$95,3,FALSE)/VLOOKUP(A114,Diets!$X$74:$AA$95,3,FALSE) -> 1.79209647 | E114: =+VLOOKUP(B114,Diets!$X$74:$AA$95,4,FALSE)/VLOOKUP(A114,Diets!$X$74:$AA$95,4,FALSE) -> 5.444444444 | F114: =+VLOOKUP(B114,Diets!$A$76:$K$96,11,FALSE)/VLOOKUP(A114,Diets!$A$76:$K$96,11,FALSE) -> 1.578114027 | G114: =+IF('Input and Results'!$C$7=Diets!$B$7,J114,IF('Input and Results'!$C$7=Diets!$B$8,L114,IF('Input and Results'!$C$7=Diets!$B$9,N114,IF('Input and Results'!$C$7=Diets!$B$10,P114,"NO SCENARIO")))) -> 2 | H114: CHI | I114: 10 | J114: 2 | K114: USA | L114: 5 | M114: IND | N114: 5 | O114: IND | P114: 5
A115: JPN | B115: =+IF('Input and Results'!$C$7=Diets!$B$7,H115,IF('Input and Results'!$C$7=Diets!$B$8,K115,IF('Input and Results'!$C$7=Diets!$B$9,M115,IF('Input and Results'!$C$7=Diets!$B$10,O115,"NO SCENARIO")))) -> Vegan diet | C115: =+VLOOKUP(B115,Diets!$X$74:$AA$95,2,FALSE)/VLOOKUP(A115,Diets!$X$74:$AA$95,2,FALSE) -> 0.564728785 | D115: =+VLOOKUP(B115,Diets!$X$74:$AA$95,3,FALSE)/VLOOKUP(A115,Diets!$X$74:$AA$95,3,FALSE) -> 0.5747255192 | E115: =+VLOOKUP(B115,Diets!$X$74:$AA$95,4,FALSE)/VLOOKUP(A115,Diets!$X$74:$AA$95,4,FALSE) -> 0 | F115: =+VLOOKUP(B115,Diets!$A$76:$K$96,11,FALSE)/VLOOKUP(A115,Diets!$A$76:$K$96,11,FALSE) -> 0.7066856467 | G115: =+IF('Input and Results'!$C$7=Diets!$B$7,J115,IF('Input and Results'!$C$7=Diets!$B$8,L115,IF('Input and Results'!$C$7=Diets!$B$9,N115,IF('Input and Results'!$C$7=Diets!$B$10,P115,"NO SCENARIO")))) -> 2 | H115: Vegan diet | I115: 10 | J115: 2 | K115: USA | L115: 5 | M115: IND | N115: 5 | O115: JPN | P115: 5
A116: MEA | B116: =+IF('Input and Results'!$C$7=Diets!$B$7,H116,IF('Input and Results'!$C$7=Diets!$B$8,K116,IF('Input and Results'!$C$7=Diets!$B$9,M116,IF('Input and Results'!$C$7=Diets!$B$10,O116,"NO SCENARIO")))) -> Vegan diet | C116: =+VLOOKUP(B116,Diets!$X$74:$AA$95,2,FALSE)/VLOOKUP(A116,Diets!$X$74:$AA$95,2,FALSE) -> 0.5863572943 | D116: =+VLOOKUP(B116,Diets!$X$74:$AA$95,3,FALSE)/VLOOKUP(A116,Diets!$X$74:$AA$95,3,FALSE) -> 0.3331479642 | E116: =+VLOOKUP(B116,Diets!$X$74:$AA$95,4,FALSE)/VLOOKUP(A116,Diets!$X$74:$AA$95,4,FALSE) -> 0 | F116: =+VLOOKUP(B116,Diets!$A$76:$K$96,11,FALSE)/VLOOKUP(A116,Diets!$A$76:$K$96,11,FALSE) -> 0.6117824743 | G116: =+IF('Input and Results'!$C$7=Diets!$B$7,J116,IF('Input and Results'!$C$7=Diets!$B$8,L116,IF('Input and Results'!$C$7=Diets!$B$9,N116,IF('Input and Results'!$C$7=Diets!$B$10,P116,"NO SCENARIO")))) -> 2 | H116: Vegan diet | I116: 10 | J116: 2 | K116: USA | L116: 5 | M116: IND | N116: 5 | O116: MEA | P116: 5
A117: MEX | B117: =+IF('Input and Results'!$C$7=Diets!$B$7,H117,IF('Input and Results'!$C$7=Diets!$B$8,K117,IF('Input and Results'!$C$7=Diets!$B$9,M117,IF('Input and Results'!$C$7=Diets!$B$10,O117,"NO SCENARIO")))) -> Vegan diet | C117: =+VLOOKUP(B117,Diets!$X$74:$AA$95,2,FALSE)/VLOOKUP(A117,Diets!$X$74:$AA$95,2,FALSE) -> 0.4968886947 | D117: =+VLOOKUP(B117,Diets!$X$74:$AA$95,3,FALSE)/VLOOKUP(A117,Diets!$X$74:$AA$95,3,FALSE) -> 0.320248843 | E117: =+VLOOKUP(B117,Diets!$X$74:$AA$95,4,FALSE)/VLOOKUP(A117,Diets!$X$74:$AA$95,4,FALSE) -> 0 | F117: =+VLOOKUP(B117,Diets!$A$76:$K$96,11,FALSE)/VLOOKUP(A117,Diets!$A$76:$K$96,11,FALSE) -> 0.6248139877 | G117: =+IF('Input and Results'!$C$7=Diets!$B$7,J117,IF('Input and Results'!$C$7=Diets!$B$8,L117,IF('Input and Results'!$C$7=Diets!$B$9,N117,IF('Input and Results'!$C$7=Diets!$B$10,P117,"NO SCENARIO")))) -> 2 | H117: Vegan diet | I117: 10 | J117: 2 | K117: USA | L117: 5 | M117: IND | N117: 5 | O117: MEX | P117: 5
A118: ODA | B118: =+IF('Input and Results'!$C$7=Diets!$B$7,H118,IF('Input and Results'!$C$7=Diets!$B$8,K118,IF('Input and Results'!$C$7=Diets!$B$9,M118,IF('Input and Results'!$C$7=Diets!$B$10,O118,"NO SCENARIO")))) -> CAC | C118: =+VLOOKUP(B118,Diets!$X$74:$AA$95,2,FALSE)/VLOOKUP(A118,Diets!$X$74:$AA$95,2,FALSE) -> 1.096697481 | D118: =+VLOOKUP(B118,Diets!$X$74:$AA$95,3,FALSE)/VLOOKUP(A118,Diets!$X$74:$AA$95,3,FALSE) -> 5.217732126 | E118: =+VLOOKUP(B118,Diets!$X$74:$AA$95,4,FALSE)/VLOOKUP(A118,Diets!$X$74:$AA$95,4,FALSE) -> 0.1395697129 | F118: =+VLOOKUP(B118,Diets!$A$76:$K$96,11,FALSE)/VLOOKUP(A118,Diets!$A$76:$K$96,11,FALSE) -> 1.609340285 | G118: =+IF('Input and Results'!$C$7=Diets!$B$7,J118,IF('Input and Results'!$C$7=Diets!$B$8,L118,IF('Input and Results'!$C$7=Diets!$B$9,N118,IF('Input and Results'!$C$7=Diets!$B$10,P118,"NO SCENARIO")))) -> 2 | H118: CAC | I118: 10 | J118: 2 | K118: USA | L118: 5 | M118: IND | N118: 5 | O118: ODA | P118: 5
A119: OEE | B119: =+IF('Input and Results'!$C$7=Diets!$B$7,H119,IF('Input and Results'!$C$7=Diets!$B$8,K119,IF('Input and Results'!$C$7=Diets!$B$9,M119,IF('Input and Results'!$C$7=Diets!$B$10,O119,"NO SCENARIO")))) -> Vegan diet | C119: =+VLOOKUP(B119,Diets!$X$74:$AA$95,2,FALSE)/VLOOKUP(A119,Diets!$X$74:$AA$95,2,FALSE) -> 0.5241517394 | D119: =+VLOOKUP(B119,Diets!$X$74:$AA$95,3,FALSE)/VLOOKUP(A119,Diets!$X$74:$AA$95,3,FALSE) -> 0.2491079391 | E119: =+VLOOKUP(B119,Diets!$X$74:$AA$95,4,FALSE)/VLOOKUP(A119,Diets!$X$74:$AA$95,4,FALSE) -> 0 | F119: =+VLOOKUP(B119,Diets!$A$76:$K$96,11,FALSE)/VLOOKUP(A119,Diets!$A$76:$K$96,11,FALSE) -> 0.545089523 | G119: =+IF('Input and Results'!$C$7=Diets!$B$7,J119,IF('Input and Results'!$C$7=Diets!$B$8,L119,IF('Input and Results'!$C$7=Diets!$B$9,N119,IF('Input and Results'!$C$7=Diets!$B$10,P119,"NO SCENARIO")))) -> 2 | H119: Vegan diet | I119: 10 | J119: 2 | K119: USA | L119: 5 | M119: IND | N119: 5 | O119: OEE | P119: 5
A120: RUS | B120: =+IF('Input and Results'!$C$7=Diets!$B$7,H120,IF('Input and Results'!$C$7=Diets!$B$8,K120,IF('Input and Results'!$C$7=Diets!$B$9,M120,IF('Input and Results'!$C$7=Diets!$B$10,O120,"NO SCENARIO")))) -> Vegan diet | C120: =+VLOOKUP(B120,Diets!$X$74:$AA$95,2,FALSE)/VLOOKUP(A120,Diets!$X$74:$AA$95,2,FALSE) -> 0.4651210272 | D120: =+VLOOKUP(B120,Diets!$X$74:$AA$95,3,FALSE)/VLOOKUP(A120,Diets!$X$74:$AA$95,3,FALSE) -> 0.1904578928 | E120: =+VLOOKUP(B120,Diets!$X$74:$AA$95,4,FALSE)/VLOOKUP(A120,Diets!$X$74:$AA$95,4,FALSE) -> 0 | F120: =+VLOOKUP(B120,Diets!$A$76:$K$96,11,FALSE)/VLOOKUP(A120,Diets!$A$76:$K$96,11,FALSE) -> 0.4987667991 | G120: =+IF('Input and Results'!$C$7=Diets!$B$7,J120,IF('Input and Results'!$C$7=Diets!$B$8,L120,IF('Input and Results'!$C$7=Diets!$B$9,N120,IF('Input and Results'!$C$7=Diets!$B$10,P120,"NO SCENARIO")))) -> 2 | H120: Vegan diet | I120: 10 | J120: 2 | K120: USA | L120: 5 | M120: IND | N120: 5 | O120: RUS | P120: 5
A121: SKO | B121: =+IF('Input and Results'!$C$7=Diets!$B$7,H121,IF('Input and Results'!$C$7=Diets!$B$8,K121,IF('Input and Results'!$C$7=Diets!$B$9,M121,IF('Input and Results'!$C$7=Diets!$B$10,O121,"NO SCENARIO")))) -> Vegan diet | C121: =+VLOOKUP(B121,Diets!$X$74:$AA$95,2,FALSE)/VLOOKUP(A121,Diets!$X$74:$AA$95,2,FALSE) -> 0.488830846 | D121: =+VLOOKUP(B121,Diets!$X$74:$AA$95,3,FALSE)/VLOOKUP(A121,Diets!$X$74:$AA$95,3,FALSE) -> 0.3611212507 | E121: =+VLOOKUP(B121,Diets!$X$74:$AA$95,4,FALSE)/VLOOKUP(A121,Diets!$X$74:$AA$95,4,FALSE) -> 0 | F121: =+VLOOKUP(B121,Diets!$A$76:$K$96,11,FALSE)/VLOOKUP(A121,Diets!$A$76:$K$96,11,FALSE) -> 0.5802291557 | G121: =+IF('Input and Results'!$C$7=Diets!$B$7,J121,IF('Input and Results'!$C$7=Diets!$B$8,L121,IF('Input and Results'!$C$7=Diets!$B$9,N121,IF('Input and Results'!$C$7=Diets!$B$10,P121,"NO SCENARIO")))) -> 2 | H121: Vegan diet | I121: 10 | J121: 2 | K121: USA | L121: 5 | M121: IND | N121: 5 | O121: SKO | P121: 5
A122: USA | B122: =+IF('Input and Results'!$C$7=Diets!$B$7,H122,IF('Input and Results'!$C$7=Diets!$B$8,K122,IF('Input and Results'!$C$7=Diets!$B$9,M122,IF('Input and Results'!$C$7=Diets!$B$10,O122,"NO SCENARIO")))) -> Vegan diet | C122: =+VLOOKUP(B122,Diets!$X$74:$AA$95,2,FALSE)/VLOOKUP(A122,Diets!$X$74:$AA$95,2,FALSE) -> 0.388850196 | D122: =+VLOOKUP(B122,Diets!$X$74:$AA$95,3,FALSE)/VLOOKUP(A122,Diets!$X$74:$AA$95,3,FALSE) -> 0.1698932494 | E122: =+VLOOKUP(B122,Diets!$X$74:$AA$95,4,FALSE)/VLOOKUP(A122,Diets!$X$74:$AA$95,4,FALSE) -> 0 | F122: =+VLOOKUP(B122,Diets!$A$76:$K$96,11,FALSE)/VLOOKUP(A122,Diets!$A$76:$K$96,11,FALSE) -> 0.4500946324 | G122: =+IF('Input and Results'!$C$7=Diets!$B$7,J122,IF('Input and Results'!$C$7=Diets!$B$8,L122,IF('Input and Results'!$C$7=Diets!$B$9,N122,IF('Input and Results'!$C$7=Diets!$B$10,P122,"NO SCENARIO")))) -> 2 | H122: Vegan diet | I122: 10 | J122: 2 | K122: USA | L122: 5 | M122: IND | N122: 5 | O122: USA | P122: 5
A126: OTHER ASSUMPTIONS | B126: Share Sector Diet CO2 from Total Diet CO2
B127: Energy (energy, manufacturing and construction industries and fugitive emissions) | C127: Transport | D127: Residential, commercial, institutional and AFF | E127: Industrial processes and product use | F127: Waste | G127: Other sources | H127: Agriculture total | I127: Land use sources
A128: AFR | B128: =+Sectors!B5 -> 0.2717553279 | C128: =+Sectors!C5 -> 0.08897253675 | D128: =+Sectors!D5 -> 0.04334674419 | E128: =+Sectors!E5 -> 0.03565424342 | F128: =+Sectors!F5 -> 0 | G128: =+Sectors!G5 -> 0 | H128: =+Sectors!H5 -> 0 | I128: =+Sectors!I5 -> 0.5602711478
A129: AUS | B129: =+Sectors!B6 -> 0.4681522373 | C129: =+Sectors!C6 -> 0.1361638305 | D129: =+Sectors!D6 -> 0.03358391125 | E129: =+Sectors!E6 -> 0.02986421597 | F129: =+Sectors!F6 -> 2.288830642e-05 | G129: =+Sectors!G6 -> 0.0002720685481 | H129: =+Sectors!H6 -> 0 | I129: =+Sectors!I6 -> 0.3319408481
A130: CAC | B130: =+Sectors!B7 -> 0.5632447657 | C130: =+Sectors!C7 -> 0.07644553806 | D130: =+Sectors!D7 -> 0.3087796169 | E130: =+Sectors!E7 -> 0.0481055071 | F130: =+Sectors!F7 -> 0 | G130: =+Sectors!G7 -> 0 | H130: =+Sectors!H7 -> 0 | I130: =+Sectors!I7 -> 0.003424572197
A131: CAN | B131: =+Sectors!B8 -> 0.376982305 | C131: =+Sectors!C8 -> 0.2492009217 | D131: =+Sectors!D8 -> 0.1256607683 | E131: =+Sectors!E8 -> 0.04000239335 | F131: =+Sectors!F8 -> 0.0002507483975 | G131: =+Sectors!G8 -> 0 | H131: =+Sectors!H8 -> 0 | I131: =+Sectors!I8 -> 0.2079028632
A132: CHI | B132: =+Sectors!B9 -> 0.7473078133 | C132: =+Sectors!C9 -> 0.05755807644 | D132: =+Sectors!D9 -> 0.06400121502 | E132: =+Sectors!E9 -> 0.1277306058 | F132: =+Sectors!F9 -> 0.0001038715856 | G132: =+Sectors!G9 -> 0.003162291411 | H132: =+Sectors!H9 -> 0 | I132: =+Sectors!I9 -> 0.0001361264792
A133: CSA | B133: =+Sectors!B10 -> 0.2224406434 | C133: =+Sectors!C10 -> 0.1374076946 | D133: =+Sectors!D10 -> 0.04186944421 | E133: =+Sectors!E10 -> 0.03685437454 | F133: =+Sectors!F10 -> 0.0002419183585 | G133: =+Sectors!G10 -> 0 | H133: =+Sectors!H10 -> 0 | I133: =+Sectors!I10 -> 0.5611859249
A134: EUR | B134: =+Sectors!B11 -> 0.4853067586 | C134: =+Sectors!C11 -> 0.2342809291 | D134: =+Sectors!D11 -> 0.1756833597 | E134: =+Sectors!E11 -> 0.06101183311 | F134: =+Sectors!F11 -> 0.001573853935 | G134: =+Sectors!G11 -> 0 | H134: =+Sectors!H11 -> 0 | I134: =+Sectors!I11 -> 0.0421432656
A135: IND | B135: =+Sectors!B12 -> 0.7331889066 | C135: =+Sectors!C12 -> 0.0852837827 | D135: =+Sectors!D12 -> 0.09216811921 | E135: =+Sectors!E12 -> 0.07651808566 | F135: =+Sectors!F12 -> 0 | G135: =+Sectors!G12 -> 0.008029369894 | H135: =+Sectors!H12 -> 0 | I135: =+Sectors!I12 -> 0.004811735956
A136: JPN | B136: =+Sectors!B13 -> 0.6123517399 | C136: =+Sectors!C13 -> 0.1754160429 | D136: =+Sectors!D13 -> 0.1302176554 | E136: =+Sectors!E13 -> 0.05567825612 | F136: =+Sectors!F13 -> 0.01945226705 | G136: =+Sectors!G13 -> 0 | H136: =+Sectors!H13 -> 0 | I136: =+Sectors!I13 -> 0.006884038664
A137: MEA | B137: =+Sectors!B14 -> 0.6211989352 | C137: =+Sectors!C14 -> 0.1524005822 | D137: =+Sectors!D14 -> 0.1362040965 | E137: =+Sectors!E14 -> 0.08597260126 | F137: =+Sectors!F14 -> 0.001374945187 | G137: =+Sectors!G14 -> 0 | H137: =+Sectors!H14 -> 0 | I137: =+Sectors!I14 -> 0.002848839726
A138: MEX | B138: =+Sectors!B15 -> 0.5404288087 | C138: =+Sectors!C15 -> 0.3091175645 | D138: =+Sectors!D15 -> 0.06819022072 | E138: =+Sectors!E15 -> 0.05384044115 | F138: =+Sectors!F15 -> 0 | G138: =+Sectors!G15 -> 0 | H138: =+Sectors!H15 -> 0 | I138: =+Sectors!I15 -> 0.02842296491
A139: ODA | B139: =+Sectors!B16 -> 0.4025205528 | C139: =+Sectors!C16 -> 0.1280505113 | D139: =+Sectors!D16 -> 0.04692796531 | E139: =+Sectors!E16 -> 0.05112588468 | F139: =+Sectors!F16 -> 0.0001655137845 | G139: =+Sectors!G16 -> 0 | H139: =+Sectors!H16 -> 0 | I139: =+Sectors!I16 -> 0.3712095721
A140: OEE | B140: =+Sectors!B17 -> 0.5846544555 | C140: =+Sectors!C17 -> 0.1196539525 | D140: =+Sectors!D17 -> 0.1245175446 | E140: =+Sectors!E17 -> 0.07928292131 | F140: =+Sectors!F17 -> 1.810432798e-05 | G140: =+Sectors!G17 -> 0 | H140: =+Sectors!H17 -> 0 | I140: =+Sectors!I17 -> 0.0918730217
A141: RUS | B141: =+Sectors!B18 -> 0.6676410278 | C141: =+Sectors!C18 -> 0.1333090397 | D141: =+Sectors!D18 -> 0.1073350754 | E141: =+Sectors!E18 -> 0.05257693465 | F141: =+Sectors!F18 -> 0 | G141: =+Sectors!G18 -> 0 | H141: =+Sectors!H18 -> 0 | I141: =+Sectors!I18 -> 0.03913792246
A142: SKO | B142: =+Sectors!B19 -> 0.700476218 | C142: =+Sectors!C19 -> 0.1462121512 | D142: =+Sectors!D19 -> 0.1026498927 | E142: =+Sectors!E19 -> 0.04543420555 | F142: =+Sectors!F19 -> 0 | G142: =+Sectors!G19 -> 0 | H142: =+Sectors!H19 -> 0 | I142: =+Sectors!I19 -> 0.005227532615
A143: USA | B143: =+Sectors!B20 -> 0.5534812775 | C143: =+Sectors!C20 -> 0.2929320856 | D143: =+Sectors!D20 -> 0.1044149648 | E143: =+Sectors!E20 -> 0.02638149214 | F143: =+Sectors!F20 -> 0 | G143: =+Sectors!G20 -> 0.000842803385 | H143: =+Sectors!H20 -> 0 | I143: =+Sectors!I20 -> 0.02194737652
B147: Total Diet CO2 in Total CO2
B148: Share
B149: 2011 | C149: 2012 | D149: 2013 | E149: 2014 | F149: 2015 | G149: 2016 | H149: 2017 | I149: 2018 | J149: 2019 | K149: 2020 | L149: 2021 | M149: 2022 | N149: 2023 | O149: 2024 | P149: 2025 | Q149: 2026 | R149: 2027 | S149: 2028 | T149: 2029 | U149: 2030 | V149: 2031 | W149: 2032 | X149: 2033 | Y149: 2034 | Z149: 2035 | AA149: 2036 | AB149: 2037 | AC149: 2038 | AD149: 2039 | AE149: 2040 | AF149: 2041 | AG149: 2042 | AH149: 2043 | AI149: 2044 | AJ149: 2045 | AK149: 2046 | AL149: 2047 | AM149: 2048 | AN149: 2049 | AO149: 2050 | AP149: 2051 | AQ149: 2052 | AR149: 2053 | AS149: 2054 | AT149: 2055 | AU149: 2056 | AV149: 2057 | AW149: 2058 | AX149: 2059 | AY149: 2060 | AZ149: 2061 | BA149: 2062 | BB149: 2063 | BC149: 2064 | BD149: 2065 | BE149: 2066 | BF149: 2067 | BG149: 2068 | BH149: 2069 | BI149: 2070 | BJ149: 2071 | BK149: 2072 | BL149: 2073 | BM149: 2074 | BN149: 2075 | BO149: 2076 | BP149: 2077 | BQ149: 2078 | BR149: 2079 | BS149: 2080 | BT149: 2081 | BU149: 2082 | BV149: 2083 | BW149: 2084 | BX149: 2085 | BY149: 2086 | BZ149: 2087 | CA149: 2088 | CB149: 2089 | CC149: 2090 | CD149: 2091 | CE149: 2092 | CF149: 2093 | CG149: 2094 | CH149: 2095 | CI149: 2096 | CJ149: 2097 | CK149: 2098 | CL149: 2099 | CM149: 2100
A150: AFR | B150: =+Diets!F48 -> 0.4141694714 | C150: =+Diets!G48 -> 0.4141694714 | D150: =+Diets!H48 -> 0.4140983035 | E150: =+Diets!I48 -> 0.4139398611 | F150: =+Diets!J48 -> 0.4137856081 | G150: =+Diets!K48 -> 0.4137024975 | H150: =+Diets!L48 -> 0.4134887635 | I150: =+Diets!M48 -> 0.4132707549 | J150: =+Diets!N48 -> 0.4130483861 | K150: =+Diets!O48 -> 0.4128215699 | L150: =+Diets!P48 -> 0.4125902173 | M150: =+Diets!Q48 -> 0.4123542378 | N150: =+Diets!R48 -> 0.4121135386 | O150: =+Diets!S48 -> 0.4118680255 | P150: =+Diets!T48 -> 0.4116176021 | Q150: =+Diets!U48 -> 0.4113621702 | R150: =+Diets!V48 -> 0.4111016297 | S150: =+Diets!W48 -> 0.4108358784 | T150: =+Diets!X48 -> 0.410564812 | U150: =+Diets!Y48 -> 0.4102883243 | V150: =+Diets!Z48 -> 0.4100063069 | W150: =+Diets!AA48 -> 0.4097186491 | X150: =+Diets!AB48 -> 0.4094252382 | Y150: =+Diets!AC48 -> 0.409125959 | Z150: =+Diets!AD48 -> 0.4088206943 | AA150: =+Diets!AE48 -> 0.4085093243 | AB150: =+Diets!AF48 -> 0.4081917268 | AC150: =+Diets!AG48 -> 0.4078677775 | AD150: =+Diets!AH48 -> 0.4075373491 | AE150: =+Diets!AI48 -> 0.4072003122 | AF150: =+Diets!AJ48 -> 0.4068565345 | AG150: =+Diets!AK48 -> 0.4065058813 | AH150: =+Diets!AL48 -> 0.406148215 | AI150: =+Diets!AM48 -> 0.4057833953 | AJ150: =+Diets!AN48 -> 0.4054112793 | AK150: =+Diets!AO48 -> 0.405031721 | AL150: =+Diets!AP48 -> 0.4046445715 | AM150: =+Diets!AQ48 -> 0.404249679 | AN150: =+Diets!AR48 -> 0.4038468887 | AO150: =+Diets!AS48 -> 0.4034360425 | AP150: =+Diets!AT48 -> 0.4030169795 | AQ150: =+Diets!AU48 -> 0.4028032573 | AR150: =+Diets!AV48 -> 0.4025873979 | AS150: =+Diets!AW48 -> 0.4023693799 | AT150: =+Diets!AX48 -> 0.4021491818 | AU150: =+Diets!AY48 -> 0.4019267816 | AV150: =+Diets!AZ48 -> 0.4017021575 | AW150: =+Diets!BA48 -> 0.4014752871 | AX150: =+Diets!BB48 -> 0.401246148 | AY150: =+Diets!BC48 -> 0.4010147176 | AZ150: =+Diets!BD48 -> 0.4007809728 | BA150: =+Diets!BE48 -> 0.4005448905 | BB150: =+Diets!BF48 -> 0.4003064475 | BC150: =+Diets!BG48 -> 0.40006562 | BD150: =+Diets!BH48 -> 0.3998223843 | BE150: =+Diets!BI48 -> 0.3995767161 | BF150: =+Diets!BJ48 -> 0.3993285913 | BG150: =+Diets!BK48 -> 0.3990779853 | BH150: =+Diets!BL48 -> 0.3988248732 | BI150: =+Diets!BM48 -> 0.39856923 | BJ150: =+Diets!BN48 -> 0.3983110303 | BK150: =+Diets!BO48 -> 0.3980502486 | BL150: =+Diets!BP48 -> 0.3977868592 | BM150: =+Diets!BQ48 -> 0.3975208358 | BN150: =+Diets!BR48 -> 0.3972521522 | BO150: =+Diets!BS48 -> 0.3969807818 | BP150: =+Diets!BT48 -> 0.3967066976 | BQ150: =+Diets!BU48 -> 0.3964298726 | BR150: =+Diets!BV48 -> 0.3961502794 | BS150: =+Diets!BW48 -> 0.3958678903 | BT150: =+Diets!BX48 -> 0.3955826772 | BU150: =+Diets!BY48 -> 0.395294612 | BV150: =+Diets!BZ48 -> 0.3950036662 | BW150: =+Diets!CA48 -> 0.3947098109 | BX150: =+Diets!CB48 -> 0.394413017 | BY150: =+Diets!CC48 -> 0.3941132552 | BZ150: =+Diets!CD48 -> 0.3938104958 | CA150: =+Diets!CE48 -> 0.3935047088 | CB150: =+Diets!CF48 -> 0.393195864 | CC150: =+Diets!CG48 -> 0.3928839306 | CD150: =+Diets!CH48 -> 0.392568878 | CE150: =+Diets!CI48 -> 0.3922506748 | CF150: =+Diets!CJ48 -> 0.3919292896 | CG150: =+Diets!CK48 -> 0.3916046905 | CH150: =+Diets!CL48 -> 0.3912768455 | CI150: =+Diets!CM48 -> 0.390945722 | CJ150: =+Diets!CN48 -> 0.3906112872 | CK150: =+Diets!CO48 -> 0.3902735082 | CL150: =+Diets!CP48 -> 0.3899323513 | CM150: =+Diets!CQ48 -> 0.3895877828
A151: AUS | B151: =+Diets!F49 -> 0.1112994017 | C151: =+Diets!G49 -> 0.1112994017 | D151: =+Diets!H49 -> 0.1112994017 | E151: =+Diets!I49 -> 0.1112994017 | F151: =+Diets!J49 -> 0.1112994017 | G151: =+Diets!K49 -> 0.1112994017 | H151: =+Diets!L49 -> 0.1112994017 | I151: =+Diets!M49 -> 0.1112994017 | J151: =+Diets!N49 -> 0.1112994017 | K151: =+Diets!O49 -> 0.1112994017 | L151: =+Diets!P49 -> 0.1112994017 | M151: =+Diets!Q49 -> 0.1112994017 | N151: =+Diets!R49 -> 0.1112994017 | O151: =+Diets!S49 -> 0.1112994017 | P151: =+Diets!T49 -> 0.1112994017 | Q151: =+Diets!U49 -> 0.1112994017 | R151: =+Diets!V49 -> 0.1112994017 | S151: =+Diets!W49 -> 0.1112994017 | T151: =+Diets!X49 -> 0.1112994017 | U151: =+Diets!Y49 -> 0.1112994017 | V151: =+Diets!Z49 -> 0.1112994017 | W151: =+Diets!AA49 -> 0.1112994017 | X151: =+Diets!AB49 -> 0.1112994017 | Y151: =+Diets!AC49 -> 0.1112994017 | Z151: =+Diets!AD49 -> 0.1112994017 | AA151: =+Diets!AE49 -> 0.1112994017 | AB151: =+Diets!AF49 -> 0.1112994017 | AC151: =+Diets!AG49 -> 0.1112994017 | AD151: =+Diets!AH49 -> 0.1112994017 | AE151: =+Diets!AI49 -> 0.1112994017 | AF151: =+Diets!AJ49 -> 0.1112994017 | AG151: =+Diets!AK49 -> 0.1112994017 | AH151: =+Diets!AL49 -> 0.1112994017 | AI151: =+Diets!AM49 -> 0.1112994017 | AJ151: =+Diets!AN49 -> 0.1112994017 | AK151: =+Diets!AO49 -> 0.1112994017 | AL151: =+Diets!AP49 -> 0.1112994017 | AM151: =+Diets!AQ49 -> 0.1112994017 | AN151: =+Diets!AR49 -> 0.1112994017 | AO151: =+Diets!AS49 -> 0.1112994017 | AP151: =+Diets!AT49 -> 0.1112994017 | AQ151: =+Diets!AU49 -> 0.1112994017 | AR151: =+Diets!AV49 -> 0.1112994017 | AS151: =+Diets!AW49 -> 0.1112994017 | AT151: =+Diets!AX49 -> 0.1112994017 | AU151: =+Diets!AY49 -> 0.1112994017 | AV151: =+Diets!AZ49 -> 0.1112994017 | AW151: =+Diets!BA49 -> 0.1112994017 | AX151: =+Diets!BB49 -> 0.1112994017 | AY151: =+Diets!BC49 -> 0.1112994017 | AZ151: =+Diets!BD49 -> 0.1112994017 | BA151: =+Diets!BE49 -> 0.1112994017 | BB151: =+Diets!BF49 -> 0.1112994017 | BC151: =+Diets!BG49 -> 0.1112994017 | BD151: =+Diets!BH49 -> 0.1112994017 | BE151: =+Diets!BI49 -> 0.1112994017 | BF151: =+Diets!BJ49 -> 0.1112994017 | BG151: =+Diets!BK49 -> 0.1112994017 | BH151: =+Diets!BL49 -> 0.1112994017 | BI151: =+Diets!BM49 -> 0.1112994017 | BJ151: =+Diets!BN49 -> 0.1112994017 | BK151: =+Diets!BO49 -> 0.1112994017 | BL151: =+Diets!BP49 -> 0.1112994017 | BM151: =+Diets!BQ49 -> 0.1112994017 | BN151: =+Diets!BR49 -> 0.1112994017 | BO151: =+Diets!BS49 -> 0.1112994017 | BP151: =+Diets!BT49 -> 0.1112994017 | BQ151: =+Diets!BU49 -> 0.1112994017 | BR151: =+Diets!BV49 -> 0.1112994017 | BS151: =+Diets!BW49 -> 0.1112994017 | BT151: =+Diets!BX49 -> 0.1112994017 | BU151: =+Diets!BY49 -> 0.1112994017 | BV151: =+Diets!BZ49 -> 0.1112994017 | BW151: =+Diets!CA49 -> 0.1112994017 | BX151: =+Diets!CB49 -> 0.1112994017 | BY151: =+Diets!CC49 -> 0.1112994017 | BZ151: =+Diets!CD49 -> 0.1112994017 | CA151: =+Diets!CE49 -> 0.1112994017 | CB151: =+Diets!CF49 -> 0.1112994017 | CC151: =+Diets!CG49 -> 0.1112994017 | CD151: =+Diets!CH49 -> 0.1112994017 | CE151: =+Diets!CI49 -> 0.1112994017 | CF151: =+Diets!CJ49 -> 0.1112994017 | CG151: =+Diets!CK49 -> 0.1112994017 | CH151: =+Diets!CL49 -> 0.1112994017 | CI151: =+Diets!CM49 -> 0.1112994017 | CJ151: =+Diets!CN49 -> 0.1112994017 | CK151: =+Diets!CO49 -> 0.1112994017 | CL151: =+Diets!CP49 -> 0.1112994017 | CM151: =+Diets!CQ49 -> 0.1112994017
A152: CAC | B152: =+Diets!F50 -> 0.300236413 | C152: =+Diets!G50 -> 0.300236413 | D152: =+Diets!H50 -> 0.2996808237 | E152: =+Diets!I50 -> 0.2989608965 | F152: =+Diets!J50 -> 0.2984402769 | G152: =+Diets!K50 -> 0.2982212451 | H152: =+Diets!L50 -> 0.2979101085 | I152: =+Diets!M50 -> 0.2975927491 | J152: =+Diets!N50 -> 0.2972690426 | K152: =+Diets!O50 -> 0.2969388619 | L152: =+Diets!P50 -> 0.2966020776 | M152: =+Diets!Q50 -> 0.2962585576 | N152: =+Diets!R50 -> 0.2959081672 | O152: =+Diets!S50 -> 0.295550769 | P152: =+Diets!T50 -> 0.2951862228 | Q152: =+Diets!U50 -> 0.2948143858 | R152: =+Diets!V50 -> 0.2944351119 | S152: =+Diets!W50 -> 0.2940482526 | T152: =+Diets!X50 -> 0.2936536561 | U152: =+Diets!Y50 -> 0.2932511677 | V152: =+Diets!Z50 -> 0.2928406295 | W152: =+Diets!AA50 -> 0.2924218806 | X152: =+Diets!AB50 -> 0.2919947567 | Y152: =+Diets!AC50 -> 0.2915590903 | Z152: =+Diets!AD50 -> 0.2911147105 | AA152: =+Diets!AE50 -> 0.2906614432 | AB152: =+Diets!AF50 -> 0.2901991105 | AC152: =+Diets!AG50 -> 0.2897275312 | AD152: =+Diets!AH50 -> 0.2892465203 | AE152: =+Diets!AI50 -> 0.2887558891 | AF152: =+Diets!AJ50 -> 0.2882554454 | AG152: =+Diets!AK50 -> 0.2877449927 | AH152: =+Diets!AL50 -> 0.287224331 | AI152: =+Diets!AM50 -> 0.2866932561 | AJ152: =+Diets!AN50 -> 0.2861515597 | AK152: =+Diets!AO50 -> 0.2855990294 | AL152: =+Diets!AP50 -> 0.2850354484 | AM152: =+Diets!AQ50 -> 0.2844605958 | AN152: =+Diets!AR50 -> 0.2838742462 | AO152: =+Diets!AS50 -> 0.2832761696 | AP152: =+Diets!AT50 -> 0.2826661314 | AQ152: =+Diets!AU50 -> 0.282355012 | AR152: =+Diets!AV50 -> 0.2820407813 | AS152: =+Diets!AW50 -> 0.2817234084 | AT152: =+Diets!AX50 -> 0.2814028617 | AU152: =+Diets!AY50 -> 0.2810791095 | AV152: =+Diets!AZ50 -> 0.2807521199 | AW152: =+Diets!BA50 -> 0.2804218603 | AX152: =+Diets!BB50 -> 0.2800882981 | AY152: =+Diets!BC50 -> 0.2797514003 | AZ152: =+Diets!BD50 -> 0.2794111336 | BA152: =+Diets!BE50 -> 0.2790674641 | BB152: =+Diets!BF50 -> 0.278720358 | BC152: =+Diets!BG50 -> 0.2783697808 | BD152: =+Diets!BH50 -> 0.2780156978 | BE152: =+Diets!BI50 -> 0.2776580741 | BF152: =+Diets!BJ50 -> 0.277296874 | BG152: =+Diets!BK50 -> 0.276932062 | BH152: =+Diets!BL50 -> 0.2765636018 | BI152: =+Diets!BM50 -> 0.2761914571 | BJ152: =+Diets!BN50 -> 0.2758155909 | BK152: =+Diets!BO50 -> 0.275435966 | BL152: =+Diets!BP50 -> 0.2750525449 | BM152: =+Diets!BQ50 -> 0.2746652896 | BN152: =+Diets!BR50 -> 0.2742741617 | BO152: =+Diets!BS50 -> 0.2738791226 | BP152: =+Diets!BT50 -> 0.273480133 | BQ152: =+Diets!BU50 -> 0.2730771536 | BR152: =+Diets!BV50 -> 0.2726701443 | BS152: =+Diets!BW50 -> 0.272259065 | BT152: =+Diets!BX50 -> 0.2718438749 | BU152: =+Diets!BY50 -> 0.2714245329 | BV152: =+Diets!BZ50 -> 0.2710009974 | BW152: =+Diets!CA50 -> 0.2705732266 | BX152: =+Diets!CB50 -> 0.2701411781 | BY152: =+Diets!CC50 -> 0.2697048091 | BZ152: =+Diets!CD50 -> 0.2692640765 | CA152: =+Diets!CE50 -> 0.2688189365 | CB152: =+Diets!CF50 -> 0.2683693451 | CC152: =+Diets!CG50 -> 0.2679152577 | CD152: =+Diets!CH50 -> 0.2674566295 | CE152: =+Diets!CI50 -> 0.2669934151 | CF152: =+Diets!CJ50 -> 0.2665255684 | CG152: =+Diets!CK50 -> 0.2660530434 | CH152: =+Diets!CL50 -> 0.265575793 | CI152: =+Diets!CM50 -> 0.2650937702 | CJ152: =+Diets!CN50 -> 0.2646069271 | CK152: =+Diets!CO50 -> 0.2641152156 | CL152: =+Diets!CP50 -> 0.263618587 | CM152: =+Diets!CQ50 -> 0.2631169921
A153: CAN | B153: =+Diets!F51 -> 0.1087414384 | C153: =+Diets!G51 -> 0.1087414384 | D153: =+Diets!H51 -> 0.1087414384 | E153: =+Diets!I51 -> 0.1087414384 | F153: =+Diets!J51 -> 0.1087414384 | G153: =+Diets!K51 -> 0.1087414384 | H153: =+Diets!L51 -> 0.1087414384 | I153: =+Diets!M51 -> 0.1087414384 | J153: =+Diets!N51 -> 0.1087414384 | K153: =+Diets!O51 -> 0.1087414384 | L153: =+Diets!P51 -> 0.1087414384 | M153: =+Diets!Q51 -> 0.1087414384 | N153: =+Diets!R51 -> 0.1087414384 | O153: =+Diets!S51 -> 0.1087414384 | P153: =+Diets!T51 -> 0.1087414384 | Q153: =+Diets!U51 -> 0.1087414384 | R153: =+Diets!V51 -> 0.1087414384 | S153: =+Diets!W51 -> 0.1087414384 | T153: =+Diets!X51 -> 0.1087414384 | U153: =+Diets!Y51 -> 0.1087414384 | V153: =+Diets!Z51 -> 0.1087414384 | W153: =+Diets!AA51 -> 0.1087414384 | X153: =+Diets!AB51 -> 0.1087414384 | Y153: =+Diets!AC51 -> 0.1087414384 | Z153: =+Diets!AD51 -> 0.1087414384 | AA153: =+Diets!AE51 -> 0.1087414384 | AB153: =+Diets!AF51 -> 0.1087414384 | AC153: =+Diets!AG51 -> 0.1087414384 | AD153: =+Diets!AH51 -> 0.1087414384 | AE153: =+Diets!AI51 -> 0.1087414384 | AF153: =+Diets!AJ51 -> 0.1087414384 | AG153: =+Diets!AK51 -> 0.1087414384 | AH153: =+Diets!AL51 -> 0.1087414384 | AI153: =+Diets!AM51 -> 0.1087414384 | AJ153: =+Diets!AN51 -> 0.1087414384 | AK153: =+Diets!AO51 -> 0.1087414384 | AL153: =+Diets!AP51 -> 0.1087414384 | AM153: =+Diets!AQ51 -> 0.1087414384 | AN153: =+Diets!AR51 -> 0.1087414384 | AO153: =+Diets!AS51 -> 0.1087414384 | AP153: =+Diets!AT51 -> 0.1087414384 | AQ153: =+Diets!AU51 -> 0.1087414384 | AR153: =+Diets!AV51 -> 0.1087414384 | AS153: =+Diets!AW51 -> 0.1087414384 | AT153: =+Diets!AX51 -> 0.1087414384 | AU153: =+Diets!AY51 -> 0.1087414384 | AV153: =+Diets!AZ51 -> 0.1087414384 | AW153: =+Diets!BA51 -> 0.1087414384 | AX153: =+Diets!BB51 -> 0.1087414384 | AY153: =+Diets!BC51 -> 0.1087414384 | AZ153: =+Diets!BD51 -> 0.1087414384 | BA153: =+Diets!BE51 -> 0.1087414384 | BB153: =+Diets!BF51 -> 0.1087414384 | BC153: =+Diets!BG51 -> 0.1087414384 | BD153: =+Diets!BH51 -> 0.1087414384 | BE153: =+Diets!BI51 -> 0.1087414384 | BF153: =+Diets!BJ51 -> 0.1087414384 | BG153: =+Diets!BK51 -> 0.1087414384 | BH153: =+Diets!BL51 -> 0.1087414384 | BI153: =+Diets!BM51 -> 0.1087414384 | BJ153: =+Diets!BN51 -> 0.1087414384 | BK153: =+Diets!BO51 -> 0.1087414384 | BL153: =+Diets!BP51 -> 0.1087414384 | BM153: =+Diets!BQ51 -> 0.1087414384 | BN153: =+Diets!BR51 -> 0.1087414384 | BO153: =+Diets!BS51 -> 0.1087414384 | BP153: =+Diets!BT51 -> 0.1087414384 | BQ153: =+Diets!BU51 -> 0.1087414384 | BR153: =+Diets!BV51 -> 0.1087414384 | BS153: =+Diets!BW51 -> 0.1087414384 | BT153: =+Diets!BX51 -> 0.1087414384 | BU153: =+Diets!BY51 -> 0.1087414384 | BV153: =+Diets!BZ51 -> 0.1087414384 | BW153: =+Diets!CA51 -> 0.1087414384 | BX153: =+Diets!CB51 -> 0.1087414384 | BY153: =+Diets!CC51 -> 0.1087414384 | BZ153: =+Diets!CD51 -> 0.1087414384 | CA153: =+Diets!CE51 -> 0.1087414384 | CB153: =+Diets!CF51 -> 0.1087414384 | CC153: =+Diets!CG51 -> 0.1087414384 | CD153: =+Diets!CH51 -> 0.1087414384 | CE153: =+Diets!CI51 -> 0.1087414384 | CF153: =+Diets!CJ51 -> 0.1087414384 | CG153: =+Diets!CK51 -> 0.1087414384 | CH153: =+Diets!CL51 -> 0.1087414384 | CI153: =+Diets!CM51 -> 0.1087414384 | CJ153: =+Diets!CN51 -> 0.1087414384 | CK153: =+Diets!CO51 -> 0.1087414384 | CL153: =+Diets!CP51 -> 0.1087414384 | CM153: =+Diets!CQ51 -> 0.1087414384
A154: CHI | B154: =+Diets!F52 -> 0.301799938 | C154: =+Diets!G52 -> 0.301799938 | D154: =+Diets!H52 -> 0.3005923928 | E154: =+Diets!I52 -> 0.2993044263 | F154: =+Diets!J52 -> 0.2980269283 | G154: =+Diets!K52 -> 0.296760397 | H154: =+Diets!L52 -> 0.2963205615 | I154: =+Diets!M52 -> 0.2958719294 | J154: =+Diets!N52 -> 0.2954143247 | K154: =+Diets!O52 -> 0.2949475678 | L154: =+Diets!P52 -> 0.2944714758 | M154: =+Diets!Q52 -> 0.293985862 | N154: =+Diets!R52 -> 0.2934905359 | O154: =+Diets!S52 -> 0.2929853032 | P154: =+Diets!T52 -> 0.2924699659 | Q154: =+Diets!U52 -> 0.2919443219 | R154: =+Diets!V52 -> 0.291408165 | S154: =+Diets!W52 -> 0.2908612849 | T154: =+Diets!X52 -> 0.2903034673 | U154: =+Diets!Y52 -> 0.2897344933 | V154: =+Diets!Z52 -> 0.2891541398 | W154: =+Diets!AA52 -> 0.2885621792 | X154: =+Diets!AB52 -> 0.2879583795 | Y154: =+Diets!AC52 -> 0.2873425037 | Z154: =+Diets!AD52 -> 0.2867143104 | AA154: =+Diets!AE52 -> 0.2860735533 | AB154: =+Diets!AF52 -> 0.285419981 | AC154: =+Diets!AG52 -> 0.2847533373 | AD154: =+Diets!AH52 -> 0.2840733606 | AE154: =+Diets!AI52 -> 0.2833797845 | AF154: =+Diets!AJ52 -> 0.2826723368 | AG154: =+Diets!AK52 -> 0.2819507402 | AH154: =+Diets!AL52 -> 0.2812147117 | AI154: =+Diets!AM52 -> 0.2804639626 | AJ154: =+Diets!AN52 -> 0.2796981985 | AK154: =+Diets!AO52 -> 0.2789171191 | AL154: =+Diets!AP52 -> 0.2781204181 | AM154: =+Diets!AQ52 -> 0.2773077831 | AN154: =+Diets!AR52 -> 0.2764788954 | AO154: =+Diets!AS52 -> 0.27563343 | AP154: =+Diets!AT52 -> 0.2747710552 | AQ154: =+Diets!AU52 -> 0.2743312441 | AR154: =+Diets!AV52 -> 0.2738870349 | AS154: =+Diets!AW52 -> 0.2734383836 | AT154: =+Diets!AX52 -> 0.2729852457 | AU154: =+Diets!AY52 -> 0.2725275765 | AV154: =+Diets!AZ52 -> 0.2720653306 | AW154: =+Diets!BA52 -> 0.2715984622 | AX154: =+Diets!BB52 -> 0.2711269252 | AY154: =+Diets!BC52 -> 0.2706506727 | AZ154: =+Diets!BD52 -> 0.2701696578 | BA154: =+Diets!BE52 -> 0.2696838327 | BB154: =+Diets!BF52 -> 0.2691931493 | BC154: =+Diets!BG52 -> 0.2686975592 | BD154: =+Diets!BH52 -> 0.2681970131 | BE154: =+Diets!BI52 -> 0.2676914615 | BF154: =+Diets!BJ52 -> 0.2671808545 | BG154: =+Diets!BK52 -> 0.2666651413 | BH154: =+Diets!BL52 -> 0.2661442711 | BI154: =+Diets!BM52 -> 0.2656181921 | BJ154: =+Diets!BN52 -> 0.2650868523 | BK154: =+Diets!BO52 -> 0.2645501992 | BL154: =+Diets!BP52 -> 0.2640081795 | BM154: =+Diets!BQ52 -> 0.2634607396 | BN154: =+Diets!BR52 -> 0.2629078254 | BO154: =+Diets!BS52 -> 0.2623493819 | BP154: =+Diets!BT52 -> 0.2617853541 | BQ154: =+Diets!BU52 -> 0.2612156859 | BR154: =+Diets!BV52 -> 0.2606403211 | BS154: =+Diets!BW52 -> 0.2600592027 | BT154: =+Diets!BX52 -> 0.259472273 | BU154: =+Diets!BY52 -> 0.2588794741 | BV154: =+Diets!BZ52 -> 0.2582807471 | BW154: =+Diets!CA52 -> 0.2576760329 | BX154: =+Diets!CB52 -> 0.2570652716 | BY154: =+Diets!CC52 -> 0.2564484026 | BZ154: =+Diets!CD52 -> 0.255825365 | CA154: =+Diets!CE52 -> 0.2551960969 | CB154: =+Diets!CF52 -> 0.2545605362 | CC154: =+Diets!CG52 -> 0.2539186199 | CD154: =+Diets!CH52 -> 0.2532702844 | CE154: =+Diets!CI52 -> 0.2526154656 | CF154: =+Diets!CJ52 -> 0.2519540986 | CG154: =+Diets!CK52 -> 0.2512861179 | CH154: =+Diets!CL52 -> 0.2506114574 | CI154: =+Diets!CM52 -> 0.2499300503 | CJ154: =+Diets!CN52 -> 0.2492418291 | CK154: =+Diets!CO52 -> 0.2485467257 | CL154: =+Diets!CP52 -> 0.2478446713 | CM154: =+Diets!CQ52 -> 0.2471355964
A155: CSA | B155: =+Diets!F53 -> 0.2725284414 | C155: =+Diets!G53 -> 0.2725284414 | D155: =+Diets!H53 -> 0.2721455848 | E155: =+Diets!I53 -> 0.2715980005 | F155: =+Diets!J53 -> 0.2715980005 | G155: =+Diets!K53 -> 0.2715980005 | H155: =+Diets!L53 -> 0.2715980005 | I155: =+Diets!M53 -> 0.2715980005 | J155: =+Diets!N53 -> 0.2715980005 | K155: =+Diets!O53 -> 0.2713180775 | L155: =+Diets!P53 -> 0.2707615507 | M155: =+Diets!Q53 -> 0.2701938933 | N155: =+Diets!R53 -> 0.2696148828 | O155: =+Diets!S53 -> 0.2690242921 | P155: =+Diets!T53 -> 0.2684218895 | Q155: =+Diets!U53 -> 0.2678074389 | R155: =+Diets!V53 -> 0.2671806993 | S155: =+Diets!W53 -> 0.2665414249 | T155: =+Diets!X53 -> 0.265889365 | U155: =+Diets!Y53 -> 0.2652242639 | V155: =+Diets!Z53 -> 0.2645458608 | W155: =+Diets!AA53 -> 0.2638538896 | X155: =+Diets!AB53 -> 0.263148079 | Y155: =+Diets!AC53 -> 0.2624281522 | Z155: =+Diets!AD53 -> 0.2616938269 | AA155: =+Diets!AE53 -> 0.260944815 | AB155: =+Diets!AF53 -> 0.2601808229 | AC155: =+Diets!AG53 -> 0.259401551 | AD155: =+Diets!AH53 -> 0.2586066936 | AE155: =+Diets!AI53 -> 0.2577959391 | AF155: =+Diets!AJ53 -> 0.2569689695 | AG155: =+Diets!AK53 -> 0.2561254605 | AH155: =+Diets!AL53 -> 0.2552650813 | AI155: =+Diets!AM53 -> 0.2543874946 | AJ155: =+Diets!AN53 -> 0.2534923561 | AK155: =+Diets!AO53 -> 0.2525793148 | AL155: =+Diets!AP53 -> 0.2516480127 | AM155: =+Diets!AQ53 -> 0.2506980846 | AN155: =+Diets!AR53 -> 0.2497291579 | AO155: =+Diets!AS53 -> 0.2487408526 | AP155: =+Diets!AT53 -> 0.2477327813 | AQ155: =+Diets!AU53 -> 0.2472186649 | AR155: =+Diets!AV53 -> 0.2466994074 | AS155: =+Diets!AW53 -> 0.2461749572 | AT155: =+Diets!AX53 -> 0.2456452626 | AU155: =+Diets!AY53 -> 0.245110271 | AV155: =+Diets!AZ53 -> 0.2445699296 | AW155: =+Diets!BA53 -> 0.2440241847 | AX155: =+Diets!BB53 -> 0.2434729823 | AY155: =+Diets!BC53 -> 0.2429162679 | AZ155: =+Diets!BD53 -> 0.2423539864 | BA155: =+Diets!BE53 -> 0.2417860821 | BB155: =+Diets!BF53 -> 0.2412124987 | BC155: =+Diets!BG53 -> 0.2406331795 | BD155: =+Diets!BH53 -> 0.2400480671 | BE155: =+Diets!BI53 -> 0.2394571036 | BF155: =+Diets!BJ53 -> 0.2388602304 | BG155: =+Diets!BK53 -> 0.2382573885 | BH155: =+Diets!BL53 -> 0.2376485182 | BI155: =+Diets!BM53 -> 0.2370335592 | BJ155: =+Diets!BN53 -> 0.2364124506 | BK155: =+Diets!BO53 -> 0.2357851309 | BL155: =+Diets!BP53 -> 0.235151538 | BM155: =+Diets!BQ53 -> 0.2345116092 | BN155: =+Diets!BR53 -> 0.2338652811 | BO155: =+Diets!BS53 -> 0.2332124897 | BP155: =+Diets!BT53 -> 0.2325531704 | BQ155: =+Diets!BU53 -> 0.231887258 | BR155: =+Diets!BV53 -> 0.2312146863 | BS155: =+Diets!BW53 -> 0.230535389 | BT155: =+Diets!BX53 -> 0.2298492987 | BU155: =+Diets!BY53 -> 0.2291563475 | BV155: =+Diets!BZ53 -> 0.2284564668 | BW155: =+Diets!CA53 -> 0.2277495872 | BX155: =+Diets!CB53 -> 0.2270356389 | BY155: =+Diets!CC53 -> 0.2263145511 | BZ155: =+Diets!CD53 -> 0.2255862524 | CA155: =+Diets!CE53 -> 0.2248506708 | CB155: =+Diets!CF53 -> 0.2241077333 | CC155: =+Diets!CG53 -> 0.2233573664 | CD155: =+Diets!CH53 -> 0.2225994959 | CE155: =+Diets!CI53 -> 0.2218340466 | CF155: =+Diets!CJ53 -> 0.2210609429 | CG155: =+Diets!CK53 -> 0.2202801081 | CH155: =+Diets!CL53 -> 0.219491465 | CI155: =+Diets!CM53 -> 0.2186949355 | CJ155: =+Diets!CN53 -> 0.2178904406 | CK155: =+Diets!CO53 -> 0.2170779009 | CL155: =+Diets!CP53 -> 0.2162572357 | CM155: =+Diets!CQ53 -> 0.2154283638
A156: EUR | B156: =+Diets!F54 -> 0.3425245908 | C156: =+Diets!G54 -> 0.3425245908 | D156: =+Diets!H54 -> 0.3425245908 | E156: =+Diets!I54 -> 0.3425245908 | F156: =+Diets!J54 -> 0.3379815869 | G156: =+Diets!K54 -> 0.3288398023 | H156: =+Diets!L54 -> 0.318924221 | I156: =+Diets!M54 -> 0.3088103282 | J156: =+Diets!N54 -> 0.2984941574 | K156: =+Diets!O54 -> 0.2879716633 | L156: =+Diets!P54 -> 0.2772387192 | M156: =+Diets!Q54 -> 0.2662911163 | N156: =+Diets!R54 -> 0.2551245614 | O156: =+Diets!S54 -> 0.2437346753 | P156: =+Diets!T54 -> 0.2321169915 | Q156: =+Diets!U54 -> 0.220266954 | R156: =+Diets!V54 -> 0.2081799158 | S156: =+Diets!W54 -> 0.1958511368 | T156: =+Diets!X54 -> 0.1832757822 | U156: =+Diets!Y54 -> 0.1704489206 | V156: =+Diets!Z54 -> 0.1704489206 | W156: =+Diets!AA54 -> 0.1704489206 | X156: =+Diets!AB54 -> 0.1704489206 | Y156: =+Diets!AC54 -> 0.1704489206 | Z156: =+Diets!AD54 -> 0.1704489206 | AA156: =+Diets!AE54 -> 0.1704489206 | AB156: =+Diets!AF54 -> 0.1704489206 | AC156: =+Diets!AG54 -> 0.1704489206 | AD156: =+Diets!AH54 -> 0.1704489206 | AE156: =+Diets!AI54 -> 0.1704489206 | AF156: =+Diets!AJ54 -> 0.1704489206 | AG156: =+Diets!AK54 -> 0.1704489206 | AH156: =+Diets!AL54 -> 0.1704489206 | AI156: =+Diets!AM54 -> 0.1704489206 | AJ156: =+Diets!AN54 -> 0.1704489206 | AK156: =+Diets!AO54 -> 0.1704489206 | AL156: =+Diets!AP54 -> 0.1704489206 | AM156: =+Diets!AQ54 -> 0.1704489206 | AN156: =+Diets!AR54 -> 0.1704489206 | AO156: =+Diets!AS54 -> 0.1704489206 | AP156: =+Diets!AT54 -> 0.1704489206 | AQ156: =+Diets!AU54 -> 0.1704489206 | AR156: =+Diets!AV54 -> 0.1704489206 | AS156: =+Diets!AW54 -> 0.1704489206 | AT156: =+Diets!AX54 -> 0.1704489206 | AU156: =+Diets!AY54 -> 0.1704489206 | AV156: =+Diets!AZ54 -> 0.1704489206 | AW156: =+Diets!BA54 -> 0.1704489206 | AX156: =+Diets!BB54 -> 0.1704489206 | AY156: =+Diets!BC54 -> 0.1704489206 | AZ156: =+Diets!BD54 -> 0.1704489206 | BA156: =+Diets!BE54 -> 0.1704489206 | BB156: =+Diets!BF54 -> 0.1704489206 | BC156: =+Diets!BG54 -> 0.1704489206 | BD156: =+Diets!BH54 -> 0.1704489206 | BE156: =+Diets!BI54 -> 0.1704489206 | BF156: =+Diets!BJ54 -> 0.1704489206 | BG156: =+Diets!BK54 -> 0.1704489206 | BH156: =+Diets!BL54 -> 0.1704489206 | BI156: =+Diets!BM54 -> 0.1704489206 | BJ156: =+Diets!BN54 -> 0.1704489206 | BK156: =+Diets!BO54 -> 0.1704489206 | BL156: =+Diets!BP54 -> 0.1704489206 | BM156: =+Diets!BQ54 -> 0.1704489206 | BN156: =+Diets!BR54 -> 0.1704489206 | BO156: =+Diets!BS54 -> 0.1704489206 | BP156: =+Diets!BT54 -> 0.1704489206 | BQ156: =+Diets!BU54 -> 0.1704489206 | BR156: =+Diets!BV54 -> 0.1704489206 | BS156: =+Diets!BW54 -> 0.1704489206 | BT156: =+Diets!BX54 -> 0.1704489206 | BU156: =+Diets!BY54 -> 0.1704489206 | BV156: =+Diets!BZ54 -> 0.1704489206 | BW156: =+Diets!CA54 -> 0.1704489206 | BX156: =+Diets!CB54 -> 0.1704489206 | BY156: =+Diets!CC54 -> 0.1704489206 | BZ156: =+Diets!CD54 -> 0.1704489206 | CA156: =+Diets!CE54 -> 0.1704489206 | CB156: =+Diets!CF54 -> 0.1704489206 | CC156: =+Diets!CG54 -> 0.1704489206 | CD156: =+Diets!CH54 -> 0.1704489206 | CE156: =+Diets!CI54 -> 0.1704489206 | CF156: =+Diets!CJ54 -> 0.1704489206 | CG156: =+Diets!CK54 -> 0.1704489206 | CH156: =+Diets!CL54 -> 0.1704489206 | CI156: =+Diets!CM54 -> 0.1704489206 | CJ156: =+Diets!CN54 -> 0.1704489206 | CK156: =+Diets!CO54 -> 0.1704489206 | CL156: =+Diets!CP54 -> 0.1704489206 | CM156: =+Diets!CQ54 -> 0.1704489206
A157: IND | B157: =+Diets!F55 -> 0.7563129671 | C157: =+Diets!G55 -> 0.7563129671 | D157: =+Diets!H55 -> 0.7555730413 | E157: =+Diets!I55 -> 0.7546014671 | F157: =+Diets!J55 -> 0.7534504332 | G157: =+Diets!K55 -> 0.7520733273 | H157: =+Diets!L55 -> 0.7516307672 | I157: =+Diets!M55 -> 0.7511793559 | J157: =+Diets!N55 -> 0.7507189164 | K157: =+Diets!O55 -> 0.7502492681 | L157: =+Diets!P55 -> 0.7497702268 | M157: =+Diets!Q55 -> 0.7492816047 | N157: =+Diets!R55 -> 0.7487832102 | O157: =+Diets!S55 -> 0.7482748477 | P157: =+Diets!T55 -> 0.747756318 | Q157: =+Diets!U55 -> 0.7472274178 | R157: =+Diets!V55 -> 0.7466879395 | S157: =+Diets!W55 -> 0.7461376717 | T157: =+Diets!X55 -> 0.7455763985 | U157: =+Diets!Y55 -> 0.7450038998 | V157: =+Diets!Z55 -> 0.7444199512 | W157: =+Diets!AA55 -> 0.7438243235 | X157: =+Diets!AB55 -> 0.7432167834 | Y157: =+Diets!AC55 -> 0.7425970924 | Z157: =+Diets!AD55 -> 0.7419650076 | AA157: =+Diets!AE55 -> 0.7413202811 | AB157: =+Diets!AF55 -> 0.7406626601 | AC157: =+Diets!AG55 -> 0.7399918867 | AD157: =+Diets!AH55 -> 0.7393076978 | AE157: =+Diets!AI55 -> 0.7386098251 | AF157: =+Diets!AJ55 -> 0.737897995 | AG157: =+Diets!AK55 -> 0.7371719283 | AH157: =+Diets!AL55 -> 0.7364313402 | AI157: =+Diets!AM55 -> 0.7356759404 | AJ157: =+Diets!AN55 -> 0.7349054325 | AK157: =+Diets!AO55 -> 0.7341195146 | AL157: =+Diets!AP55 -> 0.7333178782 | AM157: =+Diets!AQ55 -> 0.7325002091 | AN157: =+Diets!AR55 -> 0.7316661867 | AO157: =+Diets!AS55 -> 0.7308154838 | AP157: =+Diets!AT55 -> 0.7299477668 | AQ157: =+Diets!AU55 -> 0.7295052312 | AR157: =+Diets!AV55 -> 0.7290582702 | AS157: =+Diets!AW55 -> 0.7286068396 | AT157: =+Diets!AX55 -> 0.7281508947 | AU157: =+Diets!AY55 -> 0.7276903903 | AV157: =+Diets!AZ55 -> 0.7272252809 | AW157: =+Diets!BA55 -> 0.7267555204 | AX157: =+Diets!BB55 -> 0.7262810622 | AY157: =+Diets!BC55 -> 0.7258018596 | AZ157: =+Diets!BD55 -> 0.7253178648 | BA157: =+Diets!BE55 -> 0.7248290302 | BB157: =+Diets!BF55 -> 0.7243353071 | BC157: =+Diets!BG55 -> 0.7238366469 | BD157: =+Diets!BH55 -> 0.7233330001 | BE157: =+Diets!BI55 -> 0.7228243167 | BF157: =+Diets!BJ55 -> 0.7223105466 | BG157: =+Diets!BK55 -> 0.7217916387 | BH157: =+Diets!BL55 -> 0.7212675418 | BI157: =+Diets!BM55 -> 0.7207382039 | BJ157: =+Diets!BN55 -> 0.7202035726 | BK157: =+Diets!BO55 -> 0.719663595 | BL157: =+Diets!BP55 -> 0.7191182177 | BM157: =+Diets!BQ55 -> 0.7185673865 | BN157: =+Diets!BR55 -> 0.7180110471 | BO157: =+Diets!BS55 -> 0.7174491442 | BP157: =+Diets!BT55 -> 0.7168816224 | BQ157: =+Diets!BU55 -> 0.7163084253 | BR157: =+Diets!BV55 -> 0.7157294962 | BS157: =+Diets!BW55 -> 0.7151447779 | BT157: =+Diets!BX55 -> 0.7145542123 | BU157: =+Diets!BY55 -> 0.7139577411 | BV157: =+Diets!BZ55 -> 0.7133553052 | BW157: =+Diets!CA55 -> 0.712746845 | BX157: =+Diets!CB55 -> 0.7121323001 | BY157: =+Diets!CC55 -> 0.7115116098 | BZ157: =+Diets!CD55 -> 0.7108847125 | CA157: =+Diets!CE55 -> 0.7102515464 | CB157: =+Diets!CF55 -> 0.7096120485 | CC157: =+Diets!CG55 -> 0.7089661557 | CD157: =+Diets!CH55 -> 0.7083138039 | CE157: =+Diets!CI55 -> 0.7076549286 | CF157: =+Diets!CJ55 -> 0.7069894646 | CG157: =+Diets!CK55 -> 0.7063173459 | CH157: =+Diets!CL55 -> 0.7056385061 | CI157: =+Diets!CM55 -> 0.7049528778 | CJ157: =+Diets!CN55 -> 0.7042603933 | CK157: =+Diets!CO55 -> 0.7035609839 | CL157: =+Diets!CP55 -> 0.7028545804 | CM157: =+Diets!CQ55 -> 0.7021411129
A158: JPN | B158: =+Diets!F56 -> 0.1942363475 | C158: =+Diets!G56 -> 0.1942363475 | D158: =+Diets!H56 -> 0.1877700569 | E158: =+Diets!I56 -> 0.1793337652 | F158: =+Diets!J56 -> 0.1773601545 | G158: =+Diets!K56 -> 0.1719626199 | H158: =+Diets!L56 -> 0.1639032404 | I158: =+Diets!M56 -> 0.1639032404 | J158: =+Diets!N56 -> 0.1639032404 | K158: =+Diets!O56 -> 0.1639032404 | L158: =+Diets!P56 -> 0.1639032404 | M158: =+Diets!Q56 -> 0.1639032404 | N158: =+Diets!R56 -> 0.1639032404 | O158: =+Diets!S56 -> 0.1639032404 | P158: =+Diets!T56 -> 0.1639032404 | Q158: =+Diets!U56 -> 0.1639032404 | R158: =+Diets!V56 -> 0.1639032404 | S158: =+Diets!W56 -> 0.1639032404 | T158: =+Diets!X56 -> 0.1639032404 | U158: =+Diets!Y56 -> 0.1639032404 | V158: =+Diets!Z56 -> 0.1639032404 | W158: =+Diets!AA56 -> 0.1639032404 | X158: =+Diets!AB56 -> 0.1639032404 | Y158: =+Diets!AC56 -> 0.1639032404 | Z158: =+Diets!AD56 -> 0.1639032404 | AA158: =+Diets!AE56 -> 0.1639032404 | AB158: =+Diets!AF56 -> 0.1639032404 | AC158: =+Diets!AG56 -> 0.1639032404 | AD158: =+Diets!AH56 -> 0.1639032404 | AE158: =+Diets!AI56 -> 0.1639032404 | AF158: =+Diets!AJ56 -> 0.1639032404 | AG158: =+Diets!AK56 -> 0.1639032404 | AH158: =+Diets!AL56 -> 0.1639032404 | AI158: =+Diets!AM56 -> 0.1639032404 | AJ158: =+Diets!AN56 -> 0.1639032404 | AK158: =+Diets!AO56 -> 0.1639032404 | AL158: =+Diets!AP56 -> 0.1639032404 | AM158: =+Diets!AQ56 -> 0.1639032404 | AN158: =+Diets!AR56 -> 0.1639032404 | AO158: =+Diets!AS56 -> 0.1639032404 | AP158: =+Diets!AT56 -> 0.1639032404 | AQ158: =+Diets!AU56 -> 0.1639032404 | AR158: =+Diets!AV56 -> 0.1639032404 | AS158: =+Diets!AW56 -> 0.1639032404 | AT158: =+Diets!AX56 -> 0.1639032404 | AU158: =+Diets!AY56 -> 0.1639032404 | AV158: =+Diets!AZ56 -> 0.1639032404 | AW158: =+Diets!BA56 -> 0.1639032404 | AX158: =+Diets!BB56 -> 0.1639032404 | AY158: =+Diets!BC56 -> 0.1639032404 | AZ158: =+Diets!BD56 -> 0.1639032404 | BA158: =+Diets!BE56 -> 0.1639032404 | BB158: =+Diets!BF56 -> 0.1639032404 | BC158: =+Diets!BG56 -> 0.1639032404 | BD158: =+Diets!BH56 -> 0.1639032404 | BE158: =+Diets!BI56 -> 0.1639032404 | BF158: =+Diets!BJ56 -> 0.1639032404 | BG158: =+Diets!BK56 -> 0.1639032404 | BH158: =+Diets!BL56 -> 0.1639032404 | BI158: =+Diets!BM56 -> 0.1639032404 | BJ158: =+Diets!BN56 -> 0.1639032404 | BK158: =+Diets!BO56 -> 0.1639032404 | BL158: =+Diets!BP56 -> 0.1639032404 | BM158: =+Diets!BQ56 -> 0.1639032404 | BN158: =+Diets!BR56 -> 0.1639032404 | BO158: =+Diets!BS56 -> 0.1639032404 | BP158: =+Diets!BT56 -> 0.1639032404 | BQ158: =+Diets!BU56 -> 0.1639032404 | BR158: =+Diets!BV56 -> 0.1639032404 | BS158: =+Diets!BW56 -> 0.1639032404 | BT158: =+Diets!BX56 -> 0.1639032404 | BU158: =+Diets!BY56 -> 0.1639032404 | BV158: =+Diets!BZ56 -> 0.1639032404 | BW158: =+Diets!CA56 -> 0.1639032404 | BX158: =+Diets!CB56 -> 0.1639032404 | BY158: =+Diets!CC56 -> 0.1639032404 | BZ158: =+Diets!CD56 -> 0.1639032404 | CA158: =+Diets!CE56 -> 0.1639032404 | CB158: =+Diets!CF56 -> 0.1639032404 | CC158: =+Diets!CG56 -> 0.1639032404 | CD158: =+Diets!CH56 -> 0.1639032404 | CE158: =+Diets!CI56 -> 0.1639032404 | CF158: =+Diets!CJ56 -> 0.1639032404 | CG158: =+Diets!CK56 -> 0.1639032404 | CH158: =+Diets!CL56 -> 0.1639032404 | CI158: =+Diets!CM56 -> 0.1639032404 | CJ158: =+Diets!CN56 -> 0.1639032404 | CK158: =+Diets!CO56 -> 0.1639032404 | CL158: =+Diets!CP56 -> 0.1639032404 | CM158: =+Diets!CQ56 -> 0.1639032404
A159: MEA | B159: =+Diets!F57 -> 0.3005325299 | C159: =+Diets!G57 -> 0.3005325299 | D159: =+Diets!H57 -> 0.3003060202 | E159: =+Diets!I57 -> 0.2999945211 | F159: =+Diets!J57 -> 0.2996104973 | G159: =+Diets!K57 -> 0.2916619029 | H159: =+Diets!L57 -> 0.2906481225 | I159: =+Diets!M57 -> 0.2896140665 | J159: =+Diets!N57 -> 0.2885593294 | K159: =+Diets!O57 -> 0.2874834976 | L159: =+Diets!P57 -> 0.2863861491 | M159: =+Diets!Q57 -> 0.2852668536 | N159: =+Diets!R57 -> 0.2841251722 | O159: =+Diets!S57 -> 0.2829606572 | P159: =+Diets!T57 -> 0.2817728519 | Q159: =+Diets!U57 -> 0.2805612905 | R159: =+Diets!V57 -> 0.2793254979 | S159: =+Diets!W57 -> 0.2780649894 | T159: =+Diets!X57 -> 0.2767792707 | U159: =+Diets!Y57 -> 0.2754678377 | V159: =+Diets!Z57 -> 0.274130176 | W159: =+Diets!AA57 -> 0.2727657611 | X159: =+Diets!AB57 -> 0.2713740579 | Y159: =+Diets!AC57 -> 0.2699545206 | Z159: =+Diets!AD57 -> 0.2685065925 | AA159: =+Diets!AE57 -> 0.267029706 | AB159: =+Diets!AF57 -> 0.2655232816 | AC159: =+Diets!AG57 -> 0.2639867288 | AD159: =+Diets!AH57 -> 0.2624194449 | AE159: =+Diets!AI57 -> 0.2608208154 | AF159: =+Diets!AJ57 -> 0.2591902133 | AG159: =+Diets!AK57 -> 0.2575269991 | AH159: =+Diets!AL57 -> 0.2558305206 | AI159: =+Diets!AM57 -> 0.2541001126 | AJ159: =+Diets!AN57 -> 0.2523350964 | AK159: =+Diets!AO57 -> 0.2505347799 | AL159: =+Diets!AP57 -> 0.248698457 | AM159: =+Diets!AQ57 -> 0.2468254077 | AN159: =+Diets!AR57 -> 0.2449148974 | AO159: =+Diets!AS57 -> 0.2429661769 | AP159: =+Diets!AT57 -> 0.240978482 | AQ159: =+Diets!AU57 -> 0.2399647576 | AR159: =+Diets!AV57 -> 0.238940896 | AS159: =+Diets!AW57 -> 0.2379067957 | AT159: =+Diets!AX57 -> 0.2368623544 | AU159: =+Diets!AY57 -> 0.2358074687 | AV159: =+Diets!AZ57 -> 0.2347420342 | AW159: =+Diets!BA57 -> 0.2336659453 | AX159: =+Diets!BB57 -> 0.2325790956 | AY159: =+Diets!BC57 -> 0.2314813773 | AZ159: =+Diets!BD57 -> 0.2303726818 | BA159: =+Diets!BE57 -> 0.2292528994 | BB159: =+Diets!BF57 -> 0.2281219192 | BC159: =+Diets!BG57 -> 0.2269796292 | BD159: =+Diets!BH57 -> 0.2258259162 | BE159: =+Diets!BI57 -> 0.2246606662 | BF159: =+Diets!BJ57 -> 0.2234837636 | BG159: =+Diets!BK57 -> 0.222295092 | BH159: =+Diets!BL57 -> 0.2210945337 | BI159: =+Diets!BM57 -> 0.2198819698 | BJ159: =+Diets!BN57 -> 0.2186572803 | BK159: =+Diets!BO57 -> 0.2174203439 | BL159: =+Diets!BP57 -> 0.2161710381 | BM159: =+Diets!BQ57 -> 0.2149092393 | BN159: =+Diets!BR57 -> 0.2136348224 | BO159: =+Diets!BS57 -> 0.2123476614 | BP159: =+Diets!BT57 -> 0.2110476288 | BQ159: =+Diets!BU57 -> 0.2097345959 | BR159: =+Diets!BV57 -> 0.2084084326 | BS159: =+Diets!BW57 -> 0.2070690077 | BT159: =+Diets!BX57 -> 0.2057161886 | BU159: =+Diets!BY57 -> 0.2043498413 | BV159: =+Diets!BZ57 -> 0.2029698305 | BW159: =+Diets!CA57 -> 0.2015760195 | BX159: =+Diets!CB57 -> 0.2001682705 | BY159: =+Diets!CC57 -> 0.198746444 | BZ159: =+Diets!CD57 -> 0.1973103992 | CA159: =+Diets!CE57 -> 0.195859994 | CB159: =+Diets!CF57 -> 0.1943950847 | CC159: =+Diets!CG57 -> 0.1929155263 | CD159: =+Diets!CH57 -> 0.1914211724 | CE159: =+Diets!CI57 -> 0.1899118749 | CF159: =+Diets!CJ57 -> 0.1883874844 | CG159: =+Diets!CK57 -> 0.18684785 | CH159: =+Diets!CL57 -> 0.1852928193 | CI159: =+Diets!CM57 -> 0.1837222382 | CJ159: =+Diets!CN57 -> 0.1821359514 | CK159: =+Diets!CO57 -> 0.1805338017 | CL159: =+Diets!CP57 -> 0.1789156305 | CM159: =+Diets!CQ57 -> 0.1772812776
A160: MEX | B160: =+Diets!F58 -> 0.4426095637 | C160: =+Diets!G58 -> 0.4426095637 | D160: =+Diets!H58 -> 0.4409389465 | E160: =+Diets!I58 -> 0.4409389465 | F160: =+Diets!J58 -> 0.4403402982 | G160: =+Diets!K58 -> 0.4395658481 | H160: =+Diets!L58 -> 0.4382022125 | I160: =+Diets!M58 -> 0.4368113042 | J160: =+Diets!N58 -> 0.4353925778 | K160: =+Diets!O58 -> 0.4339454768 | L160: =+Diets!P58 -> 0.4324694338 | M160: =+Diets!Q58 -> 0.4309638699 | N160: =+Diets!R58 -> 0.4294281948 | O160: =+Diets!S58 -> 0.4278618061 | P160: =+Diets!T58 -> 0.4262640897 | Q160: =+Diets!U58 -> 0.424634419 | R160: =+Diets!V58 -> 0.4229721548 | S160: =+Diets!W58 -> 0.4212766453 | T160: =+Diets!X58 -> 0.4195472257 | U160: =+Diets!Y58 -> 0.4177832177 | V160: =+Diets!Z58 -> 0.4159839295 | W160: =+Diets!AA58 -> 0.4141486555 | X160: =+Diets!AB58 -> 0.4122766761 | Y160: =+Diets!AC58 -> 0.4103672571 | Z160: =+Diets!AD58 -> 0.4084196497 | AA160: =+Diets!AE58 -> 0.4064330901 | AB160: =+Diets!AF58 -> 0.4044067994 | AC160: =+Diets!AG58 -> 0.4023399828 | AD160: =+Diets!AH58 -> 0.4002318299 | AE160: =+Diets!AI58 -> 0.398081514 | AF160: =+Diets!AJ58 -> 0.3958881917 | AG160: =+Diets!AK58 -> 0.393651003 | AH160: =+Diets!AL58 -> 0.3913690705 | AI160: =+Diets!AM58 -> 0.3890414994 | AJ160: =+Diets!AN58 -> 0.3866673768 | AK160: =+Diets!AO58 -> 0.3842457718 | AL160: =+Diets!AP58 -> 0.3817757347 | AM160: =+Diets!AQ58 -> 0.3792562969 | AN160: =+Diets!AR58 -> 0.3766864703 | AO160: =+Diets!AS58 -> 0.3740652471 | AP160: =+Diets!AT58 -> 0.3713915995 | AQ160: =+Diets!AU58 -> 0.3700280393 | AR160: =+Diets!AV58 -> 0.3686508434 | AS160: =+Diets!AW58 -> 0.3672598755 | AT160: =+Diets!AX58 -> 0.365854998 | AU160: =+Diets!AY58 -> 0.3644360717 | AV160: =+Diets!AZ58 -> 0.3630029562 | AW160: =+Diets!BA58 -> 0.3615555095 | AX160: =+Diets!BB58 -> 0.3600935883 | AY160: =+Diets!BC58 -> 0.3586170479 | AZ160: =+Diets!BD58 -> 0.3571257421 | BA160: =+Diets!BE58 -> 0.3556195233 | BB160: =+Diets!BF58 -> 0.3540982422 | BC160: =+Diets!BG58 -> 0.3525617484 | BD160: =+Diets!BH58 -> 0.3510098896 | BE160: =+Diets!BI58 -> 0.3494425122 | BF160: =+Diets!BJ58 -> 0.3478594611 | BG160: =+Diets!BK58 -> 0.3462605794 | BH160: =+Diets!BL58 -> 0.3446457089 | BI160: =+Diets!BM58 -> 0.3430146897 | BJ160: =+Diets!BN58 -> 0.3413673604 | BK160: =+Diets!BO58 -> 0.3397035577 | BL160: =+Diets!BP58 -> 0.338023117 | BM160: =+Diets!BQ58 -> 0.3363258719 | BN160: =+Diets!BR58 -> 0.3346116543 | BO160: =+Diets!BS58 -> 0.3328802946 | BP160: =+Diets!BT58 -> 0.3311316213 | BQ160: =+Diets!BU58 -> 0.3293654612 | BR160: =+Diets!BV58 -> 0.3275816396 | BS160: =+Diets!BW58 -> 0.3257799797 | BT160: =+Diets!BX58 -> 0.3239603032 | BU160: =+Diets!BY58 -> 0.32212243 | BV160: =+Diets!BZ58 -> 0.320266178 | BW160: =+Diets!CA58 -> 0.3183913635 | BX160: =+Diets!CB58 -> 0.3164978009 | BY160: =+Diets!CC58 -> 0.3145853026 | BZ160: =+Diets!CD58 -> 0.3126536794 | CA160: =+Diets!CE58 -> 0.3107027399 | CB160: =+Diets!CF58 -> 0.308732291 | CC160: =+Diets!CG58 -> 0.3067421376 | CD160: =+Diets!CH58 -> 0.3047320828 | CE160: =+Diets!CI58 -> 0.3027019273 | CF160: =+Diets!CJ58 -> 0.3006514703 | CG160: =+Diets!CK58 -> 0.2985805087 | CH160: =+Diets!CL58 -> 0.2964888376 | CI160: =+Diets!CM58 -> 0.2943762497 | CJ160: =+Diets!CN58 -> 0.2922425359 | CK160: =+Diets!CO58 -> 0.290087485 | CL160: =+Diets!CP58 -> 0.2879108836 | CM160: =+Diets!CQ58 -> 0.2857125161
A161: ODA | B161: =+Diets!F59 -> 0.5314647479 | C161: =+Diets!G59 -> 0.5314647479 | D161: =+Diets!H59 -> 0.5306151989 | E161: =+Diets!I59 -> 0.5298872934 | F161: =+Diets!J59 -> 0.5292228017 | G161: =+Diets!K59 -> 0.5284844752 | H161: =+Diets!L59 -> 0.5280316205 | I161: =+Diets!M59 -> 0.5275697088 | J161: =+Diets!N59 -> 0.5270985589 | K161: =+Diets!O59 -> 0.5266179859 | L161: =+Diets!P59 -> 0.5261278015 | M161: =+Diets!Q59 -> 0.5256278134 | N161: =+Diets!R59 -> 0.5251178255 | O161: =+Diets!S59 -> 0.5245976379 | P161: =+Diets!T59 -> 0.5240670465 | Q161: =+Diets!U59 -> 0.5235258433 | R161: =+Diets!V59 -> 0.522973816 | S161: =+Diets!W59 -> 0.5224107482 | T161: =+Diets!X59 -> 0.5218364191 | U161: =+Diets!Y59 -> 0.5212506033 | V161: =+Diets!Z59 -> 0.5206530713 | W161: =+Diets!AA59 -> 0.5200435885 | X161: =+Diets!AB59 -> 0.5194219162 | Y161: =+Diets!AC59 -> 0.5187878104 | Z161: =+Diets!AD59 -> 0.5181410224 | AA161: =+Diets!AE59 -> 0.5174812988 | AB161: =+Diets!AF59 -> 0.5168083806 | AC161: =+Diets!AG59 -> 0.5161220041 | AD161: =+Diets!AH59 -> 0.5154219 | AE161: =+Diets!AI59 -> 0.5147077939 | AF161: =+Diets!AJ59 -> 0.5139794056 | AG161: =+Diets!AK59 -> 0.5132364496 | AH161: =+Diets!AL59 -> 0.5124786345 | AI161: =+Diets!AM59 -> 0.511705663 | AJ161: =+Diets!AN59 -> 0.5109172322 | AK161: =+Diets!AO59 -> 0.5101130327 | AL161: =+Diets!AP59 -> 0.5092927492 | AM161: =+Diets!AQ59 -> 0.5084560601 | AN161: =+Diets!AR59 -> 0.5076026371 | AO161: =+Diets!AS59 -> 0.5067321457 | AP161: =+Diets!AT59 -> 0.5058442445 | AQ161: =+Diets!AU59 -> 0.5053914149 | AR161: =+Diets!AV59 -> 0.504934057 | AS161: =+Diets!AW59 -> 0.5044721255 | AT161: =+Diets!AX59 -> 0.5040055747 | AU161: =+Diets!AY59 -> 0.5035343584 | AV161: =+Diets!AZ59 -> 0.5030584299 | AW161: =+Diets!BA59 -> 0.5025777421 | AX161: =+Diets!BB59 -> 0.5020922475 | AY161: =+Diets!BC59 -> 0.5016018979 | AZ161: =+Diets!BD59 -> 0.5011066448 | BA161: =+Diets!BE59 -> 0.5006064392 | BB161: =+Diets!BF59 -> 0.5001012315 | BC161: =+Diets!BG59 -> 0.4995909717 | BD161: =+Diets!BH59 -> 0.4990756094 | BE161: =+Diets!BI59 -> 0.4985550934 | BF161: =+Diets!BJ59 -> 0.4980293723 | BG161: =+Diets!BK59 -> 0.4974983939 | BH161: =+Diets!BL59 -> 0.4969621058 | BI161: =+Diets!BM59 -> 0.4964204548 | BJ161: =+Diets!BN59 -> 0.4958733873 | BK161: =+Diets!BO59 -> 0.4953208491 | BL161: =+Diets!BP59 -> 0.4947627855 | BM161: =+Diets!BQ59 -> 0.4941991413 | BN161: =+Diets!BR59 -> 0.4936298607 | BO161: =+Diets!BS59 -> 0.4930548872 | BP161: =+Diets!BT59 -> 0.492474164 | BQ161: =+Diets!BU59 -> 0.4918876336 | BR161: =+Diets!BV59 -> 0.4912952378 | BS161: =+Diets!BW59 -> 0.4906969182 | BT161: =+Diets!BX59 -> 0.4900926153 | BU161: =+Diets!BY59 -> 0.4894822694 | BV161: =+Diets!BZ59 -> 0.48886582 | BW161: =+Diets!CA59 -> 0.4882432061 | BX161: =+Diets!CB59 -> 0.4876143661 | BY161: =+Diets!CC59 -> 0.4869792377 | BZ161: =+Diets!CD59 -> 0.486337758 | CA161: =+Diets!CE59 -> 0.4856898635 | CB161: =+Diets!CF59 -> 0.4850354901 | CC161: =+Diets!CG59 -> 0.4843745729 | CD161: =+Diets!CH59 -> 0.4837070466 | CE161: =+Diets!CI59 -> 0.483032845 | CF161: =+Diets!CJ59 -> 0.4823519014 | CG161: =+Diets!CK59 -> 0.4816641483 | CH161: =+Diets!CL59 -> 0.4809695177 | CI161: =+Diets!CM59 -> 0.4802679409 | CJ161: =+Diets!CN59 -> 0.4795593482 | CK161: =+Diets!CO59 -> 0.4788436696 | CL161: =+Diets!CP59 -> 0.4781208342 | CM161: =+Diets!CQ59 -> 0.4773907705
A162: OEE | B162: =+Diets!F60 -> 0.3588438318 | C162: =+Diets!G60 -> 0.3588438318 | D162: =+Diets!H60 -> 0.3587618968 | E162: =+Diets!I60 -> 0.3587618968 | F162: =+Diets!J60 -> 0.3587618968 | G162: =+Diets!K60 -> 0.3587618968 | H162: =+Diets!L60 -> 0.3587618968 | I162: =+Diets!M60 -> 0.3587618968 | J162: =+Diets!N60 -> 0.3587618968 | K162: =+Diets!O60 -> 0.358425929 | L162: =+Diets!P60 -> 0.3580720189 | M162: =+Diets!Q60 -> 0.3577110307 | N162: =+Diets!R60 -> 0.3573428227 | O162: =+Diets!S60 -> 0.3569672505 | P162: =+Diets!T60 -> 0.3565841669 | Q162: =+Diets!U60 -> 0.3561934216 | R162: =+Diets!V60 -> 0.3557948614 | S162: =+Diets!W60 -> 0.35538833 | T162: =+Diets!X60 -> 0.354973668 | U162: =+Diets!Y60 -> 0.3545507128 | V162: =+Diets!Z60 -> 0.3541192984 | W162: =+Diets!AA60 -> 0.3536792558 | X162: =+Diets!AB60 -> 0.3532304123 | Y162: =+Diets!AC60 -> 0.3527725919 | Z162: =+Diets!AD60 -> 0.3523056151 | AA162: =+Diets!AE60 -> 0.3518292988 | AB162: =+Diets!AF60 -> 0.3513434561 | AC162: =+Diets!AG60 -> 0.3508478966 | AD162: =+Diets!AH60 -> 0.350342426 | AE162: =+Diets!AI60 -> 0.3498268459 | AF162: =+Diets!AJ60 -> 0.3493009542 | AG162: =+Diets!AK60 -> 0.3487645446 | AH162: =+Diets!AL60 -> 0.3482174069 | AI162: =+Diets!AM60 -> 0.3476593264 | AJ162: =+Diets!AN60 -> 0.3470900843 | AK162: =+Diets!AO60 -> 0.3465094574 | AL162: =+Diets!AP60 -> 0.3459172179 | AM162: =+Diets!AQ60 -> 0.3453131337 | AN162: =+Diets!AR60 -> 0.3446969677 | AO162: =+Diets!AS60 -> 0.3440684784 | AP162: =+Diets!AT60 -> 0.3434274194 | AQ162: =+Diets!AU60 -> 0.3431004793 | AR162: =+Diets!AV60 -> 0.3427702698 | AS162: =+Diets!AW60 -> 0.3424367582 | AT162: =+Diets!AX60 -> 0.3420999114 | AU162: =+Diets!AY60 -> 0.3417596962 | AV162: =+Diets!AZ60 -> 0.3414160789 | AW162: =+Diets!BA60 -> 0.3410690254 | AX162: =+Diets!BB60 -> 0.3407185013 | AY162: =+Diets!BC60 -> 0.340364472 | AZ162: =+Diets!BD60 -> 0.3400069024 | BA162: =+Diets!BE60 -> 0.3396457571 | BB162: =+Diets!BF60 -> 0.3392810004 | BC162: =+Diets!BG60 -> 0.3389125961 | BD162: =+Diets!BH60 -> 0.3385405077 | BE162: =+Diets!BI60 -> 0.3381646985 | BF162: =+Diets!BJ60 -> 0.3377851312 | BG162: =+Diets!BK60 -> 0.3374017682 | BH162: =+Diets!BL60 -> 0.3370145716 | BI162: =+Diets!BM60 -> 0.336623503 | BJ162: =+Diets!BN60 -> 0.3362285237 | BK162: =+Diets!BO60 -> 0.3358295946 | BL162: =+Diets!BP60 -> 0.3354266763 | BM162: =+Diets!BQ60 -> 0.3350197287 | BN162: =+Diets!BR60 -> 0.3346087117 | BO162: =+Diets!BS60 -> 0.3341935845 | BP162: =+Diets!BT60 -> 0.333774306 | BQ162: =+Diets!BU60 -> 0.3333508348 | BR162: =+Diets!BV60 -> 0.3329231288 | BS162: =+Diets!BW60 -> 0.3324911458 | BT162: =+Diets!BX60 -> 0.3320548429 | BU162: =+Diets!BY60 -> 0.3316141771 | BV162: =+Diets!BZ60 -> 0.3311691045 | BW162: =+Diets!CA60 -> 0.3307195813 | BX162: =+Diets!CB60 -> 0.3302655628 | BY162: =+Diets!CC60 -> 0.3298070041 | BZ162: =+Diets!CD60 -> 0.3293438598 | CA162: =+Diets!CE60 -> 0.3288760841 | CB162: =+Diets!CF60 -> 0.3284036306 | CC162: =+Diets!CG60 -> 0.3279264526 | CD162: =+Diets!CH60 -> 0.3274445028 | CE162: =+Diets!CI60 -> 0.3269577336 | CF162: =+Diets!CJ60 -> 0.3264660966 | CG162: =+Diets!CK60 -> 0.3259695432 | CH162: =+Diets!CL60 -> 0.3254680244 | CI162: =+Diets!CM60 -> 0.3249614903 | CJ162: =+Diets!CN60 -> 0.3244498909 | CK162: =+Diets!CO60 -> 0.3239331755 | CL162: =+Diets!CP60 -> 0.3234112929 | CM162: =+Diets!CQ60 -> 0.3228841916
A163: RUS | B163: =+Diets!F61 -> 0.1547824652 | C163: =+Diets!G61 -> 0.1547824652 | D163: =+Diets!H61 -> 0.1547824652 | E163: =+Diets!I61 -> 0.1547824652 | F163: =+Diets!J61 -> 0.1547824652 | G163: =+Diets!K61 -> 0.1547824652 | H163: =+Diets!L61 -> 0.1547824652 | I163: =+Diets!M61 -> 0.1547824652 | J163: =+Diets!N61 -> 0.1547824652 | K163: =+Diets!O61 -> 0.1547824652 | L163: =+Diets!P61 -> 0.1547824652 | M163: =+Diets!Q61 -> 0.1547824652 | N163: =+Diets!R61 -> 0.1547824652 | O163: =+Diets!S61 -> 0.1547824652 | P163: =+Diets!T61 -> 0.1547824652 | Q163: =+Diets!U61 -> 0.1547824652 | R163: =+Diets!V61 -> 0.1547824652 | S163: =+Diets!W61 -> 0.1547824652 | T163: =+Diets!X61 -> 0.1547824652 | U163: =+Diets!Y61 -> 0.1547824652 | V163: =+Diets!Z61 -> 0.1547824652 | W163: =+Diets!AA61 -> 0.1547824652 | X163: =+Diets!AB61 -> 0.1547824652 | Y163: =+Diets!AC61 -> 0.1547824652 | Z163: =+Diets!AD61 -> 0.1547824652 | AA163: =+Diets!AE61 -> 0.1547824652 | AB163: =+Diets!AF61 -> 0.1547824652 | AC163: =+Diets!AG61 -> 0.1547824652 | AD163: =+Diets!AH61 -> 0.1547824652 | AE163: =+Diets!AI61 -> 0.1547824652 | AF163: =+Diets!AJ61 -> 0.1547824652 | AG163: =+Diets!AK61 -> 0.1547824652 | AH163: =+Diets!AL61 -> 0.1547824652 | AI163: =+Diets!AM61 -> 0.1547824652 | AJ163: =+Diets!AN61 -> 0.1547824652 | AK163: =+Diets!AO61 -> 0.1547824652 | AL163: =+Diets!AP61 -> 0.1547824652 | AM163: =+Diets!AQ61 -> 0.1547824652 | AN163: =+Diets!AR61 -> 0.1547824652 | AO163: =+Diets!AS61 -> 0.1547824652 | AP163: =+Diets!AT61 -> 0.1547824652 | AQ163: =+Diets!AU61 -> 0.1547824652 | AR163: =+Diets!AV61 -> 0.1547824652 | AS163: =+Diets!AW61 -> 0.1547824652 | AT163: =+Diets!AX61 -> 0.1547824652 | AU163: =+Diets!AY61 -> 0.1547824652 | AV163: =+Diets!AZ61 -> 0.1547824652 | AW163: =+Diets!BA61 -> 0.1547824652 | AX163: =+Diets!BB61 -> 0.1547824652 | AY163: =+Diets!BC61 -> 0.1547824652 | AZ163: =+Diets!BD61 -> 0.1547824652 | BA163: =+Diets!BE61 -> 0.1547824652 | BB163: =+Diets!BF61 -> 0.1547824652 | BC163: =+Diets!BG61 -> 0.1547824652 | BD163: =+Diets!BH61 -> 0.1547824652 | BE163: =+Diets!BI61 -> 0.1547824652 | BF163: =+Diets!BJ61 -> 0.1547824652 | BG163: =+Diets!BK61 -> 0.1547824652 | BH163: =+Diets!BL61 -> 0.1547824652 | BI163: =+Diets!BM61 -> 0.1547824652 | BJ163: =+Diets!BN61 -> 0.1547824652 | BK163: =+Diets!BO61 -> 0.1547824652 | BL163: =+Diets!BP61 -> 0.1547824652 | BM163: =+Diets!BQ61 -> 0.1547824652 | BN163: =+Diets!BR61 -> 0.1547824652 | BO163: =+Diets!BS61 -> 0.1547824652 | BP163: =+Diets!BT61 -> 0.1547824652 | BQ163: =+Diets!BU61 -> 0.1547824652 | BR163: =+Diets!BV61 -> 0.1547824652 | BS163: =+Diets!BW61 -> 0.1547824652 | BT163: =+Diets!BX61 -> 0.1547824652 | BU163: =+Diets!BY61 -> 0.1547824652 | BV163: =+Diets!BZ61 -> 0.1547824652 | BW163: =+Diets!CA61 -> 0.1547824652 | BX163: =+Diets!CB61 -> 0.1547824652 | BY163: =+Diets!CC61 -> 0.1547824652 | BZ163: =+Diets!CD61 -> 0.1547824652 | CA163: =+Diets!CE61 -> 0.1547824652 | CB163: =+Diets!CF61 -> 0.1547824652 | CC163: =+Diets!CG61 -> 0.1547824652 | CD163: =+Diets!CH61 -> 0.1547824652 | CE163: =+Diets!CI61 -> 0.1547824652 | CF163: =+Diets!CJ61 -> 0.1547824652 | CG163: =+Diets!CK61 -> 0.1547824652 | CH163: =+Diets!CL61 -> 0.1547824652 | CI163: =+Diets!CM61 -> 0.1547824652 | CJ163: =+Diets!CN61 -> 0.1547824652 | CK163: =+Diets!CO61 -> 0.1547824652 | CL163: =+Diets!CP61 -> 0.1547824652 | CM163: =+Diets!CQ61 -> 0.1547824652
A164: SKO | B164: =+Diets!F62 -> 0.1979571604 | C164: =+Diets!G62 -> 0.1979571604 | D164: =+Diets!H62 -> 0.1973160456 | E164: =+Diets!I62 -> 0.1964411364 | F164: =+Diets!J62 -> 0.1953740508 | G164: =+Diets!K62 -> 0.1945396662 | H164: =+Diets!L62 -> 0.1937714497 | I164: =+Diets!M62 -> 0.1929878688 | J164: =+Diets!N62 -> 0.1921886164 | K164: =+Diets!O62 -> 0.1913733789 | L164: =+Diets!P62 -> 0.1905418367 | M164: =+Diets!Q62 -> 0.1896936636 | N164: =+Diets!R62 -> 0.188828527 | O164: =+Diets!S62 -> 0.1879460877 | P164: =+Diets!T62 -> 0.1870459997 | Q164: =+Diets!U62 -> 0.1861279099 | R164: =+Diets!V62 -> 0.1851914582 | S164: =+Diets!W62 -> 0.1842362776 | T164: =+Diets!X62 -> 0.1832619933 | U164: =+Diets!Y62 -> 0.1822682234 | V164: =+Diets!Z62 -> 0.181254578 | W164: =+Diets!AA62 -> 0.1802206597 | X164: =+Diets!AB62 -> 0.1791660631 | Y164: =+Diets!AC62 -> 0.1780903746 | Z164: =+Diets!AD62 -> 0.1769931722 | AA164: =+Diets!AE62 -> 0.1758740259 | AB164: =+Diets!AF62 -> 0.1747324966 | AC164: =+Diets!AG62 -> 0.1735681367 | AD164: =+Diets!AH62 -> 0.1723804896 | AE164: =+Diets!AI62 -> 0.1711690895 | AF164: =+Diets!AJ62 -> 0.1699334615 | AG164: =+Diets!AK62 -> 0.1686731209 | AH164: =+Diets!AL62 -> 0.1673875735 | AI164: =+Diets!AM62 -> 0.1660763152 | AJ164: =+Diets!AN62 -> 0.1647388317 | AK164: =+Diets!AO62 -> 0.1633745985 | AL164: =+Diets!AP62 -> 0.1619830806 | AM164: =+Diets!AQ62 -> 0.1605637324 | AN164: =+Diets!AR62 -> 0.1591159972 | AO164: =+Diets!AS62 -> 0.1591159972 | AP164: =+Diets!AT62 -> 0.1591159972 | AQ164: =+Diets!AU62 -> 0.1591159972 | AR164: =+Diets!AV62 -> 0.1591159972 | AS164: =+Diets!AW62 -> 0.1591159972 | AT164: =+Diets!AX62 -> 0.1591159972 | AU164: =+Diets!AY62 -> 0.1591159972 | AV164: =+Diets!AZ62 -> 0.1591159972 | AW164: =+Diets!BA62 -> 0.1591159972 | AX164: =+Diets!BB62 -> 0.1591159972 | AY164: =+Diets!BC62 -> 0.1591159972 | AZ164: =+Diets!BD62 -> 0.1591159972 | BA164: =+Diets!BE62 -> 0.1591159972 | BB164: =+Diets!BF62 -> 0.1591159972 | BC164: =+Diets!BG62 -> 0.1591159972 | BD164: =+Diets!BH62 -> 0.1591159972 | BE164: =+Diets!BI62 -> 0.1591159972 | BF164: =+Diets!BJ62 -> 0.1591159972 | BG164: =+Diets!BK62 -> 0.1591159972 | BH164: =+Diets!BL62 -> 0.1591159972 | BI164: =+Diets!BM62 -> 0.1591159972 | BJ164: =+Diets!BN62 -> 0.1591159972 | BK164: =+Diets!BO62 -> 0.1591159972 | BL164: =+Diets!BP62 -> 0.1591159972 | BM164: =+Diets!BQ62 -> 0.1591159972 | BN164: =+Diets!BR62 -> 0.1591159972 | BO164: =+Diets!BS62 -> 0.1591159972 | BP164: =+Diets!BT62 -> 0.1591159972 | BQ164: =+Diets!BU62 -> 0.1591159972 | BR164: =+Diets!BV62 -> 0.1591159972 | BS164: =+Diets!BW62 -> 0.1591159972 | BT164: =+Diets!BX62 -> 0.1591159972 | BU164: =+Diets!BY62 -> 0.1591159972 | BV164: =+Diets!BZ62 -> 0.1591159972 | BW164: =+Diets!CA62 -> 0.1591159972 | BX164: =+Diets!CB62 -> 0.1591159972 | BY164: =+Diets!CC62 -> 0.1591159972 | BZ164: =+Diets!CD62 -> 0.1591159972 | CA164: =+Diets!CE62 -> 0.1591159972 | CB164: =+Diets!CF62 -> 0.1591159972 | CC164: =+Diets!CG62 -> 0.1591159972 | CD164: =+Diets!CH62 -> 0.1591159972 | CE164: =+Diets!CI62 -> 0.1591159972 | CF164: =+Diets!CJ62 -> 0.1591159972 | CG164: =+Diets!CK62 -> 0.1591159972 | CH164: =+Diets!CL62 -> 0.1591159972 | CI164: =+Diets!CM62 -> 0.1591159972 | CJ164: =+Diets!CN62 -> 0.1591159972 | CK164: =+Diets!CO62 -> 0.1591159972 | CL164: =+Diets!CP62 -> 0.1591159972 | CM164: =+Diets!CQ62 -> 0.1591159972
A165: USA | B165: =+Diets!F63 -> 0.1580795942 | C165: =+Diets!G63 -> 0.1580795942 | D165: =+Diets!H63 -> 0.1580795942 | E165: =+Diets!I63 -> 0.1580795942 | F165: =+Diets!J63 -> 0.1580795942 | G165: =+Diets!K63 -> 0.1580795942 | H165: =+Diets!L63 -> 0.1580795942 | I165: =+Diets!M63 -> 0.1580795942 | J165: =+Diets!N63 -> 0.1580795942 | K165: =+Diets!O63 -> 0.1580795942 | L165: =+Diets!P63 -> 0.1580795942 | M165: =+Diets!Q63 -> 0.1580795942 | N165: =+Diets!R63 -> 0.1580795942 | O165: =+Diets!S63 -> 0.1580795942 | P165: =+Diets!T63 -> 0.1580795942 | Q165: =+Diets!U63 -> 0.1580795942 | R165: =+Diets!V63 -> 0.1580795942 | S165: =+Diets!W63 -> 0.1580795942 | T165: =+Diets!X63 -> 0.1580795942 | U165: =+Diets!Y63 -> 0.1580795942 | V165: =+Diets!Z63 -> 0.1580795942 | W165: =+Diets!AA63 -> 0.1580795942 | X165: =+Diets!AB63 -> 0.1580795942 | Y165: =+Diets!AC63 -> 0.1580795942 | Z165: =+Diets!AD63 -> 0.1580795942 | AA165: =+Diets!AE63 -> 0.1580795942 | AB165: =+Diets!AF63 -> 0.1580795942 | AC165: =+Diets!AG63 -> 0.1580795942 | AD165: =+Diets!AH63 -> 0.1580795942 | AE165: =+Diets!AI63 -> 0.1580795942 | AF165: =+Diets!AJ63 -> 0.1580795942 | AG165: =+Diets!AK63 -> 0.1580795942 | AH165: =+Diets!AL63 -> 0.1580795942 | AI165: =+Diets!AM63 -> 0.1580795942 | AJ165: =+Diets!AN63 -> 0.1580795942 | AK165: =+Diets!AO63 -> 0.1580795942 | AL165: =+Diets!AP63 -> 0.1580795942 | AM165: =+Diets!AQ63 -> 0.1580795942 | AN165: =+Diets!AR63 -> 0.1580795942 | AO165: =+Diets!AS63 -> 0.1580795942 | AP165: =+Diets!AT63 -> 0.1580795942 | AQ165: =+Diets!AU63 -> 0.1580795942 | AR165: =+Diets!AV63 -> 0.1580795942 | AS165: =+Diets!AW63 -> 0.1580795942 | AT165: =+Diets!AX63 -> 0.1580795942 | AU165: =+Diets!AY63 -> 0.1580795942 | AV165: =+Diets!AZ63 -> 0.1580795942 | AW165: =+Diets!BA63 -> 0.1580795942 | AX165: =+Diets!BB63 -> 0.1580795942 | AY165: =+Diets!BC63 -> 0.1580795942 | AZ165: =+Diets!BD63 -> 0.1580795942 | BA165: =+Diets!BE63 -> 0.1580795942 | BB165: =+Diets!BF63 -> 0.1580795942 | BC165: =+Diets!BG63 -> 0.1580795942 | BD165: =+Diets!BH63 -> 0.1580795942 | BE165: =+Diets!BI63 -> 0.1580795942 | BF165: =+Diets!BJ63 -> 0.1580795942 | BG165: =+Diets!BK63 -> 0.1580795942 | BH165: =+Diets!BL63 -> 0.1580795942 | BI165: =+Diets!BM63 -> 0.1580795942 | BJ165: =+Diets!BN63 -> 0.1580795942 | BK165: =+Diets!BO63 -> 0.1580795942 | BL165: =+Diets!BP63 -> 0.1580795942 | BM165: =+Diets!BQ63 -> 0.1580795942 | BN165: =+Diets!BR63 -> 0.1580795942 | BO165: =+Diets!BS63 -> 0.1580795942 | BP165: =+Diets!BT63 -> 0.1580795942 | BQ165: =+Diets!BU63 -> 0.1580795942 | BR165: =+Diets!BV63 -> 0.1580795942 | BS165: =+Diets!BW63 -> 0.1580795942 | BT165: =+Diets!BX63 -> 0.1580795942 | BU165: =+Diets!BY63 -> 0.1580795942 | BV165: =+Diets!BZ63 -> 0.1580795942 | BW165: =+Diets!CA63 -> 0.1580795942 | BX165: =+Diets!CB63 -> 0.1580795942 | BY165: =+Diets!CC63 -> 0.1580795942 | BZ165: =+Diets!CD63 -> 0.1580795942 | CA165: =+Diets!CE63 -> 0.1580795942 | CB165: =+Diets!CF63 -> 0.1580795942 | CC165: =+Diets!CG63 -> 0.1580795942 | CD165: =+Diets!CH63 -> 0.1580795942 | CE165: =+Diets!CI63 -> 0.1580795942 | CF165: =+Diets!CJ63 -> 0.1580795942 | CG165: =+Diets!CK63 -> 0.1580795942 | CH165: =+Diets!CL63 -> 0.1580795942 | CI165: =+Diets!CM63 -> 0.1580795942 | CJ165: =+Diets!CN63 -> 0.1580795942 | CK165: =+Diets!CO63 -> 0.1580795942 | CL165: =+Diets!CP63 -> 0.1580795942 | CM165: =+Diets!CQ63 -> 0.1580795942
A172: Share of CO2 in GHG | B172: Manual Scenario
B175: 2010 | C175: 2011 | D175: 2012 | E175: 2013 | F175: 2014 | G175: 2015 | H175: 2016 | I175: 2017 | J175: 2018 | K175: 2019 | L175: 2020 | M175: 2021 | N175: 2022 | O175: 2023 | P175: 2024 | Q175: 2025 | R175: 2026 | S175: 2027 | T175: 2028 | U175: 2029 | V175: 2030 | W175: 2031 | X175: 2032 | Y175: 2033 | Z175: 2034 | AA175: 2035 | AB175: 2036 | AC175: 2037 | AD175: 2038 | AE175: 2039 | AF175: 2040 | AG175: 2041 | AH175: 2042 | AI175: 2043 | AJ175: 2044 | AK175: 2045 | AL175: 2046 | AM175: 2047 | AN175: 2048 | AO175: 2049 | AP175: 2050 | AQ175: 2051 | AR175: 2052 | AS175: 2053 | AT175: 2054 | AU175: 2055 | AV175: 2056 | AW175: 2057 | AX175: 2058 | AY175: 2059 | AZ175: 2060 | BA175: 2061 | BB175: 2062 | BC175: 2063 | BD175: 2064 | BE175: 2065 | BF175: 2066 | BG175: 2067 | BH175: 2068 | BI175: 2069 | BJ175: 2070 | BK175: 2071 | BL175: 2072 | BM175: 2073 | BN175: 2074 | BO175: 2075 | BP175: 2076 | BQ175: 2077 | BR175: 2078 | BS175: 2079 | BT175: 2080 | BU175: 2081 | BV175: 2082 | BW175: 2083 | BX175: 2084 | BY175: 2085 | BZ175: 2086 | CA175: 2087 | CB175: 2088 | CC175: 2089 | CD175: 2090 | CE175: 2091 | CF175: 2092 | CG175: 2093 | CH175: 2094 | CI175: 2095 | CJ175: 2096 | CK175: 2097 | CL175: 2098 | CM175: 2099 | CN175: 2100
A176: AFR | B176: 0.4167480946 | C176: 0.4254219224 | D176: 0.4340957502 | E176: 0.4427695779 | F176: 0.4514434057 | G176: 0.4601172335 | H176: 0.4350047353 | I176: 0.409892237 | J176: 0.3847797387 | K176: 0.3596672405 | L176: 0.3345547422 | M176: 0.3333994316 | N176: 0.332244121 | O176: 0.3310888105 | P176: 0.3299334999 | Q176: 0.3287781893 | R176: 0.3276228787 | S176: 0.3264675681 | T176: 0.3253122576 | U176: 0.324156947 | V176: 0.3232457407 | W176: 0.3223345343 | X176: 0.321423328 | Y176: 0.3205121217 | Z176: 0.3196009154 | AA176: 0.3186897091 | AB176: 0.3177785028 | AC176: 0.3168672964 | AD176: 0.3159560901 | AE176: 0.3150448838 | AF176: 0.3141336775 | AG176: 0.3189234068 | AH176: 0.3237131362 | AI176: 0.3285028655 | AJ176: 0.3332925949 | AK176: 0.3380823243 | AL176: 0.3428720536 | AM176: 0.347661783 | AN176: 0.3524515123 | AO176: 0.3572412417 | AP176: 0.362030971 | AQ176: 0.3649499689 | AR176: 0.3678689667 | AS176: 0.3707879645 | AT176: 0.3737069623 | AU176: 0.3766259602 | AV176: 0.379544958 | AW176: 0.3824639558 | AX176: 0.3853829537 | AY176: 0.3883019515 | AZ176: 0.3912209493 | BA176: 0.3941399471 | BB176: 0.397058945 | BC176: 0.3999779428 | BD176: 0.4028969406 | BE176: 0.4058159384 | BF176: 0.4082094074 | BG176: 0.4106028763 | BH176: 0.4129963453 | BI176: 0.4153898142 | BJ176: 0.4177832832 | BK176: 0.4201767521 | BL176: 0.4225702211 | BM176: 0.42496369 | BN176: 0.427357159 | BO176: 0.4297506279 | BP176: 0.4321440969 | BQ176: 0.4345375658 | BR176: 0.4369310348 | BS176: 0.4393245037 | BT176: 0.4417179727 | BU176: 0.4450819926 | BV176: 0.4484460124 | BW176: 0.4518100323 | BX176: 0.4551740522 | BY176: 0.4585380721 | BZ176: 0.461902092 | CA176: 0.4652661119 | CB176: 0.4686301318 | CC176: 0.4719941517 | CD176: 0.4753581716 | CE176: 0.4787221915 | CF176: 0.4820862114 | CG176: 0.4854502313 | CH176: 0.4888142512 | CI176: 0.4921782711 | CJ176: 0.4955422909 | CK176: 0.4989063108 | CL176: 0.5022703307 | CM176: 0.5056343506 | CN176: 0.5089983705
A177: AUS | B177: 0.7086190398 | C177: 0.7013463406 | D177: 0.6940736415 | E177: 0.6868009423 | F177: 0.6795282431 | G177: 0.6722555439 | H177: 0.6741453491 | I177: 0.6760351542 | J177: 0.6779249594 | K177: 0.6798147646 | L177: 0.6817045698 | M177: 0.6853338465 | N177: 0.6889631232 | O177: 0.6925923998 | P177: 0.6962216765 | Q177: 0.6998509532 | R177: 0.7034802299 | S177: 0.7071095065 | T177: 0.7107387832 | U177: 0.7143680599 | V177: 0.7185186185 | W177: 0.7226691772 | X177: 0.7268197358 | Y177: 0.7309702945 | Z177: 0.7351208532 | AA177: 0.7392714118 | AB177: 0.7434219705 | AC177: 0.7475725291 | AD177: 0.7517230878 | AE177: 0.7558736465 | AF177: 0.7600242051 | AG177: 0.7617386606 | AH177: 0.7634531162 | AI177: 0.7651675717 | AJ177: 0.7668820273 | AK177: 0.7685964828 | AL177: 0.7703109383 | AM177: 0.7720253939 | AN177: 0.7737398494 | AO177: 0.7754543049 | AP177: 0.7771687605 | AQ177: 0.7774899724 | AR177: 0.7778111844 | AS177: 0.7781323963 | AT177: 0.7784536083 | AU177: 0.7787748202 | AV177: 0.7790960322 | AW177: 0.7794172441 | AX177: 0.7797384561 | AY177: 0.780059668 | AZ177: 0.78038088 | BA177: 0.7807020919 | BB177: 0.7810233039 | BC177: 0.7813445158 | BD177: 0.7816657277 | BE177: 0.7819869397 | BF177: 0.7819632208 | BG177: 0.781939502 | BH177: 0.7819157831 | BI177: 0.7818920642 | BJ177: 0.7818683454 | BK177: 0.7818446265 | BL177: 0.7818209076 | BM177: 0.7817971887 | BN177: 0.7817734699 | BO177: 0.781749751 | BP177: 0.7817260321 | BQ177: 0.7817023133 | BR177: 0.7816785944 | BS177: 0.7816548755 | BT177: 0.7816311567 | BU177: 0.781050698 | BV177: 0.7804702392 | BW177: 0.7798897805 | BX177: 0.7793093218 | BY177: 0.7787288631 | BZ177: 0.7781484044 | CA177: 0.7775679457 | CB177: 0.776987487 | CC177: 0.7764070282 | CD177: 0.7758265695 | CE177: 0.7752461108 | CF177: 0.7746656521 | CG177: 0.7740851934 | CH177: 0.7735047347 | CI177: 0.772924276 | CJ177: 0.7723438173 | CK177: 0.7717633585 | CL177: 0.7711828998 | CM177: 0.7706024411 | CN177: 0.7700219824
A178: CAC | B178: 0.7374092409 | C178: 0.7436037336 | D178: 0.7497982263 | E178: 0.7559927191 | F178: 0.7621872118 | G178: 0.7683817045 | H178: 0.7677671573 | I178: 0.7671526102 | J178: 0.7665380631 | K178: 0.765923516 | L178: 0.7653089689 | M178: 0.77071703 | N178: 0.7761250912 | O178: 0.7815331523 | P178: 0.7869412134 | Q178: 0.7923492746 | R178: 0.7977573357 | S178: 0.8031653969 | T178: 0.808573458 | U178: 0.8139815192 | V178: 0.8166917524 | W178: 0.8194019856 | X178: 0.8221122187 | Y178: 0.8248224519 | Z178: 0.8275326851 | AA178: 0.8302429183 | AB178: 0.8329531515 | AC178: 0.8356633847 | AD178: 0.8383736179 | AE178: 0.8410838511 | AF178: 0.8437940843 | AG178: 0.8454987 | AH178: 0.8472033156 | AI178: 0.8489079312 | AJ178: 0.8506125469 | AK178: 0.8523171625 | AL178: 0.8540217781 | AM178: 0.8557263938 | AN178: 0.8574310094 | AO178: 0.8591356251 | AP178: 0.8608402407 | AQ178: 0.861522973 | AR178: 0.8622057054 | AS178: 0.8628884377 | AT178: 0.8635711701 | AU178: 0.8642539024 | AV178: 0.8649366347 | AW178: 0.8656193671 | AX178: 0.8663020994 | AY178: 0.8669848318 | AZ178: 0.8676675641 | BA178: 0.8683502965 | BB178: 0.8690330288 | BC178: 0.8697157612 | BD178: 0.8703984935 | BE178: 0.8710812258 | BF178: 0.8716061423 | BG178: 0.8721310588 | BH178: 0.8726559753 | BI178: 0.8731808918 | BJ178: 0.8737058082 | BK178: 0.8742307247 | BL178: 0.8747556412 | BM178: 0.8752805577 | BN178: 0.8758054742 | BO178: 0.8763303907 | BP178: 0.8768553071 | BQ178: 0.8773802236 | BR178: 0.8779051401 | BS178: 0.8784300566 | BT178: 0.8789549731 | BU178: 0.8790696927 | BV178: 0.8791844123 | BW178: 0.8792991319 | BX178: 0.8794138516 | BY178: 0.8795285712 | BZ178: 0.8796432908 | CA178: 0.8797580104 | CB178: 0.8798727301 | CC178: 0.8799874497 | CD178: 0.8801021693 | CE178: 0.8802168889 | CF178: 0.8803316085 | CG178: 0.8804463282 | CH178: 0.8805610478 | CI178: 0.8806757674 | CJ178: 0.880790487 | CK178: 0.8809052067 | CL178: 0.8810199263 | CM178: 0.8811346459 | CN178: 0.8812493655
A179: CAN | B179: 0.6936580303 | C179: 0.6877001538 | D179: 0.6817422773 | E179: 0.6757844008 | F179: 0.6698265243 | G179: 0.6638686478 | H179: 0.6590293994 | I179: 0.6541901511 | J179: 0.6493509027 | K179: 0.6445116543 | L179: 0.639672406 | M179: 0.6421731487 | N179: 0.6446738915 | O179: 0.6471746343 | P179: 0.649675377 | Q179: 0.6521761198 | R179: 0.6546768626 | S179: 0.6571776054 | T179: 0.6596783481 | U179: 0.6621790909 | V179: 0.664555305 | W179: 0.666931519 | X179: 0.6693077331 | Y179: 0.6716839471 | Z179: 0.6740601612 | AA179: 0.6764363752 | AB179: 0.6788125893 | AC179: 0.6811888033 | AD179: 0.6835650174 | AE179: 0.6859412315 | AF179: 0.6883174455 | AG179: 0.6904946147 | AH179: 0.692671784 | AI179: 0.6948489532 | AJ179: 0.6970261224 | AK179: 0.6992032916 | AL179: 0.7013804608 | AM179: 0.7035576301 | AN179: 0.7057347993 | AO179: 0.7079119685 | AP179: 0.7100891377 | AQ179: 0.7155425311 | AR179: 0.7209959244 | AS179: 0.7264493177 | AT179: 0.7319027111 | AU179: 0.7373561044 | AV179: 0.7428094978 | AW179: 0.7482628911 | AX179: 0.7537162844 | AY179: 0.7591696778 | AZ179: 0.7646230711 | BA179: 0.7700764644 | BB179: 0.7755298578 | BC179: 0.7809832511 | BD179: 0.7864366445 | BE179: 0.7918900378 | BF179: 0.7926512133 | BG179: 0.7934123889 | BH179: 0.7941735645 | BI179: 0.79493474 | BJ179: 0.7956959156 | BK179: 0.7964570911 | BL179: 0.7972182667 | BM179: 0.7979794422 | BN179: 0.7987406178 | BO179: 0.7995017933 | BP179: 0.8002629689 | BQ179: 0.8010241445 | BR179: 0.80178532 | BS179: 0.8025464956 | BT179: 0.8033076711 | BU179: 0.8038585864 | BV179: 0.8044095016 | BW179: 0.8049604168 | BX179: 0.8055113321 | BY179: 0.8060622473 | BZ179: 0.8066131625 | CA179: 0.8071640778 | CB179: 0.807714993 | CC179: 0.8082659083 | CD179: 0.8088168235 | CE179: 0.8093677387 | CF179: 0.809918654 | CG179: 0.8104695692 | CH179: 0.8110204844 | CI179: 0.8115713997 | CJ179: 0.8121223149 | CK179: 0.8126732302 | CL179: 0.8132241454 | CM179: 0.8137750606 | CN179: 0.8143259759
A180: CHI | B180: 0.8160914991 | C180: 0.8228020216 | D180: 0.8295125441 | E180: 0.8362230667 | F180: 0.8429335892 | G180: 0.8496441117 | H180: 0.8523193419 | I180: 0.8549945721 | J180: 0.8576698024 | K180: 0.8603450326 | L180: 0.8630202628 | M180: 0.8630930901 | N180: 0.8631659175 | O180: 0.8632387448 | P180: 0.8633115722 | Q180: 0.8633843995 | R180: 0.8634572268 | S180: 0.8635300542 | T180: 0.8636028815 | U180: 0.8636757089 | V180: 0.8638212379 | W180: 0.863966767 | X180: 0.8641122961 | Y180: 0.8642578252 | Z180: 0.8644033542 | AA180: 0.8645488833 | AB180: 0.8646944124 | AC180: 0.8648399415 | AD180: 0.8649854705 | AE180: 0.8651309996 | AF180: 0.8652765287 | AG180: 0.8656453508 | AH180: 0.8660141729 | AI180: 0.866382995 | AJ180: 0.866751817 | AK180: 0.8671206391 | AL180: 0.8674894612 | AM180: 0.8678582833 | AN180: 0.8682271054 | AO180: 0.8685959275 | AP180: 0.8689647496 | AQ180: 0.869581286 | AR180: 0.8701978225 | AS180: 0.8708143589 | AT180: 0.8714308953 | AU180: 0.8720474318 | AV180: 0.8726639682 | AW180: 0.8732805046 | AX180: 0.873897041 | AY180: 0.8745135775 | AZ180: 0.8751301139 | BA180: 0.8757466503 | BB180: 0.8763631868 | BC180: 0.8769797232 | BD180: 0.8775962596 | BE180: 0.8782127961 | BF180: 0.8784731737 | BG180: 0.8787335514 | BH180: 0.878993929 | BI180: 0.8792543067 | BJ180: 0.8795146843 | BK180: 0.879775062 | BL180: 0.8800354396 | BM180: 0.8802958173 | BN180: 0.8805561949 | BO180: 0.8808165726 | BP180: 0.8810769502 | BQ180: 0.8813373279 | BR180: 0.8815977055 | BS180: 0.8818580832 | BT180: 0.8821184608 | BU180: 0.8817457895 | BV180: 0.8813731181 | BW180: 0.8810004467 | BX180: 0.8806277753 | BY180: 0.8802551039 | BZ180: 0.8798824325 | CA180: 0.8795097611 | CB180: 0.8791370897 | CC180: 0.8787644183 | CD180: 0.878391747 | CE180: 0.8780190756 | CF180: 0.8776464042 | CG180: 0.8772737328 | CH180: 0.8769010614 | CI180: 0.87652839 | CJ180: 0.8761557186 | CK180: 0.8757830472 | CL180: 0.8754103758 | CM180: 0.8750377045 | CN180: 0.8746650331
A181: CSA | B181: 0.4113607928 | C181: 0.4209658228 | D181: 0.4305708528 | E181: 0.4401758828 | F181: 0.4497809129 | G181: 0.4593859429 | H181: 0.4476040375 | I181: 0.435822132 | J181: 0.4240402266 | K181: 0.4122583212 | L181: 0.4004764158 | M181: 0.4018530185 | N181: 0.4032296212 | O181: 0.4046062238 | P181: 0.4059828265 | Q181: 0.4073594292 | R181: 0.4087360319 | S181: 0.4101126346 | T181: 0.4114892373 | U181: 0.4128658399 | V181: 0.4142706325 | W181: 0.4156754251 | X181: 0.4170802177 | Y181: 0.4184850103 | Z181: 0.4198898029 | AA181: 0.4212945955 | AB181: 0.422699388 | AC181: 0.4241041806 | AD181: 0.4255089732 | AE181: 0.4269137658 | AF181: 0.4283185584 | AG181: 0.4306746044 | AH181: 0.4330306504 | AI181: 0.4353866963 | AJ181: 0.4377427423 | AK181: 0.4400987883 | AL181: 0.4424548343 | AM181: 0.4448108803 | AN181: 0.4471669263 | AO181: 0.4495229723 | AP181: 0.4518790183 | AQ181: 0.4526101508 | AR181: 0.4533412834 | AS181: 0.454072416 | AT181: 0.4548035485 | AU181: 0.4555346811 | AV181: 0.4562658137 | AW181: 0.4569969463 | AX181: 0.4577280788 | AY181: 0.4584592114 | AZ181: 0.459190344 | BA181: 0.4599214765 | BB181: 0.4606526091 | BC181: 0.4613837417 | BD181: 0.4621148743 | BE181: 0.4628460068 | BF181: 0.4631501373 | BG181: 0.4634542679 | BH181: 0.4637583984 | BI181: 0.4640625289 | BJ181: 0.4643666594 | BK181: 0.4646707899 | BL181: 0.4649749205 | BM181: 0.465279051 | BN181: 0.4655831815 | BO181: 0.465887312 | BP181: 0.4661914425 | BQ181: 0.4664955731 | BR181: 0.4667997036 | BS181: 0.4671038341 | BT181: 0.4674079646 | BU181: 0.4678048155 | BV181: 0.4682016663 | BW181: 0.4685985172 | BX181: 0.468995368 | BY181: 0.4693922189 | BZ181: 0.4697890697 | CA181: 0.4701859206 | CB181: 0.4705827714 | CC181: 0.4709796223 | CD181: 0.4713764731 | CE181: 0.4717733239 | CF181: 0.4721701748 | CG181: 0.4725670256 | CH181: 0.4729638765 | CI181: 0.4733607273 | CJ181: 0.4737575782 | CK181: 0.474154429 | CL181: 0.4745512799 | CM181: 0.4749481307 | CN181: 0.4753449816
A182: EUR | B182: 0.8437252587 | C182: 0.8412954241 | D182: 0.8388655895 | E182: 0.836435755 | F182: 0.8340059204 | G182: 0.8315760859 | H182: 0.8314025155 | I182: 0.831228945 | J182: 0.8310553746 | K182: 0.8308818042 | L182: 0.8307082338 | M182: 0.8285262377 | N182: 0.8263442416 | O182: 0.8241622455 | P182: 0.8219802494 | Q182: 0.8197982533 | R182: 0.8176162572 | S182: 0.8154342611 | T182: 0.813252265 | U182: 0.8110702689 | V182: 0.8096938834 | W182: 0.8083174978 | X182: 0.8069411123 | Y182: 0.8055647268 | Z182: 0.8041883413 | AA182: 0.8028119557 | AB182: 0.8014355702 | AC182: 0.8000591847 | AD182: 0.7986827992 | AE182: 0.7973064136 | AF182: 0.7959300281 | AG182: 0.7969980419 | AH182: 0.7980660558 | AI182: 0.7991340696 | AJ182: 0.8002020834 | AK182: 0.8012700972 | AL182: 0.8023381111 | AM182: 0.8034061249 | AN182: 0.8044741387 | AO182: 0.8055421526 | AP182: 0.8066101664 | AQ182: 0.8107911612 | AR182: 0.814972156 | AS182: 0.8191531508 | AT182: 0.8233341456 | AU182: 0.8275151404 | AV182: 0.8316961352 | AW182: 0.8358771301 | AX182: 0.8400581249 | AY182: 0.8442391197 | AZ182: 0.8484201145 | BA182: 0.8526011093 | BB182: 0.8567821041 | BC182: 0.8609630989 | BD182: 0.8651440937 | BE182: 0.8693250885 | BF182: 0.8700462773 | BG182: 0.8707674661 | BH182: 0.8714886549 | BI182: 0.8722098437 | BJ182: 0.8729310325 | BK182: 0.8736522213 | BL182: 0.8743734101 | BM182: 0.8750945989 | BN182: 0.8758157877 | BO182: 0.8765369765 | BP182: 0.8772581653 | BQ182: 0.8779793541 | BR182: 0.8787005429 | BS182: 0.8794217317 | BT182: 0.8801429205 | BU182: 0.8805422774 | BV182: 0.8809416343 | BW182: 0.8813409912 | BX182: 0.8817403481 | BY182: 0.882139705 | BZ182: 0.8825390619 | CA182: 0.8829384188 | CB182: 0.8833377757 | CC182: 0.8837371327 | CD182: 0.8841364896 | CE182: 0.8845358465 | CF182: 0.8849352034 | CG182: 0.8853345603 | CH182: 0.8857339172 | CI182: 0.8861332741 | CJ182: 0.886532631 | CK182: 0.8869319879 | CL182: 0.8873313448 | CM182: 0.8877307017 | CN182: 0.8881300587
A183: IND | B183: 0.6602210521 | C183: 0.6719975181 | D183: 0.6837739841 | E183: 0.6955504501 | F183: 0.7073269161 | G183: 0.7191033821 | H183: 0.7295236972 | I183: 0.7399440122 | J183: 0.7503643273 | K183: 0.7607846424 | L183: 0.7712049575 | M183: 0.7775049942 | N183: 0.7838050308 | O183: 0.7901050675 | P183: 0.7964051042 | Q183: 0.8027051408 | R183: 0.8090051775 | S183: 0.8153052141 | T183: 0.8216052508 | U183: 0.8279052875 | V183: 0.8301247226 | W183: 0.8323441577 | X183: 0.8345635928 | Y183: 0.8367830279 | Z183: 0.839002463 | AA183: 0.8412218981 | AB183: 0.8434413332 | AC183: 0.8456607683 | AD183: 0.8478802034 | AE183: 0.8500996385 | AF183: 0.8523190736 | AG183: 0.8527835854 | AH183: 0.8532480973 | AI183: 0.8537126091 | AJ183: 0.8541771209 | AK183: 0.8546416328 | AL183: 0.8551061446 | AM183: 0.8555706564 | AN183: 0.8560351683 | AO183: 0.8564996801 | AP183: 0.8569641919 | AQ183: 0.8574397156 | AR183: 0.8579152393 | AS183: 0.858390763 | AT183: 0.8588662867 | AU183: 0.8593418104 | AV183: 0.8598173341 | AW183: 0.8602928578 | AX183: 0.8607683814 | AY183: 0.8612439051 | AZ183: 0.8617194288 | BA183: 0.8621949525 | BB183: 0.8626704762 | BC183: 0.8631459999 | BD183: 0.8636215236 | BE183: 0.8640970473 | BF183: 0.8645307098 | BG183: 0.8649643724 | BH183: 0.865398035 | BI183: 0.8658316976 | BJ183: 0.8662653601 | BK183: 0.8666990227 | BL183: 0.8671326853 | BM183: 0.8675663479 | BN183: 0.8680000104 | BO183: 0.868433673 | BP183: 0.8688673356 | BQ183: 0.8693009982 | BR183: 0.8697346607 | BS183: 0.8701683233 | BT183: 0.8706019859 | BU183: 0.8709601379 | BV183: 0.87131829 | BW183: 0.871676442 | BX183: 0.8720345941 | BY183: 0.8723927461 | BZ183: 0.8727508982 | CA183: 0.8731090502 | CB183: 0.8734672023 | CC183: 0.8738253543 | CD183: 0.8741835064 | CE183: 0.8745416584 | CF183: 0.8748998105 | CG183: 0.8752579625 | CH183: 0.8756161146 | CI183: 0.8759742666 | CJ183: 0.8763324187 | CK183: 0.8766905707 | CL183: 0.8770487228 | CM183: 0.8774068748 | CN183: 0.8777650269
A184: JPN | B184: 0.9703165342 | C184: 0.9697919541 | D184: 0.9692673739 | E184: 0.9687427938 | F184: 0.9682182137 | G184: 0.9676936336 | H184: 0.9676452964 | I184: 0.9675969593 | J184: 0.9675486221 | K184: 0.9675002849 | L184: 0.9674519478 | M184: 0.9676274587 | N184: 0.9678029696 | O184: 0.9679784805 | P184: 0.9681539914 | Q184: 0.9683295023 | R184: 0.9685050132 | S184: 0.9686805241 | T184: 0.9688560351 | U184: 0.969031546 | V184: 0.9689205647 | W184: 0.9688095835 | X184: 0.9686986022 | Y184: 0.968587621 | Z184: 0.9684766397 | AA184: 0.9683656585 | AB184: 0.9682546772 | AC184: 0.968143696 | AD184: 0.9680327147 | AE184: 0.9679217335 | AF184: 0.9678107522 | AG184: 0.9677670669 | AH184: 0.9677233816 | AI184: 0.9676796963 | AJ184: 0.967636011 | AK184: 0.9675923257 | AL184: 0.9675486404 | AM184: 0.967504955 | AN184: 0.9674612697 | AO184: 0.9674175844 | AP184: 0.9673738991 | AQ184: 0.9674640969 | AR184: 0.9675542946 | AS184: 0.9676444923 | AT184: 0.9677346901 | AU184: 0.9678248878 | AV184: 0.9679150855 | AW184: 0.9680052833 | AX184: 0.968095481 | AY184: 0.9681856787 | AZ184: 0.9682758765 | BA184: 0.9683660742 | BB184: 0.9684562719 | BC184: 0.9685464697 | BD184: 0.9686366674 | BE184: 0.9687268652 | BF184: 0.9687941557 | BG184: 0.9688614463 | BH184: 0.9689287369 | BI184: 0.9689960274 | BJ184: 0.969063318 | BK184: 0.9691306086 | BL184: 0.9691978992 | BM184: 0.9692651897 | BN184: 0.9693324803 | BO184: 0.9693997709 | BP184: 0.9694670615 | BQ184: 0.969534352 | BR184: 0.9696016426 | BS184: 0.9696689332 | BT184: 0.9697362238 | BU184: 0.9698298357 | BV184: 0.9699234477 | BW184: 0.9700170596 | BX184: 0.9701106716 | BY184: 0.9702042835 | BZ184: 0.9702978955 | CA184: 0.9703915074 | CB184: 0.9704851194 | CC184: 0.9705787313 | CD184: 0.9706723433 | CE184: 0.9707659552 | CF184: 0.9708595672 | CG184: 0.9709531791 | CH184: 0.9710467911 | CI184: 0.971140403 | CJ184: 0.971234015 | CK184: 0.9713276269 | CL184: 0.9714212389 | CM184: 0.9715148508 | CN184: 0.9716084628
A185: MEA | B185: 0.7730667563 | C185: 0.7828754717 | D185: 0.7926841872 | E185: 0.8024929026 | F185: 0.8123016181 | G185: 0.8221103335 | H185: 0.8070956296 | I185: 0.7920809257 | J185: 0.7770662217 | K185: 0.7620515178 | L185: 0.7470368139 | M185: 0.7445894836 | N185: 0.7421421532 | O185: 0.7396948229 | P185: 0.7372474926 | Q185: 0.7348001623 | R185: 0.732352832 | S185: 0.7299055017 | T185: 0.7274581714 | U185: 0.7250108411 | V185: 0.7223242589 | W185: 0.7196376767 | X185: 0.7169510945 | Y185: 0.7142645123 | Z185: 0.7115779301 | AA185: 0.7088913479 | AB185: 0.7062047657 | AC185: 0.7035181835 | AD185: 0.7008316013 | AE185: 0.6981450191 | AF185: 0.6954584369 | AG185: 0.6964418819 | AH185: 0.6974253269 | AI185: 0.6984087719 | AJ185: 0.6993922169 | AK185: 0.7003756619 | AL185: 0.7013591069 | AM185: 0.7023425519 | AN185: 0.7033259969 | AO185: 0.7043094419 | AP185: 0.7052928869 | AQ185: 0.7059273104 | AR185: 0.706561734 | AS185: 0.7071961576 | AT185: 0.7078305811 | AU185: 0.7084650047 | AV185: 0.7090994282 | AW185: 0.7097338518 | AX185: 0.7103682754 | AY185: 0.7110026989 | AZ185: 0.7116371225 | BA185: 0.712271546 | BB185: 0.7129059696 | BC185: 0.7135403932 | BD185: 0.7141748167 | BE185: 0.7148092403 | BF185: 0.7153034283 | BG185: 0.7157976162 | BH185: 0.7162918042 | BI185: 0.7167859922 | BJ185: 0.7172801802 | BK185: 0.7177743682 | BL185: 0.7182685562 | BM185: 0.7187627441 | BN185: 0.7192569321 | BO185: 0.7197511201 | BP185: 0.7202453081 | BQ185: 0.7207394961 | BR185: 0.7212336841 | BS185: 0.721727872 | BT185: 0.72222206 | BU185: 0.7225303564 | BV185: 0.7228386527 | BW185: 0.7231469491 | BX185: 0.7234552455 | BY185: 0.7237635418 | BZ185: 0.7240718382 | CA185: 0.7243801345 | CB185: 0.7246884309 | CC185: 0.7249967273 | CD185: 0.7253050236 | CE185: 0.72561332 | CF185: 0.7259216163 | CG185: 0.7262299127 | CH185: 0.726538209 | CI185: 0.7268465054 | CJ185: 0.7271548018 | CK185: 0.7274630981 | CL185: 0.7277713945 | CM185: 0.7280796908 | CN185: 0.7283879872
A186: MEX | B186: 0.568368324 | C186: 0.567615785 | D186: 0.566863246 | E186: 0.566110707 | F186: 0.565358168 | G186: 0.564605629 | H186: 0.5572935591 | I186: 0.5499814892 | J186: 0.5426694193 | K186: 0.5353573494 | L186: 0.5280452795 | M186: 0.5305591222 | N186: 0.5330729648 | O186: 0.5355868074 | P186: 0.5381006501 | Q186: 0.5406144927 | R186: 0.5431283354 | S186: 0.545642178 | T186: 0.5481560206 | U186: 0.5506698633 | V186: 0.5517725237 | W186: 0.5528751841 | X186: 0.5539778445 | Y186: 0.5550805049 | Z186: 0.5561831653 | AA186: 0.5572858257 | AB186: 0.5583884861 | AC186: 0.5594911465 | AD186: 0.5605938069 | AE186: 0.5616964673 | AF186: 0.5627991278 | AG186: 0.5638842481 | AH186: 0.5649693685 | AI186: 0.5660544888 | AJ186: 0.5671396092 | AK186: 0.5682247295 | AL186: 0.5693098499 | AM186: 0.5703949703 | AN186: 0.5714800906 | AO186: 0.572565211 | AP186: 0.5736503313 | AQ186: 0.5741327686 | AR186: 0.5746152059 | AS186: 0.5750976432 | AT186: 0.5755800805 | AU186: 0.5760625178 | AV186: 0.576544955 | AW186: 0.5770273923 | AX186: 0.5775098296 | AY186: 0.5779922669 | AZ186: 0.5784747042 | BA186: 0.5789571415 | BB186: 0.5794395788 | BC186: 0.579922016 | BD186: 0.5804044533 | BE186: 0.5808868906 | BF186: 0.5812453566 | BG186: 0.5816038226 | BH186: 0.5819622886 | BI186: 0.5823207546 | BJ186: 0.5826792206 | BK186: 0.5830376866 | BL186: 0.5833961526 | BM186: 0.5837546186 | BN186: 0.5841130846 | BO186: 0.5844715506 | BP186: 0.5848300166 | BQ186: 0.5851884826 | BR186: 0.5855469486 | BS186: 0.5859054146 | BT186: 0.5862638805 | BU186: 0.5866082195 | BV186: 0.5869525585 | BW186: 0.5872968975 | BX186: 0.5876412365 | BY186: 0.5879855755 | BZ186: 0.5883299145 | CA186: 0.5886742535 | CB186: 0.5890185925 | CC186: 0.5893629315 | CD186: 0.5897072705 | CE186: 0.5900516094 | CF186: 0.5903959484 | CG186: 0.5907402874 | CH186: 0.5910846264 | CI186: 0.5914289654 | CJ186: 0.5917733044 | CK186: 0.5921176434 | CL186: 0.5924619824 | CM186: 0.5928063214 | CN186: 0.5931506604
A187: ODA | B187: 0.5672753257 | C187: 0.5841125016 | D187: 0.6009496774 | E187: 0.6177868532 | F187: 0.6346240291 | G187: 0.6514612049 | H187: 0.6406112653 | I187: 0.6297613258 | J187: 0.6189113862 | K187: 0.6080614466 | L187: 0.597211507 | M187: 0.6004025614 | N187: 0.6035936158 | O187: 0.6067846702 | P187: 0.6099757246 | Q187: 0.613166779 | R187: 0.6163578334 | S187: 0.6195488878 | T187: 0.6227399422 | U187: 0.6259309966 | V187: 0.6282376736 | W187: 0.6305443505 | X187: 0.6328510275 | Y187: 0.6351577045 | Z187: 0.6374643814 | AA187: 0.6397710584 | AB187: 0.6420777354 | AC187: 0.6443844124 | AD187: 0.6466910893 | AE187: 0.6489977663 | AF187: 0.6513044433 | AG187: 0.6518818114 | AH187: 0.6524591794 | AI187: 0.6530365475 | AJ187: 0.6536139156 | AK187: 0.6541912837 | AL187: 0.6547686518 | AM187: 0.6553460199 | AN187: 0.655923388 | AO187: 0.656500756 | AP187: 0.6570781241 | AQ187: 0.6593918824 | AR187: 0.6617056407 | AS187: 0.664019399 | AT187: 0.6663331573 | AU187: 0.6686469155 | AV187: 0.6709606738 | AW187: 0.6732744321 | AX187: 0.6755881904 | AY187: 0.6779019487 | AZ187: 0.680215707 | BA187: 0.6825294652 | BB187: 0.6848432235 | BC187: 0.6871569818 | BD187: 0.6894707401 | BE187: 0.6917844984 | BF187: 0.6927709977 | BG187: 0.6937574971 | BH187: 0.6947439964 | BI187: 0.6957304958 | BJ187: 0.6967169951 | BK187: 0.6977034944 | BL187: 0.6986899938 | BM187: 0.6996764931 | BN187: 0.7006629925 | BO187: 0.7016494918 | BP187: 0.7026359912 | BQ187: 0.7036224905 | BR187: 0.7046089899 | BS187: 0.7055954892 | BT187: 0.7065819886 | BU187: 0.7080081421 | BV187: 0.7094342956 | BW187: 0.7108604492 | BX187: 0.7122866027 | BY187: 0.7137127563 | BZ187: 0.7151389098 | CA187: 0.7165650633 | CB187: 0.7179912169 | CC187: 0.7194173704 | CD187: 0.720843524 | CE187: 0.7222696775 | CF187: 0.723695831 | CG187: 0.7251219846 | CH187: 0.7265481381 | CI187: 0.7279742917 | CJ187: 0.7294004452 | CK187: 0.7308265987 | CL187: 0.7322527523 | CM187: 0.7336789058 | CN187: 0.7351050594
A188: OEE | B188: 0.7522878138 | C188: 0.7491275103 | D188: 0.7459672067 | E188: 0.7428069032 | F188: 0.7396465997 | G188: 0.7364862962 | H188: 0.7419232526 | I188: 0.7473602091 | J188: 0.7527971655 | K188: 0.7582341219 | L188: 0.7636710784 | M188: 0.7666023629 | N188: 0.7695336474 | O188: 0.772464932 | P188: 0.7753962165 | Q188: 0.778327501 | R188: 0.7812587856 | S188: 0.7841900701 | T188: 0.7871213546 | U188: 0.7900526391 | V188: 0.7916450529 | W188: 0.7932374666 | X188: 0.7948298804 | Y188: 0.7964222941 | Z188: 0.7980147079 | AA188: 0.7996071216 | AB188: 0.8011995353 | AC188: 0.8027919491 | AD188: 0.8043843628 | AE188: 0.8059767766 | AF188: 0.8075691903 | AG188: 0.8086763675 | AH188: 0.8097835447 | AI188: 0.8108907219 | AJ188: 0.8119978992 | AK188: 0.8131050764 | AL188: 0.8142122536 | AM188: 0.8153194308 | AN188: 0.816426608 | AO188: 0.8175337852 | AP188: 0.8186409624 | AQ188: 0.8195191272 | AR188: 0.8203972919 | AS188: 0.8212754566 | AT188: 0.8221536213 | AU188: 0.8230317861 | AV188: 0.8239099508 | AW188: 0.8247881155 | AX188: 0.8256662803 | AY188: 0.826544445 | AZ188: 0.8274226097 | BA188: 0.8283007745 | BB188: 0.8291789392 | BC188: 0.8300571039 | BD188: 0.8309352687 | BE188: 0.8318134334 | BF188: 0.8330227522 | BG188: 0.8342320711 | BH188: 0.8354413899 | BI188: 0.8366507087 | BJ188: 0.8378600275 | BK188: 0.8390693463 | BL188: 0.8402786652 | BM188: 0.841487984 | BN188: 0.8426973028 | BO188: 0.8439066216 | BP188: 0.8451159404 | BQ188: 0.8463252593 | BR188: 0.8475345781 | BS188: 0.8487438969 | BT188: 0.8499532157 | BU188: 0.8503187413 | BV188: 0.8506842668 | BW188: 0.8510497923 | BX188: 0.8514153179 | BY188: 0.8517808434 | BZ188: 0.8521463689 | CA188: 0.8525118944 | CB188: 0.85287742 | CC188: 0.8532429455 | CD188: 0.853608471 | CE188: 0.8539739966 | CF188: 0.8543395221 | CG188: 0.8547050476 | CH188: 0.8550705732 | CI188: 0.8554360987 | CJ188: 0.8558016242 | CK188: 0.8561671497 | CL188: 0.8565326753 | CM188: 0.8568982008 | CN188: 0.8572637263
A189: RUS | B189: 0.6789471336 | C189: 0.6771448629 | D189: 0.6753425922 | E189: 0.6735403215 | F189: 0.6717380508 | G189: 0.6699357801 | H189: 0.6648611216 | I189: 0.659786463 | J189: 0.6547118044 | K189: 0.6496371459 | L189: 0.6445624873 | M189: 0.6438630242 | N189: 0.6431635611 | O189: 0.6424640979 | P189: 0.6417646348 | Q189: 0.6410651717 | R189: 0.6403657086 | S189: 0.6396662454 | T189: 0.6389667823 | U189: 0.6382673192 | V189: 0.6369472919 | W189: 0.6356272647 | X189: 0.6343072374 | Y189: 0.6329872102 | Z189: 0.6316671829 | AA189: 0.6303471557 | AB189: 0.6290271284 | AC189: 0.6277071012 | AD189: 0.6263870739 | AE189: 0.6250670467 | AF189: 0.6237470194 | AG189: 0.6226709859 | AH189: 0.6215949524 | AI189: 0.6205189188 | AJ189: 0.6194428853 | AK189: 0.6183668517 | AL189: 0.6172908182 | AM189: 0.6162147847 | AN189: 0.6151387511 | AO189: 0.6140627176 | AP189: 0.6129866841 | AQ189: 0.6142754548 | AR189: 0.6155642256 | AS189: 0.6168529964 | AT189: 0.6181417672 | AU189: 0.619430538 | AV189: 0.6207193088 | AW189: 0.6220080795 | AX189: 0.6232968503 | AY189: 0.6245856211 | AZ189: 0.6258743919 | BA189: 0.6271631627 | BB189: 0.6284519334 | BC189: 0.6297407042 | BD189: 0.631029475 | BE189: 0.6323182458 | BF189: 0.6331607621 | BG189: 0.6340032785 | BH189: 0.6348457949 | BI189: 0.6356883113 | BJ189: 0.6365308276 | BK189: 0.637373344 | BL189: 0.6382158604 | BM189: 0.6390583767 | BN189: 0.6399008931 | BO189: 0.6407434095 | BP189: 0.6415859258 | BQ189: 0.6424284422 | BR189: 0.6432709586 | BS189: 0.6441134749 | BT189: 0.6449559913 | BU189: 0.6460557688 | BV189: 0.6471555463 | BW189: 0.6482553238 | BX189: 0.6493551013 | BY189: 0.6504548788 | BZ189: 0.6515546563 | CA189: 0.6526544338 | CB189: 0.6537542113 | CC189: 0.6548539889 | CD189: 0.6559537664 | CE189: 0.6570535439 | CF189: 0.6581533214 | CG189: 0.6592530989 | CH189: 0.6603528764 | CI189: 0.6614526539 | CJ189: 0.6625524314 | CK189: 0.6636522089 | CL189: 0.6647519864 | CM189: 0.6658517639 | CN189: 0.6669515414
A190: SKO | B190: 0.9404255455 | C190: 0.9412856908 | D190: 0.9421458362 | E190: 0.9430059816 | F190: 0.943866127 | G190: 0.9447262724 | H190: 0.9437460199 | I190: 0.9427657674 | J190: 0.9417855148 | K190: 0.9408052623 | L190: 0.9398250098 | M190: 0.9389154764 | N190: 0.9380059431 | O190: 0.9370964097 | P190: 0.9361868763 | Q190: 0.9352773429 | R190: 0.9343678096 | S190: 0.9334582762 | T190: 0.9325487428 | U190: 0.9316392094 | V190: 0.9308490369 | W190: 0.9300588643 | X190: 0.9292686918 | Y190: 0.9284785193 | Z190: 0.9276883467 | AA190: 0.9268981742 | AB190: 0.9261080016 | AC190: 0.9253178291 | AD190: 0.9245276566 | AE190: 0.923737484 | AF190: 0.9229473115 | AG190: 0.9225735009 | AH190: 0.9221996902 | AI190: 0.9218258796 | AJ190: 0.921452069 | AK190: 0.9210782584 | AL190: 0.9207044478 | AM190: 0.9203306371 | AN190: 0.9199568265 | AO190: 0.9195830159 | AP190: 0.9192092053 | AQ190: 0.9191608793 | AR190: 0.9191125533 | AS190: 0.9190642274 | AT190: 0.9190159014 | AU190: 0.9189675754 | AV190: 0.9189192494 | AW190: 0.9188709235 | AX190: 0.9188225975 | AY190: 0.9187742715 | AZ190: 0.9187259456 | BA190: 0.9186776196 | BB190: 0.9186292936 | BC190: 0.9185809677 | BD190: 0.9185326417 | BE190: 0.9184843157 | BF190: 0.9187697765 | BG190: 0.9190552374 | BH190: 0.9193406982 | BI190: 0.919626159 | BJ190: 0.9199116198 | BK190: 0.9201970806 | BL190: 0.9204825414 | BM190: 0.9207680023 | BN190: 0.9210534631 | BO190: 0.9213389239 | BP190: 0.9216243847 | BQ190: 0.9219098455 | BR190: 0.9221953064 | BS190: 0.9224807672 | BT190: 0.922766228 | BU190: 0.9226765796 | BV190: 0.9225869311 | BW190: 0.9224972827 | BX190: 0.9224076342 | BY190: 0.9223179858 | BZ190: 0.9222283373 | CA190: 0.9221386889 | CB190: 0.9220490405 | CC190: 0.921959392 | CD190: 0.9218697436 | CE190: 0.9217800951 | CF190: 0.9216904467 | CG190: 0.9216007982 | CH190: 0.9215111498 | CI190: 0.9214215014 | CJ190: 0.9213318529 | CK190: 0.9212422045 | CL190: 0.921152556 | CM190: 0.9210629076 | CN190: 0.9209732591
A191: USA | B191: 0.8788664625 | C191: 0.8779251849 | D191: 0.8769839074 | E191: 0.8760426298 | F191: 0.8751013522 | G191: 0.8741600746 | H191: 0.8727047268 | I191: 0.871249379 | J191: 0.8697940312 | K191: 0.8683386834 | L191: 0.8668833356 | M191: 0.8655483249 | N191: 0.8642133143 | O191: 0.8628783037 | P191: 0.861543293 | Q191: 0.8602082824 | R191: 0.8588732718 | S191: 0.8575382612 | T191: 0.8562032505 | U191: 0.8548682399 | V191: 0.8547667076 | W191: 0.8546651753 | X191: 0.854563643 | Y191: 0.8544621106 | Z191: 0.8543605783 | AA191: 0.854259046 | AB191: 0.8541575137 | AC191: 0.8540559814 | AD191: 0.8539544491 | AE191: 0.8538529168 | AF191: 0.8537513845 | AG191: 0.8537910399 | AH191: 0.8538306953 | AI191: 0.8538703507 | AJ191: 0.8539100062 | AK191: 0.8539496616 | AL191: 0.853989317 | AM191: 0.8540289725 | AN191: 0.8540686279 | AO191: 0.8541082833 | AP191: 0.8541479387 | AQ191: 0.8550817697 | AR191: 0.8560156007 | AS191: 0.8569494316 | AT191: 0.8578832626 | AU191: 0.8588170936 | AV191: 0.8597509245 | AW191: 0.8606847555 | AX191: 0.8616185865 | AY191: 0.8625524174 | AZ191: 0.8634862484 | BA191: 0.8644200794 | BB191: 0.8653539103 | BC191: 0.8662877413 | BD191: 0.8672215723 | BE191: 0.8681554032 | BF191: 0.8683849766 | BG191: 0.86861455 | BH191: 0.8688441234 | BI191: 0.8690736968 | BJ191: 0.8693032701 | BK191: 0.8695328435 | BL191: 0.8697624169 | BM191: 0.8699919903 | BN191: 0.8702215637 | BO191: 0.8704511371 | BP191: 0.8706807104 | BQ191: 0.8709102838 | BR191: 0.8711398572 | BS191: 0.8713694306 | BT191: 0.871599004 | BU191: 0.8717609724 | BV191: 0.8719229407 | BW191: 0.8720849091 | BX191: 0.8722468775 | BY191: 0.8724088459 | BZ191: 0.8725708143 | CA191: 0.8727327827 | CB191: 0.872894751 | CC191: 0.8730567194 | CD191: 0.8732186878 | CE191: 0.8733806562 | CF191: 0.8735426246 | CG191: 0.873704593 | CH191: 0.8738665613 | CI191: 0.8740285297 | CJ191: 0.8741904981 | CK191: 0.8743524665 | CL191: 0.8745144349 | CM191: 0.8746764033 | CN191: 0.8748383716

Sheet Impact
A1: Environmental Impact
B6: Original | F6: 1960 | G6: 1961 | H6: 1962 | I6: 1963 | J6: 1964 | K6: 1965 | L6: 1966 | M6: 1967 | N6: 1968 | O6: 1969 | P6: 1970 | Q6: 1971 | R6: 1972 | S6: 1973 | T6: 1974 | U6: 1975 | V6: 1976 | W6: 1977 | X6: 1978 | Y6: 1979 | Z6: 1980 | AA6: 1981 | AB6: 1982 | AC6: 1983 | AD6: 1984 | AE6: 1985 | AF6: 1986 | AG6: 1987 | AH6: 1988 | AI6: 1989 | AJ6: 1990 | AK6: 1991 | AL6: 1992 | AM6: 1993 | AN6: 1994 | AO6: 1995 | AP6: 1996 | AQ6: 1997 | AR6: 1998 | AS6: 1999 | AT6: 2000 | AU6: 2001 | AV6: 2002 | AW6: 2003 | AX6: 2004 | AY6: 2005 | AZ6: 2006 | BA6: 2007 | BB6: 2008 | BC6: 2009 | BD6: 2010 | BE6: 2011 | BF6: 2012 | BG6: 2013 | BH6: 2014 | BI6: 2015 | BJ6: 2016 | BK6: 2017 | BL6: 2018 | BM6: 2019 | BN6: 2020 | BO6: 2021 | BP6: 2022 | BQ6: 2023 | BR6: 2024 | BS6: 2025 | BT6: 2026 | BU6: 2027 | BV6: 2028 | BW6: 2029 | BX6: 2030 | BY6: 2031 | BZ6: 2032 | CA6: 2033 | CB6: 2034 | CC6: 2035 | CD6: 2036 | CE6: 2037 | CF6: 2038 | CG6: 2039 | CH6: 2040 | CI6: 2041 | CJ6: 2042 | CK6: 2043 | CL6: 2044 | CM6: 2045 | CN6: 2046 | CO6: 2047 | CP6: 2048 | CQ6: 2049 | CR6: 2050 | CS6: 2051 | CT6: 2052 | CU6: 2053 | CV6: 2054 | CW6: 2055 | CX6: 2056 | CY6: 2057 | CZ6: 2058 | DA6: 2059 | DB6: 2060 | DC6: 2061 | DD6: 2062 | DE6: 2063 | DF6: 2064 | DG6: 2065 | DH6: 2066 | DI6: 2067 | DJ6: 2068 | DK6: 2069 | DL6: 2070 | DM6: 2071 | DN6: 2072 | DO6: 2073 | DP6: 2074 | DQ6: 2075 | DR6: 2076 | DS6: 2077 | DT6: 2078 | DU6: 2079 | DV6: 2080 | DW6: 2081 | DX6: 2082 | DY6: 2083 | DZ6: 2084 | EA6: 2085 | EB6: 2086 | EC6: 2087 | ED6: 2088 | EE6: 2089 | EF6: 2090 | EG6: 2091 | EH6: 2092 | EI6: 2093 | EJ6: 2094 | EK6: 2095 | EL6: 2096 | EM6: 2097 | EN6: 2098 | EO6: 2099 | EP6: 2100
E7: AFR | F7: =+Population!F26*Affluence!F2*Technology!F2/1000000 -> 0 | G7: =+Population!G26*Affluence!G2*Technology!G2/1000000 -> 0 | H7: =+Population!H26*Affluence!H2*Technology!H2/1000000 -> 0 | I7: =+Population!I26*Affluence!I2*Technology!I2/1000000 -> 0 | J7: =+Population!J26*Affluence!J2*Technology!J2/1000000 -> 0 | K7: =+Population!K26*Affluence!K2*Technology!K2/1000000 -> 0 | L7: =+Population!L26*Affluence!L2*Technology!L2/1000000 -> 0 | M7: =+Population!M26*Affluence!M2*Technology!M2/1000000 -> 0 | N7: =+Population!N26*Affluence!N2*Technology!N2/1000000 -> 0 | O7: =+Population!O26*Affluence!O2*Technology!O2/1000000 -> 0 | P7: =+Population!P26*Affluence!P2*Technology!P2/1000000 -> 0 | Q7: =+Population!Q26*Affluence!Q2*Technology!Q2/1000000 -> 0 | R7: =+Population!R26*Affluence!R2*Technology!R2/1000000 -> 0 | S7: =+Population!S26*Affluence!S2*Technology!S2/1000000 -> 0 | T7: =+Population!T26*Affluence!T2*Technology!T2/1000000 -> 0 | U7: =+Population!U26*Affluence!U2*Technology!U2/1000000 -> 0 | V7: =+Population!V26*Affluence!V2*Technology!V2/1000000 -> 0 | W7: =+Population!W26*Affluence!W2*Technology!W2/1000000 -> 0 | X7: =+Population!X26*Affluence!X2*Technology!X2/1000000 -> 0 | Y7: =+Population!Y26*Affluence!Y2*Technology!Y2/1000000 -> 0 | Z7: =+Population!Z26*Affluence!Z2*Technology!Z2/1000000 -> 0 | AA7: =+Population!AA26*Affluence!AA2*Technology!AA2/1000000 -> 0 | AB7: =+Population!AB26*Affluence!AB2*Technology!AB2/1000000 -> 0 | AC7: =+Population!AC26*Affluence!AC2*Technology!AC2/1000000 -> 0 | AD7: =+Population!AD26*Affluence!AD2*Technology!AD2/1000000 -> 0 | AE7: =+Population!AE26*Affluence!AE2*Technology!AE2/1000000 -> 0 | AF7: =+Population!AF26*Affluence!AF2*Technology!AF2/1000000 -> 0 | AG7: =+Population!AG26*Affluence!AG2*Technology!AG2/1000000 -> 0 | AH7: =+Population!AH26*Affluence!AH2*Technology!AH2/1000000 -> 0 | AI7: =+Population!AI26*Affluence!AI2*Technology!AI2/1000000 -> 0 | AJ7: =+Population!AJ26*Affluence!AJ2*Technology!AJ2/1000000 -> 682141.7938 | AK7: =+Population!AK26*Affluence!AK2*Technology!AK2/1000000 -> 710957.4647 | AL7: =+Population!AL26*Affluence!AL2*Technology!AL2/1000000 -> 709992.2379 | AM7: =+Population!AM26*Affluence!AM2*Technology!AM2/1000000 -> 739069.6041 | AN7: =+Population!AN26*Affluence!AN2*Technology!AN2/1000000 -> 743933.7161 | AO7: =+Population!AO26*Affluence!AO2*Technology!AO2/1000000 -> 787633.2917 | AP7: =+Population!AP26*Affluence!AP2*Technology!AP2/1000000 -> 810995.693 | AQ7: =+Population!AQ26*Affluence!AQ2*Technology!AQ2/1000000 -> 820783.27 | AR7: =+Population!AR26*Affluence!AR2*Technology!AR2/1000000 -> 855037.1696 | AS7: =+Population!AS26*Affluence!AS2*Technology!AS2/1000000 -> 844512.9401 | AT7: =+Population!AT26*Affluence!AT2*Technology!AT2/1000000 -> 901039.9216 | AU7: =+Population!AU26*Affluence!AU2*Technology!AU2/1000000 -> 889870.9207 | AV7: =+Population!AV26*Affluence!AV2*Technology!AV2/1000000 -> 903359.3391 | AW7: =+Population!AW26*Affluence!AW2*Technology!AW2/1000000 -> 968845.9865 | AX7: =+Population!AX26*Affluence!AX2*Technology!AX2/1000000 -> 1042969.533 | AY7: =+Population!AY26*Affluence!AY2*Technology!AY2/1000000 -> 1060003.376 | AZ7: =+Population!AZ26*Affluence!AZ2*Technology!AZ2/1000000 -> 1102770.871 | BA7: =+Population!BA26*Affluence!BA2*Technology!BA2/1000000 -> 1148519.874 | BB7: =+Population!BB26*Affluence!BB2*Technology!BB2/1000000 -> 1203204.748 | BC7: =+Population!BC26*Affluence!BC2*Technology!BC2/1000000 -> 1216873.094 | BD7: =+Population!BD26*Affluence!BD2*Technology!BD2/1000000 -> 1220351.127 | BE7: =+Population!BE26*Affluence!BE2*Technology!BE2/1000000 -> 1231264.483 | BF7: =+Population!BF26*Affluence!BF2*Technology!BF2/1000000 -> 1284632.949 | BG7: =+Population!BG26*Affluence!BG2*Technology!BG2/1000000 -> 1287935.129 | BH7: =+Population!BH26*Affluence!BH2*Technology!BH2/1000000 -> 1368910.044 | BI7: =+Population!BI26*Affluence!BI2*Technology!BI2/1000000 -> 1388887.075 | BJ7: =+Population!BJ26*Affluence!BJ2*Technology!BJ2/1000000 -> 1365574.688 | BK7: =+Population!BK26*Affluence!BK2*Technology!BK2/1000000 -> 1338845.98 | BL7: =+Population!BL26*Affluence!BL2*Technology!BL2/1000000 -> 1311629.688 | BM7: =+Population!BM26*Affluence!BM2*Technology!BM2/1000000 -> 1286062.028 | BN7: =+Population!BN26*Affluence!BN2*Technology!BN2/1000000 -> 1263228.057 | BO7: =+Population!BO26*Affluence!BO2*Technology!BO2/1000000 -> 1243541.149 | BP7: =+Population!BP26*Affluence!BP2*Technology!BP2/1000000 -> 1227073.584 | BQ7: =+Population!BQ26*Affluence!BQ2*Technology!BQ2/1000000 -> 1213751.33 | BR7: =+Population!BR26*Affluence!BR2*Technology!BR2/1000000 -> 1203452.895 | BS7: =+Population!BS26*Affluence!BS2*Technology!BS2/1000000 -> 1196054.386 | BT7: =+Population!BT26*Affluence!BT2*Technology!BT2/1000000 -> 1191447.271 | BU7: =+Population!BU26*Affluence!BU2*Technology!BU2/1000000 -> 1189543.28 | BV7: =+Population!BV26*Affluence!BV2*Technology!BV2/1000000 -> 1190273.736 | BW7: =+Population!BW26*Affluence!BW2*Technology!BW2/1000000 -> 1193586.906 | BX7: =+Population!BX26*Affluence!BX2*Technology!BX2/1000000 -> 1199444.968 | BY7: =+Population!BY26*Affluence!BY2*Technology!BY2/1000000 -> 1207821.292 | BZ7: =+Population!BZ26*Affluence!BZ2*Technology!BZ2/1000000 -> 1218698.253 | CA7: =+Population!CA26*Affluence!CA2*Technology!CA2/1000000 -> 1232065.571 | CB7: =+Population!CB26*Affluence!CB2*Technology!CB2/1000000 -> 1247919.134 | CC7: =+Population!CC26*Affluence!CC2*Technology!CC2/1000000 -> 1266260.188 | CD7: =+Population!CD26*Affluence!CD2*Technology!CD2/1000000 -> 1287094.813 | CE7: =+Population!CE26*Affluence!CE2*Technology!CE2/1000000 -> 1310433.613 | CF7: =+Population!CF26*Affluence!CF2*Technology!CF2/1000000 -> 1336291.549 | CG7: =+Population!CG26*Affluence!CG2*Technology!CG2/1000000 -> 1364687.873 | CH7: =+Population!CH26*Affluence!CH2*Technology!CH2/1000000 -> 1395646.13 | CI7: =+Population!CI26*Affluence!CI2*Technology!CI2/1000000 -> 1429194.201 | CJ7: =+Population!CJ26*Affluence!CJ2*Technology!CJ2/1000000 -> 1465364.376 | CK7: =+Population!CK26*Affluence!CK2*Technology!CK2/1000000 -> 1504193.438 | CL7: =+Population!CL26*Affluence!CL2*Technology!CL2/1000000 -> 1545722.758 | CM7: =+Population!CM26*Affluence!CM2*Technology!CM2/1000000 -> 1589998.39 | CN7: =+Population!CN26*Affluence!CN2*Technology!CN2/1000000 -> 1637071.174 | CO7: =+Population!CO26*Affluence!CO2*Technology!CO2/1000000 -> 1686996.832 | CP7: =+Population!CP26*Affluence!CP2*Technology!CP2/1000000 -> 1739836.071 | CQ7: =+Population!CQ26*Affluence!CQ2*Technology!CQ2/1000000 -> 1795654.68 | CR7: =+Population!CR26*Affluence!CR2*Technology!CR2/1000000 -> 1854523.64 | CS7: =+Population!CS26*Affluence!CS2*Technology!CS2/1000000 -> 1859410.13 | CT7: =+Population!CT26*Affluence!CT2*Technology!CT2/1000000 -> 1862428.567 | CU7: =+Population!CU26*Affluence!CU2*Technology!CU2/1000000 -> 1863986.383 | CV7: =+Population!CV26*Affluence!CV2*Technology!CV2/1000000 -> 1865018.413 | CW7: =+Population!CW26*Affluence!CW2*Technology!CW2/1000000 -> 1865968.274 | CX7: =+Population!CX26*Affluence!CX2*Technology!CX2/1000000 -> 1867050.196 | CY7: =+Population!CY26*Affluence!CY2*Technology!CY2/1000000 -> 1868398.738 | CZ7: =+Population!CZ26*Affluence!CZ2*Technology!CZ2/1000000 -> 1870106.99 | DA7: =+Population!DA26*Affluence!DA2*Technology!DA2/1000000 -> 1872236.836 | DB7: =+Population!DB26*Affluence!DB2*Technology!DB2/1000000 -> 1874824.808 | DC7: =+Population!DC26*Affluence!DC2*Technology!DC2/1000000 -> 1877887.487 | DD7: =+Population!DD26*Affluence!DD2*Technology!DD2/1000000 -> 1881426.484 | DE7: =+Population!DE26*Affluence!DE2*Technology!DE2/1000000 -> 1885432.665 | DF7: =+Population!DF26*Affluence!DF2*Technology!DF2/1000000 -> 1889889.546 | DG7: =+Population!DG26*Affluence!DG2*Technology!DG2/1000000 -> 1894775.897 | DH7: =+Population!DH26*Affluence!DH2*Technology!DH2/1000000 -> 1900067.705 | DI7: =+Population!DI26*Affluence!DI2*Technology!DI2/1000000 -> 1905739.608 | DJ7: =+Population!DJ26*Affluence!DJ2*Technology!DJ2/1000000 -> 1911765.934 | DK7: =+Population!DK26*Affluence!DK2*Technology!DK2/1000000 -> 1918121.425 | DL7: =+Population!DL26*Affluence!DL2*Technology!DL2/1000000 -> 1924781.729 | DM7: =+Population!DM26*Affluence!DM2*Technology!DM2/1000000 -> 1931723.724 | DN7: =+Population!DN26*Affluence!DN2*Technology!DN2/1000000 -> 1938925.708 | DO7: =+Population!DO26*Affluence!DO2*Technology!DO2/1000000 -> 1946367.493 | DP7: =+Population!DP26*Affluence!DP2*Technology!DP2/1000000 -> 1954030.439 | DQ7: =+Population!DQ26*Affluence!DQ2*Technology!DQ2/1000000 -> 1961897.434 | DR7: =+Population!DR26*Affluence!DR2*Technology!DR2/1000000 -> 1969952.843 | DS7: =+Population!DS26*Affluence!DS2*Technology!DS2/1000000 -> 1978182.44 | DT7: =+Population!DT26*Affluence!DT2*Technology!DT2/1000000 -> 1986573.318 | DU7: =+Population!DU26*Affluence!DU2*Technology!DU2/1000000 -> 1995113.803 | DV7: =+Population!DV26*Affluence!DV2*Technology!DV2/1000000 -> 2003793.357 | DW7: =+Population!DW26*Affluence!DW2*Technology!DW2/1000000 -> 2012602.487 | DX7: =+Population!DX26*Affluence!DX2*Technology!DX2/1000000 -> 2021532.652 | DY7: =+Population!DY26*Affluence!DY2*Technology!DY2/1000000 -> 2030576.182 | DZ7: =+Population!DZ26*Affluence!DZ2*Technology!DZ2/1000000 -> 2039726.193 | EA7: =+Population!EA26*Affluence!EA2*Technology!EA2/1000000 -> 2048976.512 | EB7: =+Population!EB26*Affluence!EB2*Technology!EB2/1000000 -> 2058321.611 | EC7: =+Population!EC26*Affluence!EC2*Technology!EC2/1000000 -> 2067756.539 | ED7: =+Population!ED26*Affluence!ED2*Technology!ED2/1000000 -> 2077276.868 | EE7: =+Population!EE26*Affluence!EE2*Technology!EE2/1000000 -> 2086878.635 | EF7: =+Population!EF26*Affluence!EF2*Technology!EF2/1000000 -> 2096558.299 | EG7: =+Population!EG26*Affluence!EG2*Technology!EG2/1000000 -> 2106312.696 | EH7: =+Population!EH26*Affluence!EH2*Technology!EH2/1000000 -> 2116138.997 | EI7: =+Population!EI26*Affluence!EI2*Technology!EI2/1000000 -> 2126034.677 | EJ7: =+Population!EJ26*Affluence!EJ2*Technology!EJ2/1000000 -> 2135997.484 | EK7: =+Population!EK26*Affluence!EK2*Technology!EK2/1000000 -> 2146025.406 | EL7: =+Population!EL26*Affluence!EL2*Technology!EL2/1000000 -> 2156116.65 | EM7: =+Population!EM26*Affluence!EM2*Technology!EM2/1000000 -> 2166269.616 | EN7: =+Population!EN26*Affluence!EN2*Technology!EN2/1000000 -> 2176482.881 | EO7: =+Population!EO26*Affluence!EO2*Technology!EO2/1000000 -> 2186755.177 | EP7: =+Population!EP26*Affluence!EP2*Technology!EP2/1000000 -> 2197085.376
E8: AUS | F8: =+Population!F27*Affluence!F3*Technology!F3/1000000 -> 0 | G8: =+Population!G27*Affluence!G3*Technology!G3/1000000 -> 0 | H8: =+Population!H27*Affluence!H3*Technology!H3/1000000 -> 0 | I8: =+Population!I27*Affluence!I3*Technology!I3/1000000 -> 0 | J8: =+Population!J27*Affluence!J3*Technology!J3/1000000 -> 0 | K8: =+Population!K27*Affluence!K3*Technology!K3/1000000 -> 0 | L8: =+Population!L27*Affluence!L3*Technology!L3/1000000 -> 0 | M8: =+Population!M27*Affluence!M3*Technology!M3/1000000 -> 0 | N8: =+Population!N27*Affluence!N3*Technology!N3/1000000 -> 0 | O8: =+Population!O27*Affluence!O3*Technology!O3/1000000 -> 0 | P8: =+Population!P27*Affluence!P3*Technology!P3/1000000 -> 0 | Q8: =+Population!Q27*Affluence!Q3*Technology!Q3/1000000 -> 0 | R8: =+Population!R27*Affluence!R3*Technology!R3/1000000 -> 0 | S8: =+Population!S27*Affluence!S3*Technology!S3/1000000 -> 0 | T8: =+Population!T27*Affluence!T3*Technology!T3/1000000 -> 0 | U8: =+Population!U27*Affluence!U3*Technology!U3/1000000 -> 0 | V8: =+Population!V27*Affluence!V3*Technology!V3/1000000 -> 0 | W8: =+Population!W27*Affluence!W3*Technology!W3/1000000 -> 0 | X8: =+Population!X27*Affluence!X3*Technology!X3/1000000 -> 0 | Y8: =+Population!Y27*Affluence!Y3*Technology!Y3/1000000 -> 0 | Z8: =+Population!Z27*Affluence!Z3*Technology!Z3/1000000 -> 0 | AA8: =+Population!AA27*Affluence!AA3*Technology!AA3/1000000 -> 0 | AB8: =+Population!AB27*Affluence!AB3*Technology!AB3/1000000 -> 0 | AC8: =+Population!AC27*Affluence!AC3*Technology!AC3/1000000 -> 0 | AD8: =+Population!AD27*Affluence!AD3*Technology!AD3/1000000 -> 0 | AE8: =+Population!AE27*Affluence!AE3*Technology!AE3/1000000 -> 0 | AF8: =+Population!AF27*Affluence!AF3*Technology!AF3/1000000 -> 0 | AG8: =+Population!AG27*Affluence!AG3*Technology!AG3/1000000 -> 0 | AH8: =+Population!AH27*Affluence!AH3*Technology!AH3/1000000 -> 0 | AI8: =+Population!AI27*Affluence!AI3*Technology!AI3/1000000 -> 0 | AJ8: =+Population!AJ27*Affluence!AJ3*Technology!AJ3/1000000 -> 287250.778 | AK8: =+Population!AK27*Affluence!AK3*Technology!AK3/1000000 -> 285556.624 | AL8: =+Population!AL27*Affluence!AL3*Technology!AL3/1000000 -> 293066.64 | AM8: =+Population!AM27*Affluence!AM3*Technology!AM3/1000000 -> 304085.975 | AN8: =+Population!AN27*Affluence!AN3*Technology!AN3/1000000 -> 304801.04 | AO8: =+Population!AO27*Affluence!AO3*Technology!AO3/1000000 -> 308992.421 | AP8: =+Population!AP27*Affluence!AP3*Technology!AP3/1000000 -> 330807.404 | AQ8: =+Population!AQ27*Affluence!AQ3*Technology!AQ3/1000000 -> 336817.617 | AR8: =+Population!AR27*Affluence!AR3*Technology!AR3/1000000 -> 346912.868 | AS8: =+Population!AS27*Affluence!AS3*Technology!AS3/1000000 -> 357983.541 | AT8: =+Population!AT27*Affluence!AT3*Technology!AT3/1000000 -> 362424.278 | AU8: =+Population!AU27*Affluence!AU3*Technology!AU3/1000000 -> 359292.66 | AV8: =+Population!AV27*Affluence!AV3*Technology!AV3/1000000 -> 374554.714 | AW8: =+Population!AW27*Affluence!AW3*Technology!AW3/1000000 -> 370352.332 | AX8: =+Population!AX27*Affluence!AX3*Technology!AX3/1000000 -> 377253.626 | AY8: =+Population!AY27*Affluence!AY3*Technology!AY3/1000000 -> 384312.601 | AZ8: =+Population!AZ27*Affluence!AZ3*Technology!AZ3/1000000 -> 398793.584 | BA8: =+Population!BA27*Affluence!BA3*Technology!BA3/1000000 -> 405727.881 | BB8: =+Population!BB27*Affluence!BB3*Technology!BB3/1000000 -> 420106.188 | BC8: =+Population!BC27*Affluence!BC3*Technology!BC3/1000000 -> 427179.831 | BD8: =+Population!BD27*Affluence!BD3*Technology!BD3/1000000 -> 404576.443 | BE8: =+Population!BE27*Affluence!BE3*Technology!BE3/1000000 -> 408214.107 | BF8: =+Population!BF27*Affluence!BF3*Technology!BF3/1000000 -> 409963.266 | BG8: =+Population!BG27*Affluence!BG3*Technology!BG3/1000000 -> 411866.439 | BH8: =+Population!BH27*Affluence!BH3*Technology!BH3/1000000 -> 392496.5125 | BI8: =+Population!BI27*Affluence!BI3*Technology!BI3/1000000 -> 373861.1701 | BJ8: =+Population!BJ27*Affluence!BJ3*Technology!BJ3/1000000 -> 356363.7996 | BK8: =+Population!BK27*Affluence!BK3*Technology!BK3/1000000 -> 343062.9055 | BL8: =+Population!BL27*Affluence!BL3*Technology!BL3/1000000 -> 332454.8426 | BM8: =+Population!BM27*Affluence!BM3*Technology!BM3/1000000 -> 323865.749 | BN8: =+Population!BN27*Affluence!BN3*Technology!BN3/1000000 -> 316887.2925 | BO8: =+Population!BO27*Affluence!BO3*Technology!BO3/1000000 -> 311234.5967 | BP8: =+Population!BP27*Affluence!BP3*Technology!BP3/1000000 -> 306701.8213 | BQ8: =+Population!BQ27*Affluence!BQ3*Technology!BQ3/1000000 -> 303140.3697 | BR8: =+Population!BR27*Affluence!BR3*Technology!BR3/1000000 -> 300443.8544 | BS8: =+Population!BS27*Affluence!BS3*Technology!BS3/1000000 -> 298536.6934 | BT8: =+Population!BT27*Affluence!BT3*Technology!BT3/1000000 -> 297365.5038 | BU8: =+Population!BU27*Affluence!BU3*Technology!BU3/1000000 -> 296892.7562 | BV8: =+Population!BV27*Affluence!BV3*Technology!BV3/1000000 -> 297092.1907 | BW8: =+Population!BW27*Affluence!BW3*Technology!BW3/1000000 -> 297945.5596 | BX8: =+Population!BX27*Affluence!BX3*Technology!BX3/1000000 -> 299440.3416 | BY8: =+Population!BY27*Affluence!BY3*Technology!BY3/1000000 -> 301568.158 | BZ8: =+Population!BZ27*Affluence!BZ3*Technology!BZ3/1000000 -> 304323.688 | CA8: =+Population!CA27*Affluence!CA3*Technology!CA3/1000000 -> 307703.9363 | CB8: =+Population!CB27*Affluence!CB3*Technology!CB3/1000000 -> 311707.7473 | CC8: =+Population!CC27*Affluence!CC3*Technology!CC3/1000000 -> 316335.4897 | CD8: =+Population!CD27*Affluence!CD3*Technology!CD3/1000000 -> 321588.8586 | CE8: =+Population!CE27*Affluence!CE3*Technology!CE3/1000000 -> 327470.7568 | CF8: =+Population!CF27*Affluence!CF3*Technology!CF3/1000000 -> 333985.2296 | CG8: =+Population!CG27*Affluence!CG3*Technology!CG3/1000000 -> 341137.4349 | CH8: =+Population!CH27*Affluence!CH3*Technology!CH3/1000000 -> 348933.6357 | CI8: =+Population!CI27*Affluence!CI3*Technology!CI3/1000000 -> 357381.2072 | CJ8: =+Population!CJ27*Affluence!CJ3*Technology!CJ3/1000000 -> 366488.6528 | CK8: =+Population!CK27*Affluence!CK3*Technology!CK3/1000000 -> 376265.6251 | CL8: =+Population!CL27*Affluence!CL3*Technology!CL3/1000000 -> 386722.9498 | CM8: =+Population!CM27*Affluence!CM3*Technology!CM3/1000000 -> 397872.6516 | CN8: =+Population!CN27*Affluence!CN3*Technology!CN3/1000000 -> 409727.98 | CO8: =+Population!CO27*Affluence!CO3*Technology!CO3/1000000 -> 422303.437 | CP8: =+Population!CP27*Affluence!CP3*Technology!CP3/1000000 -> 435614.8034 | CQ8: =+Population!CQ27*Affluence!CQ3*Technology!CQ3/1000000 -> 449679.1673 | CR8: =+Population!CR27*Affluence!CR3*Technology!CR3/1000000 -> 464514.9516 | CS8: =+Population!CS27*Affluence!CS3*Technology!CS3/1000000 -> 465834.511 | CT8: =+Population!CT27*Affluence!CT3*Technology!CT3/1000000 -> 466639.5683 | CU8: =+Population!CU27*Affluence!CU3*Technology!CU3/1000000 -> 467079.2803 | CV8: =+Population!CV27*Affluence!CV3*Technology!CV3/1000000 -> 467387.8137 | CW8: =+Population!CW27*Affluence!CW3*Technology!CW3/1000000 -> 467676.3186 | CX8: =+Population!CX27*Affluence!CX3*Technology!CX3/1000000 -> 467998.4935 | CY8: =+Population!CY27*Affluence!CY3*Technology!CY3/1000000 -> 468388.0878 | CZ8: =+Population!CZ27*Affluence!CZ3*Technology!CZ3/1000000 -> 468868.4699 | DA8: =+Population!DA27*Affluence!DA3*Technology!DA3/1000000 -> 469455.1939 | DB8: =+Population!DB27*Affluence!DB3*Technology!DB3/1000000 -> 470157.4638 | DC8: =+Population!DC27*Affluence!DC3*Technology!DC3/1000000 -> 470979.4854 | DD8: =+Population!DD27*Affluence!DD3*Technology!DD3/1000000 -> 471921.7119 | DE8: =+Population!DE27*Affluence!DE3*Technology!DE3/1000000 -> 472981.9028 | DF8: =+Population!DF27*Affluence!DF3*Technology!DF3/1000000 -> 474155.9726 | DG8: =+Population!DG27*Affluence!DG3*Technology!DG3/1000000 -> 475438.6445 | DH8: =+Population!DH27*Affluence!DH3*Technology!DH3/1000000 -> 476823.9413 | DI8: =+Population!DI27*Affluence!DI3*Technology!DI3/1000000 -> 478305.5457 | DJ8: =+Population!DJ27*Affluence!DJ3*Technology!DJ3/1000000 -> 479877.0597 | DK8: =+Population!DK27*Affluence!DK3*Technology!DK3/1000000 -> 481532.1873 | DL8: =+Population!DL27*Affluence!DL3*Technology!DL3/1000000 -> 483264.8577 | DM8: =+Population!DM27*Affluence!DM3*Technology!DM3/1000000 -> 485069.3066 | DN8: =+Population!DN27*Affluence!DN3*Technology!DN3/1000000 -> 486940.1234 | DO8: =+Population!DO27*Affluence!DO3*Technology!DO3/1000000 -> 488872.2769 | DP8: =+Population!DP27*Affluence!DP3*Technology!DP3/1000000 -> 490861.1218 | DQ8: =+Population!DQ27*Affluence!DQ3*Technology!DQ3/1000000 -> 492902.3954 | DR8: =+Population!DR27*Affluence!DR3*Technology!DR3/1000000 -> 494992.2045 | DS8: =+Population!DS27*Affluence!DS3*Technology!DS3/1000000 -> 497127.0078 | DT8: =+Population!DT27*Affluence!DT3*Technology!DT3/1000000 -> 499303.5951 | DU8: =+Population!DU27*Affluence!DU3*Technology!DU3/1000000 -> 501519.0642 | DV8: =+Population!DV27*Affluence!DV3*Technology!DV3/1000000 -> 503770.7979 | DW8: =+Population!DW27*Affluence!DW3*Technology!DW3/1000000 -> 506056.4402 | DX8: =+Population!DX27*Affluence!DX3*Technology!DX3/1000000 -> 508373.8746 | DY8: =+Population!DY27*Affluence!DY3*Technology!DY3/1000000 -> 510721.2021 | DZ8: =+Population!DZ27*Affluence!DZ3*Technology!DZ3/1000000 -> 513096.7209 | EA8: =+Population!EA27*Affluence!EA3*Technology!EA3/1000000 -> 515498.9082 | EB8: =+Population!EB27*Affluence!EB3*Technology!EB3/1000000 -> 517926.4023 | EC8: =+Population!EC27*Affluence!EC3*Technology!EC3/1000000 -> 520377.9869 | ED8: =+Population!ED27*Affluence!ED3*Technology!ED3/1000000 -> 522852.5765 | EE8: =+Population!EE27*Affluence!EE3*Technology!EE3/1000000 -> 525349.203 | EF8: =+Population!EF27*Affluence!EF3*Technology!EF3/1000000 -> 527867.0039 | EG8: =+Population!EG27*Affluence!EG3*Technology!EG3/1000000 -> 530405.2118 | EH8: =+Population!EH27*Affluence!EH3*Technology!EH3/1000000 -> 532963.1437 | EI8: =+Population!EI27*Affluence!EI3*Technology!EI3/1000000 -> 535540.1932 | EJ8: =+Population!EJ27*Affluence!EJ3*Technology!EJ3/1000000 -> 538135.8222 | EK8: =+Population!EK27*Affluence!EK3*Technology!EK3/1000000 -> 540749.5537 | EL8: =+Population!EL27*Affluence!EL3*Technology!EL3/1000000 -> 543380.9657 | EM8: =+Population!EM27*Affluence!EM3*Technology!EM3/1000000 -> 546029.6855 | EN8: =+Population!EN27*Affluence!EN3*Technology!EN3/1000000 -> 548695.3846 | EO8: =+Population!EO27*Affluence!EO3*Technology!EO3/1000000 -> 551377.774 | EP8: =+Population!EP27*Affluence!EP3*Technology!EP3/1000000 -> 554076.6004
C9: Units | E9: CAC | F9: =+Population!F28*Affluence!F4*Technology!F4/1000000 ->  | G9: =+Population!G28*Affluence!G4*Technology!G4/1000000 ->  | H9: =+Population!H28*Affluence!H4*Technology!H4/1000000 ->  | I9: =+Population!I28*Affluence!I4*Technology!I4/1000000 ->  | J9: =+Population!J28*Affluence!J4*Technology!J4/1000000 ->  | K9: =+Population!K28*Affluence!K4*Technology!K4/1000000 ->  | L9: =+Population!L28*Affluence!L4*Technology!L4/1000000 ->  | M9: =+Population!M28*Affluence!M4*Technology!M4/1000000 ->  | N9: =+Population!N28*Affluence!N4*Technology!N4/1000000 ->  | O9: =+Population!O28*Affluence!O4*Technology!O4/1000000 ->  | P9: =+Population!P28*Affluence!P4*Technology!P4/1000000 ->  | Q9: =+Population!Q28*Affluence!Q4*Technology!Q4/1000000 ->  | R9: =+Population!R28*Affluence!R4*Technology!R4/1000000 ->  | S9: =+Population!S28*Affluence!S4*Technology!S4/1000000 ->  | T9: =+Population!T28*Affluence!T4*Technology!T4/1000000 ->  | U9: =+Population!U28*Affluence!U4*Technology!U4/1000000 ->  | V9: =+Population!V28*Affluence!V4*Technology!V4/1000000 ->  | W9: =+Population!W28*Affluence!W4*Technology!W4/1000000 ->  | X9: =+Population!X28*Affluence!X4*Technology!X4/1000000 ->  | Y9: =+Population!Y28*Affluence!Y4*Technology!Y4/1000000 ->  | Z9: =+Population!Z28*Affluence!Z4*Technology!Z4/1000000 ->  | AA9: =+Population!AA28*Affluence!AA4*Technology!AA4/1000000 ->  | AB9: =+Population!AB28*Affluence!AB4*Technology!AB4/1000000 ->  | AC9: =+Population!AC28*Affluence!AC4*Technology!AC4/1000000 ->  | AD9: =+Population!AD28*Affluence!AD4*Technology!AD4/1000000 ->  | AE9: =+Population!AE28*Affluence!AE4*Technology!AE4/1000000 ->  | AF9: =+Population!AF28*Affluence!AF4*Technology!AF4/1000000 ->  | AG9: =+Population!AG28*Affluence!AG4*Technology!AG4/1000000 ->  | AH9: =+Population!AH28*Affluence!AH4*Technology!AH4/1000000 ->  | AI9: =+Population!AI28*Affluence!AI4*Technology!AI4/1000000 ->  | AJ9: =+Population!AJ28*Affluence!AJ4*Technology!AJ4/1000000 ->  | AK9: =+Population!AK28*Affluence!AK4*Technology!AK4/1000000 ->  | AL9: =+Population!AL28*Affluence!AL4*Technology!AL4/1000000 -> 502628.356 | AM9: =+Population!AM28*Affluence!AM4*Technology!AM4/1000000 -> 437902.139 | AN9: =+Population!AN28*Affluence!AN4*Technology!AN4/1000000 -> 399460.978 | AO9: =+Population!AO28*Affluence!AO4*Technology!AO4/1000000 -> 347195.227 | AP9: =+Population!AP28*Affluence!AP4*Technology!AP4/1000000 -> 319465.373 | AQ9: =+Population!AQ28*Affluence!AQ4*Technology!AQ4/1000000 -> 305820.466 | AR9: =+Population!AR28*Affluence!AR4*Technology!AR4/1000000 -> 323847.438 | AS9: =+Population!AS28*Affluence!AS4*Technology!AS4/1000000 -> 313099.461 | AT9: =+Population!AT28*Affluence!AT4*Technology!AT4/1000000 -> 318841.983 | AU9: =+Population!AU28*Affluence!AU4*Technology!AU4/1000000 -> 333102.946 | AV9: =+Population!AV28*Affluence!AV4*Technology!AV4/1000000 -> 342783.826 | AW9: =+Population!AW28*Affluence!AW4*Technology!AW4/1000000 -> 353645.48 | AX9: =+Population!AX28*Affluence!AX4*Technology!AX4/1000000 -> 385852.741 | AY9: =+Population!AY28*Affluence!AY4*Technology!AY4/1000000 -> 387693.575 | AZ9: =+Population!AZ28*Affluence!AZ4*Technology!AZ4/1000000 -> 412621.841 | BA9: =+Population!BA28*Affluence!BA4*Technology!BA4/1000000 -> 441591.141 | BB9: =+Population!BB28*Affluence!BB4*Technology!BB4/1000000 -> 416024.817 | BC9: =+Population!BC28*Affluence!BC4*Technology!BC4/1000000 -> 372347.18 | BD9: =+Population!BD28*Affluence!BD4*Technology!BD4/1000000 -> 454913.352 | BE9: =+Population!BE28*Affluence!BE4*Technology!BE4/1000000 -> 488301.387 | BF9: =+Population!BF28*Affluence!BF4*Technology!BF4/1000000 -> 484256.686 | BG9: =+Population!BG28*Affluence!BG4*Technology!BG4/1000000 -> 491513.679 | BH9: =+Population!BH28*Affluence!BH4*Technology!BH4/1000000 -> 474238.764 | BI9: =+Population!BI28*Affluence!BI4*Technology!BI4/1000000 -> 451099.0343 | BJ9: =+Population!BJ28*Affluence!BJ4*Technology!BJ4/1000000 -> 428384.8288 | BK9: =+Population!BK28*Affluence!BK4*Technology!BK4/1000000 -> 411467.0846 | BL9: =+Population!BL28*Affluence!BL4*Technology!BL4/1000000 -> 398202.9864 | BM9: =+Population!BM28*Affluence!BM4*Technology!BM4/1000000 -> 387600.4642 | BN9: =+Population!BN28*Affluence!BN4*Technology!BN4/1000000 -> 379066.504 | BO9: =+Population!BO28*Affluence!BO4*Technology!BO4/1000000 -> 372200.6748 | BP9: =+Population!BP28*Affluence!BP4*Technology!BP4/1000000 -> 366722.3937 | BQ9: =+Population!BQ28*Affluence!BQ4*Technology!BQ4/1000000 -> 362433.9883 | BR9: =+Population!BR28*Affluence!BR4*Technology!BR4/1000000 -> 359196.5884 | BS9: =+Population!BS28*Affluence!BS4*Technology!BS4/1000000 -> 356912.9952 | BT9: =+Population!BT28*Affluence!BT4*Technology!BT4/1000000 -> 355515.3798 | BU9: =+Population!BU28*Affluence!BU4*Technology!BU4/1000000 -> 354956.5301 | BV9: =+Population!BV28*Affluence!BV4*Technology!BV4/1000000 -> 355203.69 | BW9: =+Population!BW28*Affluence!BW4*Technology!BW4/1000000 -> 356234.2653 | BX9: =+Population!BX28*Affluence!BX4*Technology!BX4/1000000 -> 358032.8556 | BY9: =+Population!BY28*Affluence!BY4*Technology!BY4/1000000 -> 360589.222 | BZ9: =+Population!BZ28*Affluence!BZ4*Technology!BZ4/1000000 -> 363896.9077 | CA9: =+Population!CA28*Affluence!CA4*Technology!CA4/1000000 -> 367952.3132 | CB9: =+Population!CB28*Affluence!CB4*Technology!CB4/1000000 -> 372754.0868 | CC9: =+Population!CC28*Affluence!CC4*Technology!CC4/1000000 -> 378302.7298 | CD9: =+Population!CD28*Affluence!CD4*Technology!CD4/1000000 -> 384600.3498 | CE9: =+Population!CE28*Affluence!CE4*Technology!CE4/1000000 -> 391650.513 | CF9: =+Population!CF28*Affluence!CF4*Technology!CF4/1000000 -> 399458.1626 | CG9: =+Population!CG28*Affluence!CG4*Technology!CG4/1000000 -> 408029.5811 | CH9: =+Population!CH28*Affluence!CH4*Technology!CH4/1000000 -> 417372.3807 | CI9: =+Population!CI28*Affluence!CI4*Technology!CI4/1000000 -> 427495.5112 | CJ9: =+Population!CJ28*Affluence!CJ4*Technology!CJ4/1000000 -> 438409.279 | CK9: =+Population!CK28*Affluence!CK4*Technology!CK4/1000000 -> 450125.3727 | CL9: =+Population!CL28*Affluence!CL4*Technology!CL4/1000000 -> 462656.892 | CM9: =+Population!CM28*Affluence!CM4*Technology!CM4/1000000 -> 476018.3789 | CN9: =+Population!CN28*Affluence!CN4*Technology!CN4/1000000 -> 490225.8499 | CO9: =+Population!CO28*Affluence!CO4*Technology!CO4/1000000 -> 505296.8285 | CP9: =+Population!CP28*Affluence!CP4*Technology!CP4/1000000 -> 521250.3789 | CQ9: =+Population!CQ28*Affluence!CQ4*Technology!CQ4/1000000 -> 538107.1393 | CR9: =+Population!CR28*Affluence!CR4*Technology!CR4/1000000 -> 555889.3571 | CS9: =+Population!CS28*Affluence!CS4*Technology!CS4/1000000 -> 557498.1746 | CT9: =+Population!CT28*Affluence!CT4*Technology!CT4/1000000 -> 558476.8126 | CU9: =+Population!CU28*Affluence!CU4*Technology!CU4/1000000 -> 559018.3958 | CV9: =+Population!CV28*Affluence!CV4*Technology!CV4/1000000 -> 559403.1574 | CW9: =+Population!CW28*Affluence!CW4*Technology!CW4/1000000 -> 559764.1223 | CX9: =+Population!CX28*Affluence!CX4*Technology!CX4/1000000 -> 560165.5641 | CY9: =+Population!CY28*Affluence!CY4*Technology!CY4/1000000 -> 560647.8854 | CZ9: =+Population!CZ28*Affluence!CZ4*Technology!CZ4/1000000 -> 561239.067 | DA9: =+Population!DA28*Affluence!DA4*Technology!DA4/1000000 -> 561957.7396 | DB9: =+Population!DB28*Affluence!DB4*Technology!DB4/1000000 -> 562814.9342 | DC9: =+Population!DC28*Affluence!DC4*Technology!DC4/1000000 -> 563815.7004 | DD9: =+Population!DD28*Affluence!DD4*Technology!DD4/1000000 -> 564960.5958 | DE9: =+Population!DE28*Affluence!DE4*Technology!DE4/1000000 -> 566246.954 | DF9: =+Population!DF28*Affluence!DF4*Technology!DF4/1000000 -> 567669.8991 | DG9: =+Population!DG28*Affluence!DG4*Technology!DG4/1000000 -> 569223.1293 | DH9: =+Population!DH28*Affluence!DH4*Technology!DH4/1000000 -> 570899.5031 | DI9: =+Population!DI28*Affluence!DI4*Technology!DI4/1000000 -> 572691.4714 | DJ9: =+Population!DJ28*Affluence!DJ4*Technology!DJ4/1000000 -> 574591.3879 | DK9: =+Population!DK28*Affluence!DK4*Technology!DK4/1000000 -> 576591.7274 | DL9: =+Population!DL28*Affluence!DL4*Technology!DL4/1000000 -> 578685.234 | DM9: =+Population!DM28*Affluence!DM4*Technology!DM4/1000000 -> 580865.0177 | DN9: =+Population!DN28*Affluence!DN4*Technology!DN4/1000000 -> 583124.6119 | DO9: =+Population!DO28*Affluence!DO4*Technology!DO4/1000000 -> 585458.0031 | DP9: =+Population!DP28*Affluence!DP4*Technology!DP4/1000000 -> 587859.6399 | DQ9: =+Population!DQ28*Affluence!DQ4*Technology!DQ4/1000000 -> 590324.4282 | DR9: =+Population!DR28*Affluence!DR4*Technology!DR4/1000000 -> 592847.7161 | DS9: =+Population!DS28*Affluence!DS4*Technology!DS4/1000000 -> 595425.2727 | DT9: =+Population!DT28*Affluence!DT4*Technology!DT4/1000000 -> 598053.2632 | DU9: =+Population!DU28*Affluence!DU4*Technology!DU4/1000000 -> 600728.2214 | DV9: =+Population!DV28*Affluence!DV4*Technology!DV4/1000000 -> 603447.022 | DW9: =+Population!DW28*Affluence!DW4*Technology!DW4/1000000 -> 606206.8527 | DX9: =+Population!DX28*Affluence!DX4*Technology!DX4/1000000 -> 609005.1874 | DY9: =+Population!DY28*Affluence!DY4*Technology!DY4/1000000 -> 611839.7605 | DZ9: =+Population!DZ28*Affluence!DZ4*Technology!DZ4/1000000 -> 614708.5427 | EA9: =+Population!EA28*Affluence!EA4*Technology!EA4/1000000 -> 617609.7185 | EB9: =+Population!EB28*Affluence!EB4*Technology!EB4/1000000 -> 620541.6658 | EC9: =+Population!EC28*Affluence!EC4*Technology!EC4/1000000 -> 623502.9362 | ED9: =+Population!ED28*Affluence!ED4*Technology!ED4/1000000 -> 626492.238 | EE9: =+Population!EE28*Affluence!EE4*Technology!EE4/1000000 -> 629508.4204 | EF9: =+Population!EF28*Affluence!EF4*Technology!EF4/1000000 -> 632550.459 | EG9: =+Population!EG28*Affluence!EG4*Technology!EG4/1000000 -> 635617.4428 | EH9: =+Population!EH28*Affluence!EH4*Technology!EH4/1000000 -> 638708.5629 | EI9: =+Population!EI28*Affluence!EI4*Technology!EI4/1000000 -> 641823.1013 | EJ9: =+Population!EJ28*Affluence!EJ4*Technology!EJ4/1000000 -> 644960.4223 | EK9: =+Population!EK28*Affluence!EK4*Technology!EK4/1000000 -> 648119.9634 | EL9: =+Population!EL28*Affluence!EL4*Technology!EL4/1000000 -> 651301.2281 | EM9: =+Population!EM28*Affluence!EM4*Technology!EM4/1000000 -> 654503.7789 | EN9: =+Population!EN28*Affluence!EN4*Technology!EN4/1000000 -> 657727.2314 | EO9: =+Population!EO28*Affluence!EO4*Technology!EO4/1000000 -> 660971.2488 | EP9: =+Population!EP28*Affluence!EP4*Technology!EP4/1000000 -> 664235.537
